{"text_format":"1","workbook":"xlsx","n_sheets":4,"sheets":["TMC (Desc)","TMC (Code)","Communication Facility (Desc)","Communication Facility (Code)"],"not_rendered":{"charts":0,"images":0,"macros":1,"external_links":1,"defined_names":15,"comments":0,"pivot_tables":0},"unopened":[],"bounds":{"document_bytes":16777216,"sheet_cells":100000,"rows_first":2000,"rows_last":500,"rows_between":2000,"halvings":0,"cell_chars":16384,"cell_head_chars":4096},"cells_cut":0,"cells_raw":0,"read":"whole","date_system":"1900"}

{"sheet":"TMC (Desc)","index":0,"n_rows":2,"n_cols":7,"rows_kept":2,"cut":false,"hidden":false,"merged":[]}
["Site Identification Name\nTMC or Other Control Center SIN","Latitude","Longitude","Facility Owner","County","Installed Date (YYYY)","NAME"]
["SITE_NO\nREQUIRED FIELD","PRIM GEOM (Y)\nREQUIRED FIELD","PRIM GEOM (X)\nREQUIRED FIELD","OWNER_CD\nREQUIRED FIELD","COUNTY_CD\nREQUIRED FIELD","YEAR_INSTALLED","RTMC Name\nREQUIRED FIELD"]

{"sheet":"TMC (Code)","index":1,"n_rows":42,"n_cols":7,"rows_kept":42,"cut":false,"hidden":false,"merged":[]}
["Site Identification Name                     TMC or Other Control Center SIN","Latitude ","Longitude","Facility Owner","County","Installed Date (YYYY)","NAME"]
["SITE_NO                                   REQUIRED FIELD","PRIM GEOM (Y)   REQUIRED FIELD","PRIM GEOM (X)   REQUIRED FIELD","OWNER_CD     REQUIRED FIELD","COUNTY_CD     REQUIRED FIELD","YEAR_INSTALLED","RTMC Name                                                        REQUIRED FIELD"]
[{"$f":"IF('TMC (Desc)'!A3=\"\",\"\",'TMC (Desc)'!A3)","v":""},{"$f":"IF('TMC (Desc)'!B3=\"\",\"\",'TMC (Desc)'!B3)","v":""},{"$f":"IF('TMC (Desc)'!C3=\"\",\"\",'TMC (Desc)'!C3)","v":""},{"$f":"IF('TMC (Desc)'!D3=\"\",\"\",INDEX([1]OWNER!$A$2:$A$100,MATCH('TMC (Desc)'!$D3,[1]!MASTER_OWNER_DESC[#Data],0),0))","v":""},{"$f":"IF('TMC (Desc)'!E3=\"\",\"\",INDEX([1]COUNTY!$A$2:$A$80,MATCH('TMC (Desc)'!E3,[1]!MASTER_COUNTY_NAME[#Data],0),0))","v":""},{"$f":"IF('TMC (Desc)'!F3=\"\",\"\",'TMC (Desc)'!F3)","v":""},{"$f":"IF('TMC (Desc)'!G3=\"\",\"\",'TMC (Desc)'!G3)","v":""}]
[{"$f":"IF('TMC (Desc)'!A4=\"\",\"\",'TMC (Desc)'!A4)","v":""},{"$f":"IF('TMC (Desc)'!B4=\"\",\"\",'TMC (Desc)'!B4)","v":""},{"$f":"IF('TMC (Desc)'!C4=\"\",\"\",'TMC (Desc)'!C4)","v":""},{"$f":"IF('TMC (Desc)'!D4=\"\",\"\",INDEX([1]OWNER!$A$2:$A$100,MATCH('TMC (Desc)'!$D4,[1]!MASTER_OWNER_DESC[#Data],0),0))","v":""},{"$f":"IF('TMC (Desc)'!E4=\"\",\"\",INDEX([1]COUNTY!$A$2:$A$80,MATCH('TMC (Desc)'!E4,[1]!MASTER_COUNTY_NAME[#Data],0),0))","v":""},{"$f":"IF('TMC (Desc)'!F4=\"\",\"\",'TMC (Desc)'!F4)","v":""},{"$f":"IF('TMC (Desc)'!G4=\"\",\"\",'TMC (Desc)'!G4)","v":""}]
[{"$f":"IF('TMC (Desc)'!A5=\"\",\"\",'TMC (Desc)'!A5)","v":""},{"$f":"IF('TMC (Desc)'!B5=\"\",\"\",'TMC (Desc)'!B5)","v":""},{"$f":"IF('TMC (Desc)'!C5=\"\",\"\",'TMC (Desc)'!C5)","v":""},{"$f":"IF('TMC (Desc)'!D5=\"\",\"\",INDEX([1]OWNER!$A$2:$A$100,MATCH('TMC (Desc)'!$D5,[1]!MASTER_OWNER_DESC[#Data],0),0))","v":""},{"$f":"IF('TMC (Desc)'!E5=\"\",\"\",INDEX([1]COUNTY!$A$2:$A$80,MATCH('TMC (Desc)'!E5,[1]!MASTER_COUNTY_NAME[#Data],0),0))","v":""},{"$f":"IF('TMC (Desc)'!F5=\"\",\"\",'TMC (Desc)'!F5)","v":""},{"$f":"IF('TMC (Desc)'!G5=\"\",\"\",'TMC (Desc)'!G5)","v":""}]
[{"$f":"IF('TMC (Desc)'!A6=\"\",\"\",'TMC (Desc)'!A6)","v":""},{"$f":"IF('TMC (Desc)'!B6=\"\",\"\",'TMC (Desc)'!B6)","v":""},{"$f":"IF('TMC (Desc)'!C6=\"\",\"\",'TMC (Desc)'!C6)","v":""},{"$f":"IF('TMC (Desc)'!D6=\"\",\"\",INDEX([1]OWNER!$A$2:$A$100,MATCH('TMC (Desc)'!$D6,[1]!MASTER_OWNER_DESC[#Data],0),0))","v":""},{"$f":"IF('TMC (Desc)'!E6=\"\",\"\",INDEX([1]COUNTY!$A$2:$A$80,MATCH('TMC (Desc)'!E6,[1]!MASTER_COUNTY_NAME[#Data],0),0))","v":""},{"$f":"IF('TMC (Desc)'!F6=\"\",\"\",'TMC (Desc)'!F6)","v":""},{"$f":"IF('TMC (Desc)'!G6=\"\",\"\",'TMC (Desc)'!G6)","v":""}]
[{"$f":"IF('TMC (Desc)'!A7=\"\",\"\",'TMC (Desc)'!A7)","v":""},{"$f":"IF('TMC (Desc)'!B7=\"\",\"\",'TMC (Desc)'!B7)","v":""},{"$f":"IF('TMC (Desc)'!C7=\"\",\"\",'TMC (Desc)'!C7)","v":""},{"$f":"IF('TMC (Desc)'!D7=\"\",\"\",INDEX([1]OWNER!$A$2:$A$100,MATCH('TMC (Desc)'!$D7,[1]!MASTER_OWNER_DESC[#Data],0),0))","v":""},{"$f":"IF('TMC (Desc)'!E7=\"\",\"\",INDEX([1]COUNTY!$A$2:$A$80,MATCH('TMC (Desc)'!E7,[1]!MASTER_COUNTY_NAME[#Data],0),0))","v":""},{"$f":"IF('TMC (Desc)'!F7=\"\",\"\",'TMC (Desc)'!F7)","v":""},{"$f":"IF('TMC (Desc)'!G7=\"\",\"\",'TMC (Desc)'!G7)","v":""}]
[{"$f":"IF('TMC (Desc)'!A8=\"\",\"\",'TMC (Desc)'!A8)","v":""},{"$f":"IF('TMC (Desc)'!B8=\"\",\"\",'TMC (Desc)'!B8)","v":""},{"$f":"IF('TMC (Desc)'!C8=\"\",\"\",'TMC (Desc)'!C8)","v":""},{"$f":"IF('TMC (Desc)'!D8=\"\",\"\",INDEX([1]OWNER!$A$2:$A$100,MATCH('TMC (Desc)'!$D8,[1]!MASTER_OWNER_DESC[#Data],0),0))","v":""},{"$f":"IF('TMC (Desc)'!E8=\"\",\"\",INDEX([1]COUNTY!$A$2:$A$80,MATCH('TMC (Desc)'!E8,[1]!MASTER_COUNTY_NAME[#Data],0),0))","v":""},{"$f":"IF('TMC (Desc)'!F8=\"\",\"\",'TMC (Desc)'!F8)","v":""},{"$f":"IF('TMC (Desc)'!G8=\"\",\"\",'TMC (Desc)'!G8)","v":""}]
[{"$f":"IF('TMC (Desc)'!A9=\"\",\"\",'TMC (Desc)'!A9)","v":""},{"$f":"IF('TMC (Desc)'!B9=\"\",\"\",'TMC (Desc)'!B9)","v":""},{"$f":"IF('TMC (Desc)'!C9=\"\",\"\",'TMC (Desc)'!C9)","v":""},{"$f":"IF('TMC (Desc)'!D9=\"\",\"\",INDEX([1]OWNER!$A$2:$A$100,MATCH('TMC (Desc)'!$D9,[1]!MASTER_OWNER_DESC[#Data],0),0))","v":""},{"$f":"IF('TMC (Desc)'!E9=\"\",\"\",INDEX([1]COUNTY!$A$2:$A$80,MATCH('TMC (Desc)'!E9,[1]!MASTER_COUNTY_NAME[#Data],0),0))","v":""},{"$f":"IF('TMC (Desc)'!F9=\"\",\"\",'TMC (Desc)'!F9)","v":""},{"$f":"IF('TMC (Desc)'!G9=\"\",\"\",'TMC (Desc)'!G9)","v":""}]
[{"$f":"IF('TMC (Desc)'!A10=\"\",\"\",'TMC (Desc)'!A10)","v":""},{"$f":"IF('TMC (Desc)'!B10=\"\",\"\",'TMC (Desc)'!B10)","v":""},{"$f":"IF('TMC (Desc)'!C10=\"\",\"\",'TMC (Desc)'!C10)","v":""},{"$f":"IF('TMC (Desc)'!D10=\"\",\"\",INDEX([1]OWNER!$A$2:$A$100,MATCH('TMC (Desc)'!$D10,[1]!MASTER_OWNER_DESC[#Data],0),0))","v":""},{"$f":"IF('TMC (Desc)'!E10=\"\",\"\",INDEX([1]COUNTY!$A$2:$A$80,MATCH('TMC (Desc)'!E10,[1]!MASTER_COUNTY_NAME[#Data],0),0))","v":""},{"$f":"IF('TMC (Desc)'!F10=\"\",\"\",'TMC (Desc)'!F10)","v":""},{"$f":"IF('TMC (Desc)'!G10=\"\",\"\",'TMC (Desc)'!G10)","v":""}]
[{"$f":"IF('TMC (Desc)'!A11=\"\",\"\",'TMC (Desc)'!A11)","v":""},{"$f":"IF('TMC (Desc)'!B11=\"\",\"\",'TMC (Desc)'!B11)","v":""},{"$f":"IF('TMC (Desc)'!C11=\"\",\"\",'TMC (Desc)'!C11)","v":""},{"$f":"IF('TMC (Desc)'!D11=\"\",\"\",INDEX([1]OWNER!$A$2:$A$100,MATCH('TMC (Desc)'!$D11,[1]!MASTER_OWNER_DESC[#Data],0),0))","v":""},{"$f":"IF('TMC (Desc)'!E11=\"\",\"\",INDEX([1]COUNTY!$A$2:$A$80,MATCH('TMC (Desc)'!E11,[1]!MASTER_COUNTY_NAME[#Data],0),0))","v":""},{"$f":"IF('TMC (Desc)'!F11=\"\",\"\",'TMC (Desc)'!F11)","v":""},{"$f":"IF('TMC (Desc)'!G11=\"\",\"\",'TMC (Desc)'!G11)","v":""}]
[{"$f":"IF('TMC (Desc)'!A12=\"\",\"\",'TMC (Desc)'!A12)","v":""},{"$f":"IF('TMC (Desc)'!B12=\"\",\"\",'TMC (Desc)'!B12)","v":""},{"$f":"IF('TMC (Desc)'!C12=\"\",\"\",'TMC (Desc)'!C12)","v":""},{"$f":"IF('TMC (Desc)'!D12=\"\",\"\",INDEX([1]OWNER!$A$2:$A$100,MATCH('TMC (Desc)'!$D12,[1]!MASTER_OWNER_DESC[#Data],0),0))","v":""},{"$f":"IF('TMC (Desc)'!E12=\"\",\"\",INDEX([1]COUNTY!$A$2:$A$80,MATCH('TMC (Desc)'!E12,[1]!MASTER_COUNTY_NAME[#Data],0),0))","v":""},{"$f":"IF('TMC (Desc)'!F12=\"\",\"\",'TMC (Desc)'!F12)","v":""},{"$f":"IF('TMC (Desc)'!G12=\"\",\"\",'TMC (Desc)'!G12)","v":""}]
[{"$f":"IF('TMC (Desc)'!A13=\"\",\"\",'TMC (Desc)'!A13)","v":""},{"$f":"IF('TMC (Desc)'!B13=\"\",\"\",'TMC (Desc)'!B13)","v":""},{"$f":"IF('TMC (Desc)'!C13=\"\",\"\",'TMC (Desc)'!C13)","v":""},{"$f":"IF('TMC (Desc)'!D13=\"\",\"\",INDEX([1]OWNER!$A$2:$A$100,MATCH('TMC (Desc)'!$D13,[1]!MASTER_OWNER_DESC[#Data],0),0))","v":""},{"$f":"IF('TMC (Desc)'!E13=\"\",\"\",INDEX([1]COUNTY!$A$2:$A$80,MATCH('TMC (Desc)'!E13,[1]!MASTER_COUNTY_NAME[#Data],0),0))","v":""},{"$f":"IF('TMC (Desc)'!F13=\"\",\"\",'TMC (Desc)'!F13)","v":""},{"$f":"IF('TMC (Desc)'!G13=\"\",\"\",'TMC (Desc)'!G13)","v":""}]
[{"$f":"IF('TMC (Desc)'!A14=\"\",\"\",'TMC (Desc)'!A14)","v":""},{"$f":"IF('TMC (Desc)'!B14=\"\",\"\",'TMC (Desc)'!B14)","v":""},{"$f":"IF('TMC (Desc)'!C14=\"\",\"\",'TMC (Desc)'!C14)","v":""},{"$f":"IF('TMC (Desc)'!D14=\"\",\"\",INDEX([1]OWNER!$A$2:$A$100,MATCH('TMC (Desc)'!$D14,[1]!MASTER_OWNER_DESC[#Data],0),0))","v":""},{"$f":"IF('TMC (Desc)'!E14=\"\",\"\",INDEX([1]COUNTY!$A$2:$A$80,MATCH('TMC (Desc)'!E14,[1]!MASTER_COUNTY_NAME[#Data],0),0))","v":""},{"$f":"IF('TMC (Desc)'!F14=\"\",\"\",'TMC (Desc)'!F14)","v":""},{"$f":"IF('TMC (Desc)'!G14=\"\",\"\",'TMC (Desc)'!G14)","v":""}]
[{"$f":"IF('TMC (Desc)'!A15=\"\",\"\",'TMC (Desc)'!A15)","v":""},{"$f":"IF('TMC (Desc)'!B15=\"\",\"\",'TMC (Desc)'!B15)","v":""},{"$f":"IF('TMC (Desc)'!C15=\"\",\"\",'TMC (Desc)'!C15)","v":""},{"$f":"IF('TMC (Desc)'!D15=\"\",\"\",INDEX([1]OWNER!$A$2:$A$100,MATCH('TMC (Desc)'!$D15,[1]!MASTER_OWNER_DESC[#Data],0),0))","v":""},{"$f":"IF('TMC (Desc)'!E15=\"\",\"\",INDEX([1]COUNTY!$A$2:$A$80,MATCH('TMC (Desc)'!E15,[1]!MASTER_COUNTY_NAME[#Data],0),0))","v":""},{"$f":"IF('TMC (Desc)'!F15=\"\",\"\",'TMC (Desc)'!F15)","v":""},{"$f":"IF('TMC (Desc)'!G15=\"\",\"\",'TMC (Desc)'!G15)","v":""}]
[{"$f":"IF('TMC (Desc)'!A16=\"\",\"\",'TMC (Desc)'!A16)","v":""},{"$f":"IF('TMC (Desc)'!B16=\"\",\"\",'TMC (Desc)'!B16)","v":""},{"$f":"IF('TMC (Desc)'!C16=\"\",\"\",'TMC (Desc)'!C16)","v":""},{"$f":"IF('TMC (Desc)'!D16=\"\",\"\",INDEX([1]OWNER!$A$2:$A$100,MATCH('TMC (Desc)'!$D16,[1]!MASTER_OWNER_DESC[#Data],0),0))","v":""},{"$f":"IF('TMC (Desc)'!E16=\"\",\"\",INDEX([1]COUNTY!$A$2:$A$80,MATCH('TMC (Desc)'!E16,[1]!MASTER_COUNTY_NAME[#Data],0),0))","v":""},{"$f":"IF('TMC (Desc)'!F16=\"\",\"\",'TMC (Desc)'!F16)","v":""},{"$f":"IF('TMC (Desc)'!G16=\"\",\"\",'TMC (Desc)'!G16)","v":""}]
[{"$f":"IF('TMC (Desc)'!A17=\"\",\"\",'TMC (Desc)'!A17)","v":""},{"$f":"IF('TMC (Desc)'!B17=\"\",\"\",'TMC (Desc)'!B17)","v":""},{"$f":"IF('TMC (Desc)'!C17=\"\",\"\",'TMC (Desc)'!C17)","v":""},{"$f":"IF('TMC (Desc)'!D17=\"\",\"\",INDEX([1]OWNER!$A$2:$A$100,MATCH('TMC (Desc)'!$D17,[1]!MASTER_OWNER_DESC[#Data],0),0))","v":""},{"$f":"IF('TMC (Desc)'!E17=\"\",\"\",INDEX([1]COUNTY!$A$2:$A$80,MATCH('TMC (Desc)'!E17,[1]!MASTER_COUNTY_NAME[#Data],0),0))","v":""},{"$f":"IF('TMC (Desc)'!F17=\"\",\"\",'TMC (Desc)'!F17)","v":""},{"$f":"IF('TMC (Desc)'!G17=\"\",\"\",'TMC (Desc)'!G17)","v":""}]
[{"$f":"IF('TMC (Desc)'!A18=\"\",\"\",'TMC (Desc)'!A18)","v":""},{"$f":"IF('TMC (Desc)'!B18=\"\",\"\",'TMC (Desc)'!B18)","v":""},{"$f":"IF('TMC (Desc)'!C18=\"\",\"\",'TMC (Desc)'!C18)","v":""},{"$f":"IF('TMC (Desc)'!D18=\"\",\"\",INDEX([1]OWNER!$A$2:$A$100,MATCH('TMC (Desc)'!$D18,[1]!MASTER_OWNER_DESC[#Data],0),0))","v":""},{"$f":"IF('TMC (Desc)'!E18=\"\",\"\",INDEX([1]COUNTY!$A$2:$A$80,MATCH('TMC (Desc)'!E18,[1]!MASTER_COUNTY_NAME[#Data],0),0))","v":""},{"$f":"IF('TMC (Desc)'!F18=\"\",\"\",'TMC (Desc)'!F18)","v":""},{"$f":"IF('TMC (Desc)'!G18=\"\",\"\",'TMC (Desc)'!G18)","v":""}]
[{"$f":"IF('TMC (Desc)'!A19=\"\",\"\",'TMC (Desc)'!A19)","v":""},{"$f":"IF('TMC (Desc)'!B19=\"\",\"\",'TMC (Desc)'!B19)","v":""},{"$f":"IF('TMC (Desc)'!C19=\"\",\"\",'TMC (Desc)'!C19)","v":""},{"$f":"IF('TMC (Desc)'!D19=\"\",\"\",INDEX([1]OWNER!$A$2:$A$100,MATCH('TMC (Desc)'!$D19,[1]!MASTER_OWNER_DESC[#Data],0),0))","v":""},{"$f":"IF('TMC (Desc)'!E19=\"\",\"\",INDEX([1]COUNTY!$A$2:$A$80,MATCH('TMC (Desc)'!E19,[1]!MASTER_COUNTY_NAME[#Data],0),0))","v":""},{"$f":"IF('TMC (Desc)'!F19=\"\",\"\",'TMC (Desc)'!F19)","v":""},{"$f":"IF('TMC (Desc)'!G19=\"\",\"\",'TMC (Desc)'!G19)","v":""}]
[{"$f":"IF('TMC (Desc)'!A20=\"\",\"\",'TMC (Desc)'!A20)","v":""},{"$f":"IF('TMC (Desc)'!B20=\"\",\"\",'TMC (Desc)'!B20)","v":""},{"$f":"IF('TMC (Desc)'!C20=\"\",\"\",'TMC (Desc)'!C20)","v":""},{"$f":"IF('TMC (Desc)'!D20=\"\",\"\",INDEX([1]OWNER!$A$2:$A$100,MATCH('TMC (Desc)'!$D20,[1]!MASTER_OWNER_DESC[#Data],0),0))","v":""},{"$f":"IF('TMC (Desc)'!E20=\"\",\"\",INDEX([1]COUNTY!$A$2:$A$80,MATCH('TMC (Desc)'!E20,[1]!MASTER_COUNTY_NAME[#Data],0),0))","v":""},{"$f":"IF('TMC (Desc)'!F20=\"\",\"\",'TMC (Desc)'!F20)","v":""},{"$f":"IF('TMC (Desc)'!G20=\"\",\"\",'TMC (Desc)'!G20)","v":""}]
[{"$f":"IF('TMC (Desc)'!A21=\"\",\"\",'TMC (Desc)'!A21)","v":""},{"$f":"IF('TMC (Desc)'!B21=\"\",\"\",'TMC (Desc)'!B21)","v":""},{"$f":"IF('TMC (Desc)'!C21=\"\",\"\",'TMC (Desc)'!C21)","v":""},{"$f":"IF('TMC (Desc)'!D21=\"\",\"\",INDEX([1]OWNER!$A$2:$A$100,MATCH('TMC (Desc)'!$D21,[1]!MASTER_OWNER_DESC[#Data],0),0))","v":""},{"$f":"IF('TMC (Desc)'!E21=\"\",\"\",INDEX([1]COUNTY!$A$2:$A$80,MATCH('TMC (Desc)'!E21,[1]!MASTER_COUNTY_NAME[#Data],0),0))","v":""},{"$f":"IF('TMC (Desc)'!F21=\"\",\"\",'TMC (Desc)'!F21)","v":""},{"$f":"IF('TMC (Desc)'!G21=\"\",\"\",'TMC (Desc)'!G21)","v":""}]
[{"$f":"IF('TMC (Desc)'!A22=\"\",\"\",'TMC (Desc)'!A22)","v":""},{"$f":"IF('TMC (Desc)'!B22=\"\",\"\",'TMC (Desc)'!B22)","v":""},{"$f":"IF('TMC (Desc)'!C22=\"\",\"\",'TMC (Desc)'!C22)","v":""},{"$f":"IF('TMC (Desc)'!D22=\"\",\"\",INDEX([1]OWNER!$A$2:$A$100,MATCH('TMC (Desc)'!$D22,[1]!MASTER_OWNER_DESC[#Data],0),0))","v":""},{"$f":"IF('TMC (Desc)'!E22=\"\",\"\",INDEX([1]COUNTY!$A$2:$A$80,MATCH('TMC (Desc)'!E22,[1]!MASTER_COUNTY_NAME[#Data],0),0))","v":""},{"$f":"IF('TMC (Desc)'!F22=\"\",\"\",'TMC (Desc)'!F22)","v":""},{"$f":"IF('TMC (Desc)'!G22=\"\",\"\",'TMC (Desc)'!G22)","v":""}]
[{"$f":"IF('TMC (Desc)'!A23=\"\",\"\",'TMC (Desc)'!A23)","v":""},{"$f":"IF('TMC (Desc)'!B23=\"\",\"\",'TMC (Desc)'!B23)","v":""},{"$f":"IF('TMC (Desc)'!C23=\"\",\"\",'TMC (Desc)'!C23)","v":""},{"$f":"IF('TMC (Desc)'!D23=\"\",\"\",INDEX([1]OWNER!$A$2:$A$100,MATCH('TMC (Desc)'!$D23,[1]!MASTER_OWNER_DESC[#Data],0),0))","v":""},{"$f":"IF('TMC (Desc)'!E23=\"\",\"\",INDEX([1]COUNTY!$A$2:$A$80,MATCH('TMC (Desc)'!E23,[1]!MASTER_COUNTY_NAME[#Data],0),0))","v":""},{"$f":"IF('TMC (Desc)'!F23=\"\",\"\",'TMC (Desc)'!F23)","v":""},{"$f":"IF('TMC (Desc)'!G23=\"\",\"\",'TMC (Desc)'!G23)","v":""}]
[{"$f":"IF('TMC (Desc)'!A24=\"\",\"\",'TMC (Desc)'!A24)","v":""},{"$f":"IF('TMC (Desc)'!B24=\"\",\"\",'TMC (Desc)'!B24)","v":""},{"$f":"IF('TMC (Desc)'!C24=\"\",\"\",'TMC (Desc)'!C24)","v":""},{"$f":"IF('TMC (Desc)'!D24=\"\",\"\",INDEX([1]OWNER!$A$2:$A$100,MATCH('TMC (Desc)'!$D24,[1]!MASTER_OWNER_DESC[#Data],0),0))","v":""},{"$f":"IF('TMC (Desc)'!E24=\"\",\"\",INDEX([1]COUNTY!$A$2:$A$80,MATCH('TMC (Desc)'!E24,[1]!MASTER_COUNTY_NAME[#Data],0),0))","v":""},{"$f":"IF('TMC (Desc)'!F24=\"\",\"\",'TMC (Desc)'!F24)","v":""},{"$f":"IF('TMC (Desc)'!G24=\"\",\"\",'TMC (Desc)'!G24)","v":""}]
[{"$f":"IF('TMC (Desc)'!A25=\"\",\"\",'TMC (Desc)'!A25)","v":""},{"$f":"IF('TMC (Desc)'!B25=\"\",\"\",'TMC (Desc)'!B25)","v":""},{"$f":"IF('TMC (Desc)'!C25=\"\",\"\",'TMC (Desc)'!C25)","v":""},{"$f":"IF('TMC (Desc)'!D25=\"\",\"\",INDEX([1]OWNER!$A$2:$A$100,MATCH('TMC (Desc)'!$D25,[1]!MASTER_OWNER_DESC[#Data],0),0))","v":""},{"$f":"IF('TMC (Desc)'!E25=\"\",\"\",INDEX([1]COUNTY!$A$2:$A$80,MATCH('TMC (Desc)'!E25,[1]!MASTER_COUNTY_NAME[#Data],0),0))","v":""},{"$f":"IF('TMC (Desc)'!F25=\"\",\"\",'TMC (Desc)'!F25)","v":""},{"$f":"IF('TMC (Desc)'!G25=\"\",\"\",'TMC (Desc)'!G25)","v":""}]
[{"$f":"IF('TMC (Desc)'!A26=\"\",\"\",'TMC (Desc)'!A26)","v":""},{"$f":"IF('TMC (Desc)'!B26=\"\",\"\",'TMC (Desc)'!B26)","v":""},{"$f":"IF('TMC (Desc)'!C26=\"\",\"\",'TMC (Desc)'!C26)","v":""},{"$f":"IF('TMC (Desc)'!D26=\"\",\"\",INDEX([1]OWNER!$A$2:$A$100,MATCH('TMC (Desc)'!$D26,[1]!MASTER_OWNER_DESC[#Data],0),0))","v":""},{"$f":"IF('TMC (Desc)'!E26=\"\",\"\",INDEX([1]COUNTY!$A$2:$A$80,MATCH('TMC (Desc)'!E26,[1]!MASTER_COUNTY_NAME[#Data],0),0))","v":""},{"$f":"IF('TMC (Desc)'!F26=\"\",\"\",'TMC (Desc)'!F26)","v":""},{"$f":"IF('TMC (Desc)'!G26=\"\",\"\",'TMC (Desc)'!G26)","v":""}]
[{"$f":"IF('TMC (Desc)'!A27=\"\",\"\",'TMC (Desc)'!A27)","v":""},{"$f":"IF('TMC (Desc)'!B27=\"\",\"\",'TMC (Desc)'!B27)","v":""},{"$f":"IF('TMC (Desc)'!C27=\"\",\"\",'TMC (Desc)'!C27)","v":""},{"$f":"IF('TMC (Desc)'!D27=\"\",\"\",INDEX([1]OWNER!$A$2:$A$100,MATCH('TMC (Desc)'!$D27,[1]!MASTER_OWNER_DESC[#Data],0),0))","v":""},{"$f":"IF('TMC (Desc)'!E27=\"\",\"\",INDEX([1]COUNTY!$A$2:$A$80,MATCH('TMC (Desc)'!E27,[1]!MASTER_COUNTY_NAME[#Data],0),0))","v":""},{"$f":"IF('TMC (Desc)'!F27=\"\",\"\",'TMC (Desc)'!F27)","v":""},{"$f":"IF('TMC (Desc)'!G27=\"\",\"\",'TMC (Desc)'!G27)","v":""}]
[{"$f":"IF('TMC (Desc)'!A28=\"\",\"\",'TMC (Desc)'!A28)","v":""},{"$f":"IF('TMC (Desc)'!B28=\"\",\"\",'TMC (Desc)'!B28)","v":""},{"$f":"IF('TMC (Desc)'!C28=\"\",\"\",'TMC (Desc)'!C28)","v":""},{"$f":"IF('TMC (Desc)'!D28=\"\",\"\",INDEX([1]OWNER!$A$2:$A$100,MATCH('TMC (Desc)'!$D28,[1]!MASTER_OWNER_DESC[#Data],0),0))","v":""},{"$f":"IF('TMC (Desc)'!E28=\"\",\"\",INDEX([1]COUNTY!$A$2:$A$80,MATCH('TMC (Desc)'!E28,[1]!MASTER_COUNTY_NAME[#Data],0),0))","v":""},{"$f":"IF('TMC (Desc)'!F28=\"\",\"\",'TMC (Desc)'!F28)","v":""},{"$f":"IF('TMC (Desc)'!G28=\"\",\"\",'TMC (Desc)'!G28)","v":""}]
[{"$f":"IF('TMC (Desc)'!A29=\"\",\"\",'TMC (Desc)'!A29)","v":""},{"$f":"IF('TMC (Desc)'!B29=\"\",\"\",'TMC (Desc)'!B29)","v":""},{"$f":"IF('TMC (Desc)'!C29=\"\",\"\",'TMC (Desc)'!C29)","v":""},{"$f":"IF('TMC (Desc)'!D29=\"\",\"\",INDEX([1]OWNER!$A$2:$A$100,MATCH('TMC (Desc)'!$D29,[1]!MASTER_OWNER_DESC[#Data],0),0))","v":""},{"$f":"IF('TMC (Desc)'!E29=\"\",\"\",INDEX([1]COUNTY!$A$2:$A$80,MATCH('TMC (Desc)'!E29,[1]!MASTER_COUNTY_NAME[#Data],0),0))","v":""},{"$f":"IF('TMC (Desc)'!F29=\"\",\"\",'TMC (Desc)'!F29)","v":""},{"$f":"IF('TMC (Desc)'!G29=\"\",\"\",'TMC (Desc)'!G29)","v":""}]
[{"$f":"IF('TMC (Desc)'!A30=\"\",\"\",'TMC (Desc)'!A30)","v":""},{"$f":"IF('TMC (Desc)'!B30=\"\",\"\",'TMC (Desc)'!B30)","v":""},{"$f":"IF('TMC (Desc)'!C30=\"\",\"\",'TMC (Desc)'!C30)","v":""},{"$f":"IF('TMC (Desc)'!D30=\"\",\"\",INDEX([1]OWNER!$A$2:$A$100,MATCH('TMC (Desc)'!$D30,[1]!MASTER_OWNER_DESC[#Data],0),0))","v":""},{"$f":"IF('TMC (Desc)'!E30=\"\",\"\",INDEX([1]COUNTY!$A$2:$A$80,MATCH('TMC (Desc)'!E30,[1]!MASTER_COUNTY_NAME[#Data],0),0))","v":""},{"$f":"IF('TMC (Desc)'!F30=\"\",\"\",'TMC (Desc)'!F30)","v":""},{"$f":"IF('TMC (Desc)'!G30=\"\",\"\",'TMC (Desc)'!G30)","v":""}]
[{"$f":"IF('TMC (Desc)'!A31=\"\",\"\",'TMC (Desc)'!A31)","v":""},{"$f":"IF('TMC (Desc)'!B31=\"\",\"\",'TMC (Desc)'!B31)","v":""},{"$f":"IF('TMC (Desc)'!C31=\"\",\"\",'TMC (Desc)'!C31)","v":""},{"$f":"IF('TMC (Desc)'!D31=\"\",\"\",INDEX([1]OWNER!$A$2:$A$100,MATCH('TMC (Desc)'!$D31,[1]!MASTER_OWNER_DESC[#Data],0),0))","v":""},{"$f":"IF('TMC (Desc)'!E31=\"\",\"\",INDEX([1]COUNTY!$A$2:$A$80,MATCH('TMC (Desc)'!E31,[1]!MASTER_COUNTY_NAME[#Data],0),0))","v":""},{"$f":"IF('TMC (Desc)'!F31=\"\",\"\",'TMC (Desc)'!F31)","v":""},{"$f":"IF('TMC (Desc)'!G31=\"\",\"\",'TMC (Desc)'!G31)","v":""}]
[{"$f":"IF('TMC (Desc)'!A32=\"\",\"\",'TMC (Desc)'!A32)","v":""},{"$f":"IF('TMC (Desc)'!B32=\"\",\"\",'TMC (Desc)'!B32)","v":""},{"$f":"IF('TMC (Desc)'!C32=\"\",\"\",'TMC (Desc)'!C32)","v":""},{"$f":"IF('TMC (Desc)'!D32=\"\",\"\",INDEX([1]OWNER!$A$2:$A$100,MATCH('TMC (Desc)'!$D32,[1]!MASTER_OWNER_DESC[#Data],0),0))","v":""},{"$f":"IF('TMC (Desc)'!E32=\"\",\"\",INDEX([1]COUNTY!$A$2:$A$80,MATCH('TMC (Desc)'!E32,[1]!MASTER_COUNTY_NAME[#Data],0),0))","v":""},{"$f":"IF('TMC (Desc)'!F32=\"\",\"\",'TMC (Desc)'!F32)","v":""},{"$f":"IF('TMC (Desc)'!G32=\"\",\"\",'TMC (Desc)'!G32)","v":""}]
[{"$f":"IF('TMC (Desc)'!A33=\"\",\"\",'TMC (Desc)'!A33)","v":""},{"$f":"IF('TMC (Desc)'!B33=\"\",\"\",'TMC (Desc)'!B33)","v":""},{"$f":"IF('TMC (Desc)'!C33=\"\",\"\",'TMC (Desc)'!C33)","v":""},{"$f":"IF('TMC (Desc)'!D33=\"\",\"\",INDEX([1]OWNER!$A$2:$A$100,MATCH('TMC (Desc)'!$D33,[1]!MASTER_OWNER_DESC[#Data],0),0))","v":""},{"$f":"IF('TMC (Desc)'!E33=\"\",\"\",INDEX([1]COUNTY!$A$2:$A$80,MATCH('TMC (Desc)'!E33,[1]!MASTER_COUNTY_NAME[#Data],0),0))","v":""},{"$f":"IF('TMC (Desc)'!F33=\"\",\"\",'TMC (Desc)'!F33)","v":""},{"$f":"IF('TMC (Desc)'!G33=\"\",\"\",'TMC (Desc)'!G33)","v":""}]
[{"$f":"IF('TMC (Desc)'!A34=\"\",\"\",'TMC (Desc)'!A34)","v":""},{"$f":"IF('TMC (Desc)'!B34=\"\",\"\",'TMC (Desc)'!B34)","v":""},{"$f":"IF('TMC (Desc)'!C34=\"\",\"\",'TMC (Desc)'!C34)","v":""},{"$f":"IF('TMC (Desc)'!D34=\"\",\"\",INDEX([1]OWNER!$A$2:$A$100,MATCH('TMC (Desc)'!$D34,[1]!MASTER_OWNER_DESC[#Data],0),0))","v":""},{"$f":"IF('TMC (Desc)'!E34=\"\",\"\",INDEX([1]COUNTY!$A$2:$A$80,MATCH('TMC (Desc)'!E34,[1]!MASTER_COUNTY_NAME[#Data],0),0))","v":""},{"$f":"IF('TMC (Desc)'!F34=\"\",\"\",'TMC (Desc)'!F34)","v":""},{"$f":"IF('TMC (Desc)'!G34=\"\",\"\",'TMC (Desc)'!G34)","v":""}]
[{"$f":"IF('TMC (Desc)'!A35=\"\",\"\",'TMC (Desc)'!A35)","v":""},{"$f":"IF('TMC (Desc)'!B35=\"\",\"\",'TMC (Desc)'!B35)","v":""},{"$f":"IF('TMC (Desc)'!C35=\"\",\"\",'TMC (Desc)'!C35)","v":""},{"$f":"IF('TMC (Desc)'!D35=\"\",\"\",INDEX([1]OWNER!$A$2:$A$100,MATCH('TMC (Desc)'!$D35,[1]!MASTER_OWNER_DESC[#Data],0),0))","v":""},{"$f":"IF('TMC (Desc)'!E35=\"\",\"\",INDEX([1]COUNTY!$A$2:$A$80,MATCH('TMC (Desc)'!E35,[1]!MASTER_COUNTY_NAME[#Data],0),0))","v":""},{"$f":"IF('TMC (Desc)'!F35=\"\",\"\",'TMC (Desc)'!F35)","v":""},{"$f":"IF('TMC (Desc)'!G35=\"\",\"\",'TMC (Desc)'!G35)","v":""}]
[{"$f":"IF('TMC (Desc)'!A36=\"\",\"\",'TMC (Desc)'!A36)","v":""},{"$f":"IF('TMC (Desc)'!B36=\"\",\"\",'TMC (Desc)'!B36)","v":""},{"$f":"IF('TMC (Desc)'!C36=\"\",\"\",'TMC (Desc)'!C36)","v":""},{"$f":"IF('TMC (Desc)'!D36=\"\",\"\",INDEX([1]OWNER!$A$2:$A$100,MATCH('TMC (Desc)'!$D36,[1]!MASTER_OWNER_DESC[#Data],0),0))","v":""},{"$f":"IF('TMC (Desc)'!E36=\"\",\"\",INDEX([1]COUNTY!$A$2:$A$80,MATCH('TMC (Desc)'!E36,[1]!MASTER_COUNTY_NAME[#Data],0),0))","v":""},{"$f":"IF('TMC (Desc)'!F36=\"\",\"\",'TMC (Desc)'!F36)","v":""},{"$f":"IF('TMC (Desc)'!G36=\"\",\"\",'TMC (Desc)'!G36)","v":""}]
[{"$f":"IF('TMC (Desc)'!A37=\"\",\"\",'TMC (Desc)'!A37)","v":""},{"$f":"IF('TMC (Desc)'!B37=\"\",\"\",'TMC (Desc)'!B37)","v":""},{"$f":"IF('TMC (Desc)'!C37=\"\",\"\",'TMC (Desc)'!C37)","v":""},{"$f":"IF('TMC (Desc)'!D37=\"\",\"\",INDEX([1]OWNER!$A$2:$A$100,MATCH('TMC (Desc)'!$D37,[1]!MASTER_OWNER_DESC[#Data],0),0))","v":""},{"$f":"IF('TMC (Desc)'!E37=\"\",\"\",INDEX([1]COUNTY!$A$2:$A$80,MATCH('TMC (Desc)'!E37,[1]!MASTER_COUNTY_NAME[#Data],0),0))","v":""},{"$f":"IF('TMC (Desc)'!F37=\"\",\"\",'TMC (Desc)'!F37)","v":""},{"$f":"IF('TMC (Desc)'!G37=\"\",\"\",'TMC (Desc)'!G37)","v":""}]
[{"$f":"IF('TMC (Desc)'!A38=\"\",\"\",'TMC (Desc)'!A38)","v":""},{"$f":"IF('TMC (Desc)'!B38=\"\",\"\",'TMC (Desc)'!B38)","v":""},{"$f":"IF('TMC (Desc)'!C38=\"\",\"\",'TMC (Desc)'!C38)","v":""},{"$f":"IF('TMC (Desc)'!D38=\"\",\"\",INDEX([1]OWNER!$A$2:$A$100,MATCH('TMC (Desc)'!$D38,[1]!MASTER_OWNER_DESC[#Data],0),0))","v":""},{"$f":"IF('TMC (Desc)'!E38=\"\",\"\",INDEX([1]COUNTY!$A$2:$A$80,MATCH('TMC (Desc)'!E38,[1]!MASTER_COUNTY_NAME[#Data],0),0))","v":""},{"$f":"IF('TMC (Desc)'!F38=\"\",\"\",'TMC (Desc)'!F38)","v":""},{"$f":"IF('TMC (Desc)'!G38=\"\",\"\",'TMC (Desc)'!G38)","v":""}]
[{"$f":"IF('TMC (Desc)'!A39=\"\",\"\",'TMC (Desc)'!A39)","v":""},{"$f":"IF('TMC (Desc)'!B39=\"\",\"\",'TMC (Desc)'!B39)","v":""},{"$f":"IF('TMC (Desc)'!C39=\"\",\"\",'TMC (Desc)'!C39)","v":""},{"$f":"IF('TMC (Desc)'!D39=\"\",\"\",INDEX([1]OWNER!$A$2:$A$100,MATCH('TMC (Desc)'!$D39,[1]!MASTER_OWNER_DESC[#Data],0),0))","v":""},{"$f":"IF('TMC (Desc)'!E39=\"\",\"\",INDEX([1]COUNTY!$A$2:$A$80,MATCH('TMC (Desc)'!E39,[1]!MASTER_COUNTY_NAME[#Data],0),0))","v":""},{"$f":"IF('TMC (Desc)'!F39=\"\",\"\",'TMC (Desc)'!F39)","v":""},{"$f":"IF('TMC (Desc)'!G39=\"\",\"\",'TMC (Desc)'!G39)","v":""}]
[{"$f":"IF('TMC (Desc)'!A40=\"\",\"\",'TMC (Desc)'!A40)","v":""},{"$f":"IF('TMC (Desc)'!B40=\"\",\"\",'TMC (Desc)'!B40)","v":""},{"$f":"IF('TMC (Desc)'!C40=\"\",\"\",'TMC (Desc)'!C40)","v":""},{"$f":"IF('TMC (Desc)'!D40=\"\",\"\",INDEX([1]OWNER!$A$2:$A$100,MATCH('TMC (Desc)'!$D40,[1]!MASTER_OWNER_DESC[#Data],0),0))","v":""},{"$f":"IF('TMC (Desc)'!E40=\"\",\"\",INDEX([1]COUNTY!$A$2:$A$80,MATCH('TMC (Desc)'!E40,[1]!MASTER_COUNTY_NAME[#Data],0),0))","v":""},{"$f":"IF('TMC (Desc)'!F40=\"\",\"\",'TMC (Desc)'!F40)","v":""},{"$f":"IF('TMC (Desc)'!G40=\"\",\"\",'TMC (Desc)'!G40)","v":""}]
[{"$f":"IF('TMC (Desc)'!A41=\"\",\"\",'TMC (Desc)'!A41)","v":""},{"$f":"IF('TMC (Desc)'!B41=\"\",\"\",'TMC (Desc)'!B41)","v":""},{"$f":"IF('TMC (Desc)'!C41=\"\",\"\",'TMC (Desc)'!C41)","v":""},{"$f":"IF('TMC (Desc)'!D41=\"\",\"\",INDEX([1]OWNER!$A$2:$A$100,MATCH('TMC (Desc)'!$D41,[1]!MASTER_OWNER_DESC[#Data],0),0))","v":""},{"$f":"IF('TMC (Desc)'!E41=\"\",\"\",INDEX([1]COUNTY!$A$2:$A$80,MATCH('TMC (Desc)'!E41,[1]!MASTER_COUNTY_NAME[#Data],0),0))","v":""},{"$f":"IF('TMC (Desc)'!F41=\"\",\"\",'TMC (Desc)'!F41)","v":""},{"$f":"IF('TMC (Desc)'!G41=\"\",\"\",'TMC (Desc)'!G41)","v":""}]
[{"$f":"IF('TMC (Desc)'!A42=\"\",\"\",'TMC (Desc)'!A42)","v":""},{"$f":"IF('TMC (Desc)'!B42=\"\",\"\",'TMC (Desc)'!B42)","v":""},{"$f":"IF('TMC (Desc)'!C42=\"\",\"\",'TMC (Desc)'!C42)","v":""},{"$f":"IF('TMC (Desc)'!D42=\"\",\"\",INDEX([1]OWNER!$A$2:$A$100,MATCH('TMC (Desc)'!$D42,[1]!MASTER_OWNER_DESC[#Data],0),0))","v":""},{"$f":"IF('TMC (Desc)'!E42=\"\",\"\",INDEX([1]COUNTY!$A$2:$A$80,MATCH('TMC (Desc)'!E42,[1]!MASTER_COUNTY_NAME[#Data],0),0))","v":""},{"$f":"IF('TMC (Desc)'!F42=\"\",\"\",'TMC (Desc)'!F42)","v":""},{"$f":"IF('TMC (Desc)'!G42=\"\",\"\",'TMC (Desc)'!G42)","v":""}]

{"sheet":"Communication Facility (Desc)","index":2,"n_rows":2,"n_cols":22,"rows_kept":2,"cut":false,"hidden":false,"merged":[]}
["Site Identification Name\nCommunication Facility Equipment Site SIN","Latitude ","Longitude","Facility Type","Facility Owner","County","Installed Date (YYYY)","Facility Name","Property Identification No.","Cabinet Type","Cabinet Mount Type","Sun Shield Installed","Building Type","Building Dimensions \n(L x W x H)","Building Material","Key Type","# of Filters","Filter Type","Filter Dimensions \n(L x W)","Distance to Travel Lane (Ft.)","Located in Clear Zone (Yes/No)","Lane Closure Req’d\n(Yes/No)"]
["SITE_NO\nREQUIRED FIELD","PRIM GEOM (Y)\nREQUIRED FIELD","PRIM GEOM (X)\nREQUIRED FIELD","FACILITY_TYPE_CD\nREQUIRE FIELD","OWNER_CD\nREQUIRED FIELD","COUNTY_CD\nREQUIRED FIELD","YEAR_INSTALLED","NAME\nREQUIRED FIELD","PROPERTY_ID ","CABINET_TYPE_CD","CABINET_MOUNT_TYPE_CD","SUNSHIELD_CD","BUILDING_TYPE_CD","BUILDING_DIMENSION","BUILDING_MTL_CD","KEY_TYPE_CD","NUM_OF_FILTERS","FILTER_TYPE_CD","FILTER_SIZE_CD","DISTANCE_TO_EOTL","CLEAR_ZONE_IND_CD ","LANE_CLOSURE_IND_CD "]

{"sheet":"Communication Facility (Code)","index":3,"n_rows":127,"n_cols":22,"rows_kept":127,"cut":false,"hidden":false,"merged":[]}
["Site Identification Name Communication Facility Equipment Site SIN","Latitude ","Longitude","Facility Type","Facility Owner","County","Installed Date (YYYY)","Facility Name","Property Identification No.","Cabinet Type","Cabinet Mount Type","Sun Shield Installed","Building Type","Building Dimensions         (L x W x H)","Building Material","Key Type","# of Filters","Filter Type","Filter   Dimensions     (L x W)","Distance to Travel Lane (Ft.)","Located in Clear Zone (Yes/No)","Lane Closure Req’d (Yes/No)"]
["SITE_NO                                 REQUIRED FIELD","PRIM GEOM (Y) REQUIRED FIELD","PRIM GEOM (X) REQUIRED FIELD","FACILITY_TYPE_CD REQUIRE FIELD","OWNER_CD REQUIRED FIELD","COUNTY_CD REQUIRED FIELD","YEAR_INSTALLED","NAME","PROPERTY_ID","CABINET_TYPE_CD","CABINET_MOUNT_TYPE_CD","SUNSHIELD_CD","BUILDING_TYPE_CD","BUILDING_DIMENSION","BUILDING_MTL_CD","KEY_TYPE_CD","NUM_OF_FILTERS","FILTER_TYPE_CD","FILTER_SIZE_CD","DISTANCE_TO_EOTL","CLEAR_ZONE_IND_CD","LANE_CLOSURE_IND_CD"]
[{"$f":"IF('Communication Facility (Desc)'!A3=\"\",\"\",'Communication Facility (Desc)'!A3)","v":""},{"$f":"IF('Communication Facility (Desc)'!B3=\"\",\"\",'Communication Facility (Desc)'!B3)","v":""},{"$f":"IF('Communication Facility (Desc)'!C3=\"\",\"\",'Communication Facility (Desc)'!C3)","v":""},{"$f":"IF('Communication Facility (Desc)'!D3=\"\",\"\",INDEX([1]FACILITY_TYPE!$A$2:$A$100,MATCH('Communication Facility (Desc)'!$D3,[1]!MASTER_FACILITY_TYPE_DESC[#Data],0),0))","v":""},{"$f":"IF('Communication Facility (Desc)'!E3=\"\",\"\",INDEX([1]OWNER!$A$2:$A$100,MATCH('Communication Facility (Desc)'!$E3,[1]!MASTER_OWNER_DESC[#Data],0),0))","v":""},{"$f":"IF('Communication Facility (Desc)'!F3=\"\",\"\",IF('Communication Facility (Desc)'!F3=\"\",\"\",INDEX([1]COUNTY!$A$2:$A$80,MATCH('Communication Facility (Desc)'!F3,[1]!MASTER_COUNTY_NAME[#Data],0),0)))","v":""},{"$f":"IF('Communication Facility (Desc)'!G3=\"\",\"\",'Communication Facility (Desc)'!G3)","v":""},{"$f":"IF('Communication Facility (Desc)'!H3=\"\",\"\",'Communication Facility (Desc)'!H3)","v":""},{"$f":"IF('Communication Facility (Desc)'!I3=\"\",\"\",'Communication Facility (Desc)'!I3)","v":""},{"$f":"IF('Communication Facility (Desc)'!J3=\"\",\"\",INDEX([1]CABINET_TYPE!$A$2:$A$100,MATCH('Communication Facility (Desc)'!$J3,[1]!MASTER_CABINET_TYPE_DESC[#Data],0),0))","v":""},{"$f":"IF('Communication Facility (Desc)'!K3=\"\",\"\",INDEX([1]CABINET_MOUNT_TYPE!$A$2:$A$100,MATCH('Communication Facility (Desc)'!K3,[1]!MASTER_CABINET_MOUNT_TYPE_DESC[#Data],0),0))","v":""},{"$f":"IF('Communication Facility (Desc)'!L3=\"\",\"\",INDEX([1]YES_NO!$A$2:$A$100,MATCH('Communication Facility (Desc)'!L3,[1]!MASTER_YES_NO_DESC[#Data],0),0))","v":""},{"$f":"IF('Communication Facility (Desc)'!M3=\"\",\"\",INDEX([1]BUILDING_TYPE!$A$2:$A$100,MATCH('Communication Facility (Desc)'!$M3,[1]!MASTER_BUILDING_TYPE_DESC[#Data],0),0))","v":""},{"$f":"IF('Communication Facility (Desc)'!N3=\"\",\"\",'Communication Facility (Desc)'!N3)","v":""},{"$f":"IF('Communication Facility (Desc)'!O3=\"\",\"\",INDEX([1]BUILDING_MTL!$A$2:$A$100,MATCH('Communication Facility (Desc)'!$O3,[1]!MASTER_BUILDING_MTL_DESC[#Data],0),0))","v":""},{"$f":"IF('Communication Facility (Desc)'!P3=\"\",\"\",INDEX([1]KEY_TYPE!$A$2:$A$100,MATCH('Communication Facility (Desc)'!$P3,[1]!MASTER_KEY_TYPE_DESC[#Data],0),0))","v":""},{"$f":"IF('Communication Facility (Desc)'!Q3=\"\",\"\",'Communication Facility (Desc)'!Q3)","v":""},{"$f":"IF('Communication Facility (Desc)'!R3=\"\",\"\",INDEX([1]FILTER_TYPE!$A$2:$A$100,MATCH('Communication Facility (Desc)'!$R3,[1]!MASTER_FILTER_TYPE_DESC[#Data],0),0))","v":""},{"$f":"IF('Communication Facility (Desc)'!S3=\"\",\"\",INDEX([1]FILTER_SIZE!$A$2:$A$100,MATCH('Communication Facility (Desc)'!$S3,[1]!MASTER_FILTER_SIZE_DESC[#Data],0),0))","v":""},{"$f":"IF('Communication Facility (Desc)'!T3=\"\",\"\",'Communication Facility (Desc)'!T3)","v":""},{"$f":"IF('Communication Facility (Desc)'!U3=\"\",\"\",INDEX([1]YES_NO!$A$2:$A$100,MATCH('Communication Facility (Desc)'!$U3,[1]!MASTER_YES_NO_DESC[#Data],0),0))","v":""},{"$f":"IF('Communication Facility (Desc)'!V3=\"\",\"\",INDEX([1]YES_NO!$A$2:$A$100,MATCH('Communication Facility (Desc)'!$V3,[1]!MASTER_YES_NO_DESC[#Data],0),0))","v":""}]
[{"$f":"IF('Communication Facility (Desc)'!A4=\"\",\"\",'Communication Facility (Desc)'!A4)","v":""},{"$f":"IF('Communication Facility (Desc)'!B4=\"\",\"\",'Communication Facility (Desc)'!B4)","v":""},{"$f":"IF('Communication Facility (Desc)'!C4=\"\",\"\",'Communication Facility (Desc)'!C4)","v":""},{"$f":"IF('Communication Facility (Desc)'!D4=\"\",\"\",INDEX([1]FACILITY_TYPE!$A$2:$A$100,MATCH('Communication Facility (Desc)'!$D4,[1]!MASTER_FACILITY_TYPE_DESC[#Data],0),0))","v":""},{"$f":"IF('Communication Facility (Desc)'!E4=\"\",\"\",INDEX([1]OWNER!$A$2:$A$100,MATCH('Communication Facility (Desc)'!$E4,[1]!MASTER_OWNER_DESC[#Data],0),0))","v":""},{"$f":"IF('Communication Facility (Desc)'!F4=\"\",\"\",IF('Communication Facility (Desc)'!F4=\"\",\"\",INDEX([1]COUNTY!$A$2:$A$80,MATCH('Communication Facility (Desc)'!F4,[1]!MASTER_COUNTY_NAME[#Data],0),0)))","v":""},{"$f":"IF('Communication Facility (Desc)'!G4=\"\",\"\",'Communication Facility (Desc)'!G4)","v":""},{"$f":"IF('Communication Facility (Desc)'!H4=\"\",\"\",'Communication Facility (Desc)'!H4)","v":""},{"$f":"IF('Communication Facility (Desc)'!I4=\"\",\"\",'Communication Facility (Desc)'!I4)","v":""},{"$f":"IF('Communication Facility (Desc)'!J4=\"\",\"\",INDEX([1]CABINET_TYPE!$A$2:$A$100,MATCH('Communication Facility (Desc)'!$J4,[1]!MASTER_CABINET_TYPE_DESC[#Data],0),0))","v":""},{"$f":"IF('Communication Facility (Desc)'!K4=\"\",\"\",INDEX([1]CABINET_MOUNT_TYPE!$A$2:$A$100,MATCH('Communication Facility (Desc)'!K4,[1]!MASTER_CABINET_MOUNT_TYPE_DESC[#Data],0),0))","v":""},{"$f":"IF('Communication Facility (Desc)'!L4=\"\",\"\",INDEX([1]YES_NO!$A$2:$A$100,MATCH('Communication Facility (Desc)'!L4,[1]!MASTER_YES_NO_DESC[#Data],0),0))","v":""},{"$f":"IF('Communication Facility (Desc)'!M4=\"\",\"\",INDEX([1]BUILDING_TYPE!$A$2:$A$100,MATCH('Communication Facility (Desc)'!$M4,[1]!MASTER_BUILDING_TYPE_DESC[#Data],0),0))","v":""},{"$f":"IF('Communication Facility (Desc)'!N4=\"\",\"\",'Communication Facility (Desc)'!N4)","v":""},{"$f":"IF('Communication Facility (Desc)'!O4=\"\",\"\",INDEX([1]BUILDING_MTL!$A$2:$A$100,MATCH('Communication Facility (Desc)'!$O4,[1]!MASTER_BUILDING_MTL_DESC[#Data],0),0))","v":""},{"$f":"IF('Communication Facility (Desc)'!P4=\"\",\"\",INDEX([1]KEY_TYPE!$A$2:$A$100,MATCH('Communication Facility (Desc)'!$P4,[1]!MASTER_KEY_TYPE_DESC[#Data],0),0))","v":""},{"$f":"IF('Communication Facility (Desc)'!Q4=\"\",\"\",'Communication Facility (Desc)'!Q4)","v":""},{"$f":"IF('Communication Facility (Desc)'!R4=\"\",\"\",INDEX([1]FILTER_TYPE!$A$2:$A$100,MATCH('Communication Facility (Desc)'!$R4,[1]!MASTER_FILTER_TYPE_DESC[#Data],0),0))","v":""},{"$f":"IF('Communication Facility (Desc)'!S4=\"\",\"\",INDEX([1]FILTER_SIZE!$A$2:$A$100,MATCH('Communication Facility (Desc)'!$S4,[1]!MASTER_FILTER_SIZE_DESC[#Data],0),0))","v":""},{"$f":"IF('Communication Facility (Desc)'!T4=\"\",\"\",'Communication Facility (Desc)'!T4)","v":""},{"$f":"IF('Communication Facility (Desc)'!U4=\"\",\"\",INDEX([1]YES_NO!$A$2:$A$100,MATCH('Communication Facility (Desc)'!$U4,[1]!MASTER_YES_NO_DESC[#Data],0),0))","v":""},{"$f":"IF('Communication Facility (Desc)'!V4=\"\",\"\",INDEX([1]YES_NO!$A$2:$A$100,MATCH('Communication Facility (Desc)'!$V4,[1]!MASTER_YES_NO_DESC[#Data],0),0))","v":""}]
[{"$f":"IF('Communication Facility (Desc)'!A5=\"\",\"\",'Communication Facility (Desc)'!A5)","v":""},{"$f":"IF('Communication Facility (Desc)'!B5=\"\",\"\",'Communication Facility (Desc)'!B5)","v":""},{"$f":"IF('Communication Facility (Desc)'!C5=\"\",\"\",'Communication Facility (Desc)'!C5)","v":""},{"$f":"IF('Communication Facility (Desc)'!D5=\"\",\"\",INDEX([1]FACILITY_TYPE!$A$2:$A$100,MATCH('Communication Facility (Desc)'!$D5,[1]!MASTER_FACILITY_TYPE_DESC[#Data],0),0))","v":""},{"$f":"IF('Communication Facility (Desc)'!E5=\"\",\"\",INDEX([1]OWNER!$A$2:$A$100,MATCH('Communication Facility (Desc)'!$E5,[1]!MASTER_OWNER_DESC[#Data],0),0))","v":""},{"$f":"IF('Communication Facility (Desc)'!F5=\"\",\"\",IF('Communication Facility (Desc)'!F5=\"\",\"\",INDEX([1]COUNTY!$A$2:$A$80,MATCH('Communication Facility (Desc)'!F5,[1]!MASTER_COUNTY_NAME[#Data],0),0)))","v":""},{"$f":"IF('Communication Facility (Desc)'!G5=\"\",\"\",'Communication Facility (Desc)'!G5)","v":""},{"$f":"IF('Communication Facility (Desc)'!H5=\"\",\"\",'Communication Facility (Desc)'!H5)","v":""},{"$f":"IF('Communication Facility (Desc)'!I5=\"\",\"\",'Communication Facility (Desc)'!I5)","v":""},{"$f":"IF('Communication Facility (Desc)'!J5=\"\",\"\",INDEX([1]CABINET_TYPE!$A$2:$A$100,MATCH('Communication Facility (Desc)'!$J5,[1]!MASTER_CABINET_TYPE_DESC[#Data],0),0))","v":""},{"$f":"IF('Communication Facility (Desc)'!K5=\"\",\"\",INDEX([1]CABINET_MOUNT_TYPE!$A$2:$A$100,MATCH('Communication Facility (Desc)'!K5,[1]!MASTER_CABINET_MOUNT_TYPE_DESC[#Data],0),0))","v":""},{"$f":"IF('Communication Facility (Desc)'!L5=\"\",\"\",INDEX([1]YES_NO!$A$2:$A$100,MATCH('Communication Facility (Desc)'!L5,[1]!MASTER_YES_NO_DESC[#Data],0),0))","v":""},{"$f":"IF('Communication Facility (Desc)'!M5=\"\",\"\",INDEX([1]BUILDING_TYPE!$A$2:$A$100,MATCH('Communication Facility (Desc)'!$M5,[1]!MASTER_BUILDING_TYPE_DESC[#Data],0),0))","v":""},{"$f":"IF('Communication Facility (Desc)'!N5=\"\",\"\",'Communication Facility (Desc)'!N5)","v":""},{"$f":"IF('Communication Facility (Desc)'!O5=\"\",\"\",INDEX([1]BUILDING_MTL!$A$2:$A$100,MATCH('Communication Facility (Desc)'!$O5,[1]!MASTER_BUILDING_MTL_DESC[#Data],0),0))","v":""},{"$f":"IF('Communication Facility (Desc)'!P5=\"\",\"\",INDEX([1]KEY_TYPE!$A$2:$A$100,MATCH('Communication Facility (Desc)'!$P5,[1]!MASTER_KEY_TYPE_DESC[#Data],0),0))","v":""},{"$f":"IF('Communication Facility (Desc)'!Q5=\"\",\"\",'Communication Facility (Desc)'!Q5)","v":""},{"$f":"IF('Communication Facility (Desc)'!R5=\"\",\"\",INDEX([1]FILTER_TYPE!$A$2:$A$100,MATCH('Communication Facility (Desc)'!$R5,[1]!MASTER_FILTER_TYPE_DESC[#Data],0),0))","v":""},{"$f":"IF('Communication Facility (Desc)'!S5=\"\",\"\",INDEX([1]FILTER_SIZE!$A$2:$A$100,MATCH('Communication Facility (Desc)'!$S5,[1]!MASTER_FILTER_SIZE_DESC[#Data],0),0))","v":""},{"$f":"IF('Communication Facility (Desc)'!T5=\"\",\"\",'Communication Facility (Desc)'!T5)","v":""},{"$f":"IF('Communication Facility (Desc)'!U5=\"\",\"\",INDEX([1]YES_NO!$A$2:$A$100,MATCH('Communication Facility (Desc)'!$U5,[1]!MASTER_YES_NO_DESC[#Data],0),0))","v":""},{"$f":"IF('Communication Facility (Desc)'!V5=\"\",\"\",INDEX([1]YES_NO!$A$2:$A$100,MATCH('Communication Facility (Desc)'!$V5,[1]!MASTER_YES_NO_DESC[#Data],0),0))","v":""}]
[{"$f":"IF('Communication Facility (Desc)'!A6=\"\",\"\",'Communication Facility (Desc)'!A6)","v":""},{"$f":"IF('Communication Facility (Desc)'!B6=\"\",\"\",'Communication Facility (Desc)'!B6)","v":""},{"$f":"IF('Communication Facility (Desc)'!C6=\"\",\"\",'Communication Facility (Desc)'!C6)","v":""},{"$f":"IF('Communication Facility (Desc)'!D6=\"\",\"\",INDEX([1]FACILITY_TYPE!$A$2:$A$100,MATCH('Communication Facility (Desc)'!$D6,[1]!MASTER_FACILITY_TYPE_DESC[#Data],0),0))","v":""},{"$f":"IF('Communication Facility (Desc)'!E6=\"\",\"\",INDEX([1]OWNER!$A$2:$A$100,MATCH('Communication Facility (Desc)'!$E6,[1]!MASTER_OWNER_DESC[#Data],0),0))","v":""},{"$f":"IF('Communication Facility (Desc)'!F6=\"\",\"\",IF('Communication Facility (Desc)'!F6=\"\",\"\",INDEX([1]COUNTY!$A$2:$A$80,MATCH('Communication Facility (Desc)'!F6,[1]!MASTER_COUNTY_NAME[#Data],0),0)))","v":""},{"$f":"IF('Communication Facility (Desc)'!G6=\"\",\"\",'Communication Facility (Desc)'!G6)","v":""},{"$f":"IF('Communication Facility (Desc)'!H6=\"\",\"\",'Communication Facility (Desc)'!H6)","v":""},{"$f":"IF('Communication Facility (Desc)'!I6=\"\",\"\",'Communication Facility (Desc)'!I6)","v":""},{"$f":"IF('Communication Facility (Desc)'!J6=\"\",\"\",INDEX([1]CABINET_TYPE!$A$2:$A$100,MATCH('Communication Facility (Desc)'!$J6,[1]!MASTER_CABINET_TYPE_DESC[#Data],0),0))","v":""},{"$f":"IF('Communication Facility (Desc)'!K6=\"\",\"\",INDEX([1]CABINET_MOUNT_TYPE!$A$2:$A$100,MATCH('Communication Facility (Desc)'!K6,[1]!MASTER_CABINET_MOUNT_TYPE_DESC[#Data],0),0))","v":""},{"$f":"IF('Communication Facility (Desc)'!L6=\"\",\"\",INDEX([1]YES_NO!$A$2:$A$100,MATCH('Communication Facility (Desc)'!L6,[1]!MASTER_YES_NO_DESC[#Data],0),0))","v":""},{"$f":"IF('Communication Facility (Desc)'!M6=\"\",\"\",INDEX([1]BUILDING_TYPE!$A$2:$A$100,MATCH('Communication Facility (Desc)'!$M6,[1]!MASTER_BUILDING_TYPE_DESC[#Data],0),0))","v":""},{"$f":"IF('Communication Facility (Desc)'!N6=\"\",\"\",'Communication Facility (Desc)'!N6)","v":""},{"$f":"IF('Communication Facility (Desc)'!O6=\"\",\"\",INDEX([1]BUILDING_MTL!$A$2:$A$100,MATCH('Communication Facility (Desc)'!$O6,[1]!MASTER_BUILDING_MTL_DESC[#Data],0),0))","v":""},{"$f":"IF('Communication Facility (Desc)'!P6=\"\",\"\",INDEX([1]KEY_TYPE!$A$2:$A$100,MATCH('Communication Facility (Desc)'!$P6,[1]!MASTER_KEY_TYPE_DESC[#Data],0),0))","v":""},{"$f":"IF('Communication Facility (Desc)'!Q6=\"\",\"\",'Communication Facility (Desc)'!Q6)","v":""},{"$f":"IF('Communication Facility (Desc)'!R6=\"\",\"\",INDEX([1]FILTER_TYPE!$A$2:$A$100,MATCH('Communication Facility (Desc)'!$R6,[1]!MASTER_FILTER_TYPE_DESC[#Data],0),0))","v":""},{"$f":"IF('Communication Facility (Desc)'!S6=\"\",\"\",INDEX([1]FILTER_SIZE!$A$2:$A$100,MATCH('Communication Facility (Desc)'!$S6,[1]!MASTER_FILTER_SIZE_DESC[#Data],0),0))","v":""},{"$f":"IF('Communication Facility (Desc)'!T6=\"\",\"\",'Communication Facility (Desc)'!T6)","v":""},{"$f":"IF('Communication Facility (Desc)'!U6=\"\",\"\",INDEX([1]YES_NO!$A$2:$A$100,MATCH('Communication Facility (Desc)'!$U6,[1]!MASTER_YES_NO_DESC[#Data],0),0))","v":""},{"$f":"IF('Communication Facility (Desc)'!V6=\"\",\"\",INDEX([1]YES_NO!$A$2:$A$100,MATCH('Communication Facility (Desc)'!$V6,[1]!MASTER_YES_NO_DESC[#Data],0),0))","v":""}]
[{"$f":"IF('Communication Facility (Desc)'!A7=\"\",\"\",'Communication Facility (Desc)'!A7)","v":""},{"$f":"IF('Communication Facility (Desc)'!B7=\"\",\"\",'Communication Facility (Desc)'!B7)","v":""},{"$f":"IF('Communication Facility (Desc)'!C7=\"\",\"\",'Communication Facility (Desc)'!C7)","v":""},{"$f":"IF('Communication Facility (Desc)'!D7=\"\",\"\",INDEX([1]FACILITY_TYPE!$A$2:$A$100,MATCH('Communication Facility (Desc)'!$D7,[1]!MASTER_FACILITY_TYPE_DESC[#Data],0),0))","v":""},{"$f":"IF('Communication Facility (Desc)'!E7=\"\",\"\",INDEX([1]OWNER!$A$2:$A$100,MATCH('Communication Facility (Desc)'!$E7,[1]!MASTER_OWNER_DESC[#Data],0),0))","v":""},{"$f":"IF('Communication Facility (Desc)'!F7=\"\",\"\",IF('Communication Facility (Desc)'!F7=\"\",\"\",INDEX([1]COUNTY!$A$2:$A$80,MATCH('Communication Facility (Desc)'!F7,[1]!MASTER_COUNTY_NAME[#Data],0),0)))","v":""},{"$f":"IF('Communication Facility (Desc)'!G7=\"\",\"\",'Communication Facility (Desc)'!G7)","v":""},{"$f":"IF('Communication Facility (Desc)'!H7=\"\",\"\",'Communication Facility (Desc)'!H7)","v":""},{"$f":"IF('Communication Facility (Desc)'!I7=\"\",\"\",'Communication Facility (Desc)'!I7)","v":""},{"$f":"IF('Communication Facility (Desc)'!J7=\"\",\"\",INDEX([1]CABINET_TYPE!$A$2:$A$100,MATCH('Communication Facility (Desc)'!$J7,[1]!MASTER_CABINET_TYPE_DESC[#Data],0),0))","v":""},{"$f":"IF('Communication Facility (Desc)'!K7=\"\",\"\",INDEX([1]CABINET_MOUNT_TYPE!$A$2:$A$100,MATCH('Communication Facility (Desc)'!K7,[1]!MASTER_CABINET_MOUNT_TYPE_DESC[#Data],0),0))","v":""},{"$f":"IF('Communication Facility (Desc)'!L7=\"\",\"\",INDEX([1]YES_NO!$A$2:$A$100,MATCH('Communication Facility (Desc)'!L7,[1]!MASTER_YES_NO_DESC[#Data],0),0))","v":""},{"$f":"IF('Communication Facility (Desc)'!M7=\"\",\"\",INDEX([1]BUILDING_TYPE!$A$2:$A$100,MATCH('Communication Facility (Desc)'!$M7,[1]!MASTER_BUILDING_TYPE_DESC[#Data],0),0))","v":""},{"$f":"IF('Communication Facility (Desc)'!N7=\"\",\"\",'Communication Facility (Desc)'!N7)","v":""},{"$f":"IF('Communication Facility (Desc)'!O7=\"\",\"\",INDEX([1]BUILDING_MTL!$A$2:$A$100,MATCH('Communication Facility (Desc)'!$O7,[1]!MASTER_BUILDING_MTL_DESC[#Data],0),0))","v":""},{"$f":"IF('Communication Facility (Desc)'!P7=\"\",\"\",INDEX([1]KEY_TYPE!$A$2:$A$100,MATCH('Communication Facility (Desc)'!$P7,[1]!MASTER_KEY_TYPE_DESC[#Data],0),0))","v":""},{"$f":"IF('Communication Facility (Desc)'!Q7=\"\",\"\",'Communication Facility (Desc)'!Q7)","v":""},{"$f":"IF('Communication Facility (Desc)'!R7=\"\",\"\",INDEX([1]FILTER_TYPE!$A$2:$A$100,MATCH('Communication Facility (Desc)'!$R7,[1]!MASTER_FILTER_TYPE_DESC[#Data],0),0))","v":""},{"$f":"IF('Communication Facility (Desc)'!S7=\"\",\"\",INDEX([1]FILTER_SIZE!$A$2:$A$100,MATCH('Communication Facility (Desc)'!$S7,[1]!MASTER_FILTER_SIZE_DESC[#Data],0),0))","v":""},{"$f":"IF('Communication Facility (Desc)'!T7=\"\",\"\",'Communication Facility (Desc)'!T7)","v":""},{"$f":"IF('Communication Facility (Desc)'!U7=\"\",\"\",INDEX([1]YES_NO!$A$2:$A$100,MATCH('Communication Facility (Desc)'!$U7,[1]!MASTER_YES_NO_DESC[#Data],0),0))","v":""},{"$f":"IF('Communication Facility (Desc)'!V7=\"\",\"\",INDEX([1]YES_NO!$A$2:$A$100,MATCH('Communication Facility (Desc)'!$V7,[1]!MASTER_YES_NO_DESC[#Data],0),0))","v":""}]
[{"$f":"IF('Communication Facility (Desc)'!A8=\"\",\"\",'Communication Facility (Desc)'!A8)","v":""},{"$f":"IF('Communication Facility (Desc)'!B8=\"\",\"\",'Communication Facility (Desc)'!B8)","v":""},{"$f":"IF('Communication Facility (Desc)'!C8=\"\",\"\",'Communication Facility (Desc)'!C8)","v":""},{"$f":"IF('Communication Facility (Desc)'!D8=\"\",\"\",INDEX([1]FACILITY_TYPE!$A$2:$A$100,MATCH('Communication Facility (Desc)'!$D8,[1]!MASTER_FACILITY_TYPE_DESC[#Data],0),0))","v":""},{"$f":"IF('Communication Facility (Desc)'!E8=\"\",\"\",INDEX([1]OWNER!$A$2:$A$100,MATCH('Communication Facility (Desc)'!$E8,[1]!MASTER_OWNER_DESC[#Data],0),0))","v":""},{"$f":"IF('Communication Facility (Desc)'!F8=\"\",\"\",IF('Communication Facility (Desc)'!F8=\"\",\"\",INDEX([1]COUNTY!$A$2:$A$80,MATCH('Communication Facility (Desc)'!F8,[1]!MASTER_COUNTY_NAME[#Data],0),0)))","v":""},{"$f":"IF('Communication Facility (Desc)'!G8=\"\",\"\",'Communication Facility (Desc)'!G8)","v":""},{"$f":"IF('Communication Facility (Desc)'!H8=\"\",\"\",'Communication Facility (Desc)'!H8)","v":""},{"$f":"IF('Communication Facility (Desc)'!I8=\"\",\"\",'Communication Facility (Desc)'!I8)","v":""},{"$f":"IF('Communication Facility (Desc)'!J8=\"\",\"\",INDEX([1]CABINET_TYPE!$A$2:$A$100,MATCH('Communication Facility (Desc)'!$J8,[1]!MASTER_CABINET_TYPE_DESC[#Data],0),0))","v":""},{"$f":"IF('Communication Facility (Desc)'!K8=\"\",\"\",INDEX([1]CABINET_MOUNT_TYPE!$A$2:$A$100,MATCH('Communication Facility (Desc)'!K8,[1]!MASTER_CABINET_MOUNT_TYPE_DESC[#Data],0),0))","v":""},{"$f":"IF('Communication Facility (Desc)'!L8=\"\",\"\",INDEX([1]YES_NO!$A$2:$A$100,MATCH('Communication Facility (Desc)'!L8,[1]!MASTER_YES_NO_DESC[#Data],0),0))","v":""},{"$f":"IF('Communication Facility (Desc)'!M8=\"\",\"\",INDEX([1]BUILDING_TYPE!$A$2:$A$100,MATCH('Communication Facility (Desc)'!$M8,[1]!MASTER_BUILDING_TYPE_DESC[#Data],0),0))","v":""},{"$f":"IF('Communication Facility (Desc)'!N8=\"\",\"\",'Communication Facility (Desc)'!N8)","v":""},{"$f":"IF('Communication Facility (Desc)'!O8=\"\",\"\",INDEX([1]BUILDING_MTL!$A$2:$A$100,MATCH('Communication Facility (Desc)'!$O8,[1]!MASTER_BUILDING_MTL_DESC[#Data],0),0))","v":""},{"$f":"IF('Communication Facility (Desc)'!P8=\"\",\"\",INDEX([1]KEY_TYPE!$A$2:$A$100,MATCH('Communication Facility (Desc)'!$P8,[1]!MASTER_KEY_TYPE_DESC[#Data],0),0))","v":""},{"$f":"IF('Communication Facility (Desc)'!Q8=\"\",\"\",'Communication Facility (Desc)'!Q8)","v":""},{"$f":"IF('Communication Facility (Desc)'!R8=\"\",\"\",INDEX([1]FILTER_TYPE!$A$2:$A$100,MATCH('Communication Facility (Desc)'!$R8,[1]!MASTER_FILTER_TYPE_DESC[#Data],0),0))","v":""},{"$f":"IF('Communication Facility (Desc)'!S8=\"\",\"\",INDEX([1]FILTER_SIZE!$A$2:$A$100,MATCH('Communication Facility (Desc)'!$S8,[1]!MASTER_FILTER_SIZE_DESC[#Data],0),0))","v":""},{"$f":"IF('Communication Facility (Desc)'!T8=\"\",\"\",'Communication Facility (Desc)'!T8)","v":""},{"$f":"IF('Communication Facility (Desc)'!U8=\"\",\"\",INDEX([1]YES_NO!$A$2:$A$100,MATCH('Communication Facility (Desc)'!$U8,[1]!MASTER_YES_NO_DESC[#Data],0),0))","v":""},{"$f":"IF('Communication Facility (Desc)'!V8=\"\",\"\",INDEX([1]YES_NO!$A$2:$A$100,MATCH('Communication Facility (Desc)'!$V8,[1]!MASTER_YES_NO_DESC[#Data],0),0))","v":""}]
[{"$f":"IF('Communication Facility (Desc)'!A9=\"\",\"\",'Communication Facility (Desc)'!A9)","v":""},{"$f":"IF('Communication Facility (Desc)'!B9=\"\",\"\",'Communication Facility (Desc)'!B9)","v":""},{"$f":"IF('Communication Facility (Desc)'!C9=\"\",\"\",'Communication Facility (Desc)'!C9)","v":""},{"$f":"IF('Communication Facility (Desc)'!D9=\"\",\"\",INDEX([1]FACILITY_TYPE!$A$2:$A$100,MATCH('Communication Facility (Desc)'!$D9,[1]!MASTER_FACILITY_TYPE_DESC[#Data],0),0))","v":""},{"$f":"IF('Communication Facility (Desc)'!E9=\"\",\"\",INDEX([1]OWNER!$A$2:$A$100,MATCH('Communication Facility (Desc)'!$E9,[1]!MASTER_OWNER_DESC[#Data],0),0))","v":""},{"$f":"IF('Communication Facility (Desc)'!F9=\"\",\"\",IF('Communication Facility (Desc)'!F9=\"\",\"\",INDEX([1]COUNTY!$A$2:$A$80,MATCH('Communication Facility (Desc)'!F9,[1]!MASTER_COUNTY_NAME[#Data],0),0)))","v":""},{"$f":"IF('Communication Facility (Desc)'!G9=\"\",\"\",'Communication Facility (Desc)'!G9)","v":""},{"$f":"IF('Communication Facility (Desc)'!H9=\"\",\"\",'Communication Facility (Desc)'!H9)","v":""},{"$f":"IF('Communication Facility (Desc)'!I9=\"\",\"\",'Communication Facility (Desc)'!I9)","v":""},{"$f":"IF('Communication Facility (Desc)'!J9=\"\",\"\",INDEX([1]CABINET_TYPE!$A$2:$A$100,MATCH('Communication Facility (Desc)'!$J9,[1]!MASTER_CABINET_TYPE_DESC[#Data],0),0))","v":""},{"$f":"IF('Communication Facility (Desc)'!K9=\"\",\"\",INDEX([1]CABINET_MOUNT_TYPE!$A$2:$A$100,MATCH('Communication Facility (Desc)'!K9,[1]!MASTER_CABINET_MOUNT_TYPE_DESC[#Data],0),0))","v":""},{"$f":"IF('Communication Facility (Desc)'!L9=\"\",\"\",INDEX([1]YES_NO!$A$2:$A$100,MATCH('Communication Facility (Desc)'!L9,[1]!MASTER_YES_NO_DESC[#Data],0),0))","v":""},{"$f":"IF('Communication Facility (Desc)'!M9=\"\",\"\",INDEX([1]BUILDING_TYPE!$A$2:$A$100,MATCH('Communication Facility (Desc)'!$M9,[1]!MASTER_BUILDING_TYPE_DESC[#Data],0),0))","v":""},{"$f":"IF('Communication Facility (Desc)'!N9=\"\",\"\",'Communication Facility (Desc)'!N9)","v":""},{"$f":"IF('Communication Facility (Desc)'!O9=\"\",\"\",INDEX([1]BUILDING_MTL!$A$2:$A$100,MATCH('Communication Facility (Desc)'!$O9,[1]!MASTER_BUILDING_MTL_DESC[#Data],0),0))","v":""},{"$f":"IF('Communication Facility (Desc)'!P9=\"\",\"\",INDEX([1]KEY_TYPE!$A$2:$A$100,MATCH('Communication Facility (Desc)'!$P9,[1]!MASTER_KEY_TYPE_DESC[#Data],0),0))","v":""},{"$f":"IF('Communication Facility (Desc)'!Q9=\"\",\"\",'Communication Facility (Desc)'!Q9)","v":""},{"$f":"IF('Communication Facility (Desc)'!R9=\"\",\"\",INDEX([1]FILTER_TYPE!$A$2:$A$100,MATCH('Communication Facility (Desc)'!$R9,[1]!MASTER_FILTER_TYPE_DESC[#Data],0),0))","v":""},{"$f":"IF('Communication Facility (Desc)'!S9=\"\",\"\",INDEX([1]FILTER_SIZE!$A$2:$A$100,MATCH('Communication Facility (Desc)'!$S9,[1]!MASTER_FILTER_SIZE_DESC[#Data],0),0))","v":""},{"$f":"IF('Communication Facility (Desc)'!T9=\"\",\"\",'Communication Facility (Desc)'!T9)","v":""},{"$f":"IF('Communication Facility (Desc)'!U9=\"\",\"\",INDEX([1]YES_NO!$A$2:$A$100,MATCH('Communication Facility (Desc)'!$U9,[1]!MASTER_YES_NO_DESC[#Data],0),0))","v":""},{"$f":"IF('Communication Facility (Desc)'!V9=\"\",\"\",INDEX([1]YES_NO!$A$2:$A$100,MATCH('Communication Facility (Desc)'!$V9,[1]!MASTER_YES_NO_DESC[#Data],0),0))","v":""}]
[{"$f":"IF('Communication Facility (Desc)'!A10=\"\",\"\",'Communication Facility (Desc)'!A10)","v":""},{"$f":"IF('Communication Facility (Desc)'!B10=\"\",\"\",'Communication Facility (Desc)'!B10)","v":""},{"$f":"IF('Communication Facility (Desc)'!C10=\"\",\"\",'Communication Facility (Desc)'!C10)","v":""},{"$f":"IF('Communication Facility (Desc)'!D10=\"\",\"\",INDEX([1]FACILITY_TYPE!$A$2:$A$100,MATCH('Communication Facility (Desc)'!$D10,[1]!MASTER_FACILITY_TYPE_DESC[#Data],0),0))","v":""},{"$f":"IF('Communication Facility (Desc)'!E10=\"\",\"\",INDEX([1]OWNER!$A$2:$A$100,MATCH('Communication Facility (Desc)'!$E10,[1]!MASTER_OWNER_DESC[#Data],0),0))","v":""},{"$f":"IF('Communication Facility (Desc)'!F10=\"\",\"\",IF('Communication Facility (Desc)'!F10=\"\",\"\",INDEX([1]COUNTY!$A$2:$A$80,MATCH('Communication Facility (Desc)'!F10,[1]!MASTER_COUNTY_NAME[#Data],0),0)))","v":""},{"$f":"IF('Communication Facility (Desc)'!G10=\"\",\"\",'Communication Facility (Desc)'!G10)","v":""},{"$f":"IF('Communication Facility (Desc)'!H10=\"\",\"\",'Communication Facility (Desc)'!H10)","v":""},{"$f":"IF('Communication Facility (Desc)'!I10=\"\",\"\",'Communication Facility (Desc)'!I10)","v":""},{"$f":"IF('Communication Facility (Desc)'!J10=\"\",\"\",INDEX([1]CABINET_TYPE!$A$2:$A$100,MATCH('Communication Facility (Desc)'!$J10,[1]!MASTER_CABINET_TYPE_DESC[#Data],0),0))","v":""},{"$f":"IF('Communication Facility (Desc)'!K10=\"\",\"\",INDEX([1]CABINET_MOUNT_TYPE!$A$2:$A$100,MATCH('Communication Facility (Desc)'!K10,[1]!MASTER_CABINET_MOUNT_TYPE_DESC[#Data],0),0))","v":""},{"$f":"IF('Communication Facility (Desc)'!L10=\"\",\"\",INDEX([1]YES_NO!$A$2:$A$100,MATCH('Communication Facility (Desc)'!L10,[1]!MASTER_YES_NO_DESC[#Data],0),0))","v":""},{"$f":"IF('Communication Facility (Desc)'!M10=\"\",\"\",INDEX([1]BUILDING_TYPE!$A$2:$A$100,MATCH('Communication Facility (Desc)'!$M10,[1]!MASTER_BUILDING_TYPE_DESC[#Data],0),0))","v":""},{"$f":"IF('Communication Facility (Desc)'!N10=\"\",\"\",'Communication Facility (Desc)'!N10)","v":""},{"$f":"IF('Communication Facility (Desc)'!O10=\"\",\"\",INDEX([1]BUILDING_MTL!$A$2:$A$100,MATCH('Communication Facility (Desc)'!$O10,[1]!MASTER_BUILDING_MTL_DESC[#Data],0),0))","v":""},{"$f":"IF('Communication Facility (Desc)'!P10=\"\",\"\",INDEX([1]KEY_TYPE!$A$2:$A$100,MATCH('Communication Facility (Desc)'!$P10,[1]!MASTER_KEY_TYPE_DESC[#Data],0),0))","v":""},{"$f":"IF('Communication Facility (Desc)'!Q10=\"\",\"\",'Communication Facility (Desc)'!Q10)","v":""},{"$f":"IF('Communication Facility (Desc)'!R10=\"\",\"\",INDEX([1]FILTER_TYPE!$A$2:$A$100,MATCH('Communication Facility (Desc)'!$R10,[1]!MASTER_FILTER_TYPE_DESC[#Data],0),0))","v":""},{"$f":"IF('Communication Facility (Desc)'!S10=\"\",\"\",INDEX([1]FILTER_SIZE!$A$2:$A$100,MATCH('Communication Facility (Desc)'!$S10,[1]!MASTER_FILTER_SIZE_DESC[#Data],0),0))","v":""},{"$f":"IF('Communication Facility (Desc)'!T10=\"\",\"\",'Communication Facility (Desc)'!T10)","v":""},{"$f":"IF('Communication Facility (Desc)'!U10=\"\",\"\",INDEX([1]YES_NO!$A$2:$A$100,MATCH('Communication Facility (Desc)'!$U10,[1]!MASTER_YES_NO_DESC[#Data],0),0))","v":""},{"$f":"IF('Communication Facility (Desc)'!V10=\"\",\"\",INDEX([1]YES_NO!$A$2:$A$100,MATCH('Communication Facility (Desc)'!$V10,[1]!MASTER_YES_NO_DESC[#Data],0),0))","v":""}]
[{"$f":"IF('Communication Facility (Desc)'!A11=\"\",\"\",'Communication Facility (Desc)'!A11)","v":""},{"$f":"IF('Communication Facility (Desc)'!B11=\"\",\"\",'Communication Facility (Desc)'!B11)","v":""},{"$f":"IF('Communication Facility (Desc)'!C11=\"\",\"\",'Communication Facility (Desc)'!C11)","v":""},{"$f":"IF('Communication Facility (Desc)'!D11=\"\",\"\",INDEX([1]FACILITY_TYPE!$A$2:$A$100,MATCH('Communication Facility (Desc)'!$D11,[1]!MASTER_FACILITY_TYPE_DESC[#Data],0),0))","v":""},{"$f":"IF('Communication Facility (Desc)'!E11=\"\",\"\",INDEX([1]OWNER!$A$2:$A$100,MATCH('Communication Facility (Desc)'!$E11,[1]!MASTER_OWNER_DESC[#Data],0),0))","v":""},{"$f":"IF('Communication Facility (Desc)'!F11=\"\",\"\",IF('Communication Facility (Desc)'!F11=\"\",\"\",INDEX([1]COUNTY!$A$2:$A$80,MATCH('Communication Facility (Desc)'!F11,[1]!MASTER_COUNTY_NAME[#Data],0),0)))","v":""},{"$f":"IF('Communication Facility (Desc)'!G11=\"\",\"\",'Communication Facility (Desc)'!G11)","v":""},{"$f":"IF('Communication Facility (Desc)'!H11=\"\",\"\",'Communication Facility (Desc)'!H11)","v":""},{"$f":"IF('Communication Facility (Desc)'!I11=\"\",\"\",'Communication Facility (Desc)'!I11)","v":""},{"$f":"IF('Communication Facility (Desc)'!J11=\"\",\"\",INDEX([1]CABINET_TYPE!$A$2:$A$100,MATCH('Communication Facility (Desc)'!$J11,[1]!MASTER_CABINET_TYPE_DESC[#Data],0),0))","v":""},{"$f":"IF('Communication Facility (Desc)'!K11=\"\",\"\",INDEX([1]CABINET_MOUNT_TYPE!$A$2:$A$100,MATCH('Communication Facility (Desc)'!K11,[1]!MASTER_CABINET_MOUNT_TYPE_DESC[#Data],0),0))","v":""},{"$f":"IF('Communication Facility (Desc)'!L11=\"\",\"\",INDEX([1]YES_NO!$A$2:$A$100,MATCH('Communication Facility (Desc)'!L11,[1]!MASTER_YES_NO_DESC[#Data],0),0))","v":""},{"$f":"IF('Communication Facility (Desc)'!M11=\"\",\"\",INDEX([1]BUILDING_TYPE!$A$2:$A$100,MATCH('Communication Facility (Desc)'!$M11,[1]!MASTER_BUILDING_TYPE_DESC[#Data],0),0))","v":""},{"$f":"IF('Communication Facility (Desc)'!N11=\"\",\"\",'Communication Facility (Desc)'!N11)","v":""},{"$f":"IF('Communication Facility (Desc)'!O11=\"\",\"\",INDEX([1]BUILDING_MTL!$A$2:$A$100,MATCH('Communication Facility (Desc)'!$O11,[1]!MASTER_BUILDING_MTL_DESC[#Data],0),0))","v":""},{"$f":"IF('Communication Facility (Desc)'!P11=\"\",\"\",INDEX([1]KEY_TYPE!$A$2:$A$100,MATCH('Communication Facility (Desc)'!$P11,[1]!MASTER_KEY_TYPE_DESC[#Data],0),0))","v":""},{"$f":"IF('Communication Facility (Desc)'!Q11=\"\",\"\",'Communication Facility (Desc)'!Q11)","v":""},{"$f":"IF('Communication Facility (Desc)'!R11=\"\",\"\",INDEX([1]FILTER_TYPE!$A$2:$A$100,MATCH('Communication Facility (Desc)'!$R11,[1]!MASTER_FILTER_TYPE_DESC[#Data],0),0))","v":""},{"$f":"IF('Communication Facility (Desc)'!S11=\"\",\"\",INDEX([1]FILTER_SIZE!$A$2:$A$100,MATCH('Communication Facility (Desc)'!$S11,[1]!MASTER_FILTER_SIZE_DESC[#Data],0),0))","v":""},{"$f":"IF('Communication Facility (Desc)'!T11=\"\",\"\",'Communication Facility (Desc)'!T11)","v":""},{"$f":"IF('Communication Facility (Desc)'!U11=\"\",\"\",INDEX([1]YES_NO!$A$2:$A$100,MATCH('Communication Facility (Desc)'!$U11,[1]!MASTER_YES_NO_DESC[#Data],0),0))","v":""},{"$f":"IF('Communication Facility (Desc)'!V11=\"\",\"\",INDEX([1]YES_NO!$A$2:$A$100,MATCH('Communication Facility (Desc)'!$V11,[1]!MASTER_YES_NO_DESC[#Data],0),0))","v":""}]
[{"$f":"IF('Communication Facility (Desc)'!A12=\"\",\"\",'Communication Facility (Desc)'!A12)","v":""},{"$f":"IF('Communication Facility (Desc)'!B12=\"\",\"\",'Communication Facility (Desc)'!B12)","v":""},{"$f":"IF('Communication Facility (Desc)'!C12=\"\",\"\",'Communication Facility (Desc)'!C12)","v":""},{"$f":"IF('Communication Facility (Desc)'!D12=\"\",\"\",INDEX([1]FACILITY_TYPE!$A$2:$A$100,MATCH('Communication Facility (Desc)'!$D12,[1]!MASTER_FACILITY_TYPE_DESC[#Data],0),0))","v":""},{"$f":"IF('Communication Facility (Desc)'!E12=\"\",\"\",INDEX([1]OWNER!$A$2:$A$100,MATCH('Communication Facility (Desc)'!$E12,[1]!MASTER_OWNER_DESC[#Data],0),0))","v":""},{"$f":"IF('Communication Facility (Desc)'!F12=\"\",\"\",IF('Communication Facility (Desc)'!F12=\"\",\"\",INDEX([1]COUNTY!$A$2:$A$80,MATCH('Communication Facility (Desc)'!F12,[1]!MASTER_COUNTY_NAME[#Data],0),0)))","v":""},{"$f":"IF('Communication Facility (Desc)'!G12=\"\",\"\",'Communication Facility (Desc)'!G12)","v":""},{"$f":"IF('Communication Facility (Desc)'!H12=\"\",\"\",'Communication Facility (Desc)'!H12)","v":""},{"$f":"IF('Communication Facility (Desc)'!I12=\"\",\"\",'Communication Facility (Desc)'!I12)","v":""},{"$f":"IF('Communication Facility (Desc)'!J12=\"\",\"\",INDEX([1]CABINET_TYPE!$A$2:$A$100,MATCH('Communication Facility (Desc)'!$J12,[1]!MASTER_CABINET_TYPE_DESC[#Data],0),0))","v":""},{"$f":"IF('Communication Facility (Desc)'!K12=\"\",\"\",INDEX([1]CABINET_MOUNT_TYPE!$A$2:$A$100,MATCH('Communication Facility (Desc)'!K12,[1]!MASTER_CABINET_MOUNT_TYPE_DESC[#Data],0),0))","v":""},{"$f":"IF('Communication Facility (Desc)'!L12=\"\",\"\",INDEX([1]YES_NO!$A$2:$A$100,MATCH('Communication Facility (Desc)'!L12,[1]!MASTER_YES_NO_DESC[#Data],0),0))","v":""},{"$f":"IF('Communication Facility (Desc)'!M12=\"\",\"\",INDEX([1]BUILDING_TYPE!$A$2:$A$100,MATCH('Communication Facility (Desc)'!$M12,[1]!MASTER_BUILDING_TYPE_DESC[#Data],0),0))","v":""},{"$f":"IF('Communication Facility (Desc)'!N12=\"\",\"\",'Communication Facility (Desc)'!N12)","v":""},{"$f":"IF('Communication Facility (Desc)'!O12=\"\",\"\",INDEX([1]BUILDING_MTL!$A$2:$A$100,MATCH('Communication Facility (Desc)'!$O12,[1]!MASTER_BUILDING_MTL_DESC[#Data],0),0))","v":""},{"$f":"IF('Communication Facility (Desc)'!P12=\"\",\"\",INDEX([1]KEY_TYPE!$A$2:$A$100,MATCH('Communication Facility (Desc)'!$P12,[1]!MASTER_KEY_TYPE_DESC[#Data],0),0))","v":""},{"$f":"IF('Communication Facility (Desc)'!Q12=\"\",\"\",'Communication Facility (Desc)'!Q12)","v":""},{"$f":"IF('Communication Facility (Desc)'!R12=\"\",\"\",INDEX([1]FILTER_TYPE!$A$2:$A$100,MATCH('Communication Facility (Desc)'!$R12,[1]!MASTER_FILTER_TYPE_DESC[#Data],0),0))","v":""},{"$f":"IF('Communication Facility (Desc)'!S12=\"\",\"\",INDEX([1]FILTER_SIZE!$A$2:$A$100,MATCH('Communication Facility (Desc)'!$S12,[1]!MASTER_FILTER_SIZE_DESC[#Data],0),0))","v":""},{"$f":"IF('Communication Facility (Desc)'!T12=\"\",\"\",'Communication Facility (Desc)'!T12)","v":""},{"$f":"IF('Communication Facility (Desc)'!U12=\"\",\"\",INDEX([1]YES_NO!$A$2:$A$100,MATCH('Communication Facility (Desc)'!$U12,[1]!MASTER_YES_NO_DESC[#Data],0),0))","v":""},{"$f":"IF('Communication Facility (Desc)'!V12=\"\",\"\",INDEX([1]YES_NO!$A$2:$A$100,MATCH('Communication Facility (Desc)'!$V12,[1]!MASTER_YES_NO_DESC[#Data],0),0))","v":""}]
[{"$f":"IF('Communication Facility (Desc)'!A13=\"\",\"\",'Communication Facility (Desc)'!A13)","v":""},{"$f":"IF('Communication Facility (Desc)'!B13=\"\",\"\",'Communication Facility (Desc)'!B13)","v":""},{"$f":"IF('Communication Facility (Desc)'!C13=\"\",\"\",'Communication Facility (Desc)'!C13)","v":""},{"$f":"IF('Communication Facility (Desc)'!D13=\"\",\"\",INDEX([1]FACILITY_TYPE!$A$2:$A$100,MATCH('Communication Facility (Desc)'!$D13,[1]!MASTER_FACILITY_TYPE_DESC[#Data],0),0))","v":""},{"$f":"IF('Communication Facility (Desc)'!E13=\"\",\"\",INDEX([1]OWNER!$A$2:$A$100,MATCH('Communication Facility (Desc)'!$E13,[1]!MASTER_OWNER_DESC[#Data],0),0))","v":""},{"$f":"IF('Communication Facility (Desc)'!F13=\"\",\"\",IF('Communication Facility (Desc)'!F13=\"\",\"\",INDEX([1]COUNTY!$A$2:$A$80,MATCH('Communication Facility (Desc)'!F13,[1]!MASTER_COUNTY_NAME[#Data],0),0)))","v":""},{"$f":"IF('Communication Facility (Desc)'!G13=\"\",\"\",'Communication Facility (Desc)'!G13)","v":""},{"$f":"IF('Communication Facility (Desc)'!H13=\"\",\"\",'Communication Facility (Desc)'!H13)","v":""},{"$f":"IF('Communication Facility (Desc)'!I13=\"\",\"\",'Communication Facility (Desc)'!I13)","v":""},{"$f":"IF('Communication Facility (Desc)'!J13=\"\",\"\",INDEX([1]CABINET_TYPE!$A$2:$A$100,MATCH('Communication Facility (Desc)'!$J13,[1]!MASTER_CABINET_TYPE_DESC[#Data],0),0))","v":""},{"$f":"IF('Communication Facility (Desc)'!K13=\"\",\"\",INDEX([1]CABINET_MOUNT_TYPE!$A$2:$A$100,MATCH('Communication Facility (Desc)'!K13,[1]!MASTER_CABINET_MOUNT_TYPE_DESC[#Data],0),0))","v":""},{"$f":"IF('Communication Facility (Desc)'!L13=\"\",\"\",INDEX([1]YES_NO!$A$2:$A$100,MATCH('Communication Facility (Desc)'!L13,[1]!MASTER_YES_NO_DESC[#Data],0),0))","v":""},{"$f":"IF('Communication Facility (Desc)'!M13=\"\",\"\",INDEX([1]BUILDING_TYPE!$A$2:$A$100,MATCH('Communication Facility (Desc)'!$M13,[1]!MASTER_BUILDING_TYPE_DESC[#Data],0),0))","v":""},{"$f":"IF('Communication Facility (Desc)'!N13=\"\",\"\",'Communication Facility (Desc)'!N13)","v":""},{"$f":"IF('Communication Facility (Desc)'!O13=\"\",\"\",INDEX([1]BUILDING_MTL!$A$2:$A$100,MATCH('Communication Facility (Desc)'!$O13,[1]!MASTER_BUILDING_MTL_DESC[#Data],0),0))","v":""},{"$f":"IF('Communication Facility (Desc)'!P13=\"\",\"\",INDEX([1]KEY_TYPE!$A$2:$A$100,MATCH('Communication Facility (Desc)'!$P13,[1]!MASTER_KEY_TYPE_DESC[#Data],0),0))","v":""},{"$f":"IF('Communication Facility (Desc)'!Q13=\"\",\"\",'Communication Facility (Desc)'!Q13)","v":""},{"$f":"IF('Communication Facility (Desc)'!R13=\"\",\"\",INDEX([1]FILTER_TYPE!$A$2:$A$100,MATCH('Communication Facility (Desc)'!$R13,[1]!MASTER_FILTER_TYPE_DESC[#Data],0),0))","v":""},{"$f":"IF('Communication Facility (Desc)'!S13=\"\",\"\",INDEX([1]FILTER_SIZE!$A$2:$A$100,MATCH('Communication Facility (Desc)'!$S13,[1]!MASTER_FILTER_SIZE_DESC[#Data],0),0))","v":""},{"$f":"IF('Communication Facility (Desc)'!T13=\"\",\"\",'Communication Facility (Desc)'!T13)","v":""},{"$f":"IF('Communication Facility (Desc)'!U13=\"\",\"\",INDEX([1]YES_NO!$A$2:$A$100,MATCH('Communication Facility (Desc)'!$U13,[1]!MASTER_YES_NO_DESC[#Data],0),0))","v":""},{"$f":"IF('Communication Facility (Desc)'!V13=\"\",\"\",INDEX([1]YES_NO!$A$2:$A$100,MATCH('Communication Facility (Desc)'!$V13,[1]!MASTER_YES_NO_DESC[#Data],0),0))","v":""}]
[{"$f":"IF('Communication Facility (Desc)'!A14=\"\",\"\",'Communication Facility (Desc)'!A14)","v":""},{"$f":"IF('Communication Facility (Desc)'!B14=\"\",\"\",'Communication Facility (Desc)'!B14)","v":""},{"$f":"IF('Communication Facility (Desc)'!C14=\"\",\"\",'Communication Facility (Desc)'!C14)","v":""},{"$f":"IF('Communication Facility (Desc)'!D14=\"\",\"\",INDEX([1]FACILITY_TYPE!$A$2:$A$100,MATCH('Communication Facility (Desc)'!$D14,[1]!MASTER_FACILITY_TYPE_DESC[#Data],0),0))","v":""},{"$f":"IF('Communication Facility (Desc)'!E14=\"\",\"\",INDEX([1]OWNER!$A$2:$A$100,MATCH('Communication Facility (Desc)'!$E14,[1]!MASTER_OWNER_DESC[#Data],0),0))","v":""},{"$f":"IF('Communication Facility (Desc)'!F14=\"\",\"\",IF('Communication Facility (Desc)'!F14=\"\",\"\",INDEX([1]COUNTY!$A$2:$A$80,MATCH('Communication Facility (Desc)'!F14,[1]!MASTER_COUNTY_NAME[#Data],0),0)))","v":""},{"$f":"IF('Communication Facility (Desc)'!G14=\"\",\"\",'Communication Facility (Desc)'!G14)","v":""},{"$f":"IF('Communication Facility (Desc)'!H14=\"\",\"\",'Communication Facility (Desc)'!H14)","v":""},{"$f":"IF('Communication Facility (Desc)'!I14=\"\",\"\",'Communication Facility (Desc)'!I14)","v":""},{"$f":"IF('Communication Facility (Desc)'!J14=\"\",\"\",INDEX([1]CABINET_TYPE!$A$2:$A$100,MATCH('Communication Facility (Desc)'!$J14,[1]!MASTER_CABINET_TYPE_DESC[#Data],0),0))","v":""},{"$f":"IF('Communication Facility (Desc)'!K14=\"\",\"\",INDEX([1]CABINET_MOUNT_TYPE!$A$2:$A$100,MATCH('Communication Facility (Desc)'!K14,[1]!MASTER_CABINET_MOUNT_TYPE_DESC[#Data],0),0))","v":""},{"$f":"IF('Communication Facility (Desc)'!L14=\"\",\"\",INDEX([1]YES_NO!$A$2:$A$100,MATCH('Communication Facility (Desc)'!L14,[1]!MASTER_YES_NO_DESC[#Data],0),0))","v":""},{"$f":"IF('Communication Facility (Desc)'!M14=\"\",\"\",INDEX([1]BUILDING_TYPE!$A$2:$A$100,MATCH('Communication Facility (Desc)'!$M14,[1]!MASTER_BUILDING_TYPE_DESC[#Data],0),0))","v":""},{"$f":"IF('Communication Facility (Desc)'!N14=\"\",\"\",'Communication Facility (Desc)'!N14)","v":""},{"$f":"IF('Communication Facility (Desc)'!O14=\"\",\"\",INDEX([1]BUILDING_MTL!$A$2:$A$100,MATCH('Communication Facility (Desc)'!$O14,[1]!MASTER_BUILDING_MTL_DESC[#Data],0),0))","v":""},{"$f":"IF('Communication Facility (Desc)'!P14=\"\",\"\",INDEX([1]KEY_TYPE!$A$2:$A$100,MATCH('Communication Facility (Desc)'!$P14,[1]!MASTER_KEY_TYPE_DESC[#Data],0),0))","v":""},{"$f":"IF('Communication Facility (Desc)'!Q14=\"\",\"\",'Communication Facility (Desc)'!Q14)","v":""},{"$f":"IF('Communication Facility (Desc)'!R14=\"\",\"\",INDEX([1]FILTER_TYPE!$A$2:$A$100,MATCH('Communication Facility (Desc)'!$R14,[1]!MASTER_FILTER_TYPE_DESC[#Data],0),0))","v":""},{"$f":"IF('Communication Facility (Desc)'!S14=\"\",\"\",INDEX([1]FILTER_SIZE!$A$2:$A$100,MATCH('Communication Facility (Desc)'!$S14,[1]!MASTER_FILTER_SIZE_DESC[#Data],0),0))","v":""},{"$f":"IF('Communication Facility (Desc)'!T14=\"\",\"\",'Communication Facility (Desc)'!T14)","v":""},{"$f":"IF('Communication Facility (Desc)'!U14=\"\",\"\",INDEX([1]YES_NO!$A$2:$A$100,MATCH('Communication Facility (Desc)'!$U14,[1]!MASTER_YES_NO_DESC[#Data],0),0))","v":""},{"$f":"IF('Communication Facility (Desc)'!V14=\"\",\"\",INDEX([1]YES_NO!$A$2:$A$100,MATCH('Communication Facility (Desc)'!$V14,[1]!MASTER_YES_NO_DESC[#Data],0),0))","v":""}]
[{"$f":"IF('Communication Facility (Desc)'!A15=\"\",\"\",'Communication Facility (Desc)'!A15)","v":""},{"$f":"IF('Communication Facility (Desc)'!B15=\"\",\"\",'Communication Facility (Desc)'!B15)","v":""},{"$f":"IF('Communication Facility (Desc)'!C15=\"\",\"\",'Communication Facility (Desc)'!C15)","v":""},{"$f":"IF('Communication Facility (Desc)'!D15=\"\",\"\",INDEX([1]FACILITY_TYPE!$A$2:$A$100,MATCH('Communication Facility (Desc)'!$D15,[1]!MASTER_FACILITY_TYPE_DESC[#Data],0),0))","v":""},{"$f":"IF('Communication Facility (Desc)'!E15=\"\",\"\",INDEX([1]OWNER!$A$2:$A$100,MATCH('Communication Facility (Desc)'!$E15,[1]!MASTER_OWNER_DESC[#Data],0),0))","v":""},{"$f":"IF('Communication Facility (Desc)'!F15=\"\",\"\",IF('Communication Facility (Desc)'!F15=\"\",\"\",INDEX([1]COUNTY!$A$2:$A$80,MATCH('Communication Facility (Desc)'!F15,[1]!MASTER_COUNTY_NAME[#Data],0),0)))","v":""},{"$f":"IF('Communication Facility (Desc)'!G15=\"\",\"\",'Communication Facility (Desc)'!G15)","v":""},{"$f":"IF('Communication Facility (Desc)'!H15=\"\",\"\",'Communication Facility (Desc)'!H15)","v":""},{"$f":"IF('Communication Facility (Desc)'!I15=\"\",\"\",'Communication Facility (Desc)'!I15)","v":""},{"$f":"IF('Communication Facility (Desc)'!J15=\"\",\"\",INDEX([1]CABINET_TYPE!$A$2:$A$100,MATCH('Communication Facility (Desc)'!$J15,[1]!MASTER_CABINET_TYPE_DESC[#Data],0),0))","v":""},{"$f":"IF('Communication Facility (Desc)'!K15=\"\",\"\",INDEX([1]CABINET_MOUNT_TYPE!$A$2:$A$100,MATCH('Communication Facility (Desc)'!K15,[1]!MASTER_CABINET_MOUNT_TYPE_DESC[#Data],0),0))","v":""},{"$f":"IF('Communication Facility (Desc)'!L15=\"\",\"\",INDEX([1]YES_NO!$A$2:$A$100,MATCH('Communication Facility (Desc)'!L15,[1]!MASTER_YES_NO_DESC[#Data],0),0))","v":""},{"$f":"IF('Communication Facility (Desc)'!M15=\"\",\"\",INDEX([1]BUILDING_TYPE!$A$2:$A$100,MATCH('Communication Facility (Desc)'!$M15,[1]!MASTER_BUILDING_TYPE_DESC[#Data],0),0))","v":""},{"$f":"IF('Communication Facility (Desc)'!N15=\"\",\"\",'Communication Facility (Desc)'!N15)","v":""},{"$f":"IF('Communication Facility (Desc)'!O15=\"\",\"\",INDEX([1]BUILDING_MTL!$A$2:$A$100,MATCH('Communication Facility (Desc)'!$O15,[1]!MASTER_BUILDING_MTL_DESC[#Data],0),0))","v":""},{"$f":"IF('Communication Facility (Desc)'!P15=\"\",\"\",INDEX([1]KEY_TYPE!$A$2:$A$100,MATCH('Communication Facility (Desc)'!$P15,[1]!MASTER_KEY_TYPE_DESC[#Data],0),0))","v":""},{"$f":"IF('Communication Facility (Desc)'!Q15=\"\",\"\",'Communication Facility (Desc)'!Q15)","v":""},{"$f":"IF('Communication Facility (Desc)'!R15=\"\",\"\",INDEX([1]FILTER_TYPE!$A$2:$A$100,MATCH('Communication Facility (Desc)'!$R15,[1]!MASTER_FILTER_TYPE_DESC[#Data],0),0))","v":""},{"$f":"IF('Communication Facility (Desc)'!S15=\"\",\"\",INDEX([1]FILTER_SIZE!$A$2:$A$100,MATCH('Communication Facility (Desc)'!$S15,[1]!MASTER_FILTER_SIZE_DESC[#Data],0),0))","v":""},{"$f":"IF('Communication Facility (Desc)'!T15=\"\",\"\",'Communication Facility (Desc)'!T15)","v":""},{"$f":"IF('Communication Facility (Desc)'!U15=\"\",\"\",INDEX([1]YES_NO!$A$2:$A$100,MATCH('Communication Facility (Desc)'!$U15,[1]!MASTER_YES_NO_DESC[#Data],0),0))","v":""},{"$f":"IF('Communication Facility (Desc)'!V15=\"\",\"\",INDEX([1]YES_NO!$A$2:$A$100,MATCH('Communication Facility (Desc)'!$V15,[1]!MASTER_YES_NO_DESC[#Data],0),0))","v":""}]
[{"$f":"IF('Communication Facility (Desc)'!A16=\"\",\"\",'Communication Facility (Desc)'!A16)","v":""},{"$f":"IF('Communication Facility (Desc)'!B16=\"\",\"\",'Communication Facility (Desc)'!B16)","v":""},{"$f":"IF('Communication Facility (Desc)'!C16=\"\",\"\",'Communication Facility (Desc)'!C16)","v":""},{"$f":"IF('Communication Facility (Desc)'!D16=\"\",\"\",INDEX([1]FACILITY_TYPE!$A$2:$A$100,MATCH('Communication Facility (Desc)'!$D16,[1]!MASTER_FACILITY_TYPE_DESC[#Data],0),0))","v":""},{"$f":"IF('Communication Facility (Desc)'!E16=\"\",\"\",INDEX([1]OWNER!$A$2:$A$100,MATCH('Communication Facility (Desc)'!$E16,[1]!MASTER_OWNER_DESC[#Data],0),0))","v":""},{"$f":"IF('Communication Facility (Desc)'!F16=\"\",\"\",IF('Communication Facility (Desc)'!F16=\"\",\"\",INDEX([1]COUNTY!$A$2:$A$80,MATCH('Communication Facility (Desc)'!F16,[1]!MASTER_COUNTY_NAME[#Data],0),0)))","v":""},{"$f":"IF('Communication Facility (Desc)'!G16=\"\",\"\",'Communication Facility (Desc)'!G16)","v":""},{"$f":"IF('Communication Facility (Desc)'!H16=\"\",\"\",'Communication Facility (Desc)'!H16)","v":""},{"$f":"IF('Communication Facility (Desc)'!I16=\"\",\"\",'Communication Facility (Desc)'!I16)","v":""},{"$f":"IF('Communication Facility (Desc)'!J16=\"\",\"\",INDEX([1]CABINET_TYPE!$A$2:$A$100,MATCH('Communication Facility (Desc)'!$J16,[1]!MASTER_CABINET_TYPE_DESC[#Data],0),0))","v":""},{"$f":"IF('Communication Facility (Desc)'!K16=\"\",\"\",INDEX([1]CABINET_MOUNT_TYPE!$A$2:$A$100,MATCH('Communication Facility (Desc)'!K16,[1]!MASTER_CABINET_MOUNT_TYPE_DESC[#Data],0),0))","v":""},{"$f":"IF('Communication Facility (Desc)'!L16=\"\",\"\",INDEX([1]YES_NO!$A$2:$A$100,MATCH('Communication Facility (Desc)'!L16,[1]!MASTER_YES_NO_DESC[#Data],0),0))","v":""},{"$f":"IF('Communication Facility (Desc)'!M16=\"\",\"\",INDEX([1]BUILDING_TYPE!$A$2:$A$100,MATCH('Communication Facility (Desc)'!$M16,[1]!MASTER_BUILDING_TYPE_DESC[#Data],0),0))","v":""},{"$f":"IF('Communication Facility (Desc)'!N16=\"\",\"\",'Communication Facility (Desc)'!N16)","v":""},{"$f":"IF('Communication Facility (Desc)'!O16=\"\",\"\",INDEX([1]BUILDING_MTL!$A$2:$A$100,MATCH('Communication Facility (Desc)'!$O16,[1]!MASTER_BUILDING_MTL_DESC[#Data],0),0))","v":""},{"$f":"IF('Communication Facility (Desc)'!P16=\"\",\"\",INDEX([1]KEY_TYPE!$A$2:$A$100,MATCH('Communication Facility (Desc)'!$P16,[1]!MASTER_KEY_TYPE_DESC[#Data],0),0))","v":""},{"$f":"IF('Communication Facility (Desc)'!Q16=\"\",\"\",'Communication Facility (Desc)'!Q16)","v":""},{"$f":"IF('Communication Facility (Desc)'!R16=\"\",\"\",INDEX([1]FILTER_TYPE!$A$2:$A$100,MATCH('Communication Facility (Desc)'!$R16,[1]!MASTER_FILTER_TYPE_DESC[#Data],0),0))","v":""},{"$f":"IF('Communication Facility (Desc)'!S16=\"\",\"\",INDEX([1]FILTER_SIZE!$A$2:$A$100,MATCH('Communication Facility (Desc)'!$S16,[1]!MASTER_FILTER_SIZE_DESC[#Data],0),0))","v":""},{"$f":"IF('Communication Facility (Desc)'!T16=\"\",\"\",'Communication Facility (Desc)'!T16)","v":""},{"$f":"IF('Communication Facility (Desc)'!U16=\"\",\"\",INDEX([1]YES_NO!$A$2:$A$100,MATCH('Communication Facility (Desc)'!$U16,[1]!MASTER_YES_NO_DESC[#Data],0),0))","v":""},{"$f":"IF('Communication Facility (Desc)'!V16=\"\",\"\",INDEX([1]YES_NO!$A$2:$A$100,MATCH('Communication Facility (Desc)'!$V16,[1]!MASTER_YES_NO_DESC[#Data],0),0))","v":""}]
[{"$f":"IF('Communication Facility (Desc)'!A17=\"\",\"\",'Communication Facility (Desc)'!A17)","v":""},{"$f":"IF('Communication Facility (Desc)'!B17=\"\",\"\",'Communication Facility (Desc)'!B17)","v":""},{"$f":"IF('Communication Facility (Desc)'!C17=\"\",\"\",'Communication Facility (Desc)'!C17)","v":""},{"$f":"IF('Communication Facility (Desc)'!D17=\"\",\"\",INDEX([1]FACILITY_TYPE!$A$2:$A$100,MATCH('Communication Facility (Desc)'!$D17,[1]!MASTER_FACILITY_TYPE_DESC[#Data],0),0))","v":""},{"$f":"IF('Communication Facility (Desc)'!E17=\"\",\"\",INDEX([1]OWNER!$A$2:$A$100,MATCH('Communication Facility (Desc)'!$E17,[1]!MASTER_OWNER_DESC[#Data],0),0))","v":""},{"$f":"IF('Communication Facility (Desc)'!F17=\"\",\"\",IF('Communication Facility (Desc)'!F17=\"\",\"\",INDEX([1]COUNTY!$A$2:$A$80,MATCH('Communication Facility (Desc)'!F17,[1]!MASTER_COUNTY_NAME[#Data],0),0)))","v":""},{"$f":"IF('Communication Facility (Desc)'!G17=\"\",\"\",'Communication Facility (Desc)'!G17)","v":""},{"$f":"IF('Communication Facility (Desc)'!H17=\"\",\"\",'Communication Facility (Desc)'!H17)","v":""},{"$f":"IF('Communication Facility (Desc)'!I17=\"\",\"\",'Communication Facility (Desc)'!I17)","v":""},{"$f":"IF('Communication Facility (Desc)'!J17=\"\",\"\",INDEX([1]CABINET_TYPE!$A$2:$A$100,MATCH('Communication Facility (Desc)'!$J17,[1]!MASTER_CABINET_TYPE_DESC[#Data],0),0))","v":""},{"$f":"IF('Communication Facility (Desc)'!K17=\"\",\"\",INDEX([1]CABINET_MOUNT_TYPE!$A$2:$A$100,MATCH('Communication Facility (Desc)'!K17,[1]!MASTER_CABINET_MOUNT_TYPE_DESC[#Data],0),0))","v":""},{"$f":"IF('Communication Facility (Desc)'!L17=\"\",\"\",INDEX([1]YES_NO!$A$2:$A$100,MATCH('Communication Facility (Desc)'!L17,[1]!MASTER_YES_NO_DESC[#Data],0),0))","v":""},{"$f":"IF('Communication Facility (Desc)'!M17=\"\",\"\",INDEX([1]BUILDING_TYPE!$A$2:$A$100,MATCH('Communication Facility (Desc)'!$M17,[1]!MASTER_BUILDING_TYPE_DESC[#Data],0),0))","v":""},{"$f":"IF('Communication Facility (Desc)'!N17=\"\",\"\",'Communication Facility (Desc)'!N17)","v":""},{"$f":"IF('Communication Facility (Desc)'!O17=\"\",\"\",INDEX([1]BUILDING_MTL!$A$2:$A$100,MATCH('Communication Facility (Desc)'!$O17,[1]!MASTER_BUILDING_MTL_DESC[#Data],0),0))","v":""},{"$f":"IF('Communication Facility (Desc)'!P17=\"\",\"\",INDEX([1]KEY_TYPE!$A$2:$A$100,MATCH('Communication Facility (Desc)'!$P17,[1]!MASTER_KEY_TYPE_DESC[#Data],0),0))","v":""},{"$f":"IF('Communication Facility (Desc)'!Q17=\"\",\"\",'Communication Facility (Desc)'!Q17)","v":""},{"$f":"IF('Communication Facility (Desc)'!R17=\"\",\"\",INDEX([1]FILTER_TYPE!$A$2:$A$100,MATCH('Communication Facility (Desc)'!$R17,[1]!MASTER_FILTER_TYPE_DESC[#Data],0),0))","v":""},{"$f":"IF('Communication Facility (Desc)'!S17=\"\",\"\",INDEX([1]FILTER_SIZE!$A$2:$A$100,MATCH('Communication Facility (Desc)'!$S17,[1]!MASTER_FILTER_SIZE_DESC[#Data],0),0))","v":""},{"$f":"IF('Communication Facility (Desc)'!T17=\"\",\"\",'Communication Facility (Desc)'!T17)","v":""},{"$f":"IF('Communication Facility (Desc)'!U17=\"\",\"\",INDEX([1]YES_NO!$A$2:$A$100,MATCH('Communication Facility (Desc)'!$U17,[1]!MASTER_YES_NO_DESC[#Data],0),0))","v":""},{"$f":"IF('Communication Facility (Desc)'!V17=\"\",\"\",INDEX([1]YES_NO!$A$2:$A$100,MATCH('Communication Facility (Desc)'!$V17,[1]!MASTER_YES_NO_DESC[#Data],0),0))","v":""}]
[{"$f":"IF('Communication Facility (Desc)'!A18=\"\",\"\",'Communication Facility (Desc)'!A18)","v":""},{"$f":"IF('Communication Facility (Desc)'!B18=\"\",\"\",'Communication Facility (Desc)'!B18)","v":""},{"$f":"IF('Communication Facility (Desc)'!C18=\"\",\"\",'Communication Facility (Desc)'!C18)","v":""},{"$f":"IF('Communication Facility (Desc)'!D18=\"\",\"\",INDEX([1]FACILITY_TYPE!$A$2:$A$100,MATCH('Communication Facility (Desc)'!$D18,[1]!MASTER_FACILITY_TYPE_DESC[#Data],0),0))","v":""},{"$f":"IF('Communication Facility (Desc)'!E18=\"\",\"\",INDEX([1]OWNER!$A$2:$A$100,MATCH('Communication Facility (Desc)'!$E18,[1]!MASTER_OWNER_DESC[#Data],0),0))","v":""},{"$f":"IF('Communication Facility (Desc)'!F18=\"\",\"\",IF('Communication Facility (Desc)'!F18=\"\",\"\",INDEX([1]COUNTY!$A$2:$A$80,MATCH('Communication Facility (Desc)'!F18,[1]!MASTER_COUNTY_NAME[#Data],0),0)))","v":""},{"$f":"IF('Communication Facility (Desc)'!G18=\"\",\"\",'Communication Facility (Desc)'!G18)","v":""},{"$f":"IF('Communication Facility (Desc)'!H18=\"\",\"\",'Communication Facility (Desc)'!H18)","v":""},{"$f":"IF('Communication Facility (Desc)'!I18=\"\",\"\",'Communication Facility (Desc)'!I18)","v":""},{"$f":"IF('Communication Facility (Desc)'!J18=\"\",\"\",INDEX([1]CABINET_TYPE!$A$2:$A$100,MATCH('Communication Facility (Desc)'!$J18,[1]!MASTER_CABINET_TYPE_DESC[#Data],0),0))","v":""},{"$f":"IF('Communication Facility (Desc)'!K18=\"\",\"\",INDEX([1]CABINET_MOUNT_TYPE!$A$2:$A$100,MATCH('Communication Facility (Desc)'!K18,[1]!MASTER_CABINET_MOUNT_TYPE_DESC[#Data],0),0))","v":""},{"$f":"IF('Communication Facility (Desc)'!L18=\"\",\"\",INDEX([1]YES_NO!$A$2:$A$100,MATCH('Communication Facility (Desc)'!L18,[1]!MASTER_YES_NO_DESC[#Data],0),0))","v":""},{"$f":"IF('Communication Facility (Desc)'!M18=\"\",\"\",INDEX([1]BUILDING_TYPE!$A$2:$A$100,MATCH('Communication Facility (Desc)'!$M18,[1]!MASTER_BUILDING_TYPE_DESC[#Data],0),0))","v":""},{"$f":"IF('Communication Facility (Desc)'!N18=\"\",\"\",'Communication Facility (Desc)'!N18)","v":""},{"$f":"IF('Communication Facility (Desc)'!O18=\"\",\"\",INDEX([1]BUILDING_MTL!$A$2:$A$100,MATCH('Communication Facility (Desc)'!$O18,[1]!MASTER_BUILDING_MTL_DESC[#Data],0),0))","v":""},{"$f":"IF('Communication Facility (Desc)'!P18=\"\",\"\",INDEX([1]KEY_TYPE!$A$2:$A$100,MATCH('Communication Facility (Desc)'!$P18,[1]!MASTER_KEY_TYPE_DESC[#Data],0),0))","v":""},{"$f":"IF('Communication Facility (Desc)'!Q18=\"\",\"\",'Communication Facility (Desc)'!Q18)","v":""},{"$f":"IF('Communication Facility (Desc)'!R18=\"\",\"\",INDEX([1]FILTER_TYPE!$A$2:$A$100,MATCH('Communication Facility (Desc)'!$R18,[1]!MASTER_FILTER_TYPE_DESC[#Data],0),0))","v":""},{"$f":"IF('Communication Facility (Desc)'!S18=\"\",\"\",INDEX([1]FILTER_SIZE!$A$2:$A$100,MATCH('Communication Facility (Desc)'!$S18,[1]!MASTER_FILTER_SIZE_DESC[#Data],0),0))","v":""},{"$f":"IF('Communication Facility (Desc)'!T18=\"\",\"\",'Communication Facility (Desc)'!T18)","v":""},{"$f":"IF('Communication Facility (Desc)'!U18=\"\",\"\",INDEX([1]YES_NO!$A$2:$A$100,MATCH('Communication Facility (Desc)'!$U18,[1]!MASTER_YES_NO_DESC[#Data],0),0))","v":""},{"$f":"IF('Communication Facility (Desc)'!V18=\"\",\"\",INDEX([1]YES_NO!$A$2:$A$100,MATCH('Communication Facility (Desc)'!$V18,[1]!MASTER_YES_NO_DESC[#Data],0),0))","v":""}]
[{"$f":"IF('Communication Facility (Desc)'!A19=\"\",\"\",'Communication Facility (Desc)'!A19)","v":""},{"$f":"IF('Communication Facility (Desc)'!B19=\"\",\"\",'Communication Facility (Desc)'!B19)","v":""},{"$f":"IF('Communication Facility (Desc)'!C19=\"\",\"\",'Communication Facility (Desc)'!C19)","v":""},{"$f":"IF('Communication Facility (Desc)'!D19=\"\",\"\",INDEX([1]FACILITY_TYPE!$A$2:$A$100,MATCH('Communication Facility (Desc)'!$D19,[1]!MASTER_FACILITY_TYPE_DESC[#Data],0),0))","v":""},{"$f":"IF('Communication Facility (Desc)'!E19=\"\",\"\",INDEX([1]OWNER!$A$2:$A$100,MATCH('Communication Facility (Desc)'!$E19,[1]!MASTER_OWNER_DESC[#Data],0),0))","v":""},{"$f":"IF('Communication Facility (Desc)'!F19=\"\",\"\",IF('Communication Facility (Desc)'!F19=\"\",\"\",INDEX([1]COUNTY!$A$2:$A$80,MATCH('Communication Facility (Desc)'!F19,[1]!MASTER_COUNTY_NAME[#Data],0),0)))","v":""},{"$f":"IF('Communication Facility (Desc)'!G19=\"\",\"\",'Communication Facility (Desc)'!G19)","v":""},{"$f":"IF('Communication Facility (Desc)'!H19=\"\",\"\",'Communication Facility (Desc)'!H19)","v":""},{"$f":"IF('Communication Facility (Desc)'!I19=\"\",\"\",'Communication Facility (Desc)'!I19)","v":""},{"$f":"IF('Communication Facility (Desc)'!J19=\"\",\"\",INDEX([1]CABINET_TYPE!$A$2:$A$100,MATCH('Communication Facility (Desc)'!$J19,[1]!MASTER_CABINET_TYPE_DESC[#Data],0),0))","v":""},{"$f":"IF('Communication Facility (Desc)'!K19=\"\",\"\",INDEX([1]CABINET_MOUNT_TYPE!$A$2:$A$100,MATCH('Communication Facility (Desc)'!K19,[1]!MASTER_CABINET_MOUNT_TYPE_DESC[#Data],0),0))","v":""},{"$f":"IF('Communication Facility (Desc)'!L19=\"\",\"\",INDEX([1]YES_NO!$A$2:$A$100,MATCH('Communication Facility (Desc)'!L19,[1]!MASTER_YES_NO_DESC[#Data],0),0))","v":""},{"$f":"IF('Communication Facility (Desc)'!M19=\"\",\"\",INDEX([1]BUILDING_TYPE!$A$2:$A$100,MATCH('Communication Facility (Desc)'!$M19,[1]!MASTER_BUILDING_TYPE_DESC[#Data],0),0))","v":""},{"$f":"IF('Communication Facility (Desc)'!N19=\"\",\"\",'Communication Facility (Desc)'!N19)","v":""},{"$f":"IF('Communication Facility (Desc)'!O19=\"\",\"\",INDEX([1]BUILDING_MTL!$A$2:$A$100,MATCH('Communication Facility (Desc)'!$O19,[1]!MASTER_BUILDING_MTL_DESC[#Data],0),0))","v":""},{"$f":"IF('Communication Facility (Desc)'!P19=\"\",\"\",INDEX([1]KEY_TYPE!$A$2:$A$100,MATCH('Communication Facility (Desc)'!$P19,[1]!MASTER_KEY_TYPE_DESC[#Data],0),0))","v":""},{"$f":"IF('Communication Facility (Desc)'!Q19=\"\",\"\",'Communication Facility (Desc)'!Q19)","v":""},{"$f":"IF('Communication Facility (Desc)'!R19=\"\",\"\",INDEX([1]FILTER_TYPE!$A$2:$A$100,MATCH('Communication Facility (Desc)'!$R19,[1]!MASTER_FILTER_TYPE_DESC[#Data],0),0))","v":""},{"$f":"IF('Communication Facility (Desc)'!S19=\"\",\"\",INDEX([1]FILTER_SIZE!$A$2:$A$100,MATCH('Communication Facility (Desc)'!$S19,[1]!MASTER_FILTER_SIZE_DESC[#Data],0),0))","v":""},{"$f":"IF('Communication Facility (Desc)'!T19=\"\",\"\",'Communication Facility (Desc)'!T19)","v":""},{"$f":"IF('Communication Facility (Desc)'!U19=\"\",\"\",INDEX([1]YES_NO!$A$2:$A$100,MATCH('Communication Facility (Desc)'!$U19,[1]!MASTER_YES_NO_DESC[#Data],0),0))","v":""},{"$f":"IF('Communication Facility (Desc)'!V19=\"\",\"\",INDEX([1]YES_NO!$A$2:$A$100,MATCH('Communication Facility (Desc)'!$V19,[1]!MASTER_YES_NO_DESC[#Data],0),0))","v":""}]
[{"$f":"IF('Communication Facility (Desc)'!A20=\"\",\"\",'Communication Facility (Desc)'!A20)","v":""},{"$f":"IF('Communication Facility (Desc)'!B20=\"\",\"\",'Communication Facility (Desc)'!B20)","v":""},{"$f":"IF('Communication Facility (Desc)'!C20=\"\",\"\",'Communication Facility (Desc)'!C20)","v":""},{"$f":"IF('Communication Facility (Desc)'!D20=\"\",\"\",INDEX([1]FACILITY_TYPE!$A$2:$A$100,MATCH('Communication Facility (Desc)'!$D20,[1]!MASTER_FACILITY_TYPE_DESC[#Data],0),0))","v":""},{"$f":"IF('Communication Facility (Desc)'!E20=\"\",\"\",INDEX([1]OWNER!$A$2:$A$100,MATCH('Communication Facility (Desc)'!$E20,[1]!MASTER_OWNER_DESC[#Data],0),0))","v":""},{"$f":"IF('Communication Facility (Desc)'!F20=\"\",\"\",IF('Communication Facility (Desc)'!F20=\"\",\"\",INDEX([1]COUNTY!$A$2:$A$80,MATCH('Communication Facility (Desc)'!F20,[1]!MASTER_COUNTY_NAME[#Data],0),0)))","v":""},{"$f":"IF('Communication Facility (Desc)'!G20=\"\",\"\",'Communication Facility (Desc)'!G20)","v":""},{"$f":"IF('Communication Facility (Desc)'!H20=\"\",\"\",'Communication Facility (Desc)'!H20)","v":""},{"$f":"IF('Communication Facility (Desc)'!I20=\"\",\"\",'Communication Facility (Desc)'!I20)","v":""},{"$f":"IF('Communication Facility (Desc)'!J20=\"\",\"\",INDEX([1]CABINET_TYPE!$A$2:$A$100,MATCH('Communication Facility (Desc)'!$J20,[1]!MASTER_CABINET_TYPE_DESC[#Data],0),0))","v":""},{"$f":"IF('Communication Facility (Desc)'!K20=\"\",\"\",INDEX([1]CABINET_MOUNT_TYPE!$A$2:$A$100,MATCH('Communication Facility (Desc)'!K20,[1]!MASTER_CABINET_MOUNT_TYPE_DESC[#Data],0),0))","v":""},{"$f":"IF('Communication Facility (Desc)'!L20=\"\",\"\",INDEX([1]YES_NO!$A$2:$A$100,MATCH('Communication Facility (Desc)'!L20,[1]!MASTER_YES_NO_DESC[#Data],0),0))","v":""},{"$f":"IF('Communication Facility (Desc)'!M20=\"\",\"\",INDEX([1]BUILDING_TYPE!$A$2:$A$100,MATCH('Communication Facility (Desc)'!$M20,[1]!MASTER_BUILDING_TYPE_DESC[#Data],0),0))","v":""},{"$f":"IF('Communication Facility (Desc)'!N20=\"\",\"\",'Communication Facility (Desc)'!N20)","v":""},{"$f":"IF('Communication Facility (Desc)'!O20=\"\",\"\",INDEX([1]BUILDING_MTL!$A$2:$A$100,MATCH('Communication Facility (Desc)'!$O20,[1]!MASTER_BUILDING_MTL_DESC[#Data],0),0))","v":""},{"$f":"IF('Communication Facility (Desc)'!P20=\"\",\"\",INDEX([1]KEY_TYPE!$A$2:$A$100,MATCH('Communication Facility (Desc)'!$P20,[1]!MASTER_KEY_TYPE_DESC[#Data],0),0))","v":""},{"$f":"IF('Communication Facility (Desc)'!Q20=\"\",\"\",'Communication Facility (Desc)'!Q20)","v":""},{"$f":"IF('Communication Facility (Desc)'!R20=\"\",\"\",INDEX([1]FILTER_TYPE!$A$2:$A$100,MATCH('Communication Facility (Desc)'!$R20,[1]!MASTER_FILTER_TYPE_DESC[#Data],0),0))","v":""},{"$f":"IF('Communication Facility (Desc)'!S20=\"\",\"\",INDEX([1]FILTER_SIZE!$A$2:$A$100,MATCH('Communication Facility (Desc)'!$S20,[1]!MASTER_FILTER_SIZE_DESC[#Data],0),0))","v":""},{"$f":"IF('Communication Facility (Desc)'!T20=\"\",\"\",'Communication Facility (Desc)'!T20)","v":""},{"$f":"IF('Communication Facility (Desc)'!U20=\"\",\"\",INDEX([1]YES_NO!$A$2:$A$100,MATCH('Communication Facility (Desc)'!$U20,[1]!MASTER_YES_NO_DESC[#Data],0),0))","v":""},{"$f":"IF('Communication Facility (Desc)'!V20=\"\",\"\",INDEX([1]YES_NO!$A$2:$A$100,MATCH('Communication Facility (Desc)'!$V20,[1]!MASTER_YES_NO_DESC[#Data],0),0))","v":""}]
[{"$f":"IF('Communication Facility (Desc)'!A21=\"\",\"\",'Communication Facility (Desc)'!A21)","v":""},{"$f":"IF('Communication Facility (Desc)'!B21=\"\",\"\",'Communication Facility (Desc)'!B21)","v":""},{"$f":"IF('Communication Facility (Desc)'!C21=\"\",\"\",'Communication Facility (Desc)'!C21)","v":""},{"$f":"IF('Communication Facility (Desc)'!D21=\"\",\"\",INDEX([1]FACILITY_TYPE!$A$2:$A$100,MATCH('Communication Facility (Desc)'!$D21,[1]!MASTER_FACILITY_TYPE_DESC[#Data],0),0))","v":""},{"$f":"IF('Communication Facility (Desc)'!E21=\"\",\"\",INDEX([1]OWNER!$A$2:$A$100,MATCH('Communication Facility (Desc)'!$E21,[1]!MASTER_OWNER_DESC[#Data],0),0))","v":""},{"$f":"IF('Communication Facility (Desc)'!F21=\"\",\"\",IF('Communication Facility (Desc)'!F21=\"\",\"\",INDEX([1]COUNTY!$A$2:$A$80,MATCH('Communication Facility (Desc)'!F21,[1]!MASTER_COUNTY_NAME[#Data],0),0)))","v":""},{"$f":"IF('Communication Facility (Desc)'!G21=\"\",\"\",'Communication Facility (Desc)'!G21)","v":""},{"$f":"IF('Communication Facility (Desc)'!H21=\"\",\"\",'Communication Facility (Desc)'!H21)","v":""},{"$f":"IF('Communication Facility (Desc)'!I21=\"\",\"\",'Communication Facility (Desc)'!I21)","v":""},{"$f":"IF('Communication Facility (Desc)'!J21=\"\",\"\",INDEX([1]CABINET_TYPE!$A$2:$A$100,MATCH('Communication Facility (Desc)'!$J21,[1]!MASTER_CABINET_TYPE_DESC[#Data],0),0))","v":""},{"$f":"IF('Communication Facility (Desc)'!K21=\"\",\"\",INDEX([1]CABINET_MOUNT_TYPE!$A$2:$A$100,MATCH('Communication Facility (Desc)'!K21,[1]!MASTER_CABINET_MOUNT_TYPE_DESC[#Data],0),0))","v":""},{"$f":"IF('Communication Facility (Desc)'!L21=\"\",\"\",INDEX([1]YES_NO!$A$2:$A$100,MATCH('Communication Facility (Desc)'!L21,[1]!MASTER_YES_NO_DESC[#Data],0),0))","v":""},{"$f":"IF('Communication Facility (Desc)'!M21=\"\",\"\",INDEX([1]BUILDING_TYPE!$A$2:$A$100,MATCH('Communication Facility (Desc)'!$M21,[1]!MASTER_BUILDING_TYPE_DESC[#Data],0),0))","v":""},{"$f":"IF('Communication Facility (Desc)'!N21=\"\",\"\",'Communication Facility (Desc)'!N21)","v":""},{"$f":"IF('Communication Facility (Desc)'!O21=\"\",\"\",INDEX([1]BUILDING_MTL!$A$2:$A$100,MATCH('Communication Facility (Desc)'!$O21,[1]!MASTER_BUILDING_MTL_DESC[#Data],0),0))","v":""},{"$f":"IF('Communication Facility (Desc)'!P21=\"\",\"\",INDEX([1]KEY_TYPE!$A$2:$A$100,MATCH('Communication Facility (Desc)'!$P21,[1]!MASTER_KEY_TYPE_DESC[#Data],0),0))","v":""},{"$f":"IF('Communication Facility (Desc)'!Q21=\"\",\"\",'Communication Facility (Desc)'!Q21)","v":""},{"$f":"IF('Communication Facility (Desc)'!R21=\"\",\"\",INDEX([1]FILTER_TYPE!$A$2:$A$100,MATCH('Communication Facility (Desc)'!$R21,[1]!MASTER_FILTER_TYPE_DESC[#Data],0),0))","v":""},{"$f":"IF('Communication Facility (Desc)'!S21=\"\",\"\",INDEX([1]FILTER_SIZE!$A$2:$A$100,MATCH('Communication Facility (Desc)'!$S21,[1]!MASTER_FILTER_SIZE_DESC[#Data],0),0))","v":""},{"$f":"IF('Communication Facility (Desc)'!T21=\"\",\"\",'Communication Facility (Desc)'!T21)","v":""},{"$f":"IF('Communication Facility (Desc)'!U21=\"\",\"\",INDEX([1]YES_NO!$A$2:$A$100,MATCH('Communication Facility (Desc)'!$U21,[1]!MASTER_YES_NO_DESC[#Data],0),0))","v":""},{"$f":"IF('Communication Facility (Desc)'!V21=\"\",\"\",INDEX([1]YES_NO!$A$2:$A$100,MATCH('Communication Facility (Desc)'!$V21,[1]!MASTER_YES_NO_DESC[#Data],0),0))","v":""}]
[{"$f":"IF('Communication Facility (Desc)'!A22=\"\",\"\",'Communication Facility (Desc)'!A22)","v":""},{"$f":"IF('Communication Facility (Desc)'!B22=\"\",\"\",'Communication Facility (Desc)'!B22)","v":""},{"$f":"IF('Communication Facility (Desc)'!C22=\"\",\"\",'Communication Facility (Desc)'!C22)","v":""},{"$f":"IF('Communication Facility (Desc)'!D22=\"\",\"\",INDEX([1]FACILITY_TYPE!$A$2:$A$100,MATCH('Communication Facility (Desc)'!$D22,[1]!MASTER_FACILITY_TYPE_DESC[#Data],0),0))","v":""},{"$f":"IF('Communication Facility (Desc)'!E22=\"\",\"\",INDEX([1]OWNER!$A$2:$A$100,MATCH('Communication Facility (Desc)'!$E22,[1]!MASTER_OWNER_DESC[#Data],0),0))","v":""},{"$f":"IF('Communication Facility (Desc)'!F22=\"\",\"\",IF('Communication Facility (Desc)'!F22=\"\",\"\",INDEX([1]COUNTY!$A$2:$A$80,MATCH('Communication Facility (Desc)'!F22,[1]!MASTER_COUNTY_NAME[#Data],0),0)))","v":""},{"$f":"IF('Communication Facility (Desc)'!G22=\"\",\"\",'Communication Facility (Desc)'!G22)","v":""},{"$f":"IF('Communication Facility (Desc)'!H22=\"\",\"\",'Communication Facility (Desc)'!H22)","v":""},{"$f":"IF('Communication Facility (Desc)'!I22=\"\",\"\",'Communication Facility (Desc)'!I22)","v":""},{"$f":"IF('Communication Facility (Desc)'!J22=\"\",\"\",INDEX([1]CABINET_TYPE!$A$2:$A$100,MATCH('Communication Facility (Desc)'!$J22,[1]!MASTER_CABINET_TYPE_DESC[#Data],0),0))","v":""},{"$f":"IF('Communication Facility (Desc)'!K22=\"\",\"\",INDEX([1]CABINET_MOUNT_TYPE!$A$2:$A$100,MATCH('Communication Facility (Desc)'!K22,[1]!MASTER_CABINET_MOUNT_TYPE_DESC[#Data],0),0))","v":""},{"$f":"IF('Communication Facility (Desc)'!L22=\"\",\"\",INDEX([1]YES_NO!$A$2:$A$100,MATCH('Communication Facility (Desc)'!L22,[1]!MASTER_YES_NO_DESC[#Data],0),0))","v":""},{"$f":"IF('Communication Facility (Desc)'!M22=\"\",\"\",INDEX([1]BUILDING_TYPE!$A$2:$A$100,MATCH('Communication Facility (Desc)'!$M22,[1]!MASTER_BUILDING_TYPE_DESC[#Data],0),0))","v":""},{"$f":"IF('Communication Facility (Desc)'!N22=\"\",\"\",'Communication Facility (Desc)'!N22)","v":""},{"$f":"IF('Communication Facility (Desc)'!O22=\"\",\"\",INDEX([1]BUILDING_MTL!$A$2:$A$100,MATCH('Communication Facility (Desc)'!$O22,[1]!MASTER_BUILDING_MTL_DESC[#Data],0),0))","v":""},{"$f":"IF('Communication Facility (Desc)'!P22=\"\",\"\",INDEX([1]KEY_TYPE!$A$2:$A$100,MATCH('Communication Facility (Desc)'!$P22,[1]!MASTER_KEY_TYPE_DESC[#Data],0),0))","v":""},{"$f":"IF('Communication Facility (Desc)'!Q22=\"\",\"\",'Communication Facility (Desc)'!Q22)","v":""},{"$f":"IF('Communication Facility (Desc)'!R22=\"\",\"\",INDEX([1]FILTER_TYPE!$A$2:$A$100,MATCH('Communication Facility (Desc)'!$R22,[1]!MASTER_FILTER_TYPE_DESC[#Data],0),0))","v":""},{"$f":"IF('Communication Facility (Desc)'!S22=\"\",\"\",INDEX([1]FILTER_SIZE!$A$2:$A$100,MATCH('Communication Facility (Desc)'!$S22,[1]!MASTER_FILTER_SIZE_DESC[#Data],0),0))","v":""},{"$f":"IF('Communication Facility (Desc)'!T22=\"\",\"\",'Communication Facility (Desc)'!T22)","v":""},{"$f":"IF('Communication Facility (Desc)'!U22=\"\",\"\",INDEX([1]YES_NO!$A$2:$A$100,MATCH('Communication Facility (Desc)'!$U22,[1]!MASTER_YES_NO_DESC[#Data],0),0))","v":""},{"$f":"IF('Communication Facility (Desc)'!V22=\"\",\"\",INDEX([1]YES_NO!$A$2:$A$100,MATCH('Communication Facility (Desc)'!$V22,[1]!MASTER_YES_NO_DESC[#Data],0),0))","v":""}]
[{"$f":"IF('Communication Facility (Desc)'!A23=\"\",\"\",'Communication Facility (Desc)'!A23)","v":""},{"$f":"IF('Communication Facility (Desc)'!B23=\"\",\"\",'Communication Facility (Desc)'!B23)","v":""},{"$f":"IF('Communication Facility (Desc)'!C23=\"\",\"\",'Communication Facility (Desc)'!C23)","v":""},{"$f":"IF('Communication Facility (Desc)'!D23=\"\",\"\",INDEX([1]FACILITY_TYPE!$A$2:$A$100,MATCH('Communication Facility (Desc)'!$D23,[1]!MASTER_FACILITY_TYPE_DESC[#Data],0),0))","v":""},{"$f":"IF('Communication Facility (Desc)'!E23=\"\",\"\",INDEX([1]OWNER!$A$2:$A$100,MATCH('Communication Facility (Desc)'!$E23,[1]!MASTER_OWNER_DESC[#Data],0),0))","v":""},{"$f":"IF('Communication Facility (Desc)'!F23=\"\",\"\",IF('Communication Facility (Desc)'!F23=\"\",\"\",INDEX([1]COUNTY!$A$2:$A$80,MATCH('Communication Facility (Desc)'!F23,[1]!MASTER_COUNTY_NAME[#Data],0),0)))","v":""},{"$f":"IF('Communication Facility (Desc)'!G23=\"\",\"\",'Communication Facility (Desc)'!G23)","v":""},{"$f":"IF('Communication Facility (Desc)'!H23=\"\",\"\",'Communication Facility (Desc)'!H23)","v":""},{"$f":"IF('Communication Facility (Desc)'!I23=\"\",\"\",'Communication Facility (Desc)'!I23)","v":""},{"$f":"IF('Communication Facility (Desc)'!J23=\"\",\"\",INDEX([1]CABINET_TYPE!$A$2:$A$100,MATCH('Communication Facility (Desc)'!$J23,[1]!MASTER_CABINET_TYPE_DESC[#Data],0),0))","v":""},{"$f":"IF('Communication Facility (Desc)'!K23=\"\",\"\",INDEX([1]CABINET_MOUNT_TYPE!$A$2:$A$100,MATCH('Communication Facility (Desc)'!K23,[1]!MASTER_CABINET_MOUNT_TYPE_DESC[#Data],0),0))","v":""},{"$f":"IF('Communication Facility (Desc)'!L23=\"\",\"\",INDEX([1]YES_NO!$A$2:$A$100,MATCH('Communication Facility (Desc)'!L23,[1]!MASTER_YES_NO_DESC[#Data],0),0))","v":""},{"$f":"IF('Communication Facility (Desc)'!M23=\"\",\"\",INDEX([1]BUILDING_TYPE!$A$2:$A$100,MATCH('Communication Facility (Desc)'!$M23,[1]!MASTER_BUILDING_TYPE_DESC[#Data],0),0))","v":""},{"$f":"IF('Communication Facility (Desc)'!N23=\"\",\"\",'Communication Facility (Desc)'!N23)","v":""},{"$f":"IF('Communication Facility (Desc)'!O23=\"\",\"\",INDEX([1]BUILDING_MTL!$A$2:$A$100,MATCH('Communication Facility (Desc)'!$O23,[1]!MASTER_BUILDING_MTL_DESC[#Data],0),0))","v":""},{"$f":"IF('Communication Facility (Desc)'!P23=\"\",\"\",INDEX([1]KEY_TYPE!$A$2:$A$100,MATCH('Communication Facility (Desc)'!$P23,[1]!MASTER_KEY_TYPE_DESC[#Data],0),0))","v":""},{"$f":"IF('Communication Facility (Desc)'!Q23=\"\",\"\",'Communication Facility (Desc)'!Q23)","v":""},{"$f":"IF('Communication Facility (Desc)'!R23=\"\",\"\",INDEX([1]FILTER_TYPE!$A$2:$A$100,MATCH('Communication Facility (Desc)'!$R23,[1]!MASTER_FILTER_TYPE_DESC[#Data],0),0))","v":""},{"$f":"IF('Communication Facility (Desc)'!S23=\"\",\"\",INDEX([1]FILTER_SIZE!$A$2:$A$100,MATCH('Communication Facility (Desc)'!$S23,[1]!MASTER_FILTER_SIZE_DESC[#Data],0),0))","v":""},{"$f":"IF('Communication Facility (Desc)'!T23=\"\",\"\",'Communication Facility (Desc)'!T23)","v":""},{"$f":"IF('Communication Facility (Desc)'!U23=\"\",\"\",INDEX([1]YES_NO!$A$2:$A$100,MATCH('Communication Facility (Desc)'!$U23,[1]!MASTER_YES_NO_DESC[#Data],0),0))","v":""},{"$f":"IF('Communication Facility (Desc)'!V23=\"\",\"\",INDEX([1]YES_NO!$A$2:$A$100,MATCH('Communication Facility (Desc)'!$V23,[1]!MASTER_YES_NO_DESC[#Data],0),0))","v":""}]
[{"$f":"IF('Communication Facility (Desc)'!A24=\"\",\"\",'Communication Facility (Desc)'!A24)","v":""},{"$f":"IF('Communication Facility (Desc)'!B24=\"\",\"\",'Communication Facility (Desc)'!B24)","v":""},{"$f":"IF('Communication Facility (Desc)'!C24=\"\",\"\",'Communication Facility (Desc)'!C24)","v":""},{"$f":"IF('Communication Facility (Desc)'!D24=\"\",\"\",INDEX([1]FACILITY_TYPE!$A$2:$A$100,MATCH('Communication Facility (Desc)'!$D24,[1]!MASTER_FACILITY_TYPE_DESC[#Data],0),0))","v":""},{"$f":"IF('Communication Facility (Desc)'!E24=\"\",\"\",INDEX([1]OWNER!$A$2:$A$100,MATCH('Communication Facility (Desc)'!$E24,[1]!MASTER_OWNER_DESC[#Data],0),0))","v":""},{"$f":"IF('Communication Facility (Desc)'!F24=\"\",\"\",IF('Communication Facility (Desc)'!F24=\"\",\"\",INDEX([1]COUNTY!$A$2:$A$80,MATCH('Communication Facility (Desc)'!F24,[1]!MASTER_COUNTY_NAME[#Data],0),0)))","v":""},{"$f":"IF('Communication Facility (Desc)'!G24=\"\",\"\",'Communication Facility (Desc)'!G24)","v":""},{"$f":"IF('Communication Facility (Desc)'!H24=\"\",\"\",'Communication Facility (Desc)'!H24)","v":""},{"$f":"IF('Communication Facility (Desc)'!I24=\"\",\"\",'Communication Facility (Desc)'!I24)","v":""},{"$f":"IF('Communication Facility (Desc)'!J24=\"\",\"\",INDEX([1]CABINET_TYPE!$A$2:$A$100,MATCH('Communication Facility (Desc)'!$J24,[1]!MASTER_CABINET_TYPE_DESC[#Data],0),0))","v":""},{"$f":"IF('Communication Facility (Desc)'!K24=\"\",\"\",INDEX([1]CABINET_MOUNT_TYPE!$A$2:$A$100,MATCH('Communication Facility (Desc)'!K24,[1]!MASTER_CABINET_MOUNT_TYPE_DESC[#Data],0),0))","v":""},{"$f":"IF('Communication Facility (Desc)'!L24=\"\",\"\",INDEX([1]YES_NO!$A$2:$A$100,MATCH('Communication Facility (Desc)'!L24,[1]!MASTER_YES_NO_DESC[#Data],0),0))","v":""},{"$f":"IF('Communication Facility (Desc)'!M24=\"\",\"\",INDEX([1]BUILDING_TYPE!$A$2:$A$100,MATCH('Communication Facility (Desc)'!$M24,[1]!MASTER_BUILDING_TYPE_DESC[#Data],0),0))","v":""},{"$f":"IF('Communication Facility (Desc)'!N24=\"\",\"\",'Communication Facility (Desc)'!N24)","v":""},{"$f":"IF('Communication Facility (Desc)'!O24=\"\",\"\",INDEX([1]BUILDING_MTL!$A$2:$A$100,MATCH('Communication Facility (Desc)'!$O24,[1]!MASTER_BUILDING_MTL_DESC[#Data],0),0))","v":""},{"$f":"IF('Communication Facility (Desc)'!P24=\"\",\"\",INDEX([1]KEY_TYPE!$A$2:$A$100,MATCH('Communication Facility (Desc)'!$P24,[1]!MASTER_KEY_TYPE_DESC[#Data],0),0))","v":""},{"$f":"IF('Communication Facility (Desc)'!Q24=\"\",\"\",'Communication Facility (Desc)'!Q24)","v":""},{"$f":"IF('Communication Facility (Desc)'!R24=\"\",\"\",INDEX([1]FILTER_TYPE!$A$2:$A$100,MATCH('Communication Facility (Desc)'!$R24,[1]!MASTER_FILTER_TYPE_DESC[#Data],0),0))","v":""},{"$f":"IF('Communication Facility (Desc)'!S24=\"\",\"\",INDEX([1]FILTER_SIZE!$A$2:$A$100,MATCH('Communication Facility (Desc)'!$S24,[1]!MASTER_FILTER_SIZE_DESC[#Data],0),0))","v":""},{"$f":"IF('Communication Facility (Desc)'!T24=\"\",\"\",'Communication Facility (Desc)'!T24)","v":""},{"$f":"IF('Communication Facility (Desc)'!U24=\"\",\"\",INDEX([1]YES_NO!$A$2:$A$100,MATCH('Communication Facility (Desc)'!$U24,[1]!MASTER_YES_NO_DESC[#Data],0),0))","v":""},{"$f":"IF('Communication Facility (Desc)'!V24=\"\",\"\",INDEX([1]YES_NO!$A$2:$A$100,MATCH('Communication Facility (Desc)'!$V24,[1]!MASTER_YES_NO_DESC[#Data],0),0))","v":""}]
[{"$f":"IF('Communication Facility (Desc)'!A25=\"\",\"\",'Communication Facility (Desc)'!A25)","v":""},{"$f":"IF('Communication Facility (Desc)'!B25=\"\",\"\",'Communication Facility (Desc)'!B25)","v":""},{"$f":"IF('Communication Facility (Desc)'!C25=\"\",\"\",'Communication Facility (Desc)'!C25)","v":""},{"$f":"IF('Communication Facility (Desc)'!D25=\"\",\"\",INDEX([1]FACILITY_TYPE!$A$2:$A$100,MATCH('Communication Facility (Desc)'!$D25,[1]!MASTER_FACILITY_TYPE_DESC[#Data],0),0))","v":""},{"$f":"IF('Communication Facility (Desc)'!E25=\"\",\"\",INDEX([1]OWNER!$A$2:$A$100,MATCH('Communication Facility (Desc)'!$E25,[1]!MASTER_OWNER_DESC[#Data],0),0))","v":""},{"$f":"IF('Communication Facility (Desc)'!F25=\"\",\"\",IF('Communication Facility (Desc)'!F25=\"\",\"\",INDEX([1]COUNTY!$A$2:$A$80,MATCH('Communication Facility (Desc)'!F25,[1]!MASTER_COUNTY_NAME[#Data],0),0)))","v":""},{"$f":"IF('Communication Facility (Desc)'!G25=\"\",\"\",'Communication Facility (Desc)'!G25)","v":""},{"$f":"IF('Communication Facility (Desc)'!H25=\"\",\"\",'Communication Facility (Desc)'!H25)","v":""},{"$f":"IF('Communication Facility (Desc)'!I25=\"\",\"\",'Communication Facility (Desc)'!I25)","v":""},{"$f":"IF('Communication Facility (Desc)'!J25=\"\",\"\",INDEX([1]CABINET_TYPE!$A$2:$A$100,MATCH('Communication Facility (Desc)'!$J25,[1]!MASTER_CABINET_TYPE_DESC[#Data],0),0))","v":""},{"$f":"IF('Communication Facility (Desc)'!K25=\"\",\"\",INDEX([1]CABINET_MOUNT_TYPE!$A$2:$A$100,MATCH('Communication Facility (Desc)'!K25,[1]!MASTER_CABINET_MOUNT_TYPE_DESC[#Data],0),0))","v":""},{"$f":"IF('Communication Facility (Desc)'!L25=\"\",\"\",INDEX([1]YES_NO!$A$2:$A$100,MATCH('Communication Facility (Desc)'!L25,[1]!MASTER_YES_NO_DESC[#Data],0),0))","v":""},{"$f":"IF('Communication Facility (Desc)'!M25=\"\",\"\",INDEX([1]BUILDING_TYPE!$A$2:$A$100,MATCH('Communication Facility (Desc)'!$M25,[1]!MASTER_BUILDING_TYPE_DESC[#Data],0),0))","v":""},{"$f":"IF('Communication Facility (Desc)'!N25=\"\",\"\",'Communication Facility (Desc)'!N25)","v":""},{"$f":"IF('Communication Facility (Desc)'!O25=\"\",\"\",INDEX([1]BUILDING_MTL!$A$2:$A$100,MATCH('Communication Facility (Desc)'!$O25,[1]!MASTER_BUILDING_MTL_DESC[#Data],0),0))","v":""},{"$f":"IF('Communication Facility (Desc)'!P25=\"\",\"\",INDEX([1]KEY_TYPE!$A$2:$A$100,MATCH('Communication Facility (Desc)'!$P25,[1]!MASTER_KEY_TYPE_DESC[#Data],0),0))","v":""},{"$f":"IF('Communication Facility (Desc)'!Q25=\"\",\"\",'Communication Facility (Desc)'!Q25)","v":""},{"$f":"IF('Communication Facility (Desc)'!R25=\"\",\"\",INDEX([1]FILTER_TYPE!$A$2:$A$100,MATCH('Communication Facility (Desc)'!$R25,[1]!MASTER_FILTER_TYPE_DESC[#Data],0),0))","v":""},{"$f":"IF('Communication Facility (Desc)'!S25=\"\",\"\",INDEX([1]FILTER_SIZE!$A$2:$A$100,MATCH('Communication Facility (Desc)'!$S25,[1]!MASTER_FILTER_SIZE_DESC[#Data],0),0))","v":""},{"$f":"IF('Communication Facility (Desc)'!T25=\"\",\"\",'Communication Facility (Desc)'!T25)","v":""},{"$f":"IF('Communication Facility (Desc)'!U25=\"\",\"\",INDEX([1]YES_NO!$A$2:$A$100,MATCH('Communication Facility (Desc)'!$U25,[1]!MASTER_YES_NO_DESC[#Data],0),0))","v":""},{"$f":"IF('Communication Facility (Desc)'!V25=\"\",\"\",INDEX([1]YES_NO!$A$2:$A$100,MATCH('Communication Facility (Desc)'!$V25,[1]!MASTER_YES_NO_DESC[#Data],0),0))","v":""}]
[{"$f":"IF('Communication Facility (Desc)'!A26=\"\",\"\",'Communication Facility (Desc)'!A26)","v":""},{"$f":"IF('Communication Facility (Desc)'!B26=\"\",\"\",'Communication Facility (Desc)'!B26)","v":""},{"$f":"IF('Communication Facility (Desc)'!C26=\"\",\"\",'Communication Facility (Desc)'!C26)","v":""},{"$f":"IF('Communication Facility (Desc)'!D26=\"\",\"\",INDEX([1]FACILITY_TYPE!$A$2:$A$100,MATCH('Communication Facility (Desc)'!$D26,[1]!MASTER_FACILITY_TYPE_DESC[#Data],0),0))","v":""},{"$f":"IF('Communication Facility (Desc)'!E26=\"\",\"\",INDEX([1]OWNER!$A$2:$A$100,MATCH('Communication Facility (Desc)'!$E26,[1]!MASTER_OWNER_DESC[#Data],0),0))","v":""},{"$f":"IF('Communication Facility (Desc)'!F26=\"\",\"\",IF('Communication Facility (Desc)'!F26=\"\",\"\",INDEX([1]COUNTY!$A$2:$A$80,MATCH('Communication Facility (Desc)'!F26,[1]!MASTER_COUNTY_NAME[#Data],0),0)))","v":""},{"$f":"IF('Communication Facility (Desc)'!G26=\"\",\"\",'Communication Facility (Desc)'!G26)","v":""},{"$f":"IF('Communication Facility (Desc)'!H26=\"\",\"\",'Communication Facility (Desc)'!H26)","v":""},{"$f":"IF('Communication Facility (Desc)'!I26=\"\",\"\",'Communication Facility (Desc)'!I26)","v":""},{"$f":"IF('Communication Facility (Desc)'!J26=\"\",\"\",INDEX([1]CABINET_TYPE!$A$2:$A$100,MATCH('Communication Facility (Desc)'!$J26,[1]!MASTER_CABINET_TYPE_DESC[#Data],0),0))","v":""},{"$f":"IF('Communication Facility (Desc)'!K26=\"\",\"\",INDEX([1]CABINET_MOUNT_TYPE!$A$2:$A$100,MATCH('Communication Facility (Desc)'!K26,[1]!MASTER_CABINET_MOUNT_TYPE_DESC[#Data],0),0))","v":""},{"$f":"IF('Communication Facility (Desc)'!L26=\"\",\"\",INDEX([1]YES_NO!$A$2:$A$100,MATCH('Communication Facility (Desc)'!L26,[1]!MASTER_YES_NO_DESC[#Data],0),0))","v":""},{"$f":"IF('Communication Facility (Desc)'!M26=\"\",\"\",INDEX([1]BUILDING_TYPE!$A$2:$A$100,MATCH('Communication Facility (Desc)'!$M26,[1]!MASTER_BUILDING_TYPE_DESC[#Data],0),0))","v":""},{"$f":"IF('Communication Facility (Desc)'!N26=\"\",\"\",'Communication Facility (Desc)'!N26)","v":""},{"$f":"IF('Communication Facility (Desc)'!O26=\"\",\"\",INDEX([1]BUILDING_MTL!$A$2:$A$100,MATCH('Communication Facility (Desc)'!$O26,[1]!MASTER_BUILDING_MTL_DESC[#Data],0),0))","v":""},{"$f":"IF('Communication Facility (Desc)'!P26=\"\",\"\",INDEX([1]KEY_TYPE!$A$2:$A$100,MATCH('Communication Facility (Desc)'!$P26,[1]!MASTER_KEY_TYPE_DESC[#Data],0),0))","v":""},{"$f":"IF('Communication Facility (Desc)'!Q26=\"\",\"\",'Communication Facility (Desc)'!Q26)","v":""},{"$f":"IF('Communication Facility (Desc)'!R26=\"\",\"\",INDEX([1]FILTER_TYPE!$A$2:$A$100,MATCH('Communication Facility (Desc)'!$R26,[1]!MASTER_FILTER_TYPE_DESC[#Data],0),0))","v":""},{"$f":"IF('Communication Facility (Desc)'!S26=\"\",\"\",INDEX([1]FILTER_SIZE!$A$2:$A$100,MATCH('Communication Facility (Desc)'!$S26,[1]!MASTER_FILTER_SIZE_DESC[#Data],0),0))","v":""},{"$f":"IF('Communication Facility (Desc)'!T26=\"\",\"\",'Communication Facility (Desc)'!T26)","v":""},{"$f":"IF('Communication Facility (Desc)'!U26=\"\",\"\",INDEX([1]YES_NO!$A$2:$A$100,MATCH('Communication Facility (Desc)'!$U26,[1]!MASTER_YES_NO_DESC[#Data],0),0))","v":""},{"$f":"IF('Communication Facility (Desc)'!V26=\"\",\"\",INDEX([1]YES_NO!$A$2:$A$100,MATCH('Communication Facility (Desc)'!$V26,[1]!MASTER_YES_NO_DESC[#Data],0),0))","v":""}]
[{"$f":"IF('Communication Facility (Desc)'!A27=\"\",\"\",'Communication Facility (Desc)'!A27)","v":""},{"$f":"IF('Communication Facility (Desc)'!B27=\"\",\"\",'Communication Facility (Desc)'!B27)","v":""},{"$f":"IF('Communication Facility (Desc)'!C27=\"\",\"\",'Communication Facility (Desc)'!C27)","v":""},{"$f":"IF('Communication Facility (Desc)'!D27=\"\",\"\",INDEX([1]FACILITY_TYPE!$A$2:$A$100,MATCH('Communication Facility (Desc)'!$D27,[1]!MASTER_FACILITY_TYPE_DESC[#Data],0),0))","v":""},{"$f":"IF('Communication Facility (Desc)'!E27=\"\",\"\",INDEX([1]OWNER!$A$2:$A$100,MATCH('Communication Facility (Desc)'!$E27,[1]!MASTER_OWNER_DESC[#Data],0),0))","v":""},{"$f":"IF('Communication Facility (Desc)'!F27=\"\",\"\",IF('Communication Facility (Desc)'!F27=\"\",\"\",INDEX([1]COUNTY!$A$2:$A$80,MATCH('Communication Facility (Desc)'!F27,[1]!MASTER_COUNTY_NAME[#Data],0),0)))","v":""},{"$f":"IF('Communication Facility (Desc)'!G27=\"\",\"\",'Communication Facility (Desc)'!G27)","v":""},{"$f":"IF('Communication Facility (Desc)'!H27=\"\",\"\",'Communication Facility (Desc)'!H27)","v":""},{"$f":"IF('Communication Facility (Desc)'!I27=\"\",\"\",'Communication Facility (Desc)'!I27)","v":""},{"$f":"IF('Communication Facility (Desc)'!J27=\"\",\"\",INDEX([1]CABINET_TYPE!$A$2:$A$100,MATCH('Communication Facility (Desc)'!$J27,[1]!MASTER_CABINET_TYPE_DESC[#Data],0),0))","v":""},{"$f":"IF('Communication Facility (Desc)'!K27=\"\",\"\",INDEX([1]CABINET_MOUNT_TYPE!$A$2:$A$100,MATCH('Communication Facility (Desc)'!K27,[1]!MASTER_CABINET_MOUNT_TYPE_DESC[#Data],0),0))","v":""},{"$f":"IF('Communication Facility (Desc)'!L27=\"\",\"\",INDEX([1]YES_NO!$A$2:$A$100,MATCH('Communication Facility (Desc)'!L27,[1]!MASTER_YES_NO_DESC[#Data],0),0))","v":""},{"$f":"IF('Communication Facility (Desc)'!M27=\"\",\"\",INDEX([1]BUILDING_TYPE!$A$2:$A$100,MATCH('Communication Facility (Desc)'!$M27,[1]!MASTER_BUILDING_TYPE_DESC[#Data],0),0))","v":""},{"$f":"IF('Communication Facility (Desc)'!N27=\"\",\"\",'Communication Facility (Desc)'!N27)","v":""},{"$f":"IF('Communication Facility (Desc)'!O27=\"\",\"\",INDEX([1]BUILDING_MTL!$A$2:$A$100,MATCH('Communication Facility (Desc)'!$O27,[1]!MASTER_BUILDING_MTL_DESC[#Data],0),0))","v":""},{"$f":"IF('Communication Facility (Desc)'!P27=\"\",\"\",INDEX([1]KEY_TYPE!$A$2:$A$100,MATCH('Communication Facility (Desc)'!$P27,[1]!MASTER_KEY_TYPE_DESC[#Data],0),0))","v":""},{"$f":"IF('Communication Facility (Desc)'!Q27=\"\",\"\",'Communication Facility (Desc)'!Q27)","v":""},{"$f":"IF('Communication Facility (Desc)'!R27=\"\",\"\",INDEX([1]FILTER_TYPE!$A$2:$A$100,MATCH('Communication Facility (Desc)'!$R27,[1]!MASTER_FILTER_TYPE_DESC[#Data],0),0))","v":""},{"$f":"IF('Communication Facility (Desc)'!S27=\"\",\"\",INDEX([1]FILTER_SIZE!$A$2:$A$100,MATCH('Communication Facility (Desc)'!$S27,[1]!MASTER_FILTER_SIZE_DESC[#Data],0),0))","v":""},{"$f":"IF('Communication Facility (Desc)'!T27=\"\",\"\",'Communication Facility (Desc)'!T27)","v":""},{"$f":"IF('Communication Facility (Desc)'!U27=\"\",\"\",INDEX([1]YES_NO!$A$2:$A$100,MATCH('Communication Facility (Desc)'!$U27,[1]!MASTER_YES_NO_DESC[#Data],0),0))","v":""},{"$f":"IF('Communication Facility (Desc)'!V27=\"\",\"\",INDEX([1]YES_NO!$A$2:$A$100,MATCH('Communication Facility (Desc)'!$V27,[1]!MASTER_YES_NO_DESC[#Data],0),0))","v":""}]
[{"$f":"IF('Communication Facility (Desc)'!A28=\"\",\"\",'Communication Facility (Desc)'!A28)","v":""},{"$f":"IF('Communication Facility (Desc)'!B28=\"\",\"\",'Communication Facility (Desc)'!B28)","v":""},{"$f":"IF('Communication Facility (Desc)'!C28=\"\",\"\",'Communication Facility (Desc)'!C28)","v":""},{"$f":"IF('Communication Facility (Desc)'!D28=\"\",\"\",INDEX([1]FACILITY_TYPE!$A$2:$A$100,MATCH('Communication Facility (Desc)'!$D28,[1]!MASTER_FACILITY_TYPE_DESC[#Data],0),0))","v":""},{"$f":"IF('Communication Facility (Desc)'!E28=\"\",\"\",INDEX([1]OWNER!$A$2:$A$100,MATCH('Communication Facility (Desc)'!$E28,[1]!MASTER_OWNER_DESC[#Data],0),0))","v":""},{"$f":"IF('Communication Facility (Desc)'!F28=\"\",\"\",IF('Communication Facility (Desc)'!F28=\"\",\"\",INDEX([1]COUNTY!$A$2:$A$80,MATCH('Communication Facility (Desc)'!F28,[1]!MASTER_COUNTY_NAME[#Data],0),0)))","v":""},{"$f":"IF('Communication Facility (Desc)'!G28=\"\",\"\",'Communication Facility (Desc)'!G28)","v":""},{"$f":"IF('Communication Facility (Desc)'!H28=\"\",\"\",'Communication Facility (Desc)'!H28)","v":""},{"$f":"IF('Communication Facility (Desc)'!I28=\"\",\"\",'Communication Facility (Desc)'!I28)","v":""},{"$f":"IF('Communication Facility (Desc)'!J28=\"\",\"\",INDEX([1]CABINET_TYPE!$A$2:$A$100,MATCH('Communication Facility (Desc)'!$J28,[1]!MASTER_CABINET_TYPE_DESC[#Data],0),0))","v":""},{"$f":"IF('Communication Facility (Desc)'!K28=\"\",\"\",INDEX([1]CABINET_MOUNT_TYPE!$A$2:$A$100,MATCH('Communication Facility (Desc)'!K28,[1]!MASTER_CABINET_MOUNT_TYPE_DESC[#Data],0),0))","v":""},{"$f":"IF('Communication Facility (Desc)'!L28=\"\",\"\",INDEX([1]YES_NO!$A$2:$A$100,MATCH('Communication Facility (Desc)'!L28,[1]!MASTER_YES_NO_DESC[#Data],0),0))","v":""},{"$f":"IF('Communication Facility (Desc)'!M28=\"\",\"\",INDEX([1]BUILDING_TYPE!$A$2:$A$100,MATCH('Communication Facility (Desc)'!$M28,[1]!MASTER_BUILDING_TYPE_DESC[#Data],0),0))","v":""},{"$f":"IF('Communication Facility (Desc)'!N28=\"\",\"\",'Communication Facility (Desc)'!N28)","v":""},{"$f":"IF('Communication Facility (Desc)'!O28=\"\",\"\",INDEX([1]BUILDING_MTL!$A$2:$A$100,MATCH('Communication Facility (Desc)'!$O28,[1]!MASTER_BUILDING_MTL_DESC[#Data],0),0))","v":""},{"$f":"IF('Communication Facility (Desc)'!P28=\"\",\"\",INDEX([1]KEY_TYPE!$A$2:$A$100,MATCH('Communication Facility (Desc)'!$P28,[1]!MASTER_KEY_TYPE_DESC[#Data],0),0))","v":""},{"$f":"IF('Communication Facility (Desc)'!Q28=\"\",\"\",'Communication Facility (Desc)'!Q28)","v":""},{"$f":"IF('Communication Facility (Desc)'!R28=\"\",\"\",INDEX([1]FILTER_TYPE!$A$2:$A$100,MATCH('Communication Facility (Desc)'!$R28,[1]!MASTER_FILTER_TYPE_DESC[#Data],0),0))","v":""},{"$f":"IF('Communication Facility (Desc)'!S28=\"\",\"\",INDEX([1]FILTER_SIZE!$A$2:$A$100,MATCH('Communication Facility (Desc)'!$S28,[1]!MASTER_FILTER_SIZE_DESC[#Data],0),0))","v":""},{"$f":"IF('Communication Facility (Desc)'!T28=\"\",\"\",'Communication Facility (Desc)'!T28)","v":""},{"$f":"IF('Communication Facility (Desc)'!U28=\"\",\"\",INDEX([1]YES_NO!$A$2:$A$100,MATCH('Communication Facility (Desc)'!$U28,[1]!MASTER_YES_NO_DESC[#Data],0),0))","v":""},{"$f":"IF('Communication Facility (Desc)'!V28=\"\",\"\",INDEX([1]YES_NO!$A$2:$A$100,MATCH('Communication Facility (Desc)'!$V28,[1]!MASTER_YES_NO_DESC[#Data],0),0))","v":""}]
[{"$f":"IF('Communication Facility (Desc)'!A29=\"\",\"\",'Communication Facility (Desc)'!A29)","v":""},{"$f":"IF('Communication Facility (Desc)'!B29=\"\",\"\",'Communication Facility (Desc)'!B29)","v":""},{"$f":"IF('Communication Facility (Desc)'!C29=\"\",\"\",'Communication Facility (Desc)'!C29)","v":""},{"$f":"IF('Communication Facility (Desc)'!D29=\"\",\"\",INDEX([1]FACILITY_TYPE!$A$2:$A$100,MATCH('Communication Facility (Desc)'!$D29,[1]!MASTER_FACILITY_TYPE_DESC[#Data],0),0))","v":""},{"$f":"IF('Communication Facility (Desc)'!E29=\"\",\"\",INDEX([1]OWNER!$A$2:$A$100,MATCH('Communication Facility (Desc)'!$E29,[1]!MASTER_OWNER_DESC[#Data],0),0))","v":""},{"$f":"IF('Communication Facility (Desc)'!F29=\"\",\"\",IF('Communication Facility (Desc)'!F29=\"\",\"\",INDEX([1]COUNTY!$A$2:$A$80,MATCH('Communication Facility (Desc)'!F29,[1]!MASTER_COUNTY_NAME[#Data],0),0)))","v":""},{"$f":"IF('Communication Facility (Desc)'!G29=\"\",\"\",'Communication Facility (Desc)'!G29)","v":""},{"$f":"IF('Communication Facility (Desc)'!H29=\"\",\"\",'Communication Facility (Desc)'!H29)","v":""},{"$f":"IF('Communication Facility (Desc)'!I29=\"\",\"\",'Communication Facility (Desc)'!I29)","v":""},{"$f":"IF('Communication Facility (Desc)'!J29=\"\",\"\",INDEX([1]CABINET_TYPE!$A$2:$A$100,MATCH('Communication Facility (Desc)'!$J29,[1]!MASTER_CABINET_TYPE_DESC[#Data],0),0))","v":""},{"$f":"IF('Communication Facility (Desc)'!K29=\"\",\"\",INDEX([1]CABINET_MOUNT_TYPE!$A$2:$A$100,MATCH('Communication Facility (Desc)'!K29,[1]!MASTER_CABINET_MOUNT_TYPE_DESC[#Data],0),0))","v":""},{"$f":"IF('Communication Facility (Desc)'!L29=\"\",\"\",INDEX([1]YES_NO!$A$2:$A$100,MATCH('Communication Facility (Desc)'!L29,[1]!MASTER_YES_NO_DESC[#Data],0),0))","v":""},{"$f":"IF('Communication Facility (Desc)'!M29=\"\",\"\",INDEX([1]BUILDING_TYPE!$A$2:$A$100,MATCH('Communication Facility (Desc)'!$M29,[1]!MASTER_BUILDING_TYPE_DESC[#Data],0),0))","v":""},{"$f":"IF('Communication Facility (Desc)'!N29=\"\",\"\",'Communication Facility (Desc)'!N29)","v":""},{"$f":"IF('Communication Facility (Desc)'!O29=\"\",\"\",INDEX([1]BUILDING_MTL!$A$2:$A$100,MATCH('Communication Facility (Desc)'!$O29,[1]!MASTER_BUILDING_MTL_DESC[#Data],0),0))","v":""},{"$f":"IF('Communication Facility (Desc)'!P29=\"\",\"\",INDEX([1]KEY_TYPE!$A$2:$A$100,MATCH('Communication Facility (Desc)'!$P29,[1]!MASTER_KEY_TYPE_DESC[#Data],0),0))","v":""},{"$f":"IF('Communication Facility (Desc)'!Q29=\"\",\"\",'Communication Facility (Desc)'!Q29)","v":""},{"$f":"IF('Communication Facility (Desc)'!R29=\"\",\"\",INDEX([1]FILTER_TYPE!$A$2:$A$100,MATCH('Communication Facility (Desc)'!$R29,[1]!MASTER_FILTER_TYPE_DESC[#Data],0),0))","v":""},{"$f":"IF('Communication Facility (Desc)'!S29=\"\",\"\",INDEX([1]FILTER_SIZE!$A$2:$A$100,MATCH('Communication Facility (Desc)'!$S29,[1]!MASTER_FILTER_SIZE_DESC[#Data],0),0))","v":""},{"$f":"IF('Communication Facility (Desc)'!T29=\"\",\"\",'Communication Facility (Desc)'!T29)","v":""},{"$f":"IF('Communication Facility (Desc)'!U29=\"\",\"\",INDEX([1]YES_NO!$A$2:$A$100,MATCH('Communication Facility (Desc)'!$U29,[1]!MASTER_YES_NO_DESC[#Data],0),0))","v":""},{"$f":"IF('Communication Facility (Desc)'!V29=\"\",\"\",INDEX([1]YES_NO!$A$2:$A$100,MATCH('Communication Facility (Desc)'!$V29,[1]!MASTER_YES_NO_DESC[#Data],0),0))","v":""}]
[{"$f":"IF('Communication Facility (Desc)'!A30=\"\",\"\",'Communication Facility (Desc)'!A30)","v":""},{"$f":"IF('Communication Facility (Desc)'!B30=\"\",\"\",'Communication Facility (Desc)'!B30)","v":""},{"$f":"IF('Communication Facility (Desc)'!C30=\"\",\"\",'Communication Facility (Desc)'!C30)","v":""},{"$f":"IF('Communication Facility (Desc)'!D30=\"\",\"\",INDEX([1]FACILITY_TYPE!$A$2:$A$100,MATCH('Communication Facility (Desc)'!$D30,[1]!MASTER_FACILITY_TYPE_DESC[#Data],0),0))","v":""},{"$f":"IF('Communication Facility (Desc)'!E30=\"\",\"\",INDEX([1]OWNER!$A$2:$A$100,MATCH('Communication Facility (Desc)'!$E30,[1]!MASTER_OWNER_DESC[#Data],0),0))","v":""},{"$f":"IF('Communication Facility (Desc)'!F30=\"\",\"\",IF('Communication Facility (Desc)'!F30=\"\",\"\",INDEX([1]COUNTY!$A$2:$A$80,MATCH('Communication Facility (Desc)'!F30,[1]!MASTER_COUNTY_NAME[#Data],0),0)))","v":""},{"$f":"IF('Communication Facility (Desc)'!G30=\"\",\"\",'Communication Facility (Desc)'!G30)","v":""},{"$f":"IF('Communication Facility (Desc)'!H30=\"\",\"\",'Communication Facility (Desc)'!H30)","v":""},{"$f":"IF('Communication Facility (Desc)'!I30=\"\",\"\",'Communication Facility (Desc)'!I30)","v":""},{"$f":"IF('Communication Facility (Desc)'!J30=\"\",\"\",INDEX([1]CABINET_TYPE!$A$2:$A$100,MATCH('Communication Facility (Desc)'!$J30,[1]!MASTER_CABINET_TYPE_DESC[#Data],0),0))","v":""},{"$f":"IF('Communication Facility (Desc)'!K30=\"\",\"\",INDEX([1]CABINET_MOUNT_TYPE!$A$2:$A$100,MATCH('Communication Facility (Desc)'!K30,[1]!MASTER_CABINET_MOUNT_TYPE_DESC[#Data],0),0))","v":""},{"$f":"IF('Communication Facility (Desc)'!L30=\"\",\"\",INDEX([1]YES_NO!$A$2:$A$100,MATCH('Communication Facility (Desc)'!L30,[1]!MASTER_YES_NO_DESC[#Data],0),0))","v":""},{"$f":"IF('Communication Facility (Desc)'!M30=\"\",\"\",INDEX([1]BUILDING_TYPE!$A$2:$A$100,MATCH('Communication Facility (Desc)'!$M30,[1]!MASTER_BUILDING_TYPE_DESC[#Data],0),0))","v":""},{"$f":"IF('Communication Facility (Desc)'!N30=\"\",\"\",'Communication Facility (Desc)'!N30)","v":""},{"$f":"IF('Communication Facility (Desc)'!O30=\"\",\"\",INDEX([1]BUILDING_MTL!$A$2:$A$100,MATCH('Communication Facility (Desc)'!$O30,[1]!MASTER_BUILDING_MTL_DESC[#Data],0),0))","v":""},{"$f":"IF('Communication Facility (Desc)'!P30=\"\",\"\",INDEX([1]KEY_TYPE!$A$2:$A$100,MATCH('Communication Facility (Desc)'!$P30,[1]!MASTER_KEY_TYPE_DESC[#Data],0),0))","v":""},{"$f":"IF('Communication Facility (Desc)'!Q30=\"\",\"\",'Communication Facility (Desc)'!Q30)","v":""},{"$f":"IF('Communication Facility (Desc)'!R30=\"\",\"\",INDEX([1]FILTER_TYPE!$A$2:$A$100,MATCH('Communication Facility (Desc)'!$R30,[1]!MASTER_FILTER_TYPE_DESC[#Data],0),0))","v":""},{"$f":"IF('Communication Facility (Desc)'!S30=\"\",\"\",INDEX([1]FILTER_SIZE!$A$2:$A$100,MATCH('Communication Facility (Desc)'!$S30,[1]!MASTER_FILTER_SIZE_DESC[#Data],0),0))","v":""},{"$f":"IF('Communication Facility (Desc)'!T30=\"\",\"\",'Communication Facility (Desc)'!T30)","v":""},{"$f":"IF('Communication Facility (Desc)'!U30=\"\",\"\",INDEX([1]YES_NO!$A$2:$A$100,MATCH('Communication Facility (Desc)'!$U30,[1]!MASTER_YES_NO_DESC[#Data],0),0))","v":""},{"$f":"IF('Communication Facility (Desc)'!V30=\"\",\"\",INDEX([1]YES_NO!$A$2:$A$100,MATCH('Communication Facility (Desc)'!$V30,[1]!MASTER_YES_NO_DESC[#Data],0),0))","v":""}]
[{"$f":"IF('Communication Facility (Desc)'!A31=\"\",\"\",'Communication Facility (Desc)'!A31)","v":""},{"$f":"IF('Communication Facility (Desc)'!B31=\"\",\"\",'Communication Facility (Desc)'!B31)","v":""},{"$f":"IF('Communication Facility (Desc)'!C31=\"\",\"\",'Communication Facility (Desc)'!C31)","v":""},{"$f":"IF('Communication Facility (Desc)'!D31=\"\",\"\",INDEX([1]FACILITY_TYPE!$A$2:$A$100,MATCH('Communication Facility (Desc)'!$D31,[1]!MASTER_FACILITY_TYPE_DESC[#Data],0),0))","v":""},{"$f":"IF('Communication Facility (Desc)'!E31=\"\",\"\",INDEX([1]OWNER!$A$2:$A$100,MATCH('Communication Facility (Desc)'!$E31,[1]!MASTER_OWNER_DESC[#Data],0),0))","v":""},{"$f":"IF('Communication Facility (Desc)'!F31=\"\",\"\",IF('Communication Facility (Desc)'!F31=\"\",\"\",INDEX([1]COUNTY!$A$2:$A$80,MATCH('Communication Facility (Desc)'!F31,[1]!MASTER_COUNTY_NAME[#Data],0),0)))","v":""},{"$f":"IF('Communication Facility (Desc)'!G31=\"\",\"\",'Communication Facility (Desc)'!G31)","v":""},{"$f":"IF('Communication Facility (Desc)'!H31=\"\",\"\",'Communication Facility (Desc)'!H31)","v":""},{"$f":"IF('Communication Facility (Desc)'!I31=\"\",\"\",'Communication Facility (Desc)'!I31)","v":""},{"$f":"IF('Communication Facility (Desc)'!J31=\"\",\"\",INDEX([1]CABINET_TYPE!$A$2:$A$100,MATCH('Communication Facility (Desc)'!$J31,[1]!MASTER_CABINET_TYPE_DESC[#Data],0),0))","v":""},{"$f":"IF('Communication Facility (Desc)'!K31=\"\",\"\",INDEX([1]CABINET_MOUNT_TYPE!$A$2:$A$100,MATCH('Communication Facility (Desc)'!K31,[1]!MASTER_CABINET_MOUNT_TYPE_DESC[#Data],0),0))","v":""},{"$f":"IF('Communication Facility (Desc)'!L31=\"\",\"\",INDEX([1]YES_NO!$A$2:$A$100,MATCH('Communication Facility (Desc)'!L31,[1]!MASTER_YES_NO_DESC[#Data],0),0))","v":""},{"$f":"IF('Communication Facility (Desc)'!M31=\"\",\"\",INDEX([1]BUILDING_TYPE!$A$2:$A$100,MATCH('Communication Facility (Desc)'!$M31,[1]!MASTER_BUILDING_TYPE_DESC[#Data],0),0))","v":""},{"$f":"IF('Communication Facility (Desc)'!N31=\"\",\"\",'Communication Facility (Desc)'!N31)","v":""},{"$f":"IF('Communication Facility (Desc)'!O31=\"\",\"\",INDEX([1]BUILDING_MTL!$A$2:$A$100,MATCH('Communication Facility (Desc)'!$O31,[1]!MASTER_BUILDING_MTL_DESC[#Data],0),0))","v":""},{"$f":"IF('Communication Facility (Desc)'!P31=\"\",\"\",INDEX([1]KEY_TYPE!$A$2:$A$100,MATCH('Communication Facility (Desc)'!$P31,[1]!MASTER_KEY_TYPE_DESC[#Data],0),0))","v":""},{"$f":"IF('Communication Facility (Desc)'!Q31=\"\",\"\",'Communication Facility (Desc)'!Q31)","v":""},{"$f":"IF('Communication Facility (Desc)'!R31=\"\",\"\",INDEX([1]FILTER_TYPE!$A$2:$A$100,MATCH('Communication Facility (Desc)'!$R31,[1]!MASTER_FILTER_TYPE_DESC[#Data],0),0))","v":""},{"$f":"IF('Communication Facility (Desc)'!S31=\"\",\"\",INDEX([1]FILTER_SIZE!$A$2:$A$100,MATCH('Communication Facility (Desc)'!$S31,[1]!MASTER_FILTER_SIZE_DESC[#Data],0),0))","v":""},{"$f":"IF('Communication Facility (Desc)'!T31=\"\",\"\",'Communication Facility (Desc)'!T31)","v":""},{"$f":"IF('Communication Facility (Desc)'!U31=\"\",\"\",INDEX([1]YES_NO!$A$2:$A$100,MATCH('Communication Facility (Desc)'!$U31,[1]!MASTER_YES_NO_DESC[#Data],0),0))","v":""},{"$f":"IF('Communication Facility (Desc)'!V31=\"\",\"\",INDEX([1]YES_NO!$A$2:$A$100,MATCH('Communication Facility (Desc)'!$V31,[1]!MASTER_YES_NO_DESC[#Data],0),0))","v":""}]
[{"$f":"IF('Communication Facility (Desc)'!A32=\"\",\"\",'Communication Facility (Desc)'!A32)","v":""},{"$f":"IF('Communication Facility (Desc)'!B32=\"\",\"\",'Communication Facility (Desc)'!B32)","v":""},{"$f":"IF('Communication Facility (Desc)'!C32=\"\",\"\",'Communication Facility (Desc)'!C32)","v":""},{"$f":"IF('Communication Facility (Desc)'!D32=\"\",\"\",INDEX([1]FACILITY_TYPE!$A$2:$A$100,MATCH('Communication Facility (Desc)'!$D32,[1]!MASTER_FACILITY_TYPE_DESC[#Data],0),0))","v":""},{"$f":"IF('Communication Facility (Desc)'!E32=\"\",\"\",INDEX([1]OWNER!$A$2:$A$100,MATCH('Communication Facility (Desc)'!$E32,[1]!MASTER_OWNER_DESC[#Data],0),0))","v":""},{"$f":"IF('Communication Facility (Desc)'!F32=\"\",\"\",IF('Communication Facility (Desc)'!F32=\"\",\"\",INDEX([1]COUNTY!$A$2:$A$80,MATCH('Communication Facility (Desc)'!F32,[1]!MASTER_COUNTY_NAME[#Data],0),0)))","v":""},{"$f":"IF('Communication Facility (Desc)'!G32=\"\",\"\",'Communication Facility (Desc)'!G32)","v":""},{"$f":"IF('Communication Facility (Desc)'!H32=\"\",\"\",'Communication Facility (Desc)'!H32)","v":""},{"$f":"IF('Communication Facility (Desc)'!I32=\"\",\"\",'Communication Facility (Desc)'!I32)","v":""},{"$f":"IF('Communication Facility (Desc)'!J32=\"\",\"\",INDEX([1]CABINET_TYPE!$A$2:$A$100,MATCH('Communication Facility (Desc)'!$J32,[1]!MASTER_CABINET_TYPE_DESC[#Data],0),0))","v":""},{"$f":"IF('Communication Facility (Desc)'!K32=\"\",\"\",INDEX([1]CABINET_MOUNT_TYPE!$A$2:$A$100,MATCH('Communication Facility (Desc)'!K32,[1]!MASTER_CABINET_MOUNT_TYPE_DESC[#Data],0),0))","v":""},{"$f":"IF('Communication Facility (Desc)'!L32=\"\",\"\",INDEX([1]YES_NO!$A$2:$A$100,MATCH('Communication Facility (Desc)'!L32,[1]!MASTER_YES_NO_DESC[#Data],0),0))","v":""},{"$f":"IF('Communication Facility (Desc)'!M32=\"\",\"\",INDEX([1]BUILDING_TYPE!$A$2:$A$100,MATCH('Communication Facility (Desc)'!$M32,[1]!MASTER_BUILDING_TYPE_DESC[#Data],0),0))","v":""},{"$f":"IF('Communication Facility (Desc)'!N32=\"\",\"\",'Communication Facility (Desc)'!N32)","v":""},{"$f":"IF('Communication Facility (Desc)'!O32=\"\",\"\",INDEX([1]BUILDING_MTL!$A$2:$A$100,MATCH('Communication Facility (Desc)'!$O32,[1]!MASTER_BUILDING_MTL_DESC[#Data],0),0))","v":""},{"$f":"IF('Communication Facility (Desc)'!P32=\"\",\"\",INDEX([1]KEY_TYPE!$A$2:$A$100,MATCH('Communication Facility (Desc)'!$P32,[1]!MASTER_KEY_TYPE_DESC[#Data],0),0))","v":""},{"$f":"IF('Communication Facility (Desc)'!Q32=\"\",\"\",'Communication Facility (Desc)'!Q32)","v":""},{"$f":"IF('Communication Facility (Desc)'!R32=\"\",\"\",INDEX([1]FILTER_TYPE!$A$2:$A$100,MATCH('Communication Facility (Desc)'!$R32,[1]!MASTER_FILTER_TYPE_DESC[#Data],0),0))","v":""},{"$f":"IF('Communication Facility (Desc)'!S32=\"\",\"\",INDEX([1]FILTER_SIZE!$A$2:$A$100,MATCH('Communication Facility (Desc)'!$S32,[1]!MASTER_FILTER_SIZE_DESC[#Data],0),0))","v":""},{"$f":"IF('Communication Facility (Desc)'!T32=\"\",\"\",'Communication Facility (Desc)'!T32)","v":""},{"$f":"IF('Communication Facility (Desc)'!U32=\"\",\"\",INDEX([1]YES_NO!$A$2:$A$100,MATCH('Communication Facility (Desc)'!$U32,[1]!MASTER_YES_NO_DESC[#Data],0),0))","v":""},{"$f":"IF('Communication Facility (Desc)'!V32=\"\",\"\",INDEX([1]YES_NO!$A$2:$A$100,MATCH('Communication Facility (Desc)'!$V32,[1]!MASTER_YES_NO_DESC[#Data],0),0))","v":""}]
[{"$f":"IF('Communication Facility (Desc)'!A33=\"\",\"\",'Communication Facility (Desc)'!A33)","v":""},{"$f":"IF('Communication Facility (Desc)'!B33=\"\",\"\",'Communication Facility (Desc)'!B33)","v":""},{"$f":"IF('Communication Facility (Desc)'!C33=\"\",\"\",'Communication Facility (Desc)'!C33)","v":""},{"$f":"IF('Communication Facility (Desc)'!D33=\"\",\"\",INDEX([1]FACILITY_TYPE!$A$2:$A$100,MATCH('Communication Facility (Desc)'!$D33,[1]!MASTER_FACILITY_TYPE_DESC[#Data],0),0))","v":""},{"$f":"IF('Communication Facility (Desc)'!E33=\"\",\"\",INDEX([1]OWNER!$A$2:$A$100,MATCH('Communication Facility (Desc)'!$E33,[1]!MASTER_OWNER_DESC[#Data],0),0))","v":""},{"$f":"IF('Communication Facility (Desc)'!F33=\"\",\"\",IF('Communication Facility (Desc)'!F33=\"\",\"\",INDEX([1]COUNTY!$A$2:$A$80,MATCH('Communication Facility (Desc)'!F33,[1]!MASTER_COUNTY_NAME[#Data],0),0)))","v":""},{"$f":"IF('Communication Facility (Desc)'!G33=\"\",\"\",'Communication Facility (Desc)'!G33)","v":""},{"$f":"IF('Communication Facility (Desc)'!H33=\"\",\"\",'Communication Facility (Desc)'!H33)","v":""},{"$f":"IF('Communication Facility (Desc)'!I33=\"\",\"\",'Communication Facility (Desc)'!I33)","v":""},{"$f":"IF('Communication Facility (Desc)'!J33=\"\",\"\",INDEX([1]CABINET_TYPE!$A$2:$A$100,MATCH('Communication Facility (Desc)'!$J33,[1]!MASTER_CABINET_TYPE_DESC[#Data],0),0))","v":""},{"$f":"IF('Communication Facility (Desc)'!K33=\"\",\"\",INDEX([1]CABINET_MOUNT_TYPE!$A$2:$A$100,MATCH('Communication Facility (Desc)'!K33,[1]!MASTER_CABINET_MOUNT_TYPE_DESC[#Data],0),0))","v":""},{"$f":"IF('Communication Facility (Desc)'!L33=\"\",\"\",INDEX([1]YES_NO!$A$2:$A$100,MATCH('Communication Facility (Desc)'!L33,[1]!MASTER_YES_NO_DESC[#Data],0),0))","v":""},{"$f":"IF('Communication Facility (Desc)'!M33=\"\",\"\",INDEX([1]BUILDING_TYPE!$A$2:$A$100,MATCH('Communication Facility (Desc)'!$M33,[1]!MASTER_BUILDING_TYPE_DESC[#Data],0),0))","v":""},{"$f":"IF('Communication Facility (Desc)'!N33=\"\",\"\",'Communication Facility (Desc)'!N33)","v":""},{"$f":"IF('Communication Facility (Desc)'!O33=\"\",\"\",INDEX([1]BUILDING_MTL!$A$2:$A$100,MATCH('Communication Facility (Desc)'!$O33,[1]!MASTER_BUILDING_MTL_DESC[#Data],0),0))","v":""},{"$f":"IF('Communication Facility (Desc)'!P33=\"\",\"\",INDEX([1]KEY_TYPE!$A$2:$A$100,MATCH('Communication Facility (Desc)'!$P33,[1]!MASTER_KEY_TYPE_DESC[#Data],0),0))","v":""},{"$f":"IF('Communication Facility (Desc)'!Q33=\"\",\"\",'Communication Facility (Desc)'!Q33)","v":""},{"$f":"IF('Communication Facility (Desc)'!R33=\"\",\"\",INDEX([1]FILTER_TYPE!$A$2:$A$100,MATCH('Communication Facility (Desc)'!$R33,[1]!MASTER_FILTER_TYPE_DESC[#Data],0),0))","v":""},{"$f":"IF('Communication Facility (Desc)'!S33=\"\",\"\",INDEX([1]FILTER_SIZE!$A$2:$A$100,MATCH('Communication Facility (Desc)'!$S33,[1]!MASTER_FILTER_SIZE_DESC[#Data],0),0))","v":""},{"$f":"IF('Communication Facility (Desc)'!T33=\"\",\"\",'Communication Facility (Desc)'!T33)","v":""},{"$f":"IF('Communication Facility (Desc)'!U33=\"\",\"\",INDEX([1]YES_NO!$A$2:$A$100,MATCH('Communication Facility (Desc)'!$U33,[1]!MASTER_YES_NO_DESC[#Data],0),0))","v":""},{"$f":"IF('Communication Facility (Desc)'!V33=\"\",\"\",INDEX([1]YES_NO!$A$2:$A$100,MATCH('Communication Facility (Desc)'!$V33,[1]!MASTER_YES_NO_DESC[#Data],0),0))","v":""}]
[{"$f":"IF('Communication Facility (Desc)'!A34=\"\",\"\",'Communication Facility (Desc)'!A34)","v":""},{"$f":"IF('Communication Facility (Desc)'!B34=\"\",\"\",'Communication Facility (Desc)'!B34)","v":""},{"$f":"IF('Communication Facility (Desc)'!C34=\"\",\"\",'Communication Facility (Desc)'!C34)","v":""},{"$f":"IF('Communication Facility (Desc)'!D34=\"\",\"\",INDEX([1]FACILITY_TYPE!$A$2:$A$100,MATCH('Communication Facility (Desc)'!$D34,[1]!MASTER_FACILITY_TYPE_DESC[#Data],0),0))","v":""},{"$f":"IF('Communication Facility (Desc)'!E34=\"\",\"\",INDEX([1]OWNER!$A$2:$A$100,MATCH('Communication Facility (Desc)'!$E34,[1]!MASTER_OWNER_DESC[#Data],0),0))","v":""},{"$f":"IF('Communication Facility (Desc)'!F34=\"\",\"\",IF('Communication Facility (Desc)'!F34=\"\",\"\",INDEX([1]COUNTY!$A$2:$A$80,MATCH('Communication Facility (Desc)'!F34,[1]!MASTER_COUNTY_NAME[#Data],0),0)))","v":""},{"$f":"IF('Communication Facility (Desc)'!G34=\"\",\"\",'Communication Facility (Desc)'!G34)","v":""},{"$f":"IF('Communication Facility (Desc)'!H34=\"\",\"\",'Communication Facility (Desc)'!H34)","v":""},{"$f":"IF('Communication Facility (Desc)'!I34=\"\",\"\",'Communication Facility (Desc)'!I34)","v":""},{"$f":"IF('Communication Facility (Desc)'!J34=\"\",\"\",INDEX([1]CABINET_TYPE!$A$2:$A$100,MATCH('Communication Facility (Desc)'!$J34,[1]!MASTER_CABINET_TYPE_DESC[#Data],0),0))","v":""},{"$f":"IF('Communication Facility (Desc)'!K34=\"\",\"\",INDEX([1]CABINET_MOUNT_TYPE!$A$2:$A$100,MATCH('Communication Facility (Desc)'!K34,[1]!MASTER_CABINET_MOUNT_TYPE_DESC[#Data],0),0))","v":""},{"$f":"IF('Communication Facility (Desc)'!L34=\"\",\"\",INDEX([1]YES_NO!$A$2:$A$100,MATCH('Communication Facility (Desc)'!L34,[1]!MASTER_YES_NO_DESC[#Data],0),0))","v":""},{"$f":"IF('Communication Facility (Desc)'!M34=\"\",\"\",INDEX([1]BUILDING_TYPE!$A$2:$A$100,MATCH('Communication Facility (Desc)'!$M34,[1]!MASTER_BUILDING_TYPE_DESC[#Data],0),0))","v":""},{"$f":"IF('Communication Facility (Desc)'!N34=\"\",\"\",'Communication Facility (Desc)'!N34)","v":""},{"$f":"IF('Communication Facility (Desc)'!O34=\"\",\"\",INDEX([1]BUILDING_MTL!$A$2:$A$100,MATCH('Communication Facility (Desc)'!$O34,[1]!MASTER_BUILDING_MTL_DESC[#Data],0),0))","v":""},{"$f":"IF('Communication Facility (Desc)'!P34=\"\",\"\",INDEX([1]KEY_TYPE!$A$2:$A$100,MATCH('Communication Facility (Desc)'!$P34,[1]!MASTER_KEY_TYPE_DESC[#Data],0),0))","v":""},{"$f":"IF('Communication Facility (Desc)'!Q34=\"\",\"\",'Communication Facility (Desc)'!Q34)","v":""},{"$f":"IF('Communication Facility (Desc)'!R34=\"\",\"\",INDEX([1]FILTER_TYPE!$A$2:$A$100,MATCH('Communication Facility (Desc)'!$R34,[1]!MASTER_FILTER_TYPE_DESC[#Data],0),0))","v":""},{"$f":"IF('Communication Facility (Desc)'!S34=\"\",\"\",INDEX([1]FILTER_SIZE!$A$2:$A$100,MATCH('Communication Facility (Desc)'!$S34,[1]!MASTER_FILTER_SIZE_DESC[#Data],0),0))","v":""},{"$f":"IF('Communication Facility (Desc)'!T34=\"\",\"\",'Communication Facility (Desc)'!T34)","v":""},{"$f":"IF('Communication Facility (Desc)'!U34=\"\",\"\",INDEX([1]YES_NO!$A$2:$A$100,MATCH('Communication Facility (Desc)'!$U34,[1]!MASTER_YES_NO_DESC[#Data],0),0))","v":""},{"$f":"IF('Communication Facility (Desc)'!V34=\"\",\"\",INDEX([1]YES_NO!$A$2:$A$100,MATCH('Communication Facility (Desc)'!$V34,[1]!MASTER_YES_NO_DESC[#Data],0),0))","v":""}]
[{"$f":"IF('Communication Facility (Desc)'!A35=\"\",\"\",'Communication Facility (Desc)'!A35)","v":""},{"$f":"IF('Communication Facility (Desc)'!B35=\"\",\"\",'Communication Facility (Desc)'!B35)","v":""},{"$f":"IF('Communication Facility (Desc)'!C35=\"\",\"\",'Communication Facility (Desc)'!C35)","v":""},{"$f":"IF('Communication Facility (Desc)'!D35=\"\",\"\",INDEX([1]FACILITY_TYPE!$A$2:$A$100,MATCH('Communication Facility (Desc)'!$D35,[1]!MASTER_FACILITY_TYPE_DESC[#Data],0),0))","v":""},{"$f":"IF('Communication Facility (Desc)'!E35=\"\",\"\",INDEX([1]OWNER!$A$2:$A$100,MATCH('Communication Facility (Desc)'!$E35,[1]!MASTER_OWNER_DESC[#Data],0),0))","v":""},{"$f":"IF('Communication Facility (Desc)'!F35=\"\",\"\",IF('Communication Facility (Desc)'!F35=\"\",\"\",INDEX([1]COUNTY!$A$2:$A$80,MATCH('Communication Facility (Desc)'!F35,[1]!MASTER_COUNTY_NAME[#Data],0),0)))","v":""},{"$f":"IF('Communication Facility (Desc)'!G35=\"\",\"\",'Communication Facility (Desc)'!G35)","v":""},{"$f":"IF('Communication Facility (Desc)'!H35=\"\",\"\",'Communication Facility (Desc)'!H35)","v":""},{"$f":"IF('Communication Facility (Desc)'!I35=\"\",\"\",'Communication Facility (Desc)'!I35)","v":""},{"$f":"IF('Communication Facility (Desc)'!J35=\"\",\"\",INDEX([1]CABINET_TYPE!$A$2:$A$100,MATCH('Communication Facility (Desc)'!$J35,[1]!MASTER_CABINET_TYPE_DESC[#Data],0),0))","v":""},{"$f":"IF('Communication Facility (Desc)'!K35=\"\",\"\",INDEX([1]CABINET_MOUNT_TYPE!$A$2:$A$100,MATCH('Communication Facility (Desc)'!K35,[1]!MASTER_CABINET_MOUNT_TYPE_DESC[#Data],0),0))","v":""},{"$f":"IF('Communication Facility (Desc)'!L35=\"\",\"\",INDEX([1]YES_NO!$A$2:$A$100,MATCH('Communication Facility (Desc)'!L35,[1]!MASTER_YES_NO_DESC[#Data],0),0))","v":""},{"$f":"IF('Communication Facility (Desc)'!M35=\"\",\"\",INDEX([1]BUILDING_TYPE!$A$2:$A$100,MATCH('Communication Facility (Desc)'!$M35,[1]!MASTER_BUILDING_TYPE_DESC[#Data],0),0))","v":""},{"$f":"IF('Communication Facility (Desc)'!N35=\"\",\"\",'Communication Facility (Desc)'!N35)","v":""},{"$f":"IF('Communication Facility (Desc)'!O35=\"\",\"\",INDEX([1]BUILDING_MTL!$A$2:$A$100,MATCH('Communication Facility (Desc)'!$O35,[1]!MASTER_BUILDING_MTL_DESC[#Data],0),0))","v":""},{"$f":"IF('Communication Facility (Desc)'!P35=\"\",\"\",INDEX([1]KEY_TYPE!$A$2:$A$100,MATCH('Communication Facility (Desc)'!$P35,[1]!MASTER_KEY_TYPE_DESC[#Data],0),0))","v":""},{"$f":"IF('Communication Facility (Desc)'!Q35=\"\",\"\",'Communication Facility (Desc)'!Q35)","v":""},{"$f":"IF('Communication Facility (Desc)'!R35=\"\",\"\",INDEX([1]FILTER_TYPE!$A$2:$A$100,MATCH('Communication Facility (Desc)'!$R35,[1]!MASTER_FILTER_TYPE_DESC[#Data],0),0))","v":""},{"$f":"IF('Communication Facility (Desc)'!S35=\"\",\"\",INDEX([1]FILTER_SIZE!$A$2:$A$100,MATCH('Communication Facility (Desc)'!$S35,[1]!MASTER_FILTER_SIZE_DESC[#Data],0),0))","v":""},{"$f":"IF('Communication Facility (Desc)'!T35=\"\",\"\",'Communication Facility (Desc)'!T35)","v":""},{"$f":"IF('Communication Facility (Desc)'!U35=\"\",\"\",INDEX([1]YES_NO!$A$2:$A$100,MATCH('Communication Facility (Desc)'!$U35,[1]!MASTER_YES_NO_DESC[#Data],0),0))","v":""},{"$f":"IF('Communication Facility (Desc)'!V35=\"\",\"\",INDEX([1]YES_NO!$A$2:$A$100,MATCH('Communication Facility (Desc)'!$V35,[1]!MASTER_YES_NO_DESC[#Data],0),0))","v":""}]
[{"$f":"IF('Communication Facility (Desc)'!A36=\"\",\"\",'Communication Facility (Desc)'!A36)","v":""},{"$f":"IF('Communication Facility (Desc)'!B36=\"\",\"\",'Communication Facility (Desc)'!B36)","v":""},{"$f":"IF('Communication Facility (Desc)'!C36=\"\",\"\",'Communication Facility (Desc)'!C36)","v":""},{"$f":"IF('Communication Facility (Desc)'!D36=\"\",\"\",INDEX([1]FACILITY_TYPE!$A$2:$A$100,MATCH('Communication Facility (Desc)'!$D36,[1]!MASTER_FACILITY_TYPE_DESC[#Data],0),0))","v":""},{"$f":"IF('Communication Facility (Desc)'!E36=\"\",\"\",INDEX([1]OWNER!$A$2:$A$100,MATCH('Communication Facility (Desc)'!$E36,[1]!MASTER_OWNER_DESC[#Data],0),0))","v":""},{"$f":"IF('Communication Facility (Desc)'!F36=\"\",\"\",IF('Communication Facility (Desc)'!F36=\"\",\"\",INDEX([1]COUNTY!$A$2:$A$80,MATCH('Communication Facility (Desc)'!F36,[1]!MASTER_COUNTY_NAME[#Data],0),0)))","v":""},{"$f":"IF('Communication Facility (Desc)'!G36=\"\",\"\",'Communication Facility (Desc)'!G36)","v":""},{"$f":"IF('Communication Facility (Desc)'!H36=\"\",\"\",'Communication Facility (Desc)'!H36)","v":""},{"$f":"IF('Communication Facility (Desc)'!I36=\"\",\"\",'Communication Facility (Desc)'!I36)","v":""},{"$f":"IF('Communication Facility (Desc)'!J36=\"\",\"\",INDEX([1]CABINET_TYPE!$A$2:$A$100,MATCH('Communication Facility (Desc)'!$J36,[1]!MASTER_CABINET_TYPE_DESC[#Data],0),0))","v":""},{"$f":"IF('Communication Facility (Desc)'!K36=\"\",\"\",INDEX([1]CABINET_MOUNT_TYPE!$A$2:$A$100,MATCH('Communication Facility (Desc)'!K36,[1]!MASTER_CABINET_MOUNT_TYPE_DESC[#Data],0),0))","v":""},{"$f":"IF('Communication Facility (Desc)'!L36=\"\",\"\",INDEX([1]YES_NO!$A$2:$A$100,MATCH('Communication Facility (Desc)'!L36,[1]!MASTER_YES_NO_DESC[#Data],0),0))","v":""},{"$f":"IF('Communication Facility (Desc)'!M36=\"\",\"\",INDEX([1]BUILDING_TYPE!$A$2:$A$100,MATCH('Communication Facility (Desc)'!$M36,[1]!MASTER_BUILDING_TYPE_DESC[#Data],0),0))","v":""},{"$f":"IF('Communication Facility (Desc)'!N36=\"\",\"\",'Communication Facility (Desc)'!N36)","v":""},{"$f":"IF('Communication Facility (Desc)'!O36=\"\",\"\",INDEX([1]BUILDING_MTL!$A$2:$A$100,MATCH('Communication Facility (Desc)'!$O36,[1]!MASTER_BUILDING_MTL_DESC[#Data],0),0))","v":""},{"$f":"IF('Communication Facility (Desc)'!P36=\"\",\"\",INDEX([1]KEY_TYPE!$A$2:$A$100,MATCH('Communication Facility (Desc)'!$P36,[1]!MASTER_KEY_TYPE_DESC[#Data],0),0))","v":""},{"$f":"IF('Communication Facility (Desc)'!Q36=\"\",\"\",'Communication Facility (Desc)'!Q36)","v":""},{"$f":"IF('Communication Facility (Desc)'!R36=\"\",\"\",INDEX([1]FILTER_TYPE!$A$2:$A$100,MATCH('Communication Facility (Desc)'!$R36,[1]!MASTER_FILTER_TYPE_DESC[#Data],0),0))","v":""},{"$f":"IF('Communication Facility (Desc)'!S36=\"\",\"\",INDEX([1]FILTER_SIZE!$A$2:$A$100,MATCH('Communication Facility (Desc)'!$S36,[1]!MASTER_FILTER_SIZE_DESC[#Data],0),0))","v":""},{"$f":"IF('Communication Facility (Desc)'!T36=\"\",\"\",'Communication Facility (Desc)'!T36)","v":""},{"$f":"IF('Communication Facility (Desc)'!U36=\"\",\"\",INDEX([1]YES_NO!$A$2:$A$100,MATCH('Communication Facility (Desc)'!$U36,[1]!MASTER_YES_NO_DESC[#Data],0),0))","v":""},{"$f":"IF('Communication Facility (Desc)'!V36=\"\",\"\",INDEX([1]YES_NO!$A$2:$A$100,MATCH('Communication Facility (Desc)'!$V36,[1]!MASTER_YES_NO_DESC[#Data],0),0))","v":""}]
[{"$f":"IF('Communication Facility (Desc)'!A37=\"\",\"\",'Communication Facility (Desc)'!A37)","v":""},{"$f":"IF('Communication Facility (Desc)'!B37=\"\",\"\",'Communication Facility (Desc)'!B37)","v":""},{"$f":"IF('Communication Facility (Desc)'!C37=\"\",\"\",'Communication Facility (Desc)'!C37)","v":""},{"$f":"IF('Communication Facility (Desc)'!D37=\"\",\"\",INDEX([1]FACILITY_TYPE!$A$2:$A$100,MATCH('Communication Facility (Desc)'!$D37,[1]!MASTER_FACILITY_TYPE_DESC[#Data],0),0))","v":""},{"$f":"IF('Communication Facility (Desc)'!E37=\"\",\"\",INDEX([1]OWNER!$A$2:$A$100,MATCH('Communication Facility (Desc)'!$E37,[1]!MASTER_OWNER_DESC[#Data],0),0))","v":""},{"$f":"IF('Communication Facility (Desc)'!F37=\"\",\"\",IF('Communication Facility (Desc)'!F37=\"\",\"\",INDEX([1]COUNTY!$A$2:$A$80,MATCH('Communication Facility (Desc)'!F37,[1]!MASTER_COUNTY_NAME[#Data],0),0)))","v":""},{"$f":"IF('Communication Facility (Desc)'!G37=\"\",\"\",'Communication Facility (Desc)'!G37)","v":""},{"$f":"IF('Communication Facility (Desc)'!H37=\"\",\"\",'Communication Facility (Desc)'!H37)","v":""},{"$f":"IF('Communication Facility (Desc)'!I37=\"\",\"\",'Communication Facility (Desc)'!I37)","v":""},{"$f":"IF('Communication Facility (Desc)'!J37=\"\",\"\",INDEX([1]CABINET_TYPE!$A$2:$A$100,MATCH('Communication Facility (Desc)'!$J37,[1]!MASTER_CABINET_TYPE_DESC[#Data],0),0))","v":""},{"$f":"IF('Communication Facility (Desc)'!K37=\"\",\"\",INDEX([1]CABINET_MOUNT_TYPE!$A$2:$A$100,MATCH('Communication Facility (Desc)'!K37,[1]!MASTER_CABINET_MOUNT_TYPE_DESC[#Data],0),0))","v":""},{"$f":"IF('Communication Facility (Desc)'!L37=\"\",\"\",INDEX([1]YES_NO!$A$2:$A$100,MATCH('Communication Facility (Desc)'!L37,[1]!MASTER_YES_NO_DESC[#Data],0),0))","v":""},{"$f":"IF('Communication Facility (Desc)'!M37=\"\",\"\",INDEX([1]BUILDING_TYPE!$A$2:$A$100,MATCH('Communication Facility (Desc)'!$M37,[1]!MASTER_BUILDING_TYPE_DESC[#Data],0),0))","v":""},{"$f":"IF('Communication Facility (Desc)'!N37=\"\",\"\",'Communication Facility (Desc)'!N37)","v":""},{"$f":"IF('Communication Facility (Desc)'!O37=\"\",\"\",INDEX([1]BUILDING_MTL!$A$2:$A$100,MATCH('Communication Facility (Desc)'!$O37,[1]!MASTER_BUILDING_MTL_DESC[#Data],0),0))","v":""},{"$f":"IF('Communication Facility (Desc)'!P37=\"\",\"\",INDEX([1]KEY_TYPE!$A$2:$A$100,MATCH('Communication Facility (Desc)'!$P37,[1]!MASTER_KEY_TYPE_DESC[#Data],0),0))","v":""},{"$f":"IF('Communication Facility (Desc)'!Q37=\"\",\"\",'Communication Facility (Desc)'!Q37)","v":""},{"$f":"IF('Communication Facility (Desc)'!R37=\"\",\"\",INDEX([1]FILTER_TYPE!$A$2:$A$100,MATCH('Communication Facility (Desc)'!$R37,[1]!MASTER_FILTER_TYPE_DESC[#Data],0),0))","v":""},{"$f":"IF('Communication Facility (Desc)'!S37=\"\",\"\",INDEX([1]FILTER_SIZE!$A$2:$A$100,MATCH('Communication Facility (Desc)'!$S37,[1]!MASTER_FILTER_SIZE_DESC[#Data],0),0))","v":""},{"$f":"IF('Communication Facility (Desc)'!T37=\"\",\"\",'Communication Facility (Desc)'!T37)","v":""},{"$f":"IF('Communication Facility (Desc)'!U37=\"\",\"\",INDEX([1]YES_NO!$A$2:$A$100,MATCH('Communication Facility (Desc)'!$U37,[1]!MASTER_YES_NO_DESC[#Data],0),0))","v":""},{"$f":"IF('Communication Facility (Desc)'!V37=\"\",\"\",INDEX([1]YES_NO!$A$2:$A$100,MATCH('Communication Facility (Desc)'!$V37,[1]!MASTER_YES_NO_DESC[#Data],0),0))","v":""}]
[{"$f":"IF('Communication Facility (Desc)'!A38=\"\",\"\",'Communication Facility (Desc)'!A38)","v":""},{"$f":"IF('Communication Facility (Desc)'!B38=\"\",\"\",'Communication Facility (Desc)'!B38)","v":""},{"$f":"IF('Communication Facility (Desc)'!C38=\"\",\"\",'Communication Facility (Desc)'!C38)","v":""},{"$f":"IF('Communication Facility (Desc)'!D38=\"\",\"\",INDEX([1]FACILITY_TYPE!$A$2:$A$100,MATCH('Communication Facility (Desc)'!$D38,[1]!MASTER_FACILITY_TYPE_DESC[#Data],0),0))","v":""},{"$f":"IF('Communication Facility (Desc)'!E38=\"\",\"\",INDEX([1]OWNER!$A$2:$A$100,MATCH('Communication Facility (Desc)'!$E38,[1]!MASTER_OWNER_DESC[#Data],0),0))","v":""},{"$f":"IF('Communication Facility (Desc)'!F38=\"\",\"\",IF('Communication Facility (Desc)'!F38=\"\",\"\",INDEX([1]COUNTY!$A$2:$A$80,MATCH('Communication Facility (Desc)'!F38,[1]!MASTER_COUNTY_NAME[#Data],0),0)))","v":""},{"$f":"IF('Communication Facility (Desc)'!G38=\"\",\"\",'Communication Facility (Desc)'!G38)","v":""},{"$f":"IF('Communication Facility (Desc)'!H38=\"\",\"\",'Communication Facility (Desc)'!H38)","v":""},{"$f":"IF('Communication Facility (Desc)'!I38=\"\",\"\",'Communication Facility (Desc)'!I38)","v":""},{"$f":"IF('Communication Facility (Desc)'!J38=\"\",\"\",INDEX([1]CABINET_TYPE!$A$2:$A$100,MATCH('Communication Facility (Desc)'!$J38,[1]!MASTER_CABINET_TYPE_DESC[#Data],0),0))","v":""},{"$f":"IF('Communication Facility (Desc)'!K38=\"\",\"\",INDEX([1]CABINET_MOUNT_TYPE!$A$2:$A$100,MATCH('Communication Facility (Desc)'!K38,[1]!MASTER_CABINET_MOUNT_TYPE_DESC[#Data],0),0))","v":""},{"$f":"IF('Communication Facility (Desc)'!L38=\"\",\"\",INDEX([1]YES_NO!$A$2:$A$100,MATCH('Communication Facility (Desc)'!L38,[1]!MASTER_YES_NO_DESC[#Data],0),0))","v":""},{"$f":"IF('Communication Facility (Desc)'!M38=\"\",\"\",INDEX([1]BUILDING_TYPE!$A$2:$A$100,MATCH('Communication Facility (Desc)'!$M38,[1]!MASTER_BUILDING_TYPE_DESC[#Data],0),0))","v":""},{"$f":"IF('Communication Facility (Desc)'!N38=\"\",\"\",'Communication Facility (Desc)'!N38)","v":""},{"$f":"IF('Communication Facility (Desc)'!O38=\"\",\"\",INDEX([1]BUILDING_MTL!$A$2:$A$100,MATCH('Communication Facility (Desc)'!$O38,[1]!MASTER_BUILDING_MTL_DESC[#Data],0),0))","v":""},{"$f":"IF('Communication Facility (Desc)'!P38=\"\",\"\",INDEX([1]KEY_TYPE!$A$2:$A$100,MATCH('Communication Facility (Desc)'!$P38,[1]!MASTER_KEY_TYPE_DESC[#Data],0),0))","v":""},{"$f":"IF('Communication Facility (Desc)'!Q38=\"\",\"\",'Communication Facility (Desc)'!Q38)","v":""},{"$f":"IF('Communication Facility (Desc)'!R38=\"\",\"\",INDEX([1]FILTER_TYPE!$A$2:$A$100,MATCH('Communication Facility (Desc)'!$R38,[1]!MASTER_FILTER_TYPE_DESC[#Data],0),0))","v":""},{"$f":"IF('Communication Facility (Desc)'!S38=\"\",\"\",INDEX([1]FILTER_SIZE!$A$2:$A$100,MATCH('Communication Facility (Desc)'!$S38,[1]!MASTER_FILTER_SIZE_DESC[#Data],0),0))","v":""},{"$f":"IF('Communication Facility (Desc)'!T38=\"\",\"\",'Communication Facility (Desc)'!T38)","v":""},{"$f":"IF('Communication Facility (Desc)'!U38=\"\",\"\",INDEX([1]YES_NO!$A$2:$A$100,MATCH('Communication Facility (Desc)'!$U38,[1]!MASTER_YES_NO_DESC[#Data],0),0))","v":""},{"$f":"IF('Communication Facility (Desc)'!V38=\"\",\"\",INDEX([1]YES_NO!$A$2:$A$100,MATCH('Communication Facility (Desc)'!$V38,[1]!MASTER_YES_NO_DESC[#Data],0),0))","v":""}]
[{"$f":"IF('Communication Facility (Desc)'!A39=\"\",\"\",'Communication Facility (Desc)'!A39)","v":""},{"$f":"IF('Communication Facility (Desc)'!B39=\"\",\"\",'Communication Facility (Desc)'!B39)","v":""},{"$f":"IF('Communication Facility (Desc)'!C39=\"\",\"\",'Communication Facility (Desc)'!C39)","v":""},{"$f":"IF('Communication Facility (Desc)'!D39=\"\",\"\",INDEX([1]FACILITY_TYPE!$A$2:$A$100,MATCH('Communication Facility (Desc)'!$D39,[1]!MASTER_FACILITY_TYPE_DESC[#Data],0),0))","v":""},{"$f":"IF('Communication Facility (Desc)'!E39=\"\",\"\",INDEX([1]OWNER!$A$2:$A$100,MATCH('Communication Facility (Desc)'!$E39,[1]!MASTER_OWNER_DESC[#Data],0),0))","v":""},{"$f":"IF('Communication Facility (Desc)'!F39=\"\",\"\",IF('Communication Facility (Desc)'!F39=\"\",\"\",INDEX([1]COUNTY!$A$2:$A$80,MATCH('Communication Facility (Desc)'!F39,[1]!MASTER_COUNTY_NAME[#Data],0),0)))","v":""},{"$f":"IF('Communication Facility (Desc)'!G39=\"\",\"\",'Communication Facility (Desc)'!G39)","v":""},{"$f":"IF('Communication Facility (Desc)'!H39=\"\",\"\",'Communication Facility (Desc)'!H39)","v":""},{"$f":"IF('Communication Facility (Desc)'!I39=\"\",\"\",'Communication Facility (Desc)'!I39)","v":""},{"$f":"IF('Communication Facility (Desc)'!J39=\"\",\"\",INDEX([1]CABINET_TYPE!$A$2:$A$100,MATCH('Communication Facility (Desc)'!$J39,[1]!MASTER_CABINET_TYPE_DESC[#Data],0),0))","v":""},{"$f":"IF('Communication Facility (Desc)'!K39=\"\",\"\",INDEX([1]CABINET_MOUNT_TYPE!$A$2:$A$100,MATCH('Communication Facility (Desc)'!K39,[1]!MASTER_CABINET_MOUNT_TYPE_DESC[#Data],0),0))","v":""},{"$f":"IF('Communication Facility (Desc)'!L39=\"\",\"\",INDEX([1]YES_NO!$A$2:$A$100,MATCH('Communication Facility (Desc)'!L39,[1]!MASTER_YES_NO_DESC[#Data],0),0))","v":""},{"$f":"IF('Communication Facility (Desc)'!M39=\"\",\"\",INDEX([1]BUILDING_TYPE!$A$2:$A$100,MATCH('Communication Facility (Desc)'!$M39,[1]!MASTER_BUILDING_TYPE_DESC[#Data],0),0))","v":""},{"$f":"IF('Communication Facility (Desc)'!N39=\"\",\"\",'Communication Facility (Desc)'!N39)","v":""},{"$f":"IF('Communication Facility (Desc)'!O39=\"\",\"\",INDEX([1]BUILDING_MTL!$A$2:$A$100,MATCH('Communication Facility (Desc)'!$O39,[1]!MASTER_BUILDING_MTL_DESC[#Data],0),0))","v":""},{"$f":"IF('Communication Facility (Desc)'!P39=\"\",\"\",INDEX([1]KEY_TYPE!$A$2:$A$100,MATCH('Communication Facility (Desc)'!$P39,[1]!MASTER_KEY_TYPE_DESC[#Data],0),0))","v":""},{"$f":"IF('Communication Facility (Desc)'!Q39=\"\",\"\",'Communication Facility (Desc)'!Q39)","v":""},{"$f":"IF('Communication Facility (Desc)'!R39=\"\",\"\",INDEX([1]FILTER_TYPE!$A$2:$A$100,MATCH('Communication Facility (Desc)'!$R39,[1]!MASTER_FILTER_TYPE_DESC[#Data],0),0))","v":""},{"$f":"IF('Communication Facility (Desc)'!S39=\"\",\"\",INDEX([1]FILTER_SIZE!$A$2:$A$100,MATCH('Communication Facility (Desc)'!$S39,[1]!MASTER_FILTER_SIZE_DESC[#Data],0),0))","v":""},{"$f":"IF('Communication Facility (Desc)'!T39=\"\",\"\",'Communication Facility (Desc)'!T39)","v":""},{"$f":"IF('Communication Facility (Desc)'!U39=\"\",\"\",INDEX([1]YES_NO!$A$2:$A$100,MATCH('Communication Facility (Desc)'!$U39,[1]!MASTER_YES_NO_DESC[#Data],0),0))","v":""},{"$f":"IF('Communication Facility (Desc)'!V39=\"\",\"\",INDEX([1]YES_NO!$A$2:$A$100,MATCH('Communication Facility (Desc)'!$V39,[1]!MASTER_YES_NO_DESC[#Data],0),0))","v":""}]
[{"$f":"IF('Communication Facility (Desc)'!A40=\"\",\"\",'Communication Facility (Desc)'!A40)","v":""},{"$f":"IF('Communication Facility (Desc)'!B40=\"\",\"\",'Communication Facility (Desc)'!B40)","v":""},{"$f":"IF('Communication Facility (Desc)'!C40=\"\",\"\",'Communication Facility (Desc)'!C40)","v":""},{"$f":"IF('Communication Facility (Desc)'!D40=\"\",\"\",INDEX([1]FACILITY_TYPE!$A$2:$A$100,MATCH('Communication Facility (Desc)'!$D40,[1]!MASTER_FACILITY_TYPE_DESC[#Data],0),0))","v":""},{"$f":"IF('Communication Facility (Desc)'!E40=\"\",\"\",INDEX([1]OWNER!$A$2:$A$100,MATCH('Communication Facility (Desc)'!$E40,[1]!MASTER_OWNER_DESC[#Data],0),0))","v":""},{"$f":"IF('Communication Facility (Desc)'!F40=\"\",\"\",IF('Communication Facility (Desc)'!F40=\"\",\"\",INDEX([1]COUNTY!$A$2:$A$80,MATCH('Communication Facility (Desc)'!F40,[1]!MASTER_COUNTY_NAME[#Data],0),0)))","v":""},{"$f":"IF('Communication Facility (Desc)'!G40=\"\",\"\",'Communication Facility (Desc)'!G40)","v":""},{"$f":"IF('Communication Facility (Desc)'!H40=\"\",\"\",'Communication Facility (Desc)'!H40)","v":""},{"$f":"IF('Communication Facility (Desc)'!I40=\"\",\"\",'Communication Facility (Desc)'!I40)","v":""},{"$f":"IF('Communication Facility (Desc)'!J40=\"\",\"\",INDEX([1]CABINET_TYPE!$A$2:$A$100,MATCH('Communication Facility (Desc)'!$J40,[1]!MASTER_CABINET_TYPE_DESC[#Data],0),0))","v":""},{"$f":"IF('Communication Facility (Desc)'!K40=\"\",\"\",INDEX([1]CABINET_MOUNT_TYPE!$A$2:$A$100,MATCH('Communication Facility (Desc)'!K40,[1]!MASTER_CABINET_MOUNT_TYPE_DESC[#Data],0),0))","v":""},{"$f":"IF('Communication Facility (Desc)'!L40=\"\",\"\",INDEX([1]YES_NO!$A$2:$A$100,MATCH('Communication Facility (Desc)'!L40,[1]!MASTER_YES_NO_DESC[#Data],0),0))","v":""},{"$f":"IF('Communication Facility (Desc)'!M40=\"\",\"\",INDEX([1]BUILDING_TYPE!$A$2:$A$100,MATCH('Communication Facility (Desc)'!$M40,[1]!MASTER_BUILDING_TYPE_DESC[#Data],0),0))","v":""},{"$f":"IF('Communication Facility (Desc)'!N40=\"\",\"\",'Communication Facility (Desc)'!N40)","v":""},{"$f":"IF('Communication Facility (Desc)'!O40=\"\",\"\",INDEX([1]BUILDING_MTL!$A$2:$A$100,MATCH('Communication Facility (Desc)'!$O40,[1]!MASTER_BUILDING_MTL_DESC[#Data],0),0))","v":""},{"$f":"IF('Communication Facility (Desc)'!P40=\"\",\"\",INDEX([1]KEY_TYPE!$A$2:$A$100,MATCH('Communication Facility (Desc)'!$P40,[1]!MASTER_KEY_TYPE_DESC[#Data],0),0))","v":""},{"$f":"IF('Communication Facility (Desc)'!Q40=\"\",\"\",'Communication Facility (Desc)'!Q40)","v":""},{"$f":"IF('Communication Facility (Desc)'!R40=\"\",\"\",INDEX([1]FILTER_TYPE!$A$2:$A$100,MATCH('Communication Facility (Desc)'!$R40,[1]!MASTER_FILTER_TYPE_DESC[#Data],0),0))","v":""},{"$f":"IF('Communication Facility (Desc)'!S40=\"\",\"\",INDEX([1]FILTER_SIZE!$A$2:$A$100,MATCH('Communication Facility (Desc)'!$S40,[1]!MASTER_FILTER_SIZE_DESC[#Data],0),0))","v":""},{"$f":"IF('Communication Facility (Desc)'!T40=\"\",\"\",'Communication Facility (Desc)'!T40)","v":""},{"$f":"IF('Communication Facility (Desc)'!U40=\"\",\"\",INDEX([1]YES_NO!$A$2:$A$100,MATCH('Communication Facility (Desc)'!$U40,[1]!MASTER_YES_NO_DESC[#Data],0),0))","v":""},{"$f":"IF('Communication Facility (Desc)'!V40=\"\",\"\",INDEX([1]YES_NO!$A$2:$A$100,MATCH('Communication Facility (Desc)'!$V40,[1]!MASTER_YES_NO_DESC[#Data],0),0))","v":""}]
[{"$f":"IF('Communication Facility (Desc)'!A41=\"\",\"\",'Communication Facility (Desc)'!A41)","v":""},{"$f":"IF('Communication Facility (Desc)'!B41=\"\",\"\",'Communication Facility (Desc)'!B41)","v":""},{"$f":"IF('Communication Facility (Desc)'!C41=\"\",\"\",'Communication Facility (Desc)'!C41)","v":""},{"$f":"IF('Communication Facility (Desc)'!D41=\"\",\"\",INDEX([1]FACILITY_TYPE!$A$2:$A$100,MATCH('Communication Facility (Desc)'!$D41,[1]!MASTER_FACILITY_TYPE_DESC[#Data],0),0))","v":""},{"$f":"IF('Communication Facility (Desc)'!E41=\"\",\"\",INDEX([1]OWNER!$A$2:$A$100,MATCH('Communication Facility (Desc)'!$E41,[1]!MASTER_OWNER_DESC[#Data],0),0))","v":""},{"$f":"IF('Communication Facility (Desc)'!F41=\"\",\"\",IF('Communication Facility (Desc)'!F41=\"\",\"\",INDEX([1]COUNTY!$A$2:$A$80,MATCH('Communication Facility (Desc)'!F41,[1]!MASTER_COUNTY_NAME[#Data],0),0)))","v":""},{"$f":"IF('Communication Facility (Desc)'!G41=\"\",\"\",'Communication Facility (Desc)'!G41)","v":""},{"$f":"IF('Communication Facility (Desc)'!H41=\"\",\"\",'Communication Facility (Desc)'!H41)","v":""},{"$f":"IF('Communication Facility (Desc)'!I41=\"\",\"\",'Communication Facility (Desc)'!I41)","v":""},{"$f":"IF('Communication Facility (Desc)'!J41=\"\",\"\",INDEX([1]CABINET_TYPE!$A$2:$A$100,MATCH('Communication Facility (Desc)'!$J41,[1]!MASTER_CABINET_TYPE_DESC[#Data],0),0))","v":""},{"$f":"IF('Communication Facility (Desc)'!K41=\"\",\"\",INDEX([1]CABINET_MOUNT_TYPE!$A$2:$A$100,MATCH('Communication Facility (Desc)'!K41,[1]!MASTER_CABINET_MOUNT_TYPE_DESC[#Data],0),0))","v":""},{"$f":"IF('Communication Facility (Desc)'!L41=\"\",\"\",INDEX([1]YES_NO!$A$2:$A$100,MATCH('Communication Facility (Desc)'!L41,[1]!MASTER_YES_NO_DESC[#Data],0),0))","v":""},{"$f":"IF('Communication Facility (Desc)'!M41=\"\",\"\",INDEX([1]BUILDING_TYPE!$A$2:$A$100,MATCH('Communication Facility (Desc)'!$M41,[1]!MASTER_BUILDING_TYPE_DESC[#Data],0),0))","v":""},{"$f":"IF('Communication Facility (Desc)'!N41=\"\",\"\",'Communication Facility (Desc)'!N41)","v":""},{"$f":"IF('Communication Facility (Desc)'!O41=\"\",\"\",INDEX([1]BUILDING_MTL!$A$2:$A$100,MATCH('Communication Facility (Desc)'!$O41,[1]!MASTER_BUILDING_MTL_DESC[#Data],0),0))","v":""},{"$f":"IF('Communication Facility (Desc)'!P41=\"\",\"\",INDEX([1]KEY_TYPE!$A$2:$A$100,MATCH('Communication Facility (Desc)'!$P41,[1]!MASTER_KEY_TYPE_DESC[#Data],0),0))","v":""},{"$f":"IF('Communication Facility (Desc)'!Q41=\"\",\"\",'Communication Facility (Desc)'!Q41)","v":""},{"$f":"IF('Communication Facility (Desc)'!R41=\"\",\"\",INDEX([1]FILTER_TYPE!$A$2:$A$100,MATCH('Communication Facility (Desc)'!$R41,[1]!MASTER_FILTER_TYPE_DESC[#Data],0),0))","v":""},{"$f":"IF('Communication Facility (Desc)'!S41=\"\",\"\",INDEX([1]FILTER_SIZE!$A$2:$A$100,MATCH('Communication Facility (Desc)'!$S41,[1]!MASTER_FILTER_SIZE_DESC[#Data],0),0))","v":""},{"$f":"IF('Communication Facility (Desc)'!T41=\"\",\"\",'Communication Facility (Desc)'!T41)","v":""},{"$f":"IF('Communication Facility (Desc)'!U41=\"\",\"\",INDEX([1]YES_NO!$A$2:$A$100,MATCH('Communication Facility (Desc)'!$U41,[1]!MASTER_YES_NO_DESC[#Data],0),0))","v":""},{"$f":"IF('Communication Facility (Desc)'!V41=\"\",\"\",INDEX([1]YES_NO!$A$2:$A$100,MATCH('Communication Facility (Desc)'!$V41,[1]!MASTER_YES_NO_DESC[#Data],0),0))","v":""}]
[{"$f":"IF('Communication Facility (Desc)'!A42=\"\",\"\",'Communication Facility (Desc)'!A42)","v":""},{"$f":"IF('Communication Facility (Desc)'!B42=\"\",\"\",'Communication Facility (Desc)'!B42)","v":""},{"$f":"IF('Communication Facility (Desc)'!C42=\"\",\"\",'Communication Facility (Desc)'!C42)","v":""},{"$f":"IF('Communication Facility (Desc)'!D42=\"\",\"\",INDEX([1]FACILITY_TYPE!$A$2:$A$100,MATCH('Communication Facility (Desc)'!$D42,[1]!MASTER_FACILITY_TYPE_DESC[#Data],0),0))","v":""},{"$f":"IF('Communication Facility (Desc)'!E42=\"\",\"\",INDEX([1]OWNER!$A$2:$A$100,MATCH('Communication Facility (Desc)'!$E42,[1]!MASTER_OWNER_DESC[#Data],0),0))","v":""},{"$f":"IF('Communication Facility (Desc)'!F42=\"\",\"\",IF('Communication Facility (Desc)'!F42=\"\",\"\",INDEX([1]COUNTY!$A$2:$A$80,MATCH('Communication Facility (Desc)'!F42,[1]!MASTER_COUNTY_NAME[#Data],0),0)))","v":""},{"$f":"IF('Communication Facility (Desc)'!G42=\"\",\"\",'Communication Facility (Desc)'!G42)","v":""},{"$f":"IF('Communication Facility (Desc)'!H42=\"\",\"\",'Communication Facility (Desc)'!H42)","v":""},{"$f":"IF('Communication Facility (Desc)'!I42=\"\",\"\",'Communication Facility (Desc)'!I42)","v":""},{"$f":"IF('Communication Facility (Desc)'!J42=\"\",\"\",INDEX([1]CABINET_TYPE!$A$2:$A$100,MATCH('Communication Facility (Desc)'!$J42,[1]!MASTER_CABINET_TYPE_DESC[#Data],0),0))","v":""},{"$f":"IF('Communication Facility (Desc)'!K42=\"\",\"\",INDEX([1]CABINET_MOUNT_TYPE!$A$2:$A$100,MATCH('Communication Facility (Desc)'!K42,[1]!MASTER_CABINET_MOUNT_TYPE_DESC[#Data],0),0))","v":""},{"$f":"IF('Communication Facility (Desc)'!L42=\"\",\"\",INDEX([1]YES_NO!$A$2:$A$100,MATCH('Communication Facility (Desc)'!L42,[1]!MASTER_YES_NO_DESC[#Data],0),0))","v":""},{"$f":"IF('Communication Facility (Desc)'!M42=\"\",\"\",INDEX([1]BUILDING_TYPE!$A$2:$A$100,MATCH('Communication Facility (Desc)'!$M42,[1]!MASTER_BUILDING_TYPE_DESC[#Data],0),0))","v":""},{"$f":"IF('Communication Facility (Desc)'!N42=\"\",\"\",'Communication Facility (Desc)'!N42)","v":""},{"$f":"IF('Communication Facility (Desc)'!O42=\"\",\"\",INDEX([1]BUILDING_MTL!$A$2:$A$100,MATCH('Communication Facility (Desc)'!$O42,[1]!MASTER_BUILDING_MTL_DESC[#Data],0),0))","v":""},{"$f":"IF('Communication Facility (Desc)'!P42=\"\",\"\",INDEX([1]KEY_TYPE!$A$2:$A$100,MATCH('Communication Facility (Desc)'!$P42,[1]!MASTER_KEY_TYPE_DESC[#Data],0),0))","v":""},{"$f":"IF('Communication Facility (Desc)'!Q42=\"\",\"\",'Communication Facility (Desc)'!Q42)","v":""},{"$f":"IF('Communication Facility (Desc)'!R42=\"\",\"\",INDEX([1]FILTER_TYPE!$A$2:$A$100,MATCH('Communication Facility (Desc)'!$R42,[1]!MASTER_FILTER_TYPE_DESC[#Data],0),0))","v":""},{"$f":"IF('Communication Facility (Desc)'!S42=\"\",\"\",INDEX([1]FILTER_SIZE!$A$2:$A$100,MATCH('Communication Facility (Desc)'!$S42,[1]!MASTER_FILTER_SIZE_DESC[#Data],0),0))","v":""},{"$f":"IF('Communication Facility (Desc)'!T42=\"\",\"\",'Communication Facility (Desc)'!T42)","v":""},{"$f":"IF('Communication Facility (Desc)'!U42=\"\",\"\",INDEX([1]YES_NO!$A$2:$A$100,MATCH('Communication Facility (Desc)'!$U42,[1]!MASTER_YES_NO_DESC[#Data],0),0))","v":""},{"$f":"IF('Communication Facility (Desc)'!V42=\"\",\"\",INDEX([1]YES_NO!$A$2:$A$100,MATCH('Communication Facility (Desc)'!$V42,[1]!MASTER_YES_NO_DESC[#Data],0),0))","v":""}]
[{"$f":"IF('Communication Facility (Desc)'!A43=\"\",\"\",'Communication Facility (Desc)'!A43)","v":""},{"$f":"IF('Communication Facility (Desc)'!B43=\"\",\"\",'Communication Facility (Desc)'!B43)","v":""},{"$f":"IF('Communication Facility (Desc)'!C43=\"\",\"\",'Communication Facility (Desc)'!C43)","v":""},{"$f":"IF('Communication Facility (Desc)'!D43=\"\",\"\",INDEX([1]FACILITY_TYPE!$A$2:$A$100,MATCH('Communication Facility (Desc)'!$D43,[1]!MASTER_FACILITY_TYPE_DESC[#Data],0),0))","v":""},{"$f":"IF('Communication Facility (Desc)'!E43=\"\",\"\",INDEX([1]OWNER!$A$2:$A$100,MATCH('Communication Facility (Desc)'!$E43,[1]!MASTER_OWNER_DESC[#Data],0),0))","v":""},{"$f":"IF('Communication Facility (Desc)'!F43=\"\",\"\",IF('Communication Facility (Desc)'!F43=\"\",\"\",INDEX([1]COUNTY!$A$2:$A$80,MATCH('Communication Facility (Desc)'!F43,[1]!MASTER_COUNTY_NAME[#Data],0),0)))","v":""},{"$f":"IF('Communication Facility (Desc)'!G43=\"\",\"\",'Communication Facility (Desc)'!G43)","v":""},{"$f":"IF('Communication Facility (Desc)'!H43=\"\",\"\",'Communication Facility (Desc)'!H43)","v":""},{"$f":"IF('Communication Facility (Desc)'!I43=\"\",\"\",'Communication Facility (Desc)'!I43)","v":""},{"$f":"IF('Communication Facility (Desc)'!J43=\"\",\"\",INDEX([1]CABINET_TYPE!$A$2:$A$100,MATCH('Communication Facility (Desc)'!$J43,[1]!MASTER_CABINET_TYPE_DESC[#Data],0),0))","v":""},{"$f":"IF('Communication Facility (Desc)'!K43=\"\",\"\",INDEX([1]CABINET_MOUNT_TYPE!$A$2:$A$100,MATCH('Communication Facility (Desc)'!K43,[1]!MASTER_CABINET_MOUNT_TYPE_DESC[#Data],0),0))","v":""},{"$f":"IF('Communication Facility (Desc)'!L43=\"\",\"\",INDEX([1]YES_NO!$A$2:$A$100,MATCH('Communication Facility (Desc)'!L43,[1]!MASTER_YES_NO_DESC[#Data],0),0))","v":""},{"$f":"IF('Communication Facility (Desc)'!M43=\"\",\"\",INDEX([1]BUILDING_TYPE!$A$2:$A$100,MATCH('Communication Facility (Desc)'!$M43,[1]!MASTER_BUILDING_TYPE_DESC[#Data],0),0))","v":""},{"$f":"IF('Communication Facility (Desc)'!N43=\"\",\"\",'Communication Facility (Desc)'!N43)","v":""},{"$f":"IF('Communication Facility (Desc)'!O43=\"\",\"\",INDEX([1]BUILDING_MTL!$A$2:$A$100,MATCH('Communication Facility (Desc)'!$O43,[1]!MASTER_BUILDING_MTL_DESC[#Data],0),0))","v":""},{"$f":"IF('Communication Facility (Desc)'!P43=\"\",\"\",INDEX([1]KEY_TYPE!$A$2:$A$100,MATCH('Communication Facility (Desc)'!$P43,[1]!MASTER_KEY_TYPE_DESC[#Data],0),0))","v":""},{"$f":"IF('Communication Facility (Desc)'!Q43=\"\",\"\",'Communication Facility (Desc)'!Q43)","v":""},{"$f":"IF('Communication Facility (Desc)'!R43=\"\",\"\",INDEX([1]FILTER_TYPE!$A$2:$A$100,MATCH('Communication Facility (Desc)'!$R43,[1]!MASTER_FILTER_TYPE_DESC[#Data],0),0))","v":""},{"$f":"IF('Communication Facility (Desc)'!S43=\"\",\"\",INDEX([1]FILTER_SIZE!$A$2:$A$100,MATCH('Communication Facility (Desc)'!$S43,[1]!MASTER_FILTER_SIZE_DESC[#Data],0),0))","v":""},{"$f":"IF('Communication Facility (Desc)'!T43=\"\",\"\",'Communication Facility (Desc)'!T43)","v":""},{"$f":"IF('Communication Facility (Desc)'!U43=\"\",\"\",INDEX([1]YES_NO!$A$2:$A$100,MATCH('Communication Facility (Desc)'!$U43,[1]!MASTER_YES_NO_DESC[#Data],0),0))","v":""},{"$f":"IF('Communication Facility (Desc)'!V43=\"\",\"\",INDEX([1]YES_NO!$A$2:$A$100,MATCH('Communication Facility (Desc)'!$V43,[1]!MASTER_YES_NO_DESC[#Data],0),0))","v":""}]
[{"$f":"IF('Communication Facility (Desc)'!A44=\"\",\"\",'Communication Facility (Desc)'!A44)","v":""},{"$f":"IF('Communication Facility (Desc)'!B44=\"\",\"\",'Communication Facility (Desc)'!B44)","v":""},{"$f":"IF('Communication Facility (Desc)'!C44=\"\",\"\",'Communication Facility (Desc)'!C44)","v":""},{"$f":"IF('Communication Facility (Desc)'!D44=\"\",\"\",INDEX([1]FACILITY_TYPE!$A$2:$A$100,MATCH('Communication Facility (Desc)'!$D44,[1]!MASTER_FACILITY_TYPE_DESC[#Data],0),0))","v":""},{"$f":"IF('Communication Facility (Desc)'!E44=\"\",\"\",INDEX([1]OWNER!$A$2:$A$100,MATCH('Communication Facility (Desc)'!$E44,[1]!MASTER_OWNER_DESC[#Data],0),0))","v":""},{"$f":"IF('Communication Facility (Desc)'!F44=\"\",\"\",IF('Communication Facility (Desc)'!F44=\"\",\"\",INDEX([1]COUNTY!$A$2:$A$80,MATCH('Communication Facility (Desc)'!F44,[1]!MASTER_COUNTY_NAME[#Data],0),0)))","v":""},{"$f":"IF('Communication Facility (Desc)'!G44=\"\",\"\",'Communication Facility (Desc)'!G44)","v":""},{"$f":"IF('Communication Facility (Desc)'!H44=\"\",\"\",'Communication Facility (Desc)'!H44)","v":""},{"$f":"IF('Communication Facility (Desc)'!I44=\"\",\"\",'Communication Facility (Desc)'!I44)","v":""},{"$f":"IF('Communication Facility (Desc)'!J44=\"\",\"\",INDEX([1]CABINET_TYPE!$A$2:$A$100,MATCH('Communication Facility (Desc)'!$J44,[1]!MASTER_CABINET_TYPE_DESC[#Data],0),0))","v":""},{"$f":"IF('Communication Facility (Desc)'!K44=\"\",\"\",INDEX([1]CABINET_MOUNT_TYPE!$A$2:$A$100,MATCH('Communication Facility (Desc)'!K44,[1]!MASTER_CABINET_MOUNT_TYPE_DESC[#Data],0),0))","v":""},{"$f":"IF('Communication Facility (Desc)'!L44=\"\",\"\",INDEX([1]YES_NO!$A$2:$A$100,MATCH('Communication Facility (Desc)'!L44,[1]!MASTER_YES_NO_DESC[#Data],0),0))","v":""},{"$f":"IF('Communication Facility (Desc)'!M44=\"\",\"\",INDEX([1]BUILDING_TYPE!$A$2:$A$100,MATCH('Communication Facility (Desc)'!$M44,[1]!MASTER_BUILDING_TYPE_DESC[#Data],0),0))","v":""},{"$f":"IF('Communication Facility (Desc)'!N44=\"\",\"\",'Communication Facility (Desc)'!N44)","v":""},{"$f":"IF('Communication Facility (Desc)'!O44=\"\",\"\",INDEX([1]BUILDING_MTL!$A$2:$A$100,MATCH('Communication Facility (Desc)'!$O44,[1]!MASTER_BUILDING_MTL_DESC[#Data],0),0))","v":""},{"$f":"IF('Communication Facility (Desc)'!P44=\"\",\"\",INDEX([1]KEY_TYPE!$A$2:$A$100,MATCH('Communication Facility (Desc)'!$P44,[1]!MASTER_KEY_TYPE_DESC[#Data],0),0))","v":""},{"$f":"IF('Communication Facility (Desc)'!Q44=\"\",\"\",'Communication Facility (Desc)'!Q44)","v":""},{"$f":"IF('Communication Facility (Desc)'!R44=\"\",\"\",INDEX([1]FILTER_TYPE!$A$2:$A$100,MATCH('Communication Facility (Desc)'!$R44,[1]!MASTER_FILTER_TYPE_DESC[#Data],0),0))","v":""},{"$f":"IF('Communication Facility (Desc)'!S44=\"\",\"\",INDEX([1]FILTER_SIZE!$A$2:$A$100,MATCH('Communication Facility (Desc)'!$S44,[1]!MASTER_FILTER_SIZE_DESC[#Data],0),0))","v":""},{"$f":"IF('Communication Facility (Desc)'!T44=\"\",\"\",'Communication Facility (Desc)'!T44)","v":""},{"$f":"IF('Communication Facility (Desc)'!U44=\"\",\"\",INDEX([1]YES_NO!$A$2:$A$100,MATCH('Communication Facility (Desc)'!$U44,[1]!MASTER_YES_NO_DESC[#Data],0),0))","v":""},{"$f":"IF('Communication Facility (Desc)'!V44=\"\",\"\",INDEX([1]YES_NO!$A$2:$A$100,MATCH('Communication Facility (Desc)'!$V44,[1]!MASTER_YES_NO_DESC[#Data],0),0))","v":""}]
[{"$f":"IF('Communication Facility (Desc)'!A45=\"\",\"\",'Communication Facility (Desc)'!A45)","v":""},{"$f":"IF('Communication Facility (Desc)'!B45=\"\",\"\",'Communication Facility (Desc)'!B45)","v":""},{"$f":"IF('Communication Facility (Desc)'!C45=\"\",\"\",'Communication Facility (Desc)'!C45)","v":""},{"$f":"IF('Communication Facility (Desc)'!D45=\"\",\"\",INDEX([1]FACILITY_TYPE!$A$2:$A$100,MATCH('Communication Facility (Desc)'!$D45,[1]!MASTER_FACILITY_TYPE_DESC[#Data],0),0))","v":""},{"$f":"IF('Communication Facility (Desc)'!E45=\"\",\"\",INDEX([1]OWNER!$A$2:$A$100,MATCH('Communication Facility (Desc)'!$E45,[1]!MASTER_OWNER_DESC[#Data],0),0))","v":""},{"$f":"IF('Communication Facility (Desc)'!F45=\"\",\"\",IF('Communication Facility (Desc)'!F45=\"\",\"\",INDEX([1]COUNTY!$A$2:$A$80,MATCH('Communication Facility (Desc)'!F45,[1]!MASTER_COUNTY_NAME[#Data],0),0)))","v":""},{"$f":"IF('Communication Facility (Desc)'!G45=\"\",\"\",'Communication Facility (Desc)'!G45)","v":""},{"$f":"IF('Communication Facility (Desc)'!H45=\"\",\"\",'Communication Facility (Desc)'!H45)","v":""},{"$f":"IF('Communication Facility (Desc)'!I45=\"\",\"\",'Communication Facility (Desc)'!I45)","v":""},{"$f":"IF('Communication Facility (Desc)'!J45=\"\",\"\",INDEX([1]CABINET_TYPE!$A$2:$A$100,MATCH('Communication Facility (Desc)'!$J45,[1]!MASTER_CABINET_TYPE_DESC[#Data],0),0))","v":""},{"$f":"IF('Communication Facility (Desc)'!K45=\"\",\"\",INDEX([1]CABINET_MOUNT_TYPE!$A$2:$A$100,MATCH('Communication Facility (Desc)'!K45,[1]!MASTER_CABINET_MOUNT_TYPE_DESC[#Data],0),0))","v":""},{"$f":"IF('Communication Facility (Desc)'!L45=\"\",\"\",INDEX([1]YES_NO!$A$2:$A$100,MATCH('Communication Facility (Desc)'!L45,[1]!MASTER_YES_NO_DESC[#Data],0),0))","v":""},{"$f":"IF('Communication Facility (Desc)'!M45=\"\",\"\",INDEX([1]BUILDING_TYPE!$A$2:$A$100,MATCH('Communication Facility (Desc)'!$M45,[1]!MASTER_BUILDING_TYPE_DESC[#Data],0),0))","v":""},{"$f":"IF('Communication Facility (Desc)'!N45=\"\",\"\",'Communication Facility (Desc)'!N45)","v":""},{"$f":"IF('Communication Facility (Desc)'!O45=\"\",\"\",INDEX([1]BUILDING_MTL!$A$2:$A$100,MATCH('Communication Facility (Desc)'!$O45,[1]!MASTER_BUILDING_MTL_DESC[#Data],0),0))","v":""},{"$f":"IF('Communication Facility (Desc)'!P45=\"\",\"\",INDEX([1]KEY_TYPE!$A$2:$A$100,MATCH('Communication Facility (Desc)'!$P45,[1]!MASTER_KEY_TYPE_DESC[#Data],0),0))","v":""},{"$f":"IF('Communication Facility (Desc)'!Q45=\"\",\"\",'Communication Facility (Desc)'!Q45)","v":""},{"$f":"IF('Communication Facility (Desc)'!R45=\"\",\"\",INDEX([1]FILTER_TYPE!$A$2:$A$100,MATCH('Communication Facility (Desc)'!$R45,[1]!MASTER_FILTER_TYPE_DESC[#Data],0),0))","v":""},{"$f":"IF('Communication Facility (Desc)'!S45=\"\",\"\",INDEX([1]FILTER_SIZE!$A$2:$A$100,MATCH('Communication Facility (Desc)'!$S45,[1]!MASTER_FILTER_SIZE_DESC[#Data],0),0))","v":""},{"$f":"IF('Communication Facility (Desc)'!T45=\"\",\"\",'Communication Facility (Desc)'!T45)","v":""},{"$f":"IF('Communication Facility (Desc)'!U45=\"\",\"\",INDEX([1]YES_NO!$A$2:$A$100,MATCH('Communication Facility (Desc)'!$U45,[1]!MASTER_YES_NO_DESC[#Data],0),0))","v":""},{"$f":"IF('Communication Facility (Desc)'!V45=\"\",\"\",INDEX([1]YES_NO!$A$2:$A$100,MATCH('Communication Facility (Desc)'!$V45,[1]!MASTER_YES_NO_DESC[#Data],0),0))","v":""}]
[{"$f":"IF('Communication Facility (Desc)'!A46=\"\",\"\",'Communication Facility (Desc)'!A46)","v":""},{"$f":"IF('Communication Facility (Desc)'!B46=\"\",\"\",'Communication Facility (Desc)'!B46)","v":""},{"$f":"IF('Communication Facility (Desc)'!C46=\"\",\"\",'Communication Facility (Desc)'!C46)","v":""},{"$f":"IF('Communication Facility (Desc)'!D46=\"\",\"\",INDEX([1]FACILITY_TYPE!$A$2:$A$100,MATCH('Communication Facility (Desc)'!$D46,[1]!MASTER_FACILITY_TYPE_DESC[#Data],0),0))","v":""},{"$f":"IF('Communication Facility (Desc)'!E46=\"\",\"\",INDEX([1]OWNER!$A$2:$A$100,MATCH('Communication Facility (Desc)'!$E46,[1]!MASTER_OWNER_DESC[#Data],0),0))","v":""},{"$f":"IF('Communication Facility (Desc)'!F46=\"\",\"\",IF('Communication Facility (Desc)'!F46=\"\",\"\",INDEX([1]COUNTY!$A$2:$A$80,MATCH('Communication Facility (Desc)'!F46,[1]!MASTER_COUNTY_NAME[#Data],0),0)))","v":""},{"$f":"IF('Communication Facility (Desc)'!G46=\"\",\"\",'Communication Facility (Desc)'!G46)","v":""},{"$f":"IF('Communication Facility (Desc)'!H46=\"\",\"\",'Communication Facility (Desc)'!H46)","v":""},{"$f":"IF('Communication Facility (Desc)'!I46=\"\",\"\",'Communication Facility (Desc)'!I46)","v":""},{"$f":"IF('Communication Facility (Desc)'!J46=\"\",\"\",INDEX([1]CABINET_TYPE!$A$2:$A$100,MATCH('Communication Facility (Desc)'!$J46,[1]!MASTER_CABINET_TYPE_DESC[#Data],0),0))","v":""},{"$f":"IF('Communication Facility (Desc)'!K46=\"\",\"\",INDEX([1]CABINET_MOUNT_TYPE!$A$2:$A$100,MATCH('Communication Facility (Desc)'!K46,[1]!MASTER_CABINET_MOUNT_TYPE_DESC[#Data],0),0))","v":""},{"$f":"IF('Communication Facility (Desc)'!L46=\"\",\"\",INDEX([1]YES_NO!$A$2:$A$100,MATCH('Communication Facility (Desc)'!L46,[1]!MASTER_YES_NO_DESC[#Data],0),0))","v":""},{"$f":"IF('Communication Facility (Desc)'!M46=\"\",\"\",INDEX([1]BUILDING_TYPE!$A$2:$A$100,MATCH('Communication Facility (Desc)'!$M46,[1]!MASTER_BUILDING_TYPE_DESC[#Data],0),0))","v":""},{"$f":"IF('Communication Facility (Desc)'!N46=\"\",\"\",'Communication Facility (Desc)'!N46)","v":""},{"$f":"IF('Communication Facility (Desc)'!O46=\"\",\"\",INDEX([1]BUILDING_MTL!$A$2:$A$100,MATCH('Communication Facility (Desc)'!$O46,[1]!MASTER_BUILDING_MTL_DESC[#Data],0),0))","v":""},{"$f":"IF('Communication Facility (Desc)'!P46=\"\",\"\",INDEX([1]KEY_TYPE!$A$2:$A$100,MATCH('Communication Facility (Desc)'!$P46,[1]!MASTER_KEY_TYPE_DESC[#Data],0),0))","v":""},{"$f":"IF('Communication Facility (Desc)'!Q46=\"\",\"\",'Communication Facility (Desc)'!Q46)","v":""},{"$f":"IF('Communication Facility (Desc)'!R46=\"\",\"\",INDEX([1]FILTER_TYPE!$A$2:$A$100,MATCH('Communication Facility (Desc)'!$R46,[1]!MASTER_FILTER_TYPE_DESC[#Data],0),0))","v":""},{"$f":"IF('Communication Facility (Desc)'!S46=\"\",\"\",INDEX([1]FILTER_SIZE!$A$2:$A$100,MATCH('Communication Facility (Desc)'!$S46,[1]!MASTER_FILTER_SIZE_DESC[#Data],0),0))","v":""},{"$f":"IF('Communication Facility (Desc)'!T46=\"\",\"\",'Communication Facility (Desc)'!T46)","v":""},{"$f":"IF('Communication Facility (Desc)'!U46=\"\",\"\",INDEX([1]YES_NO!$A$2:$A$100,MATCH('Communication Facility (Desc)'!$U46,[1]!MASTER_YES_NO_DESC[#Data],0),0))","v":""},{"$f":"IF('Communication Facility (Desc)'!V46=\"\",\"\",INDEX([1]YES_NO!$A$2:$A$100,MATCH('Communication Facility (Desc)'!$V46,[1]!MASTER_YES_NO_DESC[#Data],0),0))","v":""}]
[{"$f":"IF('Communication Facility (Desc)'!A47=\"\",\"\",'Communication Facility (Desc)'!A47)","v":""},{"$f":"IF('Communication Facility (Desc)'!B47=\"\",\"\",'Communication Facility (Desc)'!B47)","v":""},{"$f":"IF('Communication Facility (Desc)'!C47=\"\",\"\",'Communication Facility (Desc)'!C47)","v":""},{"$f":"IF('Communication Facility (Desc)'!D47=\"\",\"\",INDEX([1]FACILITY_TYPE!$A$2:$A$100,MATCH('Communication Facility (Desc)'!$D47,[1]!MASTER_FACILITY_TYPE_DESC[#Data],0),0))","v":""},{"$f":"IF('Communication Facility (Desc)'!E47=\"\",\"\",INDEX([1]OWNER!$A$2:$A$100,MATCH('Communication Facility (Desc)'!$E47,[1]!MASTER_OWNER_DESC[#Data],0),0))","v":""},{"$f":"IF('Communication Facility (Desc)'!F47=\"\",\"\",IF('Communication Facility (Desc)'!F47=\"\",\"\",INDEX([1]COUNTY!$A$2:$A$80,MATCH('Communication Facility (Desc)'!F47,[1]!MASTER_COUNTY_NAME[#Data],0),0)))","v":""},{"$f":"IF('Communication Facility (Desc)'!G47=\"\",\"\",'Communication Facility (Desc)'!G47)","v":""},{"$f":"IF('Communication Facility (Desc)'!H47=\"\",\"\",'Communication Facility (Desc)'!H47)","v":""},{"$f":"IF('Communication Facility (Desc)'!I47=\"\",\"\",'Communication Facility (Desc)'!I47)","v":""},{"$f":"IF('Communication Facility (Desc)'!J47=\"\",\"\",INDEX([1]CABINET_TYPE!$A$2:$A$100,MATCH('Communication Facility (Desc)'!$J47,[1]!MASTER_CABINET_TYPE_DESC[#Data],0),0))","v":""},{"$f":"IF('Communication Facility (Desc)'!K47=\"\",\"\",INDEX([1]CABINET_MOUNT_TYPE!$A$2:$A$100,MATCH('Communication Facility (Desc)'!K47,[1]!MASTER_CABINET_MOUNT_TYPE_DESC[#Data],0),0))","v":""},{"$f":"IF('Communication Facility (Desc)'!L47=\"\",\"\",INDEX([1]YES_NO!$A$2:$A$100,MATCH('Communication Facility (Desc)'!L47,[1]!MASTER_YES_NO_DESC[#Data],0),0))","v":""},{"$f":"IF('Communication Facility (Desc)'!M47=\"\",\"\",INDEX([1]BUILDING_TYPE!$A$2:$A$100,MATCH('Communication Facility (Desc)'!$M47,[1]!MASTER_BUILDING_TYPE_DESC[#Data],0),0))","v":""},{"$f":"IF('Communication Facility (Desc)'!N47=\"\",\"\",'Communication Facility (Desc)'!N47)","v":""},{"$f":"IF('Communication Facility (Desc)'!O47=\"\",\"\",INDEX([1]BUILDING_MTL!$A$2:$A$100,MATCH('Communication Facility (Desc)'!$O47,[1]!MASTER_BUILDING_MTL_DESC[#Data],0),0))","v":""},{"$f":"IF('Communication Facility (Desc)'!P47=\"\",\"\",INDEX([1]KEY_TYPE!$A$2:$A$100,MATCH('Communication Facility (Desc)'!$P47,[1]!MASTER_KEY_TYPE_DESC[#Data],0),0))","v":""},{"$f":"IF('Communication Facility (Desc)'!Q47=\"\",\"\",'Communication Facility (Desc)'!Q47)","v":""},{"$f":"IF('Communication Facility (Desc)'!R47=\"\",\"\",INDEX([1]FILTER_TYPE!$A$2:$A$100,MATCH('Communication Facility (Desc)'!$R47,[1]!MASTER_FILTER_TYPE_DESC[#Data],0),0))","v":""},{"$f":"IF('Communication Facility (Desc)'!S47=\"\",\"\",INDEX([1]FILTER_SIZE!$A$2:$A$100,MATCH('Communication Facility (Desc)'!$S47,[1]!MASTER_FILTER_SIZE_DESC[#Data],0),0))","v":""},{"$f":"IF('Communication Facility (Desc)'!T47=\"\",\"\",'Communication Facility (Desc)'!T47)","v":""},{"$f":"IF('Communication Facility (Desc)'!U47=\"\",\"\",INDEX([1]YES_NO!$A$2:$A$100,MATCH('Communication Facility (Desc)'!$U47,[1]!MASTER_YES_NO_DESC[#Data],0),0))","v":""},{"$f":"IF('Communication Facility (Desc)'!V47=\"\",\"\",INDEX([1]YES_NO!$A$2:$A$100,MATCH('Communication Facility (Desc)'!$V47,[1]!MASTER_YES_NO_DESC[#Data],0),0))","v":""}]
[{"$f":"IF('Communication Facility (Desc)'!A48=\"\",\"\",'Communication Facility (Desc)'!A48)","v":""},{"$f":"IF('Communication Facility (Desc)'!B48=\"\",\"\",'Communication Facility (Desc)'!B48)","v":""},{"$f":"IF('Communication Facility (Desc)'!C48=\"\",\"\",'Communication Facility (Desc)'!C48)","v":""},{"$f":"IF('Communication Facility (Desc)'!D48=\"\",\"\",INDEX([1]FACILITY_TYPE!$A$2:$A$100,MATCH('Communication Facility (Desc)'!$D48,[1]!MASTER_FACILITY_TYPE_DESC[#Data],0),0))","v":""},{"$f":"IF('Communication Facility (Desc)'!E48=\"\",\"\",INDEX([1]OWNER!$A$2:$A$100,MATCH('Communication Facility (Desc)'!$E48,[1]!MASTER_OWNER_DESC[#Data],0),0))","v":""},{"$f":"IF('Communication Facility (Desc)'!F48=\"\",\"\",IF('Communication Facility (Desc)'!F48=\"\",\"\",INDEX([1]COUNTY!$A$2:$A$80,MATCH('Communication Facility (Desc)'!F48,[1]!MASTER_COUNTY_NAME[#Data],0),0)))","v":""},{"$f":"IF('Communication Facility (Desc)'!G48=\"\",\"\",'Communication Facility (Desc)'!G48)","v":""},{"$f":"IF('Communication Facility (Desc)'!H48=\"\",\"\",'Communication Facility (Desc)'!H48)","v":""},{"$f":"IF('Communication Facility (Desc)'!I48=\"\",\"\",'Communication Facility (Desc)'!I48)","v":""},{"$f":"IF('Communication Facility (Desc)'!J48=\"\",\"\",INDEX([1]CABINET_TYPE!$A$2:$A$100,MATCH('Communication Facility (Desc)'!$J48,[1]!MASTER_CABINET_TYPE_DESC[#Data],0),0))","v":""},{"$f":"IF('Communication Facility (Desc)'!K48=\"\",\"\",INDEX([1]CABINET_MOUNT_TYPE!$A$2:$A$100,MATCH('Communication Facility (Desc)'!K48,[1]!MASTER_CABINET_MOUNT_TYPE_DESC[#Data],0),0))","v":""},{"$f":"IF('Communication Facility (Desc)'!L48=\"\",\"\",INDEX([1]YES_NO!$A$2:$A$100,MATCH('Communication Facility (Desc)'!L48,[1]!MASTER_YES_NO_DESC[#Data],0),0))","v":""},{"$f":"IF('Communication Facility (Desc)'!M48=\"\",\"\",INDEX([1]BUILDING_TYPE!$A$2:$A$100,MATCH('Communication Facility (Desc)'!$M48,[1]!MASTER_BUILDING_TYPE_DESC[#Data],0),0))","v":""},{"$f":"IF('Communication Facility (Desc)'!N48=\"\",\"\",'Communication Facility (Desc)'!N48)","v":""},{"$f":"IF('Communication Facility (Desc)'!O48=\"\",\"\",INDEX([1]BUILDING_MTL!$A$2:$A$100,MATCH('Communication Facility (Desc)'!$O48,[1]!MASTER_BUILDING_MTL_DESC[#Data],0),0))","v":""},{"$f":"IF('Communication Facility (Desc)'!P48=\"\",\"\",INDEX([1]KEY_TYPE!$A$2:$A$100,MATCH('Communication Facility (Desc)'!$P48,[1]!MASTER_KEY_TYPE_DESC[#Data],0),0))","v":""},{"$f":"IF('Communication Facility (Desc)'!Q48=\"\",\"\",'Communication Facility (Desc)'!Q48)","v":""},{"$f":"IF('Communication Facility (Desc)'!R48=\"\",\"\",INDEX([1]FILTER_TYPE!$A$2:$A$100,MATCH('Communication Facility (Desc)'!$R48,[1]!MASTER_FILTER_TYPE_DESC[#Data],0),0))","v":""},{"$f":"IF('Communication Facility (Desc)'!S48=\"\",\"\",INDEX([1]FILTER_SIZE!$A$2:$A$100,MATCH('Communication Facility (Desc)'!$S48,[1]!MASTER_FILTER_SIZE_DESC[#Data],0),0))","v":""},{"$f":"IF('Communication Facility (Desc)'!T48=\"\",\"\",'Communication Facility (Desc)'!T48)","v":""},{"$f":"IF('Communication Facility (Desc)'!U48=\"\",\"\",INDEX([1]YES_NO!$A$2:$A$100,MATCH('Communication Facility (Desc)'!$U48,[1]!MASTER_YES_NO_DESC[#Data],0),0))","v":""},{"$f":"IF('Communication Facility (Desc)'!V48=\"\",\"\",INDEX([1]YES_NO!$A$2:$A$100,MATCH('Communication Facility (Desc)'!$V48,[1]!MASTER_YES_NO_DESC[#Data],0),0))","v":""}]
[{"$f":"IF('Communication Facility (Desc)'!A49=\"\",\"\",'Communication Facility (Desc)'!A49)","v":""},{"$f":"IF('Communication Facility (Desc)'!B49=\"\",\"\",'Communication Facility (Desc)'!B49)","v":""},{"$f":"IF('Communication Facility (Desc)'!C49=\"\",\"\",'Communication Facility (Desc)'!C49)","v":""},{"$f":"IF('Communication Facility (Desc)'!D49=\"\",\"\",INDEX([1]FACILITY_TYPE!$A$2:$A$100,MATCH('Communication Facility (Desc)'!$D49,[1]!MASTER_FACILITY_TYPE_DESC[#Data],0),0))","v":""},{"$f":"IF('Communication Facility (Desc)'!E49=\"\",\"\",INDEX([1]OWNER!$A$2:$A$100,MATCH('Communication Facility (Desc)'!$E49,[1]!MASTER_OWNER_DESC[#Data],0),0))","v":""},{"$f":"IF('Communication Facility (Desc)'!F49=\"\",\"\",IF('Communication Facility (Desc)'!F49=\"\",\"\",INDEX([1]COUNTY!$A$2:$A$80,MATCH('Communication Facility (Desc)'!F49,[1]!MASTER_COUNTY_NAME[#Data],0),0)))","v":""},{"$f":"IF('Communication Facility (Desc)'!G49=\"\",\"\",'Communication Facility (Desc)'!G49)","v":""},{"$f":"IF('Communication Facility (Desc)'!H49=\"\",\"\",'Communication Facility (Desc)'!H49)","v":""},{"$f":"IF('Communication Facility (Desc)'!I49=\"\",\"\",'Communication Facility (Desc)'!I49)","v":""},{"$f":"IF('Communication Facility (Desc)'!J49=\"\",\"\",INDEX([1]CABINET_TYPE!$A$2:$A$100,MATCH('Communication Facility (Desc)'!$J49,[1]!MASTER_CABINET_TYPE_DESC[#Data],0),0))","v":""},{"$f":"IF('Communication Facility (Desc)'!K49=\"\",\"\",INDEX([1]CABINET_MOUNT_TYPE!$A$2:$A$100,MATCH('Communication Facility (Desc)'!K49,[1]!MASTER_CABINET_MOUNT_TYPE_DESC[#Data],0),0))","v":""},{"$f":"IF('Communication Facility (Desc)'!L49=\"\",\"\",INDEX([1]YES_NO!$A$2:$A$100,MATCH('Communication Facility (Desc)'!L49,[1]!MASTER_YES_NO_DESC[#Data],0),0))","v":""},{"$f":"IF('Communication Facility (Desc)'!M49=\"\",\"\",INDEX([1]BUILDING_TYPE!$A$2:$A$100,MATCH('Communication Facility (Desc)'!$M49,[1]!MASTER_BUILDING_TYPE_DESC[#Data],0),0))","v":""},{"$f":"IF('Communication Facility (Desc)'!N49=\"\",\"\",'Communication Facility (Desc)'!N49)","v":""},{"$f":"IF('Communication Facility (Desc)'!O49=\"\",\"\",INDEX([1]BUILDING_MTL!$A$2:$A$100,MATCH('Communication Facility (Desc)'!$O49,[1]!MASTER_BUILDING_MTL_DESC[#Data],0),0))","v":""},{"$f":"IF('Communication Facility (Desc)'!P49=\"\",\"\",INDEX([1]KEY_TYPE!$A$2:$A$100,MATCH('Communication Facility (Desc)'!$P49,[1]!MASTER_KEY_TYPE_DESC[#Data],0),0))","v":""},{"$f":"IF('Communication Facility (Desc)'!Q49=\"\",\"\",'Communication Facility (Desc)'!Q49)","v":""},{"$f":"IF('Communication Facility (Desc)'!R49=\"\",\"\",INDEX([1]FILTER_TYPE!$A$2:$A$100,MATCH('Communication Facility (Desc)'!$R49,[1]!MASTER_FILTER_TYPE_DESC[#Data],0),0))","v":""},{"$f":"IF('Communication Facility (Desc)'!S49=\"\",\"\",INDEX([1]FILTER_SIZE!$A$2:$A$100,MATCH('Communication Facility (Desc)'!$S49,[1]!MASTER_FILTER_SIZE_DESC[#Data],0),0))","v":""},{"$f":"IF('Communication Facility (Desc)'!T49=\"\",\"\",'Communication Facility (Desc)'!T49)","v":""},{"$f":"IF('Communication Facility (Desc)'!U49=\"\",\"\",INDEX([1]YES_NO!$A$2:$A$100,MATCH('Communication Facility (Desc)'!$U49,[1]!MASTER_YES_NO_DESC[#Data],0),0))","v":""},{"$f":"IF('Communication Facility (Desc)'!V49=\"\",\"\",INDEX([1]YES_NO!$A$2:$A$100,MATCH('Communication Facility (Desc)'!$V49,[1]!MASTER_YES_NO_DESC[#Data],0),0))","v":""}]
[{"$f":"IF('Communication Facility (Desc)'!A50=\"\",\"\",'Communication Facility (Desc)'!A50)","v":""},{"$f":"IF('Communication Facility (Desc)'!B50=\"\",\"\",'Communication Facility (Desc)'!B50)","v":""},{"$f":"IF('Communication Facility (Desc)'!C50=\"\",\"\",'Communication Facility (Desc)'!C50)","v":""},{"$f":"IF('Communication Facility (Desc)'!D50=\"\",\"\",INDEX([1]FACILITY_TYPE!$A$2:$A$100,MATCH('Communication Facility (Desc)'!$D50,[1]!MASTER_FACILITY_TYPE_DESC[#Data],0),0))","v":""},{"$f":"IF('Communication Facility (Desc)'!E50=\"\",\"\",INDEX([1]OWNER!$A$2:$A$100,MATCH('Communication Facility (Desc)'!$E50,[1]!MASTER_OWNER_DESC[#Data],0),0))","v":""},{"$f":"IF('Communication Facility (Desc)'!F50=\"\",\"\",IF('Communication Facility (Desc)'!F50=\"\",\"\",INDEX([1]COUNTY!$A$2:$A$80,MATCH('Communication Facility (Desc)'!F50,[1]!MASTER_COUNTY_NAME[#Data],0),0)))","v":""},{"$f":"IF('Communication Facility (Desc)'!G50=\"\",\"\",'Communication Facility (Desc)'!G50)","v":""},{"$f":"IF('Communication Facility (Desc)'!H50=\"\",\"\",'Communication Facility (Desc)'!H50)","v":""},{"$f":"IF('Communication Facility (Desc)'!I50=\"\",\"\",'Communication Facility (Desc)'!I50)","v":""},{"$f":"IF('Communication Facility (Desc)'!J50=\"\",\"\",INDEX([1]CABINET_TYPE!$A$2:$A$100,MATCH('Communication Facility (Desc)'!$J50,[1]!MASTER_CABINET_TYPE_DESC[#Data],0),0))","v":""},{"$f":"IF('Communication Facility (Desc)'!K50=\"\",\"\",INDEX([1]CABINET_MOUNT_TYPE!$A$2:$A$100,MATCH('Communication Facility (Desc)'!K50,[1]!MASTER_CABINET_MOUNT_TYPE_DESC[#Data],0),0))","v":""},{"$f":"IF('Communication Facility (Desc)'!L50=\"\",\"\",INDEX([1]YES_NO!$A$2:$A$100,MATCH('Communication Facility (Desc)'!L50,[1]!MASTER_YES_NO_DESC[#Data],0),0))","v":""},{"$f":"IF('Communication Facility (Desc)'!M50=\"\",\"\",INDEX([1]BUILDING_TYPE!$A$2:$A$100,MATCH('Communication Facility (Desc)'!$M50,[1]!MASTER_BUILDING_TYPE_DESC[#Data],0),0))","v":""},{"$f":"IF('Communication Facility (Desc)'!N50=\"\",\"\",'Communication Facility (Desc)'!N50)","v":""},{"$f":"IF('Communication Facility (Desc)'!O50=\"\",\"\",INDEX([1]BUILDING_MTL!$A$2:$A$100,MATCH('Communication Facility (Desc)'!$O50,[1]!MASTER_BUILDING_MTL_DESC[#Data],0),0))","v":""},{"$f":"IF('Communication Facility (Desc)'!P50=\"\",\"\",INDEX([1]KEY_TYPE!$A$2:$A$100,MATCH('Communication Facility (Desc)'!$P50,[1]!MASTER_KEY_TYPE_DESC[#Data],0),0))","v":""},{"$f":"IF('Communication Facility (Desc)'!Q50=\"\",\"\",'Communication Facility (Desc)'!Q50)","v":""},{"$f":"IF('Communication Facility (Desc)'!R50=\"\",\"\",INDEX([1]FILTER_TYPE!$A$2:$A$100,MATCH('Communication Facility (Desc)'!$R50,[1]!MASTER_FILTER_TYPE_DESC[#Data],0),0))","v":""},{"$f":"IF('Communication Facility (Desc)'!S50=\"\",\"\",INDEX([1]FILTER_SIZE!$A$2:$A$100,MATCH('Communication Facility (Desc)'!$S50,[1]!MASTER_FILTER_SIZE_DESC[#Data],0),0))","v":""},{"$f":"IF('Communication Facility (Desc)'!T50=\"\",\"\",'Communication Facility (Desc)'!T50)","v":""},{"$f":"IF('Communication Facility (Desc)'!U50=\"\",\"\",INDEX([1]YES_NO!$A$2:$A$100,MATCH('Communication Facility (Desc)'!$U50,[1]!MASTER_YES_NO_DESC[#Data],0),0))","v":""},{"$f":"IF('Communication Facility (Desc)'!V50=\"\",\"\",INDEX([1]YES_NO!$A$2:$A$100,MATCH('Communication Facility (Desc)'!$V50,[1]!MASTER_YES_NO_DESC[#Data],0),0))","v":""}]
[{"$f":"IF('Communication Facility (Desc)'!A51=\"\",\"\",'Communication Facility (Desc)'!A51)","v":""},{"$f":"IF('Communication Facility (Desc)'!B51=\"\",\"\",'Communication Facility (Desc)'!B51)","v":""},{"$f":"IF('Communication Facility (Desc)'!C51=\"\",\"\",'Communication Facility (Desc)'!C51)","v":""},{"$f":"IF('Communication Facility (Desc)'!D51=\"\",\"\",INDEX([1]FACILITY_TYPE!$A$2:$A$100,MATCH('Communication Facility (Desc)'!$D51,[1]!MASTER_FACILITY_TYPE_DESC[#Data],0),0))","v":""},{"$f":"IF('Communication Facility (Desc)'!E51=\"\",\"\",INDEX([1]OWNER!$A$2:$A$100,MATCH('Communication Facility (Desc)'!$E51,[1]!MASTER_OWNER_DESC[#Data],0),0))","v":""},{"$f":"IF('Communication Facility (Desc)'!F51=\"\",\"\",IF('Communication Facility (Desc)'!F51=\"\",\"\",INDEX([1]COUNTY!$A$2:$A$80,MATCH('Communication Facility (Desc)'!F51,[1]!MASTER_COUNTY_NAME[#Data],0),0)))","v":""},{"$f":"IF('Communication Facility (Desc)'!G51=\"\",\"\",'Communication Facility (Desc)'!G51)","v":""},{"$f":"IF('Communication Facility (Desc)'!H51=\"\",\"\",'Communication Facility (Desc)'!H51)","v":""},{"$f":"IF('Communication Facility (Desc)'!I51=\"\",\"\",'Communication Facility (Desc)'!I51)","v":""},{"$f":"IF('Communication Facility (Desc)'!J51=\"\",\"\",INDEX([1]CABINET_TYPE!$A$2:$A$100,MATCH('Communication Facility (Desc)'!$J51,[1]!MASTER_CABINET_TYPE_DESC[#Data],0),0))","v":""},{"$f":"IF('Communication Facility (Desc)'!K51=\"\",\"\",INDEX([1]CABINET_MOUNT_TYPE!$A$2:$A$100,MATCH('Communication Facility (Desc)'!K51,[1]!MASTER_CABINET_MOUNT_TYPE_DESC[#Data],0),0))","v":""},{"$f":"IF('Communication Facility (Desc)'!L51=\"\",\"\",INDEX([1]YES_NO!$A$2:$A$100,MATCH('Communication Facility (Desc)'!L51,[1]!MASTER_YES_NO_DESC[#Data],0),0))","v":""},{"$f":"IF('Communication Facility (Desc)'!M51=\"\",\"\",INDEX([1]BUILDING_TYPE!$A$2:$A$100,MATCH('Communication Facility (Desc)'!$M51,[1]!MASTER_BUILDING_TYPE_DESC[#Data],0),0))","v":""},{"$f":"IF('Communication Facility (Desc)'!N51=\"\",\"\",'Communication Facility (Desc)'!N51)","v":""},{"$f":"IF('Communication Facility (Desc)'!O51=\"\",\"\",INDEX([1]BUILDING_MTL!$A$2:$A$100,MATCH('Communication Facility (Desc)'!$O51,[1]!MASTER_BUILDING_MTL_DESC[#Data],0),0))","v":""},{"$f":"IF('Communication Facility (Desc)'!P51=\"\",\"\",INDEX([1]KEY_TYPE!$A$2:$A$100,MATCH('Communication Facility (Desc)'!$P51,[1]!MASTER_KEY_TYPE_DESC[#Data],0),0))","v":""},{"$f":"IF('Communication Facility (Desc)'!Q51=\"\",\"\",'Communication Facility (Desc)'!Q51)","v":""},{"$f":"IF('Communication Facility (Desc)'!R51=\"\",\"\",INDEX([1]FILTER_TYPE!$A$2:$A$100,MATCH('Communication Facility (Desc)'!$R51,[1]!MASTER_FILTER_TYPE_DESC[#Data],0),0))","v":""},{"$f":"IF('Communication Facility (Desc)'!S51=\"\",\"\",INDEX([1]FILTER_SIZE!$A$2:$A$100,MATCH('Communication Facility (Desc)'!$S51,[1]!MASTER_FILTER_SIZE_DESC[#Data],0),0))","v":""},{"$f":"IF('Communication Facility (Desc)'!T51=\"\",\"\",'Communication Facility (Desc)'!T51)","v":""},{"$f":"IF('Communication Facility (Desc)'!U51=\"\",\"\",INDEX([1]YES_NO!$A$2:$A$100,MATCH('Communication Facility (Desc)'!$U51,[1]!MASTER_YES_NO_DESC[#Data],0),0))","v":""},{"$f":"IF('Communication Facility (Desc)'!V51=\"\",\"\",INDEX([1]YES_NO!$A$2:$A$100,MATCH('Communication Facility (Desc)'!$V51,[1]!MASTER_YES_NO_DESC[#Data],0),0))","v":""}]
[{"$f":"IF('Communication Facility (Desc)'!A52=\"\",\"\",'Communication Facility (Desc)'!A52)","v":""},{"$f":"IF('Communication Facility (Desc)'!B52=\"\",\"\",'Communication Facility (Desc)'!B52)","v":""},{"$f":"IF('Communication Facility (Desc)'!C52=\"\",\"\",'Communication Facility (Desc)'!C52)","v":""},{"$f":"IF('Communication Facility (Desc)'!D52=\"\",\"\",INDEX([1]FACILITY_TYPE!$A$2:$A$100,MATCH('Communication Facility (Desc)'!$D52,[1]!MASTER_FACILITY_TYPE_DESC[#Data],0),0))","v":""},{"$f":"IF('Communication Facility (Desc)'!E52=\"\",\"\",INDEX([1]OWNER!$A$2:$A$100,MATCH('Communication Facility (Desc)'!$E52,[1]!MASTER_OWNER_DESC[#Data],0),0))","v":""},{"$f":"IF('Communication Facility (Desc)'!F52=\"\",\"\",IF('Communication Facility (Desc)'!F52=\"\",\"\",INDEX([1]COUNTY!$A$2:$A$80,MATCH('Communication Facility (Desc)'!F52,[1]!MASTER_COUNTY_NAME[#Data],0),0)))","v":""},{"$f":"IF('Communication Facility (Desc)'!G52=\"\",\"\",'Communication Facility (Desc)'!G52)","v":""},{"$f":"IF('Communication Facility (Desc)'!H52=\"\",\"\",'Communication Facility (Desc)'!H52)","v":""},{"$f":"IF('Communication Facility (Desc)'!I52=\"\",\"\",'Communication Facility (Desc)'!I52)","v":""},{"$f":"IF('Communication Facility (Desc)'!J52=\"\",\"\",INDEX([1]CABINET_TYPE!$A$2:$A$100,MATCH('Communication Facility (Desc)'!$J52,[1]!MASTER_CABINET_TYPE_DESC[#Data],0),0))","v":""},{"$f":"IF('Communication Facility (Desc)'!K52=\"\",\"\",INDEX([1]CABINET_MOUNT_TYPE!$A$2:$A$100,MATCH('Communication Facility (Desc)'!K52,[1]!MASTER_CABINET_MOUNT_TYPE_DESC[#Data],0),0))","v":""},{"$f":"IF('Communication Facility (Desc)'!L52=\"\",\"\",INDEX([1]YES_NO!$A$2:$A$100,MATCH('Communication Facility (Desc)'!L52,[1]!MASTER_YES_NO_DESC[#Data],0),0))","v":""},{"$f":"IF('Communication Facility (Desc)'!M52=\"\",\"\",INDEX([1]BUILDING_TYPE!$A$2:$A$100,MATCH('Communication Facility (Desc)'!$M52,[1]!MASTER_BUILDING_TYPE_DESC[#Data],0),0))","v":""},{"$f":"IF('Communication Facility (Desc)'!N52=\"\",\"\",'Communication Facility (Desc)'!N52)","v":""},{"$f":"IF('Communication Facility (Desc)'!O52=\"\",\"\",INDEX([1]BUILDING_MTL!$A$2:$A$100,MATCH('Communication Facility (Desc)'!$O52,[1]!MASTER_BUILDING_MTL_DESC[#Data],0),0))","v":""},{"$f":"IF('Communication Facility (Desc)'!P52=\"\",\"\",INDEX([1]KEY_TYPE!$A$2:$A$100,MATCH('Communication Facility (Desc)'!$P52,[1]!MASTER_KEY_TYPE_DESC[#Data],0),0))","v":""},{"$f":"IF('Communication Facility (Desc)'!Q52=\"\",\"\",'Communication Facility (Desc)'!Q52)","v":""},{"$f":"IF('Communication Facility (Desc)'!R52=\"\",\"\",INDEX([1]FILTER_TYPE!$A$2:$A$100,MATCH('Communication Facility (Desc)'!$R52,[1]!MASTER_FILTER_TYPE_DESC[#Data],0),0))","v":""},{"$f":"IF('Communication Facility (Desc)'!S52=\"\",\"\",INDEX([1]FILTER_SIZE!$A$2:$A$100,MATCH('Communication Facility (Desc)'!$S52,[1]!MASTER_FILTER_SIZE_DESC[#Data],0),0))","v":""},{"$f":"IF('Communication Facility (Desc)'!T52=\"\",\"\",'Communication Facility (Desc)'!T52)","v":""},{"$f":"IF('Communication Facility (Desc)'!U52=\"\",\"\",INDEX([1]YES_NO!$A$2:$A$100,MATCH('Communication Facility (Desc)'!$U52,[1]!MASTER_YES_NO_DESC[#Data],0),0))","v":""},{"$f":"IF('Communication Facility (Desc)'!V52=\"\",\"\",INDEX([1]YES_NO!$A$2:$A$100,MATCH('Communication Facility (Desc)'!$V52,[1]!MASTER_YES_NO_DESC[#Data],0),0))","v":""}]
[{"$f":"IF('Communication Facility (Desc)'!A53=\"\",\"\",'Communication Facility (Desc)'!A53)","v":""},{"$f":"IF('Communication Facility (Desc)'!B53=\"\",\"\",'Communication Facility (Desc)'!B53)","v":""},{"$f":"IF('Communication Facility (Desc)'!C53=\"\",\"\",'Communication Facility (Desc)'!C53)","v":""},{"$f":"IF('Communication Facility (Desc)'!D53=\"\",\"\",INDEX([1]FACILITY_TYPE!$A$2:$A$100,MATCH('Communication Facility (Desc)'!$D53,[1]!MASTER_FACILITY_TYPE_DESC[#Data],0),0))","v":""},{"$f":"IF('Communication Facility (Desc)'!E53=\"\",\"\",INDEX([1]OWNER!$A$2:$A$100,MATCH('Communication Facility (Desc)'!$E53,[1]!MASTER_OWNER_DESC[#Data],0),0))","v":""},{"$f":"IF('Communication Facility (Desc)'!F53=\"\",\"\",IF('Communication Facility (Desc)'!F53=\"\",\"\",INDEX([1]COUNTY!$A$2:$A$80,MATCH('Communication Facility (Desc)'!F53,[1]!MASTER_COUNTY_NAME[#Data],0),0)))","v":""},{"$f":"IF('Communication Facility (Desc)'!G53=\"\",\"\",'Communication Facility (Desc)'!G53)","v":""},{"$f":"IF('Communication Facility (Desc)'!H53=\"\",\"\",'Communication Facility (Desc)'!H53)","v":""},{"$f":"IF('Communication Facility (Desc)'!I53=\"\",\"\",'Communication Facility (Desc)'!I53)","v":""},{"$f":"IF('Communication Facility (Desc)'!J53=\"\",\"\",INDEX([1]CABINET_TYPE!$A$2:$A$100,MATCH('Communication Facility (Desc)'!$J53,[1]!MASTER_CABINET_TYPE_DESC[#Data],0),0))","v":""},{"$f":"IF('Communication Facility (Desc)'!K53=\"\",\"\",INDEX([1]CABINET_MOUNT_TYPE!$A$2:$A$100,MATCH('Communication Facility (Desc)'!K53,[1]!MASTER_CABINET_MOUNT_TYPE_DESC[#Data],0),0))","v":""},{"$f":"IF('Communication Facility (Desc)'!L53=\"\",\"\",INDEX([1]YES_NO!$A$2:$A$100,MATCH('Communication Facility (Desc)'!L53,[1]!MASTER_YES_NO_DESC[#Data],0),0))","v":""},{"$f":"IF('Communication Facility (Desc)'!M53=\"\",\"\",INDEX([1]BUILDING_TYPE!$A$2:$A$100,MATCH('Communication Facility (Desc)'!$M53,[1]!MASTER_BUILDING_TYPE_DESC[#Data],0),0))","v":""},{"$f":"IF('Communication Facility (Desc)'!N53=\"\",\"\",'Communication Facility (Desc)'!N53)","v":""},{"$f":"IF('Communication Facility (Desc)'!O53=\"\",\"\",INDEX([1]BUILDING_MTL!$A$2:$A$100,MATCH('Communication Facility (Desc)'!$O53,[1]!MASTER_BUILDING_MTL_DESC[#Data],0),0))","v":""},{"$f":"IF('Communication Facility (Desc)'!P53=\"\",\"\",INDEX([1]KEY_TYPE!$A$2:$A$100,MATCH('Communication Facility (Desc)'!$P53,[1]!MASTER_KEY_TYPE_DESC[#Data],0),0))","v":""},{"$f":"IF('Communication Facility (Desc)'!Q53=\"\",\"\",'Communication Facility (Desc)'!Q53)","v":""},{"$f":"IF('Communication Facility (Desc)'!R53=\"\",\"\",INDEX([1]FILTER_TYPE!$A$2:$A$100,MATCH('Communication Facility (Desc)'!$R53,[1]!MASTER_FILTER_TYPE_DESC[#Data],0),0))","v":""},{"$f":"IF('Communication Facility (Desc)'!S53=\"\",\"\",INDEX([1]FILTER_SIZE!$A$2:$A$100,MATCH('Communication Facility (Desc)'!$S53,[1]!MASTER_FILTER_SIZE_DESC[#Data],0),0))","v":""},{"$f":"IF('Communication Facility (Desc)'!T53=\"\",\"\",'Communication Facility (Desc)'!T53)","v":""},{"$f":"IF('Communication Facility (Desc)'!U53=\"\",\"\",INDEX([1]YES_NO!$A$2:$A$100,MATCH('Communication Facility (Desc)'!$U53,[1]!MASTER_YES_NO_DESC[#Data],0),0))","v":""},{"$f":"IF('Communication Facility (Desc)'!V53=\"\",\"\",INDEX([1]YES_NO!$A$2:$A$100,MATCH('Communication Facility (Desc)'!$V53,[1]!MASTER_YES_NO_DESC[#Data],0),0))","v":""}]
[{"$f":"IF('Communication Facility (Desc)'!A54=\"\",\"\",'Communication Facility (Desc)'!A54)","v":""},{"$f":"IF('Communication Facility (Desc)'!B54=\"\",\"\",'Communication Facility (Desc)'!B54)","v":""},{"$f":"IF('Communication Facility (Desc)'!C54=\"\",\"\",'Communication Facility (Desc)'!C54)","v":""},{"$f":"IF('Communication Facility (Desc)'!D54=\"\",\"\",INDEX([1]FACILITY_TYPE!$A$2:$A$100,MATCH('Communication Facility (Desc)'!$D54,[1]!MASTER_FACILITY_TYPE_DESC[#Data],0),0))","v":""},{"$f":"IF('Communication Facility (Desc)'!E54=\"\",\"\",INDEX([1]OWNER!$A$2:$A$100,MATCH('Communication Facility (Desc)'!$E54,[1]!MASTER_OWNER_DESC[#Data],0),0))","v":""},{"$f":"IF('Communication Facility (Desc)'!F54=\"\",\"\",IF('Communication Facility (Desc)'!F54=\"\",\"\",INDEX([1]COUNTY!$A$2:$A$80,MATCH('Communication Facility (Desc)'!F54,[1]!MASTER_COUNTY_NAME[#Data],0),0)))","v":""},{"$f":"IF('Communication Facility (Desc)'!G54=\"\",\"\",'Communication Facility (Desc)'!G54)","v":""},{"$f":"IF('Communication Facility (Desc)'!H54=\"\",\"\",'Communication Facility (Desc)'!H54)","v":""},{"$f":"IF('Communication Facility (Desc)'!I54=\"\",\"\",'Communication Facility (Desc)'!I54)","v":""},{"$f":"IF('Communication Facility (Desc)'!J54=\"\",\"\",INDEX([1]CABINET_TYPE!$A$2:$A$100,MATCH('Communication Facility (Desc)'!$J54,[1]!MASTER_CABINET_TYPE_DESC[#Data],0),0))","v":""},{"$f":"IF('Communication Facility (Desc)'!K54=\"\",\"\",INDEX([1]CABINET_MOUNT_TYPE!$A$2:$A$100,MATCH('Communication Facility (Desc)'!K54,[1]!MASTER_CABINET_MOUNT_TYPE_DESC[#Data],0),0))","v":""},{"$f":"IF('Communication Facility (Desc)'!L54=\"\",\"\",INDEX([1]YES_NO!$A$2:$A$100,MATCH('Communication Facility (Desc)'!L54,[1]!MASTER_YES_NO_DESC[#Data],0),0))","v":""},{"$f":"IF('Communication Facility (Desc)'!M54=\"\",\"\",INDEX([1]BUILDING_TYPE!$A$2:$A$100,MATCH('Communication Facility (Desc)'!$M54,[1]!MASTER_BUILDING_TYPE_DESC[#Data],0),0))","v":""},{"$f":"IF('Communication Facility (Desc)'!N54=\"\",\"\",'Communication Facility (Desc)'!N54)","v":""},{"$f":"IF('Communication Facility (Desc)'!O54=\"\",\"\",INDEX([1]BUILDING_MTL!$A$2:$A$100,MATCH('Communication Facility (Desc)'!$O54,[1]!MASTER_BUILDING_MTL_DESC[#Data],0),0))","v":""},{"$f":"IF('Communication Facility (Desc)'!P54=\"\",\"\",INDEX([1]KEY_TYPE!$A$2:$A$100,MATCH('Communication Facility (Desc)'!$P54,[1]!MASTER_KEY_TYPE_DESC[#Data],0),0))","v":""},{"$f":"IF('Communication Facility (Desc)'!Q54=\"\",\"\",'Communication Facility (Desc)'!Q54)","v":""},{"$f":"IF('Communication Facility (Desc)'!R54=\"\",\"\",INDEX([1]FILTER_TYPE!$A$2:$A$100,MATCH('Communication Facility (Desc)'!$R54,[1]!MASTER_FILTER_TYPE_DESC[#Data],0),0))","v":""},{"$f":"IF('Communication Facility (Desc)'!S54=\"\",\"\",INDEX([1]FILTER_SIZE!$A$2:$A$100,MATCH('Communication Facility (Desc)'!$S54,[1]!MASTER_FILTER_SIZE_DESC[#Data],0),0))","v":""},{"$f":"IF('Communication Facility (Desc)'!T54=\"\",\"\",'Communication Facility (Desc)'!T54)","v":""},{"$f":"IF('Communication Facility (Desc)'!U54=\"\",\"\",INDEX([1]YES_NO!$A$2:$A$100,MATCH('Communication Facility (Desc)'!$U54,[1]!MASTER_YES_NO_DESC[#Data],0),0))","v":""},{"$f":"IF('Communication Facility (Desc)'!V54=\"\",\"\",INDEX([1]YES_NO!$A$2:$A$100,MATCH('Communication Facility (Desc)'!$V54,[1]!MASTER_YES_NO_DESC[#Data],0),0))","v":""}]
[{"$f":"IF('Communication Facility (Desc)'!A55=\"\",\"\",'Communication Facility (Desc)'!A55)","v":""},{"$f":"IF('Communication Facility (Desc)'!B55=\"\",\"\",'Communication Facility (Desc)'!B55)","v":""},{"$f":"IF('Communication Facility (Desc)'!C55=\"\",\"\",'Communication Facility (Desc)'!C55)","v":""},{"$f":"IF('Communication Facility (Desc)'!D55=\"\",\"\",INDEX([1]FACILITY_TYPE!$A$2:$A$100,MATCH('Communication Facility (Desc)'!$D55,[1]!MASTER_FACILITY_TYPE_DESC[#Data],0),0))","v":""},{"$f":"IF('Communication Facility (Desc)'!E55=\"\",\"\",INDEX([1]OWNER!$A$2:$A$100,MATCH('Communication Facility (Desc)'!$E55,[1]!MASTER_OWNER_DESC[#Data],0),0))","v":""},{"$f":"IF('Communication Facility (Desc)'!F55=\"\",\"\",IF('Communication Facility (Desc)'!F55=\"\",\"\",INDEX([1]COUNTY!$A$2:$A$80,MATCH('Communication Facility (Desc)'!F55,[1]!MASTER_COUNTY_NAME[#Data],0),0)))","v":""},{"$f":"IF('Communication Facility (Desc)'!G55=\"\",\"\",'Communication Facility (Desc)'!G55)","v":""},{"$f":"IF('Communication Facility (Desc)'!H55=\"\",\"\",'Communication Facility (Desc)'!H55)","v":""},{"$f":"IF('Communication Facility (Desc)'!I55=\"\",\"\",'Communication Facility (Desc)'!I55)","v":""},{"$f":"IF('Communication Facility (Desc)'!J55=\"\",\"\",INDEX([1]CABINET_TYPE!$A$2:$A$100,MATCH('Communication Facility (Desc)'!$J55,[1]!MASTER_CABINET_TYPE_DESC[#Data],0),0))","v":""},{"$f":"IF('Communication Facility (Desc)'!K55=\"\",\"\",INDEX([1]CABINET_MOUNT_TYPE!$A$2:$A$100,MATCH('Communication Facility (Desc)'!K55,[1]!MASTER_CABINET_MOUNT_TYPE_DESC[#Data],0),0))","v":""},{"$f":"IF('Communication Facility (Desc)'!L55=\"\",\"\",INDEX([1]YES_NO!$A$2:$A$100,MATCH('Communication Facility (Desc)'!L55,[1]!MASTER_YES_NO_DESC[#Data],0),0))","v":""},{"$f":"IF('Communication Facility (Desc)'!M55=\"\",\"\",INDEX([1]BUILDING_TYPE!$A$2:$A$100,MATCH('Communication Facility (Desc)'!$M55,[1]!MASTER_BUILDING_TYPE_DESC[#Data],0),0))","v":""},{"$f":"IF('Communication Facility (Desc)'!N55=\"\",\"\",'Communication Facility (Desc)'!N55)","v":""},{"$f":"IF('Communication Facility (Desc)'!O55=\"\",\"\",INDEX([1]BUILDING_MTL!$A$2:$A$100,MATCH('Communication Facility (Desc)'!$O55,[1]!MASTER_BUILDING_MTL_DESC[#Data],0),0))","v":""},{"$f":"IF('Communication Facility (Desc)'!P55=\"\",\"\",INDEX([1]KEY_TYPE!$A$2:$A$100,MATCH('Communication Facility (Desc)'!$P55,[1]!MASTER_KEY_TYPE_DESC[#Data],0),0))","v":""},{"$f":"IF('Communication Facility (Desc)'!Q55=\"\",\"\",'Communication Facility (Desc)'!Q55)","v":""},{"$f":"IF('Communication Facility (Desc)'!R55=\"\",\"\",INDEX([1]FILTER_TYPE!$A$2:$A$100,MATCH('Communication Facility (Desc)'!$R55,[1]!MASTER_FILTER_TYPE_DESC[#Data],0),0))","v":""},{"$f":"IF('Communication Facility (Desc)'!S55=\"\",\"\",INDEX([1]FILTER_SIZE!$A$2:$A$100,MATCH('Communication Facility (Desc)'!$S55,[1]!MASTER_FILTER_SIZE_DESC[#Data],0),0))","v":""},{"$f":"IF('Communication Facility (Desc)'!T55=\"\",\"\",'Communication Facility (Desc)'!T55)","v":""},{"$f":"IF('Communication Facility (Desc)'!U55=\"\",\"\",INDEX([1]YES_NO!$A$2:$A$100,MATCH('Communication Facility (Desc)'!$U55,[1]!MASTER_YES_NO_DESC[#Data],0),0))","v":""},{"$f":"IF('Communication Facility (Desc)'!V55=\"\",\"\",INDEX([1]YES_NO!$A$2:$A$100,MATCH('Communication Facility (Desc)'!$V55,[1]!MASTER_YES_NO_DESC[#Data],0),0))","v":""}]
[{"$f":"IF('Communication Facility (Desc)'!A56=\"\",\"\",'Communication Facility (Desc)'!A56)","v":""},{"$f":"IF('Communication Facility (Desc)'!B56=\"\",\"\",'Communication Facility (Desc)'!B56)","v":""},{"$f":"IF('Communication Facility (Desc)'!C56=\"\",\"\",'Communication Facility (Desc)'!C56)","v":""},{"$f":"IF('Communication Facility (Desc)'!D56=\"\",\"\",INDEX([1]FACILITY_TYPE!$A$2:$A$100,MATCH('Communication Facility (Desc)'!$D56,[1]!MASTER_FACILITY_TYPE_DESC[#Data],0),0))","v":""},{"$f":"IF('Communication Facility (Desc)'!E56=\"\",\"\",INDEX([1]OWNER!$A$2:$A$100,MATCH('Communication Facility (Desc)'!$E56,[1]!MASTER_OWNER_DESC[#Data],0),0))","v":""},{"$f":"IF('Communication Facility (Desc)'!F56=\"\",\"\",IF('Communication Facility (Desc)'!F56=\"\",\"\",INDEX([1]COUNTY!$A$2:$A$80,MATCH('Communication Facility (Desc)'!F56,[1]!MASTER_COUNTY_NAME[#Data],0),0)))","v":""},{"$f":"IF('Communication Facility (Desc)'!G56=\"\",\"\",'Communication Facility (Desc)'!G56)","v":""},{"$f":"IF('Communication Facility (Desc)'!H56=\"\",\"\",'Communication Facility (Desc)'!H56)","v":""},{"$f":"IF('Communication Facility (Desc)'!I56=\"\",\"\",'Communication Facility (Desc)'!I56)","v":""},{"$f":"IF('Communication Facility (Desc)'!J56=\"\",\"\",INDEX([1]CABINET_TYPE!$A$2:$A$100,MATCH('Communication Facility (Desc)'!$J56,[1]!MASTER_CABINET_TYPE_DESC[#Data],0),0))","v":""},{"$f":"IF('Communication Facility (Desc)'!K56=\"\",\"\",INDEX([1]CABINET_MOUNT_TYPE!$A$2:$A$100,MATCH('Communication Facility (Desc)'!K56,[1]!MASTER_CABINET_MOUNT_TYPE_DESC[#Data],0),0))","v":""},{"$f":"IF('Communication Facility (Desc)'!L56=\"\",\"\",INDEX([1]YES_NO!$A$2:$A$100,MATCH('Communication Facility (Desc)'!L56,[1]!MASTER_YES_NO_DESC[#Data],0),0))","v":""},{"$f":"IF('Communication Facility (Desc)'!M56=\"\",\"\",INDEX([1]BUILDING_TYPE!$A$2:$A$100,MATCH('Communication Facility (Desc)'!$M56,[1]!MASTER_BUILDING_TYPE_DESC[#Data],0),0))","v":""},{"$f":"IF('Communication Facility (Desc)'!N56=\"\",\"\",'Communication Facility (Desc)'!N56)","v":""},{"$f":"IF('Communication Facility (Desc)'!O56=\"\",\"\",INDEX([1]BUILDING_MTL!$A$2:$A$100,MATCH('Communication Facility (Desc)'!$O56,[1]!MASTER_BUILDING_MTL_DESC[#Data],0),0))","v":""},{"$f":"IF('Communication Facility (Desc)'!P56=\"\",\"\",INDEX([1]KEY_TYPE!$A$2:$A$100,MATCH('Communication Facility (Desc)'!$P56,[1]!MASTER_KEY_TYPE_DESC[#Data],0),0))","v":""},{"$f":"IF('Communication Facility (Desc)'!Q56=\"\",\"\",'Communication Facility (Desc)'!Q56)","v":""},{"$f":"IF('Communication Facility (Desc)'!R56=\"\",\"\",INDEX([1]FILTER_TYPE!$A$2:$A$100,MATCH('Communication Facility (Desc)'!$R56,[1]!MASTER_FILTER_TYPE_DESC[#Data],0),0))","v":""},{"$f":"IF('Communication Facility (Desc)'!S56=\"\",\"\",INDEX([1]FILTER_SIZE!$A$2:$A$100,MATCH('Communication Facility (Desc)'!$S56,[1]!MASTER_FILTER_SIZE_DESC[#Data],0),0))","v":""},{"$f":"IF('Communication Facility (Desc)'!T56=\"\",\"\",'Communication Facility (Desc)'!T56)","v":""},{"$f":"IF('Communication Facility (Desc)'!U56=\"\",\"\",INDEX([1]YES_NO!$A$2:$A$100,MATCH('Communication Facility (Desc)'!$U56,[1]!MASTER_YES_NO_DESC[#Data],0),0))","v":""},{"$f":"IF('Communication Facility (Desc)'!V56=\"\",\"\",INDEX([1]YES_NO!$A$2:$A$100,MATCH('Communication Facility (Desc)'!$V56,[1]!MASTER_YES_NO_DESC[#Data],0),0))","v":""}]
[{"$f":"IF('Communication Facility (Desc)'!A57=\"\",\"\",'Communication Facility (Desc)'!A57)","v":""},{"$f":"IF('Communication Facility (Desc)'!B57=\"\",\"\",'Communication Facility (Desc)'!B57)","v":""},{"$f":"IF('Communication Facility (Desc)'!C57=\"\",\"\",'Communication Facility (Desc)'!C57)","v":""},{"$f":"IF('Communication Facility (Desc)'!D57=\"\",\"\",INDEX([1]FACILITY_TYPE!$A$2:$A$100,MATCH('Communication Facility (Desc)'!$D57,[1]!MASTER_FACILITY_TYPE_DESC[#Data],0),0))","v":""},{"$f":"IF('Communication Facility (Desc)'!E57=\"\",\"\",INDEX([1]OWNER!$A$2:$A$100,MATCH('Communication Facility (Desc)'!$E57,[1]!MASTER_OWNER_DESC[#Data],0),0))","v":""},{"$f":"IF('Communication Facility (Desc)'!F57=\"\",\"\",IF('Communication Facility (Desc)'!F57=\"\",\"\",INDEX([1]COUNTY!$A$2:$A$80,MATCH('Communication Facility (Desc)'!F57,[1]!MASTER_COUNTY_NAME[#Data],0),0)))","v":""},{"$f":"IF('Communication Facility (Desc)'!G57=\"\",\"\",'Communication Facility (Desc)'!G57)","v":""},{"$f":"IF('Communication Facility (Desc)'!H57=\"\",\"\",'Communication Facility (Desc)'!H57)","v":""},{"$f":"IF('Communication Facility (Desc)'!I57=\"\",\"\",'Communication Facility (Desc)'!I57)","v":""},{"$f":"IF('Communication Facility (Desc)'!J57=\"\",\"\",INDEX([1]CABINET_TYPE!$A$2:$A$100,MATCH('Communication Facility (Desc)'!$J57,[1]!MASTER_CABINET_TYPE_DESC[#Data],0),0))","v":""},{"$f":"IF('Communication Facility (Desc)'!K57=\"\",\"\",INDEX([1]CABINET_MOUNT_TYPE!$A$2:$A$100,MATCH('Communication Facility (Desc)'!K57,[1]!MASTER_CABINET_MOUNT_TYPE_DESC[#Data],0),0))","v":""},{"$f":"IF('Communication Facility (Desc)'!L57=\"\",\"\",INDEX([1]YES_NO!$A$2:$A$100,MATCH('Communication Facility (Desc)'!L57,[1]!MASTER_YES_NO_DESC[#Data],0),0))","v":""},{"$f":"IF('Communication Facility (Desc)'!M57=\"\",\"\",INDEX([1]BUILDING_TYPE!$A$2:$A$100,MATCH('Communication Facility (Desc)'!$M57,[1]!MASTER_BUILDING_TYPE_DESC[#Data],0),0))","v":""},{"$f":"IF('Communication Facility (Desc)'!N57=\"\",\"\",'Communication Facility (Desc)'!N57)","v":""},{"$f":"IF('Communication Facility (Desc)'!O57=\"\",\"\",INDEX([1]BUILDING_MTL!$A$2:$A$100,MATCH('Communication Facility (Desc)'!$O57,[1]!MASTER_BUILDING_MTL_DESC[#Data],0),0))","v":""},{"$f":"IF('Communication Facility (Desc)'!P57=\"\",\"\",INDEX([1]KEY_TYPE!$A$2:$A$100,MATCH('Communication Facility (Desc)'!$P57,[1]!MASTER_KEY_TYPE_DESC[#Data],0),0))","v":""},{"$f":"IF('Communication Facility (Desc)'!Q57=\"\",\"\",'Communication Facility (Desc)'!Q57)","v":""},{"$f":"IF('Communication Facility (Desc)'!R57=\"\",\"\",INDEX([1]FILTER_TYPE!$A$2:$A$100,MATCH('Communication Facility (Desc)'!$R57,[1]!MASTER_FILTER_TYPE_DESC[#Data],0),0))","v":""},{"$f":"IF('Communication Facility (Desc)'!S57=\"\",\"\",INDEX([1]FILTER_SIZE!$A$2:$A$100,MATCH('Communication Facility (Desc)'!$S57,[1]!MASTER_FILTER_SIZE_DESC[#Data],0),0))","v":""},{"$f":"IF('Communication Facility (Desc)'!T57=\"\",\"\",'Communication Facility (Desc)'!T57)","v":""},{"$f":"IF('Communication Facility (Desc)'!U57=\"\",\"\",INDEX([1]YES_NO!$A$2:$A$100,MATCH('Communication Facility (Desc)'!$U57,[1]!MASTER_YES_NO_DESC[#Data],0),0))","v":""},{"$f":"IF('Communication Facility (Desc)'!V57=\"\",\"\",INDEX([1]YES_NO!$A$2:$A$100,MATCH('Communication Facility (Desc)'!$V57,[1]!MASTER_YES_NO_DESC[#Data],0),0))","v":""}]
[{"$f":"IF('Communication Facility (Desc)'!A58=\"\",\"\",'Communication Facility (Desc)'!A58)","v":""},{"$f":"IF('Communication Facility (Desc)'!B58=\"\",\"\",'Communication Facility (Desc)'!B58)","v":""},{"$f":"IF('Communication Facility (Desc)'!C58=\"\",\"\",'Communication Facility (Desc)'!C58)","v":""},{"$f":"IF('Communication Facility (Desc)'!D58=\"\",\"\",INDEX([1]FACILITY_TYPE!$A$2:$A$100,MATCH('Communication Facility (Desc)'!$D58,[1]!MASTER_FACILITY_TYPE_DESC[#Data],0),0))","v":""},{"$f":"IF('Communication Facility (Desc)'!E58=\"\",\"\",INDEX([1]OWNER!$A$2:$A$100,MATCH('Communication Facility (Desc)'!$E58,[1]!MASTER_OWNER_DESC[#Data],0),0))","v":""},{"$f":"IF('Communication Facility (Desc)'!F58=\"\",\"\",IF('Communication Facility (Desc)'!F58=\"\",\"\",INDEX([1]COUNTY!$A$2:$A$80,MATCH('Communication Facility (Desc)'!F58,[1]!MASTER_COUNTY_NAME[#Data],0),0)))","v":""},{"$f":"IF('Communication Facility (Desc)'!G58=\"\",\"\",'Communication Facility (Desc)'!G58)","v":""},{"$f":"IF('Communication Facility (Desc)'!H58=\"\",\"\",'Communication Facility (Desc)'!H58)","v":""},{"$f":"IF('Communication Facility (Desc)'!I58=\"\",\"\",'Communication Facility (Desc)'!I58)","v":""},{"$f":"IF('Communication Facility (Desc)'!J58=\"\",\"\",INDEX([1]CABINET_TYPE!$A$2:$A$100,MATCH('Communication Facility (Desc)'!$J58,[1]!MASTER_CABINET_TYPE_DESC[#Data],0),0))","v":""},{"$f":"IF('Communication Facility (Desc)'!K58=\"\",\"\",INDEX([1]CABINET_MOUNT_TYPE!$A$2:$A$100,MATCH('Communication Facility (Desc)'!K58,[1]!MASTER_CABINET_MOUNT_TYPE_DESC[#Data],0),0))","v":""},{"$f":"IF('Communication Facility (Desc)'!L58=\"\",\"\",INDEX([1]YES_NO!$A$2:$A$100,MATCH('Communication Facility (Desc)'!L58,[1]!MASTER_YES_NO_DESC[#Data],0),0))","v":""},{"$f":"IF('Communication Facility (Desc)'!M58=\"\",\"\",INDEX([1]BUILDING_TYPE!$A$2:$A$100,MATCH('Communication Facility (Desc)'!$M58,[1]!MASTER_BUILDING_TYPE_DESC[#Data],0),0))","v":""},{"$f":"IF('Communication Facility (Desc)'!N58=\"\",\"\",'Communication Facility (Desc)'!N58)","v":""},{"$f":"IF('Communication Facility (Desc)'!O58=\"\",\"\",INDEX([1]BUILDING_MTL!$A$2:$A$100,MATCH('Communication Facility (Desc)'!$O58,[1]!MASTER_BUILDING_MTL_DESC[#Data],0),0))","v":""},{"$f":"IF('Communication Facility (Desc)'!P58=\"\",\"\",INDEX([1]KEY_TYPE!$A$2:$A$100,MATCH('Communication Facility (Desc)'!$P58,[1]!MASTER_KEY_TYPE_DESC[#Data],0),0))","v":""},{"$f":"IF('Communication Facility (Desc)'!Q58=\"\",\"\",'Communication Facility (Desc)'!Q58)","v":""},{"$f":"IF('Communication Facility (Desc)'!R58=\"\",\"\",INDEX([1]FILTER_TYPE!$A$2:$A$100,MATCH('Communication Facility (Desc)'!$R58,[1]!MASTER_FILTER_TYPE_DESC[#Data],0),0))","v":""},{"$f":"IF('Communication Facility (Desc)'!S58=\"\",\"\",INDEX([1]FILTER_SIZE!$A$2:$A$100,MATCH('Communication Facility (Desc)'!$S58,[1]!MASTER_FILTER_SIZE_DESC[#Data],0),0))","v":""},{"$f":"IF('Communication Facility (Desc)'!T58=\"\",\"\",'Communication Facility (Desc)'!T58)","v":""},{"$f":"IF('Communication Facility (Desc)'!U58=\"\",\"\",INDEX([1]YES_NO!$A$2:$A$100,MATCH('Communication Facility (Desc)'!$U58,[1]!MASTER_YES_NO_DESC[#Data],0),0))","v":""},{"$f":"IF('Communication Facility (Desc)'!V58=\"\",\"\",INDEX([1]YES_NO!$A$2:$A$100,MATCH('Communication Facility (Desc)'!$V58,[1]!MASTER_YES_NO_DESC[#Data],0),0))","v":""}]
[{"$f":"IF('Communication Facility (Desc)'!A59=\"\",\"\",'Communication Facility (Desc)'!A59)","v":""},{"$f":"IF('Communication Facility (Desc)'!B59=\"\",\"\",'Communication Facility (Desc)'!B59)","v":""},{"$f":"IF('Communication Facility (Desc)'!C59=\"\",\"\",'Communication Facility (Desc)'!C59)","v":""},{"$f":"IF('Communication Facility (Desc)'!D59=\"\",\"\",INDEX([1]FACILITY_TYPE!$A$2:$A$100,MATCH('Communication Facility (Desc)'!$D59,[1]!MASTER_FACILITY_TYPE_DESC[#Data],0),0))","v":""},{"$f":"IF('Communication Facility (Desc)'!E59=\"\",\"\",INDEX([1]OWNER!$A$2:$A$100,MATCH('Communication Facility (Desc)'!$E59,[1]!MASTER_OWNER_DESC[#Data],0),0))","v":""},{"$f":"IF('Communication Facility (Desc)'!F59=\"\",\"\",IF('Communication Facility (Desc)'!F59=\"\",\"\",INDEX([1]COUNTY!$A$2:$A$80,MATCH('Communication Facility (Desc)'!F59,[1]!MASTER_COUNTY_NAME[#Data],0),0)))","v":""},{"$f":"IF('Communication Facility (Desc)'!G59=\"\",\"\",'Communication Facility (Desc)'!G59)","v":""},{"$f":"IF('Communication Facility (Desc)'!H59=\"\",\"\",'Communication Facility (Desc)'!H59)","v":""},{"$f":"IF('Communication Facility (Desc)'!I59=\"\",\"\",'Communication Facility (Desc)'!I59)","v":""},{"$f":"IF('Communication Facility (Desc)'!J59=\"\",\"\",INDEX([1]CABINET_TYPE!$A$2:$A$100,MATCH('Communication Facility (Desc)'!$J59,[1]!MASTER_CABINET_TYPE_DESC[#Data],0),0))","v":""},{"$f":"IF('Communication Facility (Desc)'!K59=\"\",\"\",INDEX([1]CABINET_MOUNT_TYPE!$A$2:$A$100,MATCH('Communication Facility (Desc)'!K59,[1]!MASTER_CABINET_MOUNT_TYPE_DESC[#Data],0),0))","v":""},{"$f":"IF('Communication Facility (Desc)'!L59=\"\",\"\",INDEX([1]YES_NO!$A$2:$A$100,MATCH('Communication Facility (Desc)'!L59,[1]!MASTER_YES_NO_DESC[#Data],0),0))","v":""},{"$f":"IF('Communication Facility (Desc)'!M59=\"\",\"\",INDEX([1]BUILDING_TYPE!$A$2:$A$100,MATCH('Communication Facility (Desc)'!$M59,[1]!MASTER_BUILDING_TYPE_DESC[#Data],0),0))","v":""},{"$f":"IF('Communication Facility (Desc)'!N59=\"\",\"\",'Communication Facility (Desc)'!N59)","v":""},{"$f":"IF('Communication Facility (Desc)'!O59=\"\",\"\",INDEX([1]BUILDING_MTL!$A$2:$A$100,MATCH('Communication Facility (Desc)'!$O59,[1]!MASTER_BUILDING_MTL_DESC[#Data],0),0))","v":""},{"$f":"IF('Communication Facility (Desc)'!P59=\"\",\"\",INDEX([1]KEY_TYPE!$A$2:$A$100,MATCH('Communication Facility (Desc)'!$P59,[1]!MASTER_KEY_TYPE_DESC[#Data],0),0))","v":""},{"$f":"IF('Communication Facility (Desc)'!Q59=\"\",\"\",'Communication Facility (Desc)'!Q59)","v":""},{"$f":"IF('Communication Facility (Desc)'!R59=\"\",\"\",INDEX([1]FILTER_TYPE!$A$2:$A$100,MATCH('Communication Facility (Desc)'!$R59,[1]!MASTER_FILTER_TYPE_DESC[#Data],0),0))","v":""},{"$f":"IF('Communication Facility (Desc)'!S59=\"\",\"\",INDEX([1]FILTER_SIZE!$A$2:$A$100,MATCH('Communication Facility (Desc)'!$S59,[1]!MASTER_FILTER_SIZE_DESC[#Data],0),0))","v":""},{"$f":"IF('Communication Facility (Desc)'!T59=\"\",\"\",'Communication Facility (Desc)'!T59)","v":""},{"$f":"IF('Communication Facility (Desc)'!U59=\"\",\"\",INDEX([1]YES_NO!$A$2:$A$100,MATCH('Communication Facility (Desc)'!$U59,[1]!MASTER_YES_NO_DESC[#Data],0),0))","v":""},{"$f":"IF('Communication Facility (Desc)'!V59=\"\",\"\",INDEX([1]YES_NO!$A$2:$A$100,MATCH('Communication Facility (Desc)'!$V59,[1]!MASTER_YES_NO_DESC[#Data],0),0))","v":""}]
[{"$f":"IF('Communication Facility (Desc)'!A60=\"\",\"\",'Communication Facility (Desc)'!A60)","v":""},{"$f":"IF('Communication Facility (Desc)'!B60=\"\",\"\",'Communication Facility (Desc)'!B60)","v":""},{"$f":"IF('Communication Facility (Desc)'!C60=\"\",\"\",'Communication Facility (Desc)'!C60)","v":""},{"$f":"IF('Communication Facility (Desc)'!D60=\"\",\"\",INDEX([1]FACILITY_TYPE!$A$2:$A$100,MATCH('Communication Facility (Desc)'!$D60,[1]!MASTER_FACILITY_TYPE_DESC[#Data],0),0))","v":""},{"$f":"IF('Communication Facility (Desc)'!E60=\"\",\"\",INDEX([1]OWNER!$A$2:$A$100,MATCH('Communication Facility (Desc)'!$E60,[1]!MASTER_OWNER_DESC[#Data],0),0))","v":""},{"$f":"IF('Communication Facility (Desc)'!F60=\"\",\"\",IF('Communication Facility (Desc)'!F60=\"\",\"\",INDEX([1]COUNTY!$A$2:$A$80,MATCH('Communication Facility (Desc)'!F60,[1]!MASTER_COUNTY_NAME[#Data],0),0)))","v":""},{"$f":"IF('Communication Facility (Desc)'!G60=\"\",\"\",'Communication Facility (Desc)'!G60)","v":""},{"$f":"IF('Communication Facility (Desc)'!H60=\"\",\"\",'Communication Facility (Desc)'!H60)","v":""},{"$f":"IF('Communication Facility (Desc)'!I60=\"\",\"\",'Communication Facility (Desc)'!I60)","v":""},{"$f":"IF('Communication Facility (Desc)'!J60=\"\",\"\",INDEX([1]CABINET_TYPE!$A$2:$A$100,MATCH('Communication Facility (Desc)'!$J60,[1]!MASTER_CABINET_TYPE_DESC[#Data],0),0))","v":""},{"$f":"IF('Communication Facility (Desc)'!K60=\"\",\"\",INDEX([1]CABINET_MOUNT_TYPE!$A$2:$A$100,MATCH('Communication Facility (Desc)'!K60,[1]!MASTER_CABINET_MOUNT_TYPE_DESC[#Data],0),0))","v":""},{"$f":"IF('Communication Facility (Desc)'!L60=\"\",\"\",INDEX([1]YES_NO!$A$2:$A$100,MATCH('Communication Facility (Desc)'!L60,[1]!MASTER_YES_NO_DESC[#Data],0),0))","v":""},{"$f":"IF('Communication Facility (Desc)'!M60=\"\",\"\",INDEX([1]BUILDING_TYPE!$A$2:$A$100,MATCH('Communication Facility (Desc)'!$M60,[1]!MASTER_BUILDING_TYPE_DESC[#Data],0),0))","v":""},{"$f":"IF('Communication Facility (Desc)'!N60=\"\",\"\",'Communication Facility (Desc)'!N60)","v":""},{"$f":"IF('Communication Facility (Desc)'!O60=\"\",\"\",INDEX([1]BUILDING_MTL!$A$2:$A$100,MATCH('Communication Facility (Desc)'!$O60,[1]!MASTER_BUILDING_MTL_DESC[#Data],0),0))","v":""},{"$f":"IF('Communication Facility (Desc)'!P60=\"\",\"\",INDEX([1]KEY_TYPE!$A$2:$A$100,MATCH('Communication Facility (Desc)'!$P60,[1]!MASTER_KEY_TYPE_DESC[#Data],0),0))","v":""},{"$f":"IF('Communication Facility (Desc)'!Q60=\"\",\"\",'Communication Facility (Desc)'!Q60)","v":""},{"$f":"IF('Communication Facility (Desc)'!R60=\"\",\"\",INDEX([1]FILTER_TYPE!$A$2:$A$100,MATCH('Communication Facility (Desc)'!$R60,[1]!MASTER_FILTER_TYPE_DESC[#Data],0),0))","v":""},{"$f":"IF('Communication Facility (Desc)'!S60=\"\",\"\",INDEX([1]FILTER_SIZE!$A$2:$A$100,MATCH('Communication Facility (Desc)'!$S60,[1]!MASTER_FILTER_SIZE_DESC[#Data],0),0))","v":""},{"$f":"IF('Communication Facility (Desc)'!T60=\"\",\"\",'Communication Facility (Desc)'!T60)","v":""},{"$f":"IF('Communication Facility (Desc)'!U60=\"\",\"\",INDEX([1]YES_NO!$A$2:$A$100,MATCH('Communication Facility (Desc)'!$U60,[1]!MASTER_YES_NO_DESC[#Data],0),0))","v":""},{"$f":"IF('Communication Facility (Desc)'!V60=\"\",\"\",INDEX([1]YES_NO!$A$2:$A$100,MATCH('Communication Facility (Desc)'!$V60,[1]!MASTER_YES_NO_DESC[#Data],0),0))","v":""}]
[{"$f":"IF('Communication Facility (Desc)'!A61=\"\",\"\",'Communication Facility (Desc)'!A61)","v":""},{"$f":"IF('Communication Facility (Desc)'!B61=\"\",\"\",'Communication Facility (Desc)'!B61)","v":""},{"$f":"IF('Communication Facility (Desc)'!C61=\"\",\"\",'Communication Facility (Desc)'!C61)","v":""},{"$f":"IF('Communication Facility (Desc)'!D61=\"\",\"\",INDEX([1]FACILITY_TYPE!$A$2:$A$100,MATCH('Communication Facility (Desc)'!$D61,[1]!MASTER_FACILITY_TYPE_DESC[#Data],0),0))","v":""},{"$f":"IF('Communication Facility (Desc)'!E61=\"\",\"\",INDEX([1]OWNER!$A$2:$A$100,MATCH('Communication Facility (Desc)'!$E61,[1]!MASTER_OWNER_DESC[#Data],0),0))","v":""},{"$f":"IF('Communication Facility (Desc)'!F61=\"\",\"\",IF('Communication Facility (Desc)'!F61=\"\",\"\",INDEX([1]COUNTY!$A$2:$A$80,MATCH('Communication Facility (Desc)'!F61,[1]!MASTER_COUNTY_NAME[#Data],0),0)))","v":""},{"$f":"IF('Communication Facility (Desc)'!G61=\"\",\"\",'Communication Facility (Desc)'!G61)","v":""},{"$f":"IF('Communication Facility (Desc)'!H61=\"\",\"\",'Communication Facility (Desc)'!H61)","v":""},{"$f":"IF('Communication Facility (Desc)'!I61=\"\",\"\",'Communication Facility (Desc)'!I61)","v":""},{"$f":"IF('Communication Facility (Desc)'!J61=\"\",\"\",INDEX([1]CABINET_TYPE!$A$2:$A$100,MATCH('Communication Facility (Desc)'!$J61,[1]!MASTER_CABINET_TYPE_DESC[#Data],0),0))","v":""},{"$f":"IF('Communication Facility (Desc)'!K61=\"\",\"\",INDEX([1]CABINET_MOUNT_TYPE!$A$2:$A$100,MATCH('Communication Facility (Desc)'!K61,[1]!MASTER_CABINET_MOUNT_TYPE_DESC[#Data],0),0))","v":""},{"$f":"IF('Communication Facility (Desc)'!L61=\"\",\"\",INDEX([1]YES_NO!$A$2:$A$100,MATCH('Communication Facility (Desc)'!L61,[1]!MASTER_YES_NO_DESC[#Data],0),0))","v":""},{"$f":"IF('Communication Facility (Desc)'!M61=\"\",\"\",INDEX([1]BUILDING_TYPE!$A$2:$A$100,MATCH('Communication Facility (Desc)'!$M61,[1]!MASTER_BUILDING_TYPE_DESC[#Data],0),0))","v":""},{"$f":"IF('Communication Facility (Desc)'!N61=\"\",\"\",'Communication Facility (Desc)'!N61)","v":""},{"$f":"IF('Communication Facility (Desc)'!O61=\"\",\"\",INDEX([1]BUILDING_MTL!$A$2:$A$100,MATCH('Communication Facility (Desc)'!$O61,[1]!MASTER_BUILDING_MTL_DESC[#Data],0),0))","v":""},{"$f":"IF('Communication Facility (Desc)'!P61=\"\",\"\",INDEX([1]KEY_TYPE!$A$2:$A$100,MATCH('Communication Facility (Desc)'!$P61,[1]!MASTER_KEY_TYPE_DESC[#Data],0),0))","v":""},{"$f":"IF('Communication Facility (Desc)'!Q61=\"\",\"\",'Communication Facility (Desc)'!Q61)","v":""},{"$f":"IF('Communication Facility (Desc)'!R61=\"\",\"\",INDEX([1]FILTER_TYPE!$A$2:$A$100,MATCH('Communication Facility (Desc)'!$R61,[1]!MASTER_FILTER_TYPE_DESC[#Data],0),0))","v":""},{"$f":"IF('Communication Facility (Desc)'!S61=\"\",\"\",INDEX([1]FILTER_SIZE!$A$2:$A$100,MATCH('Communication Facility (Desc)'!$S61,[1]!MASTER_FILTER_SIZE_DESC[#Data],0),0))","v":""},{"$f":"IF('Communication Facility (Desc)'!T61=\"\",\"\",'Communication Facility (Desc)'!T61)","v":""},{"$f":"IF('Communication Facility (Desc)'!U61=\"\",\"\",INDEX([1]YES_NO!$A$2:$A$100,MATCH('Communication Facility (Desc)'!$U61,[1]!MASTER_YES_NO_DESC[#Data],0),0))","v":""},{"$f":"IF('Communication Facility (Desc)'!V61=\"\",\"\",INDEX([1]YES_NO!$A$2:$A$100,MATCH('Communication Facility (Desc)'!$V61,[1]!MASTER_YES_NO_DESC[#Data],0),0))","v":""}]
[{"$f":"IF('Communication Facility (Desc)'!A62=\"\",\"\",'Communication Facility (Desc)'!A62)","v":""},{"$f":"IF('Communication Facility (Desc)'!B62=\"\",\"\",'Communication Facility (Desc)'!B62)","v":""},{"$f":"IF('Communication Facility (Desc)'!C62=\"\",\"\",'Communication Facility (Desc)'!C62)","v":""},{"$f":"IF('Communication Facility (Desc)'!D62=\"\",\"\",INDEX([1]FACILITY_TYPE!$A$2:$A$100,MATCH('Communication Facility (Desc)'!$D62,[1]!MASTER_FACILITY_TYPE_DESC[#Data],0),0))","v":""},{"$f":"IF('Communication Facility (Desc)'!E62=\"\",\"\",INDEX([1]OWNER!$A$2:$A$100,MATCH('Communication Facility (Desc)'!$E62,[1]!MASTER_OWNER_DESC[#Data],0),0))","v":""},{"$f":"IF('Communication Facility (Desc)'!F62=\"\",\"\",IF('Communication Facility (Desc)'!F62=\"\",\"\",INDEX([1]COUNTY!$A$2:$A$80,MATCH('Communication Facility (Desc)'!F62,[1]!MASTER_COUNTY_NAME[#Data],0),0)))","v":""},{"$f":"IF('Communication Facility (Desc)'!G62=\"\",\"\",'Communication Facility (Desc)'!G62)","v":""},{"$f":"IF('Communication Facility (Desc)'!H62=\"\",\"\",'Communication Facility (Desc)'!H62)","v":""},{"$f":"IF('Communication Facility (Desc)'!I62=\"\",\"\",'Communication Facility (Desc)'!I62)","v":""},{"$f":"IF('Communication Facility (Desc)'!J62=\"\",\"\",INDEX([1]CABINET_TYPE!$A$2:$A$100,MATCH('Communication Facility (Desc)'!$J62,[1]!MASTER_CABINET_TYPE_DESC[#Data],0),0))","v":""},{"$f":"IF('Communication Facility (Desc)'!K62=\"\",\"\",INDEX([1]CABINET_MOUNT_TYPE!$A$2:$A$100,MATCH('Communication Facility (Desc)'!K62,[1]!MASTER_CABINET_MOUNT_TYPE_DESC[#Data],0),0))","v":""},{"$f":"IF('Communication Facility (Desc)'!L62=\"\",\"\",INDEX([1]YES_NO!$A$2:$A$100,MATCH('Communication Facility (Desc)'!L62,[1]!MASTER_YES_NO_DESC[#Data],0),0))","v":""},{"$f":"IF('Communication Facility (Desc)'!M62=\"\",\"\",INDEX([1]BUILDING_TYPE!$A$2:$A$100,MATCH('Communication Facility (Desc)'!$M62,[1]!MASTER_BUILDING_TYPE_DESC[#Data],0),0))","v":""},{"$f":"IF('Communication Facility (Desc)'!N62=\"\",\"\",'Communication Facility (Desc)'!N62)","v":""},{"$f":"IF('Communication Facility (Desc)'!O62=\"\",\"\",INDEX([1]BUILDING_MTL!$A$2:$A$100,MATCH('Communication Facility (Desc)'!$O62,[1]!MASTER_BUILDING_MTL_DESC[#Data],0),0))","v":""},{"$f":"IF('Communication Facility (Desc)'!P62=\"\",\"\",INDEX([1]KEY_TYPE!$A$2:$A$100,MATCH('Communication Facility (Desc)'!$P62,[1]!MASTER_KEY_TYPE_DESC[#Data],0),0))","v":""},{"$f":"IF('Communication Facility (Desc)'!Q62=\"\",\"\",'Communication Facility (Desc)'!Q62)","v":""},{"$f":"IF('Communication Facility (Desc)'!R62=\"\",\"\",INDEX([1]FILTER_TYPE!$A$2:$A$100,MATCH('Communication Facility (Desc)'!$R62,[1]!MASTER_FILTER_TYPE_DESC[#Data],0),0))","v":""},{"$f":"IF('Communication Facility (Desc)'!S62=\"\",\"\",INDEX([1]FILTER_SIZE!$A$2:$A$100,MATCH('Communication Facility (Desc)'!$S62,[1]!MASTER_FILTER_SIZE_DESC[#Data],0),0))","v":""},{"$f":"IF('Communication Facility (Desc)'!T62=\"\",\"\",'Communication Facility (Desc)'!T62)","v":""},{"$f":"IF('Communication Facility (Desc)'!U62=\"\",\"\",INDEX([1]YES_NO!$A$2:$A$100,MATCH('Communication Facility (Desc)'!$U62,[1]!MASTER_YES_NO_DESC[#Data],0),0))","v":""},{"$f":"IF('Communication Facility (Desc)'!V62=\"\",\"\",INDEX([1]YES_NO!$A$2:$A$100,MATCH('Communication Facility (Desc)'!$V62,[1]!MASTER_YES_NO_DESC[#Data],0),0))","v":""}]
[{"$f":"IF('Communication Facility (Desc)'!A63=\"\",\"\",'Communication Facility (Desc)'!A63)","v":""},{"$f":"IF('Communication Facility (Desc)'!B63=\"\",\"\",'Communication Facility (Desc)'!B63)","v":""},{"$f":"IF('Communication Facility (Desc)'!C63=\"\",\"\",'Communication Facility (Desc)'!C63)","v":""},{"$f":"IF('Communication Facility (Desc)'!D63=\"\",\"\",INDEX([1]FACILITY_TYPE!$A$2:$A$100,MATCH('Communication Facility (Desc)'!$D63,[1]!MASTER_FACILITY_TYPE_DESC[#Data],0),0))","v":""},{"$f":"IF('Communication Facility (Desc)'!E63=\"\",\"\",INDEX([1]OWNER!$A$2:$A$100,MATCH('Communication Facility (Desc)'!$E63,[1]!MASTER_OWNER_DESC[#Data],0),0))","v":""},{"$f":"IF('Communication Facility (Desc)'!F63=\"\",\"\",IF('Communication Facility (Desc)'!F63=\"\",\"\",INDEX([1]COUNTY!$A$2:$A$80,MATCH('Communication Facility (Desc)'!F63,[1]!MASTER_COUNTY_NAME[#Data],0),0)))","v":""},{"$f":"IF('Communication Facility (Desc)'!G63=\"\",\"\",'Communication Facility (Desc)'!G63)","v":""},{"$f":"IF('Communication Facility (Desc)'!H63=\"\",\"\",'Communication Facility (Desc)'!H63)","v":""},{"$f":"IF('Communication Facility (Desc)'!I63=\"\",\"\",'Communication Facility (Desc)'!I63)","v":""},{"$f":"IF('Communication Facility (Desc)'!J63=\"\",\"\",INDEX([1]CABINET_TYPE!$A$2:$A$100,MATCH('Communication Facility (Desc)'!$J63,[1]!MASTER_CABINET_TYPE_DESC[#Data],0),0))","v":""},{"$f":"IF('Communication Facility (Desc)'!K63=\"\",\"\",INDEX([1]CABINET_MOUNT_TYPE!$A$2:$A$100,MATCH('Communication Facility (Desc)'!K63,[1]!MASTER_CABINET_MOUNT_TYPE_DESC[#Data],0),0))","v":""},{"$f":"IF('Communication Facility (Desc)'!L63=\"\",\"\",INDEX([1]YES_NO!$A$2:$A$100,MATCH('Communication Facility (Desc)'!L63,[1]!MASTER_YES_NO_DESC[#Data],0),0))","v":""},{"$f":"IF('Communication Facility (Desc)'!M63=\"\",\"\",INDEX([1]BUILDING_TYPE!$A$2:$A$100,MATCH('Communication Facility (Desc)'!$M63,[1]!MASTER_BUILDING_TYPE_DESC[#Data],0),0))","v":""},{"$f":"IF('Communication Facility (Desc)'!N63=\"\",\"\",'Communication Facility (Desc)'!N63)","v":""},{"$f":"IF('Communication Facility (Desc)'!O63=\"\",\"\",INDEX([1]BUILDING_MTL!$A$2:$A$100,MATCH('Communication Facility (Desc)'!$O63,[1]!MASTER_BUILDING_MTL_DESC[#Data],0),0))","v":""},{"$f":"IF('Communication Facility (Desc)'!P63=\"\",\"\",INDEX([1]KEY_TYPE!$A$2:$A$100,MATCH('Communication Facility (Desc)'!$P63,[1]!MASTER_KEY_TYPE_DESC[#Data],0),0))","v":""},{"$f":"IF('Communication Facility (Desc)'!Q63=\"\",\"\",'Communication Facility (Desc)'!Q63)","v":""},{"$f":"IF('Communication Facility (Desc)'!R63=\"\",\"\",INDEX([1]FILTER_TYPE!$A$2:$A$100,MATCH('Communication Facility (Desc)'!$R63,[1]!MASTER_FILTER_TYPE_DESC[#Data],0),0))","v":""},{"$f":"IF('Communication Facility (Desc)'!S63=\"\",\"\",INDEX([1]FILTER_SIZE!$A$2:$A$100,MATCH('Communication Facility (Desc)'!$S63,[1]!MASTER_FILTER_SIZE_DESC[#Data],0),0))","v":""},{"$f":"IF('Communication Facility (Desc)'!T63=\"\",\"\",'Communication Facility (Desc)'!T63)","v":""},{"$f":"IF('Communication Facility (Desc)'!U63=\"\",\"\",INDEX([1]YES_NO!$A$2:$A$100,MATCH('Communication Facility (Desc)'!$U63,[1]!MASTER_YES_NO_DESC[#Data],0),0))","v":""},{"$f":"IF('Communication Facility (Desc)'!V63=\"\",\"\",INDEX([1]YES_NO!$A$2:$A$100,MATCH('Communication Facility (Desc)'!$V63,[1]!MASTER_YES_NO_DESC[#Data],0),0))","v":""}]
[{"$f":"IF('Communication Facility (Desc)'!A64=\"\",\"\",'Communication Facility (Desc)'!A64)","v":""},{"$f":"IF('Communication Facility (Desc)'!B64=\"\",\"\",'Communication Facility (Desc)'!B64)","v":""},{"$f":"IF('Communication Facility (Desc)'!C64=\"\",\"\",'Communication Facility (Desc)'!C64)","v":""},{"$f":"IF('Communication Facility (Desc)'!D64=\"\",\"\",INDEX([1]FACILITY_TYPE!$A$2:$A$100,MATCH('Communication Facility (Desc)'!$D64,[1]!MASTER_FACILITY_TYPE_DESC[#Data],0),0))","v":""},{"$f":"IF('Communication Facility (Desc)'!E64=\"\",\"\",INDEX([1]OWNER!$A$2:$A$100,MATCH('Communication Facility (Desc)'!$E64,[1]!MASTER_OWNER_DESC[#Data],0),0))","v":""},{"$f":"IF('Communication Facility (Desc)'!F64=\"\",\"\",IF('Communication Facility (Desc)'!F64=\"\",\"\",INDEX([1]COUNTY!$A$2:$A$80,MATCH('Communication Facility (Desc)'!F64,[1]!MASTER_COUNTY_NAME[#Data],0),0)))","v":""},{"$f":"IF('Communication Facility (Desc)'!G64=\"\",\"\",'Communication Facility (Desc)'!G64)","v":""},{"$f":"IF('Communication Facility (Desc)'!H64=\"\",\"\",'Communication Facility (Desc)'!H64)","v":""},{"$f":"IF('Communication Facility (Desc)'!I64=\"\",\"\",'Communication Facility (Desc)'!I64)","v":""},{"$f":"IF('Communication Facility (Desc)'!J64=\"\",\"\",INDEX([1]CABINET_TYPE!$A$2:$A$100,MATCH('Communication Facility (Desc)'!$J64,[1]!MASTER_CABINET_TYPE_DESC[#Data],0),0))","v":""},{"$f":"IF('Communication Facility (Desc)'!K64=\"\",\"\",INDEX([1]CABINET_MOUNT_TYPE!$A$2:$A$100,MATCH('Communication Facility (Desc)'!K64,[1]!MASTER_CABINET_MOUNT_TYPE_DESC[#Data],0),0))","v":""},{"$f":"IF('Communication Facility (Desc)'!L64=\"\",\"\",INDEX([1]YES_NO!$A$2:$A$100,MATCH('Communication Facility (Desc)'!L64,[1]!MASTER_YES_NO_DESC[#Data],0),0))","v":""},{"$f":"IF('Communication Facility (Desc)'!M64=\"\",\"\",INDEX([1]BUILDING_TYPE!$A$2:$A$100,MATCH('Communication Facility (Desc)'!$M64,[1]!MASTER_BUILDING_TYPE_DESC[#Data],0),0))","v":""},{"$f":"IF('Communication Facility (Desc)'!N64=\"\",\"\",'Communication Facility (Desc)'!N64)","v":""},{"$f":"IF('Communication Facility (Desc)'!O64=\"\",\"\",INDEX([1]BUILDING_MTL!$A$2:$A$100,MATCH('Communication Facility (Desc)'!$O64,[1]!MASTER_BUILDING_MTL_DESC[#Data],0),0))","v":""},{"$f":"IF('Communication Facility (Desc)'!P64=\"\",\"\",INDEX([1]KEY_TYPE!$A$2:$A$100,MATCH('Communication Facility (Desc)'!$P64,[1]!MASTER_KEY_TYPE_DESC[#Data],0),0))","v":""},{"$f":"IF('Communication Facility (Desc)'!Q64=\"\",\"\",'Communication Facility (Desc)'!Q64)","v":""},{"$f":"IF('Communication Facility (Desc)'!R64=\"\",\"\",INDEX([1]FILTER_TYPE!$A$2:$A$100,MATCH('Communication Facility (Desc)'!$R64,[1]!MASTER_FILTER_TYPE_DESC[#Data],0),0))","v":""},{"$f":"IF('Communication Facility (Desc)'!S64=\"\",\"\",INDEX([1]FILTER_SIZE!$A$2:$A$100,MATCH('Communication Facility (Desc)'!$S64,[1]!MASTER_FILTER_SIZE_DESC[#Data],0),0))","v":""},{"$f":"IF('Communication Facility (Desc)'!T64=\"\",\"\",'Communication Facility (Desc)'!T64)","v":""},{"$f":"IF('Communication Facility (Desc)'!U64=\"\",\"\",INDEX([1]YES_NO!$A$2:$A$100,MATCH('Communication Facility (Desc)'!$U64,[1]!MASTER_YES_NO_DESC[#Data],0),0))","v":""},{"$f":"IF('Communication Facility (Desc)'!V64=\"\",\"\",INDEX([1]YES_NO!$A$2:$A$100,MATCH('Communication Facility (Desc)'!$V64,[1]!MASTER_YES_NO_DESC[#Data],0),0))","v":""}]
[{"$f":"IF('Communication Facility (Desc)'!A65=\"\",\"\",'Communication Facility (Desc)'!A65)","v":""},{"$f":"IF('Communication Facility (Desc)'!B65=\"\",\"\",'Communication Facility (Desc)'!B65)","v":""},{"$f":"IF('Communication Facility (Desc)'!C65=\"\",\"\",'Communication Facility (Desc)'!C65)","v":""},{"$f":"IF('Communication Facility (Desc)'!D65=\"\",\"\",INDEX([1]FACILITY_TYPE!$A$2:$A$100,MATCH('Communication Facility (Desc)'!$D65,[1]!MASTER_FACILITY_TYPE_DESC[#Data],0),0))","v":""},{"$f":"IF('Communication Facility (Desc)'!E65=\"\",\"\",INDEX([1]OWNER!$A$2:$A$100,MATCH('Communication Facility (Desc)'!$E65,[1]!MASTER_OWNER_DESC[#Data],0),0))","v":""},{"$f":"IF('Communication Facility (Desc)'!F65=\"\",\"\",IF('Communication Facility (Desc)'!F65=\"\",\"\",INDEX([1]COUNTY!$A$2:$A$80,MATCH('Communication Facility (Desc)'!F65,[1]!MASTER_COUNTY_NAME[#Data],0),0)))","v":""},{"$f":"IF('Communication Facility (Desc)'!G65=\"\",\"\",'Communication Facility (Desc)'!G65)","v":""},{"$f":"IF('Communication Facility (Desc)'!H65=\"\",\"\",'Communication Facility (Desc)'!H65)","v":""},{"$f":"IF('Communication Facility (Desc)'!I65=\"\",\"\",'Communication Facility (Desc)'!I65)","v":""},{"$f":"IF('Communication Facility (Desc)'!J65=\"\",\"\",INDEX([1]CABINET_TYPE!$A$2:$A$100,MATCH('Communication Facility (Desc)'!$J65,[1]!MASTER_CABINET_TYPE_DESC[#Data],0),0))","v":""},{"$f":"IF('Communication Facility (Desc)'!K65=\"\",\"\",INDEX([1]CABINET_MOUNT_TYPE!$A$2:$A$100,MATCH('Communication Facility (Desc)'!K65,[1]!MASTER_CABINET_MOUNT_TYPE_DESC[#Data],0),0))","v":""},{"$f":"IF('Communication Facility (Desc)'!L65=\"\",\"\",INDEX([1]YES_NO!$A$2:$A$100,MATCH('Communication Facility (Desc)'!L65,[1]!MASTER_YES_NO_DESC[#Data],0),0))","v":""},{"$f":"IF('Communication Facility (Desc)'!M65=\"\",\"\",INDEX([1]BUILDING_TYPE!$A$2:$A$100,MATCH('Communication Facility (Desc)'!$M65,[1]!MASTER_BUILDING_TYPE_DESC[#Data],0),0))","v":""},{"$f":"IF('Communication Facility (Desc)'!N65=\"\",\"\",'Communication Facility (Desc)'!N65)","v":""},{"$f":"IF('Communication Facility (Desc)'!O65=\"\",\"\",INDEX([1]BUILDING_MTL!$A$2:$A$100,MATCH('Communication Facility (Desc)'!$O65,[1]!MASTER_BUILDING_MTL_DESC[#Data],0),0))","v":""},{"$f":"IF('Communication Facility (Desc)'!P65=\"\",\"\",INDEX([1]KEY_TYPE!$A$2:$A$100,MATCH('Communication Facility (Desc)'!$P65,[1]!MASTER_KEY_TYPE_DESC[#Data],0),0))","v":""},{"$f":"IF('Communication Facility (Desc)'!Q65=\"\",\"\",'Communication Facility (Desc)'!Q65)","v":""},{"$f":"IF('Communication Facility (Desc)'!R65=\"\",\"\",INDEX([1]FILTER_TYPE!$A$2:$A$100,MATCH('Communication Facility (Desc)'!$R65,[1]!MASTER_FILTER_TYPE_DESC[#Data],0),0))","v":""},{"$f":"IF('Communication Facility (Desc)'!S65=\"\",\"\",INDEX([1]FILTER_SIZE!$A$2:$A$100,MATCH('Communication Facility (Desc)'!$S65,[1]!MASTER_FILTER_SIZE_DESC[#Data],0),0))","v":""},{"$f":"IF('Communication Facility (Desc)'!T65=\"\",\"\",'Communication Facility (Desc)'!T65)","v":""},{"$f":"IF('Communication Facility (Desc)'!U65=\"\",\"\",INDEX([1]YES_NO!$A$2:$A$100,MATCH('Communication Facility (Desc)'!$U65,[1]!MASTER_YES_NO_DESC[#Data],0),0))","v":""},{"$f":"IF('Communication Facility (Desc)'!V65=\"\",\"\",INDEX([1]YES_NO!$A$2:$A$100,MATCH('Communication Facility (Desc)'!$V65,[1]!MASTER_YES_NO_DESC[#Data],0),0))","v":""}]
[{"$f":"IF('Communication Facility (Desc)'!A66=\"\",\"\",'Communication Facility (Desc)'!A66)","v":""},{"$f":"IF('Communication Facility (Desc)'!B66=\"\",\"\",'Communication Facility (Desc)'!B66)","v":""},{"$f":"IF('Communication Facility (Desc)'!C66=\"\",\"\",'Communication Facility (Desc)'!C66)","v":""},{"$f":"IF('Communication Facility (Desc)'!D66=\"\",\"\",INDEX([1]FACILITY_TYPE!$A$2:$A$100,MATCH('Communication Facility (Desc)'!$D66,[1]!MASTER_FACILITY_TYPE_DESC[#Data],0),0))","v":""},{"$f":"IF('Communication Facility (Desc)'!E66=\"\",\"\",INDEX([1]OWNER!$A$2:$A$100,MATCH('Communication Facility (Desc)'!$E66,[1]!MASTER_OWNER_DESC[#Data],0),0))","v":""},{"$f":"IF('Communication Facility (Desc)'!F66=\"\",\"\",IF('Communication Facility (Desc)'!F66=\"\",\"\",INDEX([1]COUNTY!$A$2:$A$80,MATCH('Communication Facility (Desc)'!F66,[1]!MASTER_COUNTY_NAME[#Data],0),0)))","v":""},{"$f":"IF('Communication Facility (Desc)'!G66=\"\",\"\",'Communication Facility (Desc)'!G66)","v":""},{"$f":"IF('Communication Facility (Desc)'!H66=\"\",\"\",'Communication Facility (Desc)'!H66)","v":""},{"$f":"IF('Communication Facility (Desc)'!I66=\"\",\"\",'Communication Facility (Desc)'!I66)","v":""},{"$f":"IF('Communication Facility (Desc)'!J66=\"\",\"\",INDEX([1]CABINET_TYPE!$A$2:$A$100,MATCH('Communication Facility (Desc)'!$J66,[1]!MASTER_CABINET_TYPE_DESC[#Data],0),0))","v":""},{"$f":"IF('Communication Facility (Desc)'!K66=\"\",\"\",INDEX([1]CABINET_MOUNT_TYPE!$A$2:$A$100,MATCH('Communication Facility (Desc)'!K66,[1]!MASTER_CABINET_MOUNT_TYPE_DESC[#Data],0),0))","v":""},{"$f":"IF('Communication Facility (Desc)'!L66=\"\",\"\",INDEX([1]YES_NO!$A$2:$A$100,MATCH('Communication Facility (Desc)'!L66,[1]!MASTER_YES_NO_DESC[#Data],0),0))","v":""},{"$f":"IF('Communication Facility (Desc)'!M66=\"\",\"\",INDEX([1]BUILDING_TYPE!$A$2:$A$100,MATCH('Communication Facility (Desc)'!$M66,[1]!MASTER_BUILDING_TYPE_DESC[#Data],0),0))","v":""},{"$f":"IF('Communication Facility (Desc)'!N66=\"\",\"\",'Communication Facility (Desc)'!N66)","v":""},{"$f":"IF('Communication Facility (Desc)'!O66=\"\",\"\",INDEX([1]BUILDING_MTL!$A$2:$A$100,MATCH('Communication Facility (Desc)'!$O66,[1]!MASTER_BUILDING_MTL_DESC[#Data],0),0))","v":""},{"$f":"IF('Communication Facility (Desc)'!P66=\"\",\"\",INDEX([1]KEY_TYPE!$A$2:$A$100,MATCH('Communication Facility (Desc)'!$P66,[1]!MASTER_KEY_TYPE_DESC[#Data],0),0))","v":""},{"$f":"IF('Communication Facility (Desc)'!Q66=\"\",\"\",'Communication Facility (Desc)'!Q66)","v":""},{"$f":"IF('Communication Facility (Desc)'!R66=\"\",\"\",INDEX([1]FILTER_TYPE!$A$2:$A$100,MATCH('Communication Facility (Desc)'!$R66,[1]!MASTER_FILTER_TYPE_DESC[#Data],0),0))","v":""},{"$f":"IF('Communication Facility (Desc)'!S66=\"\",\"\",INDEX([1]FILTER_SIZE!$A$2:$A$100,MATCH('Communication Facility (Desc)'!$S66,[1]!MASTER_FILTER_SIZE_DESC[#Data],0),0))","v":""},{"$f":"IF('Communication Facility (Desc)'!T66=\"\",\"\",'Communication Facility (Desc)'!T66)","v":""},{"$f":"IF('Communication Facility (Desc)'!U66=\"\",\"\",INDEX([1]YES_NO!$A$2:$A$100,MATCH('Communication Facility (Desc)'!$U66,[1]!MASTER_YES_NO_DESC[#Data],0),0))","v":""},{"$f":"IF('Communication Facility (Desc)'!V66=\"\",\"\",INDEX([1]YES_NO!$A$2:$A$100,MATCH('Communication Facility (Desc)'!$V66,[1]!MASTER_YES_NO_DESC[#Data],0),0))","v":""}]
[{"$f":"IF('Communication Facility (Desc)'!A67=\"\",\"\",'Communication Facility (Desc)'!A67)","v":""},{"$f":"IF('Communication Facility (Desc)'!B67=\"\",\"\",'Communication Facility (Desc)'!B67)","v":""},{"$f":"IF('Communication Facility (Desc)'!C67=\"\",\"\",'Communication Facility (Desc)'!C67)","v":""},{"$f":"IF('Communication Facility (Desc)'!D67=\"\",\"\",INDEX([1]FACILITY_TYPE!$A$2:$A$100,MATCH('Communication Facility (Desc)'!$D67,[1]!MASTER_FACILITY_TYPE_DESC[#Data],0),0))","v":""},{"$f":"IF('Communication Facility (Desc)'!E67=\"\",\"\",INDEX([1]OWNER!$A$2:$A$100,MATCH('Communication Facility (Desc)'!$E67,[1]!MASTER_OWNER_DESC[#Data],0),0))","v":""},{"$f":"IF('Communication Facility (Desc)'!F67=\"\",\"\",IF('Communication Facility (Desc)'!F67=\"\",\"\",INDEX([1]COUNTY!$A$2:$A$80,MATCH('Communication Facility (Desc)'!F67,[1]!MASTER_COUNTY_NAME[#Data],0),0)))","v":""},{"$f":"IF('Communication Facility (Desc)'!G67=\"\",\"\",'Communication Facility (Desc)'!G67)","v":""},{"$f":"IF('Communication Facility (Desc)'!H67=\"\",\"\",'Communication Facility (Desc)'!H67)","v":""},{"$f":"IF('Communication Facility (Desc)'!I67=\"\",\"\",'Communication Facility (Desc)'!I67)","v":""},{"$f":"IF('Communication Facility (Desc)'!J67=\"\",\"\",INDEX([1]CABINET_TYPE!$A$2:$A$100,MATCH('Communication Facility (Desc)'!$J67,[1]!MASTER_CABINET_TYPE_DESC[#Data],0),0))","v":""},{"$f":"IF('Communication Facility (Desc)'!K67=\"\",\"\",INDEX([1]CABINET_MOUNT_TYPE!$A$2:$A$100,MATCH('Communication Facility (Desc)'!K67,[1]!MASTER_CABINET_MOUNT_TYPE_DESC[#Data],0),0))","v":""},{"$f":"IF('Communication Facility (Desc)'!L67=\"\",\"\",INDEX([1]YES_NO!$A$2:$A$100,MATCH('Communication Facility (Desc)'!L67,[1]!MASTER_YES_NO_DESC[#Data],0),0))","v":""},{"$f":"IF('Communication Facility (Desc)'!M67=\"\",\"\",INDEX([1]BUILDING_TYPE!$A$2:$A$100,MATCH('Communication Facility (Desc)'!$M67,[1]!MASTER_BUILDING_TYPE_DESC[#Data],0),0))","v":""},{"$f":"IF('Communication Facility (Desc)'!N67=\"\",\"\",'Communication Facility (Desc)'!N67)","v":""},{"$f":"IF('Communication Facility (Desc)'!O67=\"\",\"\",INDEX([1]BUILDING_MTL!$A$2:$A$100,MATCH('Communication Facility (Desc)'!$O67,[1]!MASTER_BUILDING_MTL_DESC[#Data],0),0))","v":""},{"$f":"IF('Communication Facility (Desc)'!P67=\"\",\"\",INDEX([1]KEY_TYPE!$A$2:$A$100,MATCH('Communication Facility (Desc)'!$P67,[1]!MASTER_KEY_TYPE_DESC[#Data],0),0))","v":""},{"$f":"IF('Communication Facility (Desc)'!Q67=\"\",\"\",'Communication Facility (Desc)'!Q67)","v":""},{"$f":"IF('Communication Facility (Desc)'!R67=\"\",\"\",INDEX([1]FILTER_TYPE!$A$2:$A$100,MATCH('Communication Facility (Desc)'!$R67,[1]!MASTER_FILTER_TYPE_DESC[#Data],0),0))","v":""},{"$f":"IF('Communication Facility (Desc)'!S67=\"\",\"\",INDEX([1]FILTER_SIZE!$A$2:$A$100,MATCH('Communication Facility (Desc)'!$S67,[1]!MASTER_FILTER_SIZE_DESC[#Data],0),0))","v":""},{"$f":"IF('Communication Facility (Desc)'!T67=\"\",\"\",'Communication Facility (Desc)'!T67)","v":""},{"$f":"IF('Communication Facility (Desc)'!U67=\"\",\"\",INDEX([1]YES_NO!$A$2:$A$100,MATCH('Communication Facility (Desc)'!$U67,[1]!MASTER_YES_NO_DESC[#Data],0),0))","v":""},{"$f":"IF('Communication Facility (Desc)'!V67=\"\",\"\",INDEX([1]YES_NO!$A$2:$A$100,MATCH('Communication Facility (Desc)'!$V67,[1]!MASTER_YES_NO_DESC[#Data],0),0))","v":""}]
[{"$f":"IF('Communication Facility (Desc)'!A68=\"\",\"\",'Communication Facility (Desc)'!A68)","v":""},{"$f":"IF('Communication Facility (Desc)'!B68=\"\",\"\",'Communication Facility (Desc)'!B68)","v":""},{"$f":"IF('Communication Facility (Desc)'!C68=\"\",\"\",'Communication Facility (Desc)'!C68)","v":""},{"$f":"IF('Communication Facility (Desc)'!D68=\"\",\"\",INDEX([1]FACILITY_TYPE!$A$2:$A$100,MATCH('Communication Facility (Desc)'!$D68,[1]!MASTER_FACILITY_TYPE_DESC[#Data],0),0))","v":""},{"$f":"IF('Communication Facility (Desc)'!E68=\"\",\"\",INDEX([1]OWNER!$A$2:$A$100,MATCH('Communication Facility (Desc)'!$E68,[1]!MASTER_OWNER_DESC[#Data],0),0))","v":""},{"$f":"IF('Communication Facility (Desc)'!F68=\"\",\"\",IF('Communication Facility (Desc)'!F68=\"\",\"\",INDEX([1]COUNTY!$A$2:$A$80,MATCH('Communication Facility (Desc)'!F68,[1]!MASTER_COUNTY_NAME[#Data],0),0)))","v":""},{"$f":"IF('Communication Facility (Desc)'!G68=\"\",\"\",'Communication Facility (Desc)'!G68)","v":""},{"$f":"IF('Communication Facility (Desc)'!H68=\"\",\"\",'Communication Facility (Desc)'!H68)","v":""},{"$f":"IF('Communication Facility (Desc)'!I68=\"\",\"\",'Communication Facility (Desc)'!I68)","v":""},{"$f":"IF('Communication Facility (Desc)'!J68=\"\",\"\",INDEX([1]CABINET_TYPE!$A$2:$A$100,MATCH('Communication Facility (Desc)'!$J68,[1]!MASTER_CABINET_TYPE_DESC[#Data],0),0))","v":""},{"$f":"IF('Communication Facility (Desc)'!K68=\"\",\"\",INDEX([1]CABINET_MOUNT_TYPE!$A$2:$A$100,MATCH('Communication Facility (Desc)'!K68,[1]!MASTER_CABINET_MOUNT_TYPE_DESC[#Data],0),0))","v":""},{"$f":"IF('Communication Facility (Desc)'!L68=\"\",\"\",INDEX([1]YES_NO!$A$2:$A$100,MATCH('Communication Facility (Desc)'!L68,[1]!MASTER_YES_NO_DESC[#Data],0),0))","v":""},{"$f":"IF('Communication Facility (Desc)'!M68=\"\",\"\",INDEX([1]BUILDING_TYPE!$A$2:$A$100,MATCH('Communication Facility (Desc)'!$M68,[1]!MASTER_BUILDING_TYPE_DESC[#Data],0),0))","v":""},{"$f":"IF('Communication Facility (Desc)'!N68=\"\",\"\",'Communication Facility (Desc)'!N68)","v":""},{"$f":"IF('Communication Facility (Desc)'!O68=\"\",\"\",INDEX([1]BUILDING_MTL!$A$2:$A$100,MATCH('Communication Facility (Desc)'!$O68,[1]!MASTER_BUILDING_MTL_DESC[#Data],0),0))","v":""},{"$f":"IF('Communication Facility (Desc)'!P68=\"\",\"\",INDEX([1]KEY_TYPE!$A$2:$A$100,MATCH('Communication Facility (Desc)'!$P68,[1]!MASTER_KEY_TYPE_DESC[#Data],0),0))","v":""},{"$f":"IF('Communication Facility (Desc)'!Q68=\"\",\"\",'Communication Facility (Desc)'!Q68)","v":""},{"$f":"IF('Communication Facility (Desc)'!R68=\"\",\"\",INDEX([1]FILTER_TYPE!$A$2:$A$100,MATCH('Communication Facility (Desc)'!$R68,[1]!MASTER_FILTER_TYPE_DESC[#Data],0),0))","v":""},{"$f":"IF('Communication Facility (Desc)'!S68=\"\",\"\",INDEX([1]FILTER_SIZE!$A$2:$A$100,MATCH('Communication Facility (Desc)'!$S68,[1]!MASTER_FILTER_SIZE_DESC[#Data],0),0))","v":""},{"$f":"IF('Communication Facility (Desc)'!T68=\"\",\"\",'Communication Facility (Desc)'!T68)","v":""},{"$f":"IF('Communication Facility (Desc)'!U68=\"\",\"\",INDEX([1]YES_NO!$A$2:$A$100,MATCH('Communication Facility (Desc)'!$U68,[1]!MASTER_YES_NO_DESC[#Data],0),0))","v":""},{"$f":"IF('Communication Facility (Desc)'!V68=\"\",\"\",INDEX([1]YES_NO!$A$2:$A$100,MATCH('Communication Facility (Desc)'!$V68,[1]!MASTER_YES_NO_DESC[#Data],0),0))","v":""}]
[{"$f":"IF('Communication Facility (Desc)'!A69=\"\",\"\",'Communication Facility (Desc)'!A69)","v":""},{"$f":"IF('Communication Facility (Desc)'!B69=\"\",\"\",'Communication Facility (Desc)'!B69)","v":""},{"$f":"IF('Communication Facility (Desc)'!C69=\"\",\"\",'Communication Facility (Desc)'!C69)","v":""},{"$f":"IF('Communication Facility (Desc)'!D69=\"\",\"\",INDEX([1]FACILITY_TYPE!$A$2:$A$100,MATCH('Communication Facility (Desc)'!$D69,[1]!MASTER_FACILITY_TYPE_DESC[#Data],0),0))","v":""},{"$f":"IF('Communication Facility (Desc)'!E69=\"\",\"\",INDEX([1]OWNER!$A$2:$A$100,MATCH('Communication Facility (Desc)'!$E69,[1]!MASTER_OWNER_DESC[#Data],0),0))","v":""},{"$f":"IF('Communication Facility (Desc)'!F69=\"\",\"\",IF('Communication Facility (Desc)'!F69=\"\",\"\",INDEX([1]COUNTY!$A$2:$A$80,MATCH('Communication Facility (Desc)'!F69,[1]!MASTER_COUNTY_NAME[#Data],0),0)))","v":""},{"$f":"IF('Communication Facility (Desc)'!G69=\"\",\"\",'Communication Facility (Desc)'!G69)","v":""},{"$f":"IF('Communication Facility (Desc)'!H69=\"\",\"\",'Communication Facility (Desc)'!H69)","v":""},{"$f":"IF('Communication Facility (Desc)'!I69=\"\",\"\",'Communication Facility (Desc)'!I69)","v":""},{"$f":"IF('Communication Facility (Desc)'!J69=\"\",\"\",INDEX([1]CABINET_TYPE!$A$2:$A$100,MATCH('Communication Facility (Desc)'!$J69,[1]!MASTER_CABINET_TYPE_DESC[#Data],0),0))","v":""},{"$f":"IF('Communication Facility (Desc)'!K69=\"\",\"\",INDEX([1]CABINET_MOUNT_TYPE!$A$2:$A$100,MATCH('Communication Facility (Desc)'!K69,[1]!MASTER_CABINET_MOUNT_TYPE_DESC[#Data],0),0))","v":""},{"$f":"IF('Communication Facility (Desc)'!L69=\"\",\"\",INDEX([1]YES_NO!$A$2:$A$100,MATCH('Communication Facility (Desc)'!L69,[1]!MASTER_YES_NO_DESC[#Data],0),0))","v":""},{"$f":"IF('Communication Facility (Desc)'!M69=\"\",\"\",INDEX([1]BUILDING_TYPE!$A$2:$A$100,MATCH('Communication Facility (Desc)'!$M69,[1]!MASTER_BUILDING_TYPE_DESC[#Data],0),0))","v":""},{"$f":"IF('Communication Facility (Desc)'!N69=\"\",\"\",'Communication Facility (Desc)'!N69)","v":""},{"$f":"IF('Communication Facility (Desc)'!O69=\"\",\"\",INDEX([1]BUILDING_MTL!$A$2:$A$100,MATCH('Communication Facility (Desc)'!$O69,[1]!MASTER_BUILDING_MTL_DESC[#Data],0),0))","v":""},{"$f":"IF('Communication Facility (Desc)'!P69=\"\",\"\",INDEX([1]KEY_TYPE!$A$2:$A$100,MATCH('Communication Facility (Desc)'!$P69,[1]!MASTER_KEY_TYPE_DESC[#Data],0),0))","v":""},{"$f":"IF('Communication Facility (Desc)'!Q69=\"\",\"\",'Communication Facility (Desc)'!Q69)","v":""},{"$f":"IF('Communication Facility (Desc)'!R69=\"\",\"\",INDEX([1]FILTER_TYPE!$A$2:$A$100,MATCH('Communication Facility (Desc)'!$R69,[1]!MASTER_FILTER_TYPE_DESC[#Data],0),0))","v":""},{"$f":"IF('Communication Facility (Desc)'!S69=\"\",\"\",INDEX([1]FILTER_SIZE!$A$2:$A$100,MATCH('Communication Facility (Desc)'!$S69,[1]!MASTER_FILTER_SIZE_DESC[#Data],0),0))","v":""},{"$f":"IF('Communication Facility (Desc)'!T69=\"\",\"\",'Communication Facility (Desc)'!T69)","v":""},{"$f":"IF('Communication Facility (Desc)'!U69=\"\",\"\",INDEX([1]YES_NO!$A$2:$A$100,MATCH('Communication Facility (Desc)'!$U69,[1]!MASTER_YES_NO_DESC[#Data],0),0))","v":""},{"$f":"IF('Communication Facility (Desc)'!V69=\"\",\"\",INDEX([1]YES_NO!$A$2:$A$100,MATCH('Communication Facility (Desc)'!$V69,[1]!MASTER_YES_NO_DESC[#Data],0),0))","v":""}]
[{"$f":"IF('Communication Facility (Desc)'!A70=\"\",\"\",'Communication Facility (Desc)'!A70)","v":""},{"$f":"IF('Communication Facility (Desc)'!B70=\"\",\"\",'Communication Facility (Desc)'!B70)","v":""},{"$f":"IF('Communication Facility (Desc)'!C70=\"\",\"\",'Communication Facility (Desc)'!C70)","v":""},{"$f":"IF('Communication Facility (Desc)'!D70=\"\",\"\",INDEX([1]FACILITY_TYPE!$A$2:$A$100,MATCH('Communication Facility (Desc)'!$D70,[1]!MASTER_FACILITY_TYPE_DESC[#Data],0),0))","v":""},{"$f":"IF('Communication Facility (Desc)'!E70=\"\",\"\",INDEX([1]OWNER!$A$2:$A$100,MATCH('Communication Facility (Desc)'!$E70,[1]!MASTER_OWNER_DESC[#Data],0),0))","v":""},{"$f":"IF('Communication Facility (Desc)'!F70=\"\",\"\",IF('Communication Facility (Desc)'!F70=\"\",\"\",INDEX([1]COUNTY!$A$2:$A$80,MATCH('Communication Facility (Desc)'!F70,[1]!MASTER_COUNTY_NAME[#Data],0),0)))","v":""},{"$f":"IF('Communication Facility (Desc)'!G70=\"\",\"\",'Communication Facility (Desc)'!G70)","v":""},{"$f":"IF('Communication Facility (Desc)'!H70=\"\",\"\",'Communication Facility (Desc)'!H70)","v":""},{"$f":"IF('Communication Facility (Desc)'!I70=\"\",\"\",'Communication Facility (Desc)'!I70)","v":""},{"$f":"IF('Communication Facility (Desc)'!J70=\"\",\"\",INDEX([1]CABINET_TYPE!$A$2:$A$100,MATCH('Communication Facility (Desc)'!$J70,[1]!MASTER_CABINET_TYPE_DESC[#Data],0),0))","v":""},{"$f":"IF('Communication Facility (Desc)'!K70=\"\",\"\",INDEX([1]CABINET_MOUNT_TYPE!$A$2:$A$100,MATCH('Communication Facility (Desc)'!K70,[1]!MASTER_CABINET_MOUNT_TYPE_DESC[#Data],0),0))","v":""},{"$f":"IF('Communication Facility (Desc)'!L70=\"\",\"\",INDEX([1]YES_NO!$A$2:$A$100,MATCH('Communication Facility (Desc)'!L70,[1]!MASTER_YES_NO_DESC[#Data],0),0))","v":""},{"$f":"IF('Communication Facility (Desc)'!M70=\"\",\"\",INDEX([1]BUILDING_TYPE!$A$2:$A$100,MATCH('Communication Facility (Desc)'!$M70,[1]!MASTER_BUILDING_TYPE_DESC[#Data],0),0))","v":""},{"$f":"IF('Communication Facility (Desc)'!N70=\"\",\"\",'Communication Facility (Desc)'!N70)","v":""},{"$f":"IF('Communication Facility (Desc)'!O70=\"\",\"\",INDEX([1]BUILDING_MTL!$A$2:$A$100,MATCH('Communication Facility (Desc)'!$O70,[1]!MASTER_BUILDING_MTL_DESC[#Data],0),0))","v":""},{"$f":"IF('Communication Facility (Desc)'!P70=\"\",\"\",INDEX([1]KEY_TYPE!$A$2:$A$100,MATCH('Communication Facility (Desc)'!$P70,[1]!MASTER_KEY_TYPE_DESC[#Data],0),0))","v":""},{"$f":"IF('Communication Facility (Desc)'!Q70=\"\",\"\",'Communication Facility (Desc)'!Q70)","v":""},{"$f":"IF('Communication Facility (Desc)'!R70=\"\",\"\",INDEX([1]FILTER_TYPE!$A$2:$A$100,MATCH('Communication Facility (Desc)'!$R70,[1]!MASTER_FILTER_TYPE_DESC[#Data],0),0))","v":""},{"$f":"IF('Communication Facility (Desc)'!S70=\"\",\"\",INDEX([1]FILTER_SIZE!$A$2:$A$100,MATCH('Communication Facility (Desc)'!$S70,[1]!MASTER_FILTER_SIZE_DESC[#Data],0),0))","v":""},{"$f":"IF('Communication Facility (Desc)'!T70=\"\",\"\",'Communication Facility (Desc)'!T70)","v":""},{"$f":"IF('Communication Facility (Desc)'!U70=\"\",\"\",INDEX([1]YES_NO!$A$2:$A$100,MATCH('Communication Facility (Desc)'!$U70,[1]!MASTER_YES_NO_DESC[#Data],0),0))","v":""},{"$f":"IF('Communication Facility (Desc)'!V70=\"\",\"\",INDEX([1]YES_NO!$A$2:$A$100,MATCH('Communication Facility (Desc)'!$V70,[1]!MASTER_YES_NO_DESC[#Data],0),0))","v":""}]
[{"$f":"IF('Communication Facility (Desc)'!A71=\"\",\"\",'Communication Facility (Desc)'!A71)","v":""},{"$f":"IF('Communication Facility (Desc)'!B71=\"\",\"\",'Communication Facility (Desc)'!B71)","v":""},{"$f":"IF('Communication Facility (Desc)'!C71=\"\",\"\",'Communication Facility (Desc)'!C71)","v":""},{"$f":"IF('Communication Facility (Desc)'!D71=\"\",\"\",INDEX([1]FACILITY_TYPE!$A$2:$A$100,MATCH('Communication Facility (Desc)'!$D71,[1]!MASTER_FACILITY_TYPE_DESC[#Data],0),0))","v":""},{"$f":"IF('Communication Facility (Desc)'!E71=\"\",\"\",INDEX([1]OWNER!$A$2:$A$100,MATCH('Communication Facility (Desc)'!$E71,[1]!MASTER_OWNER_DESC[#Data],0),0))","v":""},{"$f":"IF('Communication Facility (Desc)'!F71=\"\",\"\",IF('Communication Facility (Desc)'!F71=\"\",\"\",INDEX([1]COUNTY!$A$2:$A$80,MATCH('Communication Facility (Desc)'!F71,[1]!MASTER_COUNTY_NAME[#Data],0),0)))","v":""},{"$f":"IF('Communication Facility (Desc)'!G71=\"\",\"\",'Communication Facility (Desc)'!G71)","v":""},{"$f":"IF('Communication Facility (Desc)'!H71=\"\",\"\",'Communication Facility (Desc)'!H71)","v":""},{"$f":"IF('Communication Facility (Desc)'!I71=\"\",\"\",'Communication Facility (Desc)'!I71)","v":""},{"$f":"IF('Communication Facility (Desc)'!J71=\"\",\"\",INDEX([1]CABINET_TYPE!$A$2:$A$100,MATCH('Communication Facility (Desc)'!$J71,[1]!MASTER_CABINET_TYPE_DESC[#Data],0),0))","v":""},{"$f":"IF('Communication Facility (Desc)'!K71=\"\",\"\",INDEX([1]CABINET_MOUNT_TYPE!$A$2:$A$100,MATCH('Communication Facility (Desc)'!K71,[1]!MASTER_CABINET_MOUNT_TYPE_DESC[#Data],0),0))","v":""},{"$f":"IF('Communication Facility (Desc)'!L71=\"\",\"\",INDEX([1]YES_NO!$A$2:$A$100,MATCH('Communication Facility (Desc)'!L71,[1]!MASTER_YES_NO_DESC[#Data],0),0))","v":""},{"$f":"IF('Communication Facility (Desc)'!M71=\"\",\"\",INDEX([1]BUILDING_TYPE!$A$2:$A$100,MATCH('Communication Facility (Desc)'!$M71,[1]!MASTER_BUILDING_TYPE_DESC[#Data],0),0))","v":""},{"$f":"IF('Communication Facility (Desc)'!N71=\"\",\"\",'Communication Facility (Desc)'!N71)","v":""},{"$f":"IF('Communication Facility (Desc)'!O71=\"\",\"\",INDEX([1]BUILDING_MTL!$A$2:$A$100,MATCH('Communication Facility (Desc)'!$O71,[1]!MASTER_BUILDING_MTL_DESC[#Data],0),0))","v":""},{"$f":"IF('Communication Facility (Desc)'!P71=\"\",\"\",INDEX([1]KEY_TYPE!$A$2:$A$100,MATCH('Communication Facility (Desc)'!$P71,[1]!MASTER_KEY_TYPE_DESC[#Data],0),0))","v":""},{"$f":"IF('Communication Facility (Desc)'!Q71=\"\",\"\",'Communication Facility (Desc)'!Q71)","v":""},{"$f":"IF('Communication Facility (Desc)'!R71=\"\",\"\",INDEX([1]FILTER_TYPE!$A$2:$A$100,MATCH('Communication Facility (Desc)'!$R71,[1]!MASTER_FILTER_TYPE_DESC[#Data],0),0))","v":""},{"$f":"IF('Communication Facility (Desc)'!S71=\"\",\"\",INDEX([1]FILTER_SIZE!$A$2:$A$100,MATCH('Communication Facility (Desc)'!$S71,[1]!MASTER_FILTER_SIZE_DESC[#Data],0),0))","v":""},{"$f":"IF('Communication Facility (Desc)'!T71=\"\",\"\",'Communication Facility (Desc)'!T71)","v":""},{"$f":"IF('Communication Facility (Desc)'!U71=\"\",\"\",INDEX([1]YES_NO!$A$2:$A$100,MATCH('Communication Facility (Desc)'!$U71,[1]!MASTER_YES_NO_DESC[#Data],0),0))","v":""},{"$f":"IF('Communication Facility (Desc)'!V71=\"\",\"\",INDEX([1]YES_NO!$A$2:$A$100,MATCH('Communication Facility (Desc)'!$V71,[1]!MASTER_YES_NO_DESC[#Data],0),0))","v":""}]
[{"$f":"IF('Communication Facility (Desc)'!A72=\"\",\"\",'Communication Facility (Desc)'!A72)","v":""},{"$f":"IF('Communication Facility (Desc)'!B72=\"\",\"\",'Communication Facility (Desc)'!B72)","v":""},{"$f":"IF('Communication Facility (Desc)'!C72=\"\",\"\",'Communication Facility (Desc)'!C72)","v":""},{"$f":"IF('Communication Facility (Desc)'!D72=\"\",\"\",INDEX([1]FACILITY_TYPE!$A$2:$A$100,MATCH('Communication Facility (Desc)'!$D72,[1]!MASTER_FACILITY_TYPE_DESC[#Data],0),0))","v":""},{"$f":"IF('Communication Facility (Desc)'!E72=\"\",\"\",INDEX([1]OWNER!$A$2:$A$100,MATCH('Communication Facility (Desc)'!$E72,[1]!MASTER_OWNER_DESC[#Data],0),0))","v":""},{"$f":"IF('Communication Facility (Desc)'!F72=\"\",\"\",IF('Communication Facility (Desc)'!F72=\"\",\"\",INDEX([1]COUNTY!$A$2:$A$80,MATCH('Communication Facility (Desc)'!F72,[1]!MASTER_COUNTY_NAME[#Data],0),0)))","v":""},{"$f":"IF('Communication Facility (Desc)'!G72=\"\",\"\",'Communication Facility (Desc)'!G72)","v":""},{"$f":"IF('Communication Facility (Desc)'!H72=\"\",\"\",'Communication Facility (Desc)'!H72)","v":""},{"$f":"IF('Communication Facility (Desc)'!I72=\"\",\"\",'Communication Facility (Desc)'!I72)","v":""},{"$f":"IF('Communication Facility (Desc)'!J72=\"\",\"\",INDEX([1]CABINET_TYPE!$A$2:$A$100,MATCH('Communication Facility (Desc)'!$J72,[1]!MASTER_CABINET_TYPE_DESC[#Data],0),0))","v":""},{"$f":"IF('Communication Facility (Desc)'!K72=\"\",\"\",INDEX([1]CABINET_MOUNT_TYPE!$A$2:$A$100,MATCH('Communication Facility (Desc)'!K72,[1]!MASTER_CABINET_MOUNT_TYPE_DESC[#Data],0),0))","v":""},{"$f":"IF('Communication Facility (Desc)'!L72=\"\",\"\",INDEX([1]YES_NO!$A$2:$A$100,MATCH('Communication Facility (Desc)'!L72,[1]!MASTER_YES_NO_DESC[#Data],0),0))","v":""},{"$f":"IF('Communication Facility (Desc)'!M72=\"\",\"\",INDEX([1]BUILDING_TYPE!$A$2:$A$100,MATCH('Communication Facility (Desc)'!$M72,[1]!MASTER_BUILDING_TYPE_DESC[#Data],0),0))","v":""},{"$f":"IF('Communication Facility (Desc)'!N72=\"\",\"\",'Communication Facility (Desc)'!N72)","v":""},{"$f":"IF('Communication Facility (Desc)'!O72=\"\",\"\",INDEX([1]BUILDING_MTL!$A$2:$A$100,MATCH('Communication Facility (Desc)'!$O72,[1]!MASTER_BUILDING_MTL_DESC[#Data],0),0))","v":""},{"$f":"IF('Communication Facility (Desc)'!P72=\"\",\"\",INDEX([1]KEY_TYPE!$A$2:$A$100,MATCH('Communication Facility (Desc)'!$P72,[1]!MASTER_KEY_TYPE_DESC[#Data],0),0))","v":""},{"$f":"IF('Communication Facility (Desc)'!Q72=\"\",\"\",'Communication Facility (Desc)'!Q72)","v":""},{"$f":"IF('Communication Facility (Desc)'!R72=\"\",\"\",INDEX([1]FILTER_TYPE!$A$2:$A$100,MATCH('Communication Facility (Desc)'!$R72,[1]!MASTER_FILTER_TYPE_DESC[#Data],0),0))","v":""},{"$f":"IF('Communication Facility (Desc)'!S72=\"\",\"\",INDEX([1]FILTER_SIZE!$A$2:$A$100,MATCH('Communication Facility (Desc)'!$S72,[1]!MASTER_FILTER_SIZE_DESC[#Data],0),0))","v":""},{"$f":"IF('Communication Facility (Desc)'!T72=\"\",\"\",'Communication Facility (Desc)'!T72)","v":""},{"$f":"IF('Communication Facility (Desc)'!U72=\"\",\"\",INDEX([1]YES_NO!$A$2:$A$100,MATCH('Communication Facility (Desc)'!$U72,[1]!MASTER_YES_NO_DESC[#Data],0),0))","v":""},{"$f":"IF('Communication Facility (Desc)'!V72=\"\",\"\",INDEX([1]YES_NO!$A$2:$A$100,MATCH('Communication Facility (Desc)'!$V72,[1]!MASTER_YES_NO_DESC[#Data],0),0))","v":""}]
[{"$f":"IF('Communication Facility (Desc)'!A73=\"\",\"\",'Communication Facility (Desc)'!A73)","v":""},{"$f":"IF('Communication Facility (Desc)'!B73=\"\",\"\",'Communication Facility (Desc)'!B73)","v":""},{"$f":"IF('Communication Facility (Desc)'!C73=\"\",\"\",'Communication Facility (Desc)'!C73)","v":""},{"$f":"IF('Communication Facility (Desc)'!D73=\"\",\"\",INDEX([1]FACILITY_TYPE!$A$2:$A$100,MATCH('Communication Facility (Desc)'!$D73,[1]!MASTER_FACILITY_TYPE_DESC[#Data],0),0))","v":""},{"$f":"IF('Communication Facility (Desc)'!E73=\"\",\"\",INDEX([1]OWNER!$A$2:$A$100,MATCH('Communication Facility (Desc)'!$E73,[1]!MASTER_OWNER_DESC[#Data],0),0))","v":""},{"$f":"IF('Communication Facility (Desc)'!F73=\"\",\"\",IF('Communication Facility (Desc)'!F73=\"\",\"\",INDEX([1]COUNTY!$A$2:$A$80,MATCH('Communication Facility (Desc)'!F73,[1]!MASTER_COUNTY_NAME[#Data],0),0)))","v":""},{"$f":"IF('Communication Facility (Desc)'!G73=\"\",\"\",'Communication Facility (Desc)'!G73)","v":""},{"$f":"IF('Communication Facility (Desc)'!H73=\"\",\"\",'Communication Facility (Desc)'!H73)","v":""},{"$f":"IF('Communication Facility (Desc)'!I73=\"\",\"\",'Communication Facility (Desc)'!I73)","v":""},{"$f":"IF('Communication Facility (Desc)'!J73=\"\",\"\",INDEX([1]CABINET_TYPE!$A$2:$A$100,MATCH('Communication Facility (Desc)'!$J73,[1]!MASTER_CABINET_TYPE_DESC[#Data],0),0))","v":""},{"$f":"IF('Communication Facility (Desc)'!K73=\"\",\"\",INDEX([1]CABINET_MOUNT_TYPE!$A$2:$A$100,MATCH('Communication Facility (Desc)'!K73,[1]!MASTER_CABINET_MOUNT_TYPE_DESC[#Data],0),0))","v":""},{"$f":"IF('Communication Facility (Desc)'!L73=\"\",\"\",INDEX([1]YES_NO!$A$2:$A$100,MATCH('Communication Facility (Desc)'!L73,[1]!MASTER_YES_NO_DESC[#Data],0),0))","v":""},{"$f":"IF('Communication Facility (Desc)'!M73=\"\",\"\",INDEX([1]BUILDING_TYPE!$A$2:$A$100,MATCH('Communication Facility (Desc)'!$M73,[1]!MASTER_BUILDING_TYPE_DESC[#Data],0),0))","v":""},{"$f":"IF('Communication Facility (Desc)'!N73=\"\",\"\",'Communication Facility (Desc)'!N73)","v":""},{"$f":"IF('Communication Facility (Desc)'!O73=\"\",\"\",INDEX([1]BUILDING_MTL!$A$2:$A$100,MATCH('Communication Facility (Desc)'!$O73,[1]!MASTER_BUILDING_MTL_DESC[#Data],0),0))","v":""},{"$f":"IF('Communication Facility (Desc)'!P73=\"\",\"\",INDEX([1]KEY_TYPE!$A$2:$A$100,MATCH('Communication Facility (Desc)'!$P73,[1]!MASTER_KEY_TYPE_DESC[#Data],0),0))","v":""},{"$f":"IF('Communication Facility (Desc)'!Q73=\"\",\"\",'Communication Facility (Desc)'!Q73)","v":""},{"$f":"IF('Communication Facility (Desc)'!R73=\"\",\"\",INDEX([1]FILTER_TYPE!$A$2:$A$100,MATCH('Communication Facility (Desc)'!$R73,[1]!MASTER_FILTER_TYPE_DESC[#Data],0),0))","v":""},{"$f":"IF('Communication Facility (Desc)'!S73=\"\",\"\",INDEX([1]FILTER_SIZE!$A$2:$A$100,MATCH('Communication Facility (Desc)'!$S73,[1]!MASTER_FILTER_SIZE_DESC[#Data],0),0))","v":""},{"$f":"IF('Communication Facility (Desc)'!T73=\"\",\"\",'Communication Facility (Desc)'!T73)","v":""},{"$f":"IF('Communication Facility (Desc)'!U73=\"\",\"\",INDEX([1]YES_NO!$A$2:$A$100,MATCH('Communication Facility (Desc)'!$U73,[1]!MASTER_YES_NO_DESC[#Data],0),0))","v":""},{"$f":"IF('Communication Facility (Desc)'!V73=\"\",\"\",INDEX([1]YES_NO!$A$2:$A$100,MATCH('Communication Facility (Desc)'!$V73,[1]!MASTER_YES_NO_DESC[#Data],0),0))","v":""}]
[{"$f":"IF('Communication Facility (Desc)'!A74=\"\",\"\",'Communication Facility (Desc)'!A74)","v":""},{"$f":"IF('Communication Facility (Desc)'!B74=\"\",\"\",'Communication Facility (Desc)'!B74)","v":""},{"$f":"IF('Communication Facility (Desc)'!C74=\"\",\"\",'Communication Facility (Desc)'!C74)","v":""},{"$f":"IF('Communication Facility (Desc)'!D74=\"\",\"\",INDEX([1]FACILITY_TYPE!$A$2:$A$100,MATCH('Communication Facility (Desc)'!$D74,[1]!MASTER_FACILITY_TYPE_DESC[#Data],0),0))","v":""},{"$f":"IF('Communication Facility (Desc)'!E74=\"\",\"\",INDEX([1]OWNER!$A$2:$A$100,MATCH('Communication Facility (Desc)'!$E74,[1]!MASTER_OWNER_DESC[#Data],0),0))","v":""},{"$f":"IF('Communication Facility (Desc)'!F74=\"\",\"\",IF('Communication Facility (Desc)'!F74=\"\",\"\",INDEX([1]COUNTY!$A$2:$A$80,MATCH('Communication Facility (Desc)'!F74,[1]!MASTER_COUNTY_NAME[#Data],0),0)))","v":""},{"$f":"IF('Communication Facility (Desc)'!G74=\"\",\"\",'Communication Facility (Desc)'!G74)","v":""},{"$f":"IF('Communication Facility (Desc)'!H74=\"\",\"\",'Communication Facility (Desc)'!H74)","v":""},{"$f":"IF('Communication Facility (Desc)'!I74=\"\",\"\",'Communication Facility (Desc)'!I74)","v":""},{"$f":"IF('Communication Facility (Desc)'!J74=\"\",\"\",INDEX([1]CABINET_TYPE!$A$2:$A$100,MATCH('Communication Facility (Desc)'!$J74,[1]!MASTER_CABINET_TYPE_DESC[#Data],0),0))","v":""},{"$f":"IF('Communication Facility (Desc)'!K74=\"\",\"\",INDEX([1]CABINET_MOUNT_TYPE!$A$2:$A$100,MATCH('Communication Facility (Desc)'!K74,[1]!MASTER_CABINET_MOUNT_TYPE_DESC[#Data],0),0))","v":""},{"$f":"IF('Communication Facility (Desc)'!L74=\"\",\"\",INDEX([1]YES_NO!$A$2:$A$100,MATCH('Communication Facility (Desc)'!L74,[1]!MASTER_YES_NO_DESC[#Data],0),0))","v":""},{"$f":"IF('Communication Facility (Desc)'!M74=\"\",\"\",INDEX([1]BUILDING_TYPE!$A$2:$A$100,MATCH('Communication Facility (Desc)'!$M74,[1]!MASTER_BUILDING_TYPE_DESC[#Data],0),0))","v":""},{"$f":"IF('Communication Facility (Desc)'!N74=\"\",\"\",'Communication Facility (Desc)'!N74)","v":""},{"$f":"IF('Communication Facility (Desc)'!O74=\"\",\"\",INDEX([1]BUILDING_MTL!$A$2:$A$100,MATCH('Communication Facility (Desc)'!$O74,[1]!MASTER_BUILDING_MTL_DESC[#Data],0),0))","v":""},{"$f":"IF('Communication Facility (Desc)'!P74=\"\",\"\",INDEX([1]KEY_TYPE!$A$2:$A$100,MATCH('Communication Facility (Desc)'!$P74,[1]!MASTER_KEY_TYPE_DESC[#Data],0),0))","v":""},{"$f":"IF('Communication Facility (Desc)'!Q74=\"\",\"\",'Communication Facility (Desc)'!Q74)","v":""},{"$f":"IF('Communication Facility (Desc)'!R74=\"\",\"\",INDEX([1]FILTER_TYPE!$A$2:$A$100,MATCH('Communication Facility (Desc)'!$R74,[1]!MASTER_FILTER_TYPE_DESC[#Data],0),0))","v":""},{"$f":"IF('Communication Facility (Desc)'!S74=\"\",\"\",INDEX([1]FILTER_SIZE!$A$2:$A$100,MATCH('Communication Facility (Desc)'!$S74,[1]!MASTER_FILTER_SIZE_DESC[#Data],0),0))","v":""},{"$f":"IF('Communication Facility (Desc)'!T74=\"\",\"\",'Communication Facility (Desc)'!T74)","v":""},{"$f":"IF('Communication Facility (Desc)'!U74=\"\",\"\",INDEX([1]YES_NO!$A$2:$A$100,MATCH('Communication Facility (Desc)'!$U74,[1]!MASTER_YES_NO_DESC[#Data],0),0))","v":""},{"$f":"IF('Communication Facility (Desc)'!V74=\"\",\"\",INDEX([1]YES_NO!$A$2:$A$100,MATCH('Communication Facility (Desc)'!$V74,[1]!MASTER_YES_NO_DESC[#Data],0),0))","v":""}]
[{"$f":"IF('Communication Facility (Desc)'!A75=\"\",\"\",'Communication Facility (Desc)'!A75)","v":""},{"$f":"IF('Communication Facility (Desc)'!B75=\"\",\"\",'Communication Facility (Desc)'!B75)","v":""},{"$f":"IF('Communication Facility (Desc)'!C75=\"\",\"\",'Communication Facility (Desc)'!C75)","v":""},{"$f":"IF('Communication Facility (Desc)'!D75=\"\",\"\",INDEX([1]FACILITY_TYPE!$A$2:$A$100,MATCH('Communication Facility (Desc)'!$D75,[1]!MASTER_FACILITY_TYPE_DESC[#Data],0),0))","v":""},{"$f":"IF('Communication Facility (Desc)'!E75=\"\",\"\",INDEX([1]OWNER!$A$2:$A$100,MATCH('Communication Facility (Desc)'!$E75,[1]!MASTER_OWNER_DESC[#Data],0),0))","v":""},{"$f":"IF('Communication Facility (Desc)'!F75=\"\",\"\",IF('Communication Facility (Desc)'!F75=\"\",\"\",INDEX([1]COUNTY!$A$2:$A$80,MATCH('Communication Facility (Desc)'!F75,[1]!MASTER_COUNTY_NAME[#Data],0),0)))","v":""},{"$f":"IF('Communication Facility (Desc)'!G75=\"\",\"\",'Communication Facility (Desc)'!G75)","v":""},{"$f":"IF('Communication Facility (Desc)'!H75=\"\",\"\",'Communication Facility (Desc)'!H75)","v":""},{"$f":"IF('Communication Facility (Desc)'!I75=\"\",\"\",'Communication Facility (Desc)'!I75)","v":""},{"$f":"IF('Communication Facility (Desc)'!J75=\"\",\"\",INDEX([1]CABINET_TYPE!$A$2:$A$100,MATCH('Communication Facility (Desc)'!$J75,[1]!MASTER_CABINET_TYPE_DESC[#Data],0),0))","v":""},{"$f":"IF('Communication Facility (Desc)'!K75=\"\",\"\",INDEX([1]CABINET_MOUNT_TYPE!$A$2:$A$100,MATCH('Communication Facility (Desc)'!K75,[1]!MASTER_CABINET_MOUNT_TYPE_DESC[#Data],0),0))","v":""},{"$f":"IF('Communication Facility (Desc)'!L75=\"\",\"\",INDEX([1]YES_NO!$A$2:$A$100,MATCH('Communication Facility (Desc)'!L75,[1]!MASTER_YES_NO_DESC[#Data],0),0))","v":""},{"$f":"IF('Communication Facility (Desc)'!M75=\"\",\"\",INDEX([1]BUILDING_TYPE!$A$2:$A$100,MATCH('Communication Facility (Desc)'!$M75,[1]!MASTER_BUILDING_TYPE_DESC[#Data],0),0))","v":""},{"$f":"IF('Communication Facility (Desc)'!N75=\"\",\"\",'Communication Facility (Desc)'!N75)","v":""},{"$f":"IF('Communication Facility (Desc)'!O75=\"\",\"\",INDEX([1]BUILDING_MTL!$A$2:$A$100,MATCH('Communication Facility (Desc)'!$O75,[1]!MASTER_BUILDING_MTL_DESC[#Data],0),0))","v":""},{"$f":"IF('Communication Facility (Desc)'!P75=\"\",\"\",INDEX([1]KEY_TYPE!$A$2:$A$100,MATCH('Communication Facility (Desc)'!$P75,[1]!MASTER_KEY_TYPE_DESC[#Data],0),0))","v":""},{"$f":"IF('Communication Facility (Desc)'!Q75=\"\",\"\",'Communication Facility (Desc)'!Q75)","v":""},{"$f":"IF('Communication Facility (Desc)'!R75=\"\",\"\",INDEX([1]FILTER_TYPE!$A$2:$A$100,MATCH('Communication Facility (Desc)'!$R75,[1]!MASTER_FILTER_TYPE_DESC[#Data],0),0))","v":""},{"$f":"IF('Communication Facility (Desc)'!S75=\"\",\"\",INDEX([1]FILTER_SIZE!$A$2:$A$100,MATCH('Communication Facility (Desc)'!$S75,[1]!MASTER_FILTER_SIZE_DESC[#Data],0),0))","v":""},{"$f":"IF('Communication Facility (Desc)'!T75=\"\",\"\",'Communication Facility (Desc)'!T75)","v":""},{"$f":"IF('Communication Facility (Desc)'!U75=\"\",\"\",INDEX([1]YES_NO!$A$2:$A$100,MATCH('Communication Facility (Desc)'!$U75,[1]!MASTER_YES_NO_DESC[#Data],0),0))","v":""},{"$f":"IF('Communication Facility (Desc)'!V75=\"\",\"\",INDEX([1]YES_NO!$A$2:$A$100,MATCH('Communication Facility (Desc)'!$V75,[1]!MASTER_YES_NO_DESC[#Data],0),0))","v":""}]
[{"$f":"IF('Communication Facility (Desc)'!A76=\"\",\"\",'Communication Facility (Desc)'!A76)","v":""},{"$f":"IF('Communication Facility (Desc)'!B76=\"\",\"\",'Communication Facility (Desc)'!B76)","v":""},{"$f":"IF('Communication Facility (Desc)'!C76=\"\",\"\",'Communication Facility (Desc)'!C76)","v":""},{"$f":"IF('Communication Facility (Desc)'!D76=\"\",\"\",INDEX([1]FACILITY_TYPE!$A$2:$A$100,MATCH('Communication Facility (Desc)'!$D76,[1]!MASTER_FACILITY_TYPE_DESC[#Data],0),0))","v":""},{"$f":"IF('Communication Facility (Desc)'!E76=\"\",\"\",INDEX([1]OWNER!$A$2:$A$100,MATCH('Communication Facility (Desc)'!$E76,[1]!MASTER_OWNER_DESC[#Data],0),0))","v":""},{"$f":"IF('Communication Facility (Desc)'!F76=\"\",\"\",IF('Communication Facility (Desc)'!F76=\"\",\"\",INDEX([1]COUNTY!$A$2:$A$80,MATCH('Communication Facility (Desc)'!F76,[1]!MASTER_COUNTY_NAME[#Data],0),0)))","v":""},{"$f":"IF('Communication Facility (Desc)'!G76=\"\",\"\",'Communication Facility (Desc)'!G76)","v":""},{"$f":"IF('Communication Facility (Desc)'!H76=\"\",\"\",'Communication Facility (Desc)'!H76)","v":""},{"$f":"IF('Communication Facility (Desc)'!I76=\"\",\"\",'Communication Facility (Desc)'!I76)","v":""},{"$f":"IF('Communication Facility (Desc)'!J76=\"\",\"\",INDEX([1]CABINET_TYPE!$A$2:$A$100,MATCH('Communication Facility (Desc)'!$J76,[1]!MASTER_CABINET_TYPE_DESC[#Data],0),0))","v":""},{"$f":"IF('Communication Facility (Desc)'!K76=\"\",\"\",INDEX([1]CABINET_MOUNT_TYPE!$A$2:$A$100,MATCH('Communication Facility (Desc)'!K76,[1]!MASTER_CABINET_MOUNT_TYPE_DESC[#Data],0),0))","v":""},{"$f":"IF('Communication Facility (Desc)'!L76=\"\",\"\",INDEX([1]YES_NO!$A$2:$A$100,MATCH('Communication Facility (Desc)'!L76,[1]!MASTER_YES_NO_DESC[#Data],0),0))","v":""},{"$f":"IF('Communication Facility (Desc)'!M76=\"\",\"\",INDEX([1]BUILDING_TYPE!$A$2:$A$100,MATCH('Communication Facility (Desc)'!$M76,[1]!MASTER_BUILDING_TYPE_DESC[#Data],0),0))","v":""},{"$f":"IF('Communication Facility (Desc)'!N76=\"\",\"\",'Communication Facility (Desc)'!N76)","v":""},{"$f":"IF('Communication Facility (Desc)'!O76=\"\",\"\",INDEX([1]BUILDING_MTL!$A$2:$A$100,MATCH('Communication Facility (Desc)'!$O76,[1]!MASTER_BUILDING_MTL_DESC[#Data],0),0))","v":""},{"$f":"IF('Communication Facility (Desc)'!P76=\"\",\"\",INDEX([1]KEY_TYPE!$A$2:$A$100,MATCH('Communication Facility (Desc)'!$P76,[1]!MASTER_KEY_TYPE_DESC[#Data],0),0))","v":""},{"$f":"IF('Communication Facility (Desc)'!Q76=\"\",\"\",'Communication Facility (Desc)'!Q76)","v":""},{"$f":"IF('Communication Facility (Desc)'!R76=\"\",\"\",INDEX([1]FILTER_TYPE!$A$2:$A$100,MATCH('Communication Facility (Desc)'!$R76,[1]!MASTER_FILTER_TYPE_DESC[#Data],0),0))","v":""},{"$f":"IF('Communication Facility (Desc)'!S76=\"\",\"\",INDEX([1]FILTER_SIZE!$A$2:$A$100,MATCH('Communication Facility (Desc)'!$S76,[1]!MASTER_FILTER_SIZE_DESC[#Data],0),0))","v":""},{"$f":"IF('Communication Facility (Desc)'!T76=\"\",\"\",'Communication Facility (Desc)'!T76)","v":""},{"$f":"IF('Communication Facility (Desc)'!U76=\"\",\"\",INDEX([1]YES_NO!$A$2:$A$100,MATCH('Communication Facility (Desc)'!$U76,[1]!MASTER_YES_NO_DESC[#Data],0),0))","v":""},{"$f":"IF('Communication Facility (Desc)'!V76=\"\",\"\",INDEX([1]YES_NO!$A$2:$A$100,MATCH('Communication Facility (Desc)'!$V76,[1]!MASTER_YES_NO_DESC[#Data],0),0))","v":""}]
[{"$f":"IF('Communication Facility (Desc)'!A77=\"\",\"\",'Communication Facility (Desc)'!A77)","v":""},{"$f":"IF('Communication Facility (Desc)'!B77=\"\",\"\",'Communication Facility (Desc)'!B77)","v":""},{"$f":"IF('Communication Facility (Desc)'!C77=\"\",\"\",'Communication Facility (Desc)'!C77)","v":""},{"$f":"IF('Communication Facility (Desc)'!D77=\"\",\"\",INDEX([1]FACILITY_TYPE!$A$2:$A$100,MATCH('Communication Facility (Desc)'!$D77,[1]!MASTER_FACILITY_TYPE_DESC[#Data],0),0))","v":""},{"$f":"IF('Communication Facility (Desc)'!E77=\"\",\"\",INDEX([1]OWNER!$A$2:$A$100,MATCH('Communication Facility (Desc)'!$E77,[1]!MASTER_OWNER_DESC[#Data],0),0))","v":""},{"$f":"IF('Communication Facility (Desc)'!F77=\"\",\"\",IF('Communication Facility (Desc)'!F77=\"\",\"\",INDEX([1]COUNTY!$A$2:$A$80,MATCH('Communication Facility (Desc)'!F77,[1]!MASTER_COUNTY_NAME[#Data],0),0)))","v":""},{"$f":"IF('Communication Facility (Desc)'!G77=\"\",\"\",'Communication Facility (Desc)'!G77)","v":""},{"$f":"IF('Communication Facility (Desc)'!H77=\"\",\"\",'Communication Facility (Desc)'!H77)","v":""},{"$f":"IF('Communication Facility (Desc)'!I77=\"\",\"\",'Communication Facility (Desc)'!I77)","v":""},{"$f":"IF('Communication Facility (Desc)'!J77=\"\",\"\",INDEX([1]CABINET_TYPE!$A$2:$A$100,MATCH('Communication Facility (Desc)'!$J77,[1]!MASTER_CABINET_TYPE_DESC[#Data],0),0))","v":""},{"$f":"IF('Communication Facility (Desc)'!K77=\"\",\"\",INDEX([1]CABINET_MOUNT_TYPE!$A$2:$A$100,MATCH('Communication Facility (Desc)'!K77,[1]!MASTER_CABINET_MOUNT_TYPE_DESC[#Data],0),0))","v":""},{"$f":"IF('Communication Facility (Desc)'!L77=\"\",\"\",INDEX([1]YES_NO!$A$2:$A$100,MATCH('Communication Facility (Desc)'!L77,[1]!MASTER_YES_NO_DESC[#Data],0),0))","v":""},{"$f":"IF('Communication Facility (Desc)'!M77=\"\",\"\",INDEX([1]BUILDING_TYPE!$A$2:$A$100,MATCH('Communication Facility (Desc)'!$M77,[1]!MASTER_BUILDING_TYPE_DESC[#Data],0),0))","v":""},{"$f":"IF('Communication Facility (Desc)'!N77=\"\",\"\",'Communication Facility (Desc)'!N77)","v":""},{"$f":"IF('Communication Facility (Desc)'!O77=\"\",\"\",INDEX([1]BUILDING_MTL!$A$2:$A$100,MATCH('Communication Facility (Desc)'!$O77,[1]!MASTER_BUILDING_MTL_DESC[#Data],0),0))","v":""},{"$f":"IF('Communication Facility (Desc)'!P77=\"\",\"\",INDEX([1]KEY_TYPE!$A$2:$A$100,MATCH('Communication Facility (Desc)'!$P77,[1]!MASTER_KEY_TYPE_DESC[#Data],0),0))","v":""},{"$f":"IF('Communication Facility (Desc)'!Q77=\"\",\"\",'Communication Facility (Desc)'!Q77)","v":""},{"$f":"IF('Communication Facility (Desc)'!R77=\"\",\"\",INDEX([1]FILTER_TYPE!$A$2:$A$100,MATCH('Communication Facility (Desc)'!$R77,[1]!MASTER_FILTER_TYPE_DESC[#Data],0),0))","v":""},{"$f":"IF('Communication Facility (Desc)'!S77=\"\",\"\",INDEX([1]FILTER_SIZE!$A$2:$A$100,MATCH('Communication Facility (Desc)'!$S77,[1]!MASTER_FILTER_SIZE_DESC[#Data],0),0))","v":""},{"$f":"IF('Communication Facility (Desc)'!T77=\"\",\"\",'Communication Facility (Desc)'!T77)","v":""},{"$f":"IF('Communication Facility (Desc)'!U77=\"\",\"\",INDEX([1]YES_NO!$A$2:$A$100,MATCH('Communication Facility (Desc)'!$U77,[1]!MASTER_YES_NO_DESC[#Data],0),0))","v":""},{"$f":"IF('Communication Facility (Desc)'!V77=\"\",\"\",INDEX([1]YES_NO!$A$2:$A$100,MATCH('Communication Facility (Desc)'!$V77,[1]!MASTER_YES_NO_DESC[#Data],0),0))","v":""}]
[{"$f":"IF('Communication Facility (Desc)'!A78=\"\",\"\",'Communication Facility (Desc)'!A78)","v":""},{"$f":"IF('Communication Facility (Desc)'!B78=\"\",\"\",'Communication Facility (Desc)'!B78)","v":""},{"$f":"IF('Communication Facility (Desc)'!C78=\"\",\"\",'Communication Facility (Desc)'!C78)","v":""},{"$f":"IF('Communication Facility (Desc)'!D78=\"\",\"\",INDEX([1]FACILITY_TYPE!$A$2:$A$100,MATCH('Communication Facility (Desc)'!$D78,[1]!MASTER_FACILITY_TYPE_DESC[#Data],0),0))","v":""},{"$f":"IF('Communication Facility (Desc)'!E78=\"\",\"\",INDEX([1]OWNER!$A$2:$A$100,MATCH('Communication Facility (Desc)'!$E78,[1]!MASTER_OWNER_DESC[#Data],0),0))","v":""},{"$f":"IF('Communication Facility (Desc)'!F78=\"\",\"\",IF('Communication Facility (Desc)'!F78=\"\",\"\",INDEX([1]COUNTY!$A$2:$A$80,MATCH('Communication Facility (Desc)'!F78,[1]!MASTER_COUNTY_NAME[#Data],0),0)))","v":""},{"$f":"IF('Communication Facility (Desc)'!G78=\"\",\"\",'Communication Facility (Desc)'!G78)","v":""},{"$f":"IF('Communication Facility (Desc)'!H78=\"\",\"\",'Communication Facility (Desc)'!H78)","v":""},{"$f":"IF('Communication Facility (Desc)'!I78=\"\",\"\",'Communication Facility (Desc)'!I78)","v":""},{"$f":"IF('Communication Facility (Desc)'!J78=\"\",\"\",INDEX([1]CABINET_TYPE!$A$2:$A$100,MATCH('Communication Facility (Desc)'!$J78,[1]!MASTER_CABINET_TYPE_DESC[#Data],0),0))","v":""},{"$f":"IF('Communication Facility (Desc)'!K78=\"\",\"\",INDEX([1]CABINET_MOUNT_TYPE!$A$2:$A$100,MATCH('Communication Facility (Desc)'!K78,[1]!MASTER_CABINET_MOUNT_TYPE_DESC[#Data],0),0))","v":""},{"$f":"IF('Communication Facility (Desc)'!L78=\"\",\"\",INDEX([1]YES_NO!$A$2:$A$100,MATCH('Communication Facility (Desc)'!L78,[1]!MASTER_YES_NO_DESC[#Data],0),0))","v":""},{"$f":"IF('Communication Facility (Desc)'!M78=\"\",\"\",INDEX([1]BUILDING_TYPE!$A$2:$A$100,MATCH('Communication Facility (Desc)'!$M78,[1]!MASTER_BUILDING_TYPE_DESC[#Data],0),0))","v":""},{"$f":"IF('Communication Facility (Desc)'!N78=\"\",\"\",'Communication Facility (Desc)'!N78)","v":""},{"$f":"IF('Communication Facility (Desc)'!O78=\"\",\"\",INDEX([1]BUILDING_MTL!$A$2:$A$100,MATCH('Communication Facility (Desc)'!$O78,[1]!MASTER_BUILDING_MTL_DESC[#Data],0),0))","v":""},{"$f":"IF('Communication Facility (Desc)'!P78=\"\",\"\",INDEX([1]KEY_TYPE!$A$2:$A$100,MATCH('Communication Facility (Desc)'!$P78,[1]!MASTER_KEY_TYPE_DESC[#Data],0),0))","v":""},{"$f":"IF('Communication Facility (Desc)'!Q78=\"\",\"\",'Communication Facility (Desc)'!Q78)","v":""},{"$f":"IF('Communication Facility (Desc)'!R78=\"\",\"\",INDEX([1]FILTER_TYPE!$A$2:$A$100,MATCH('Communication Facility (Desc)'!$R78,[1]!MASTER_FILTER_TYPE_DESC[#Data],0),0))","v":""},{"$f":"IF('Communication Facility (Desc)'!S78=\"\",\"\",INDEX([1]FILTER_SIZE!$A$2:$A$100,MATCH('Communication Facility (Desc)'!$S78,[1]!MASTER_FILTER_SIZE_DESC[#Data],0),0))","v":""},{"$f":"IF('Communication Facility (Desc)'!T78=\"\",\"\",'Communication Facility (Desc)'!T78)","v":""},{"$f":"IF('Communication Facility (Desc)'!U78=\"\",\"\",INDEX([1]YES_NO!$A$2:$A$100,MATCH('Communication Facility (Desc)'!$U78,[1]!MASTER_YES_NO_DESC[#Data],0),0))","v":""},{"$f":"IF('Communication Facility (Desc)'!V78=\"\",\"\",INDEX([1]YES_NO!$A$2:$A$100,MATCH('Communication Facility (Desc)'!$V78,[1]!MASTER_YES_NO_DESC[#Data],0),0))","v":""}]
[{"$f":"IF('Communication Facility (Desc)'!A79=\"\",\"\",'Communication Facility (Desc)'!A79)","v":""},{"$f":"IF('Communication Facility (Desc)'!B79=\"\",\"\",'Communication Facility (Desc)'!B79)","v":""},{"$f":"IF('Communication Facility (Desc)'!C79=\"\",\"\",'Communication Facility (Desc)'!C79)","v":""},{"$f":"IF('Communication Facility (Desc)'!D79=\"\",\"\",INDEX([1]FACILITY_TYPE!$A$2:$A$100,MATCH('Communication Facility (Desc)'!$D79,[1]!MASTER_FACILITY_TYPE_DESC[#Data],0),0))","v":""},{"$f":"IF('Communication Facility (Desc)'!E79=\"\",\"\",INDEX([1]OWNER!$A$2:$A$100,MATCH('Communication Facility (Desc)'!$E79,[1]!MASTER_OWNER_DESC[#Data],0),0))","v":""},{"$f":"IF('Communication Facility (Desc)'!F79=\"\",\"\",IF('Communication Facility (Desc)'!F79=\"\",\"\",INDEX([1]COUNTY!$A$2:$A$80,MATCH('Communication Facility (Desc)'!F79,[1]!MASTER_COUNTY_NAME[#Data],0),0)))","v":""},{"$f":"IF('Communication Facility (Desc)'!G79=\"\",\"\",'Communication Facility (Desc)'!G79)","v":""},{"$f":"IF('Communication Facility (Desc)'!H79=\"\",\"\",'Communication Facility (Desc)'!H79)","v":""},{"$f":"IF('Communication Facility (Desc)'!I79=\"\",\"\",'Communication Facility (Desc)'!I79)","v":""},{"$f":"IF('Communication Facility (Desc)'!J79=\"\",\"\",INDEX([1]CABINET_TYPE!$A$2:$A$100,MATCH('Communication Facility (Desc)'!$J79,[1]!MASTER_CABINET_TYPE_DESC[#Data],0),0))","v":""},{"$f":"IF('Communication Facility (Desc)'!K79=\"\",\"\",INDEX([1]CABINET_MOUNT_TYPE!$A$2:$A$100,MATCH('Communication Facility (Desc)'!K79,[1]!MASTER_CABINET_MOUNT_TYPE_DESC[#Data],0),0))","v":""},{"$f":"IF('Communication Facility (Desc)'!L79=\"\",\"\",INDEX([1]YES_NO!$A$2:$A$100,MATCH('Communication Facility (Desc)'!L79,[1]!MASTER_YES_NO_DESC[#Data],0),0))","v":""},{"$f":"IF('Communication Facility (Desc)'!M79=\"\",\"\",INDEX([1]BUILDING_TYPE!$A$2:$A$100,MATCH('Communication Facility (Desc)'!$M79,[1]!MASTER_BUILDING_TYPE_DESC[#Data],0),0))","v":""},{"$f":"IF('Communication Facility (Desc)'!N79=\"\",\"\",'Communication Facility (Desc)'!N79)","v":""},{"$f":"IF('Communication Facility (Desc)'!O79=\"\",\"\",INDEX([1]BUILDING_MTL!$A$2:$A$100,MATCH('Communication Facility (Desc)'!$O79,[1]!MASTER_BUILDING_MTL_DESC[#Data],0),0))","v":""},{"$f":"IF('Communication Facility (Desc)'!P79=\"\",\"\",INDEX([1]KEY_TYPE!$A$2:$A$100,MATCH('Communication Facility (Desc)'!$P79,[1]!MASTER_KEY_TYPE_DESC[#Data],0),0))","v":""},{"$f":"IF('Communication Facility (Desc)'!Q79=\"\",\"\",'Communication Facility (Desc)'!Q79)","v":""},{"$f":"IF('Communication Facility (Desc)'!R79=\"\",\"\",INDEX([1]FILTER_TYPE!$A$2:$A$100,MATCH('Communication Facility (Desc)'!$R79,[1]!MASTER_FILTER_TYPE_DESC[#Data],0),0))","v":""},{"$f":"IF('Communication Facility (Desc)'!S79=\"\",\"\",INDEX([1]FILTER_SIZE!$A$2:$A$100,MATCH('Communication Facility (Desc)'!$S79,[1]!MASTER_FILTER_SIZE_DESC[#Data],0),0))","v":""},{"$f":"IF('Communication Facility (Desc)'!T79=\"\",\"\",'Communication Facility (Desc)'!T79)","v":""},{"$f":"IF('Communication Facility (Desc)'!U79=\"\",\"\",INDEX([1]YES_NO!$A$2:$A$100,MATCH('Communication Facility (Desc)'!$U79,[1]!MASTER_YES_NO_DESC[#Data],0),0))","v":""},{"$f":"IF('Communication Facility (Desc)'!V79=\"\",\"\",INDEX([1]YES_NO!$A$2:$A$100,MATCH('Communication Facility (Desc)'!$V79,[1]!MASTER_YES_NO_DESC[#Data],0),0))","v":""}]
[{"$f":"IF('Communication Facility (Desc)'!A80=\"\",\"\",'Communication Facility (Desc)'!A80)","v":""},{"$f":"IF('Communication Facility (Desc)'!B80=\"\",\"\",'Communication Facility (Desc)'!B80)","v":""},{"$f":"IF('Communication Facility (Desc)'!C80=\"\",\"\",'Communication Facility (Desc)'!C80)","v":""},{"$f":"IF('Communication Facility (Desc)'!D80=\"\",\"\",INDEX([1]FACILITY_TYPE!$A$2:$A$100,MATCH('Communication Facility (Desc)'!$D80,[1]!MASTER_FACILITY_TYPE_DESC[#Data],0),0))","v":""},{"$f":"IF('Communication Facility (Desc)'!E80=\"\",\"\",INDEX([1]OWNER!$A$2:$A$100,MATCH('Communication Facility (Desc)'!$E80,[1]!MASTER_OWNER_DESC[#Data],0),0))","v":""},{"$f":"IF('Communication Facility (Desc)'!F80=\"\",\"\",IF('Communication Facility (Desc)'!F80=\"\",\"\",INDEX([1]COUNTY!$A$2:$A$80,MATCH('Communication Facility (Desc)'!F80,[1]!MASTER_COUNTY_NAME[#Data],0),0)))","v":""},{"$f":"IF('Communication Facility (Desc)'!G80=\"\",\"\",'Communication Facility (Desc)'!G80)","v":""},{"$f":"IF('Communication Facility (Desc)'!H80=\"\",\"\",'Communication Facility (Desc)'!H80)","v":""},{"$f":"IF('Communication Facility (Desc)'!I80=\"\",\"\",'Communication Facility (Desc)'!I80)","v":""},{"$f":"IF('Communication Facility (Desc)'!J80=\"\",\"\",INDEX([1]CABINET_TYPE!$A$2:$A$100,MATCH('Communication Facility (Desc)'!$J80,[1]!MASTER_CABINET_TYPE_DESC[#Data],0),0))","v":""},{"$f":"IF('Communication Facility (Desc)'!K80=\"\",\"\",INDEX([1]CABINET_MOUNT_TYPE!$A$2:$A$100,MATCH('Communication Facility (Desc)'!K80,[1]!MASTER_CABINET_MOUNT_TYPE_DESC[#Data],0),0))","v":""},{"$f":"IF('Communication Facility (Desc)'!L80=\"\",\"\",INDEX([1]YES_NO!$A$2:$A$100,MATCH('Communication Facility (Desc)'!L80,[1]!MASTER_YES_NO_DESC[#Data],0),0))","v":""},{"$f":"IF('Communication Facility (Desc)'!M80=\"\",\"\",INDEX([1]BUILDING_TYPE!$A$2:$A$100,MATCH('Communication Facility (Desc)'!$M80,[1]!MASTER_BUILDING_TYPE_DESC[#Data],0),0))","v":""},{"$f":"IF('Communication Facility (Desc)'!N80=\"\",\"\",'Communication Facility (Desc)'!N80)","v":""},{"$f":"IF('Communication Facility (Desc)'!O80=\"\",\"\",INDEX([1]BUILDING_MTL!$A$2:$A$100,MATCH('Communication Facility (Desc)'!$O80,[1]!MASTER_BUILDING_MTL_DESC[#Data],0),0))","v":""},{"$f":"IF('Communication Facility (Desc)'!P80=\"\",\"\",INDEX([1]KEY_TYPE!$A$2:$A$100,MATCH('Communication Facility (Desc)'!$P80,[1]!MASTER_KEY_TYPE_DESC[#Data],0),0))","v":""},{"$f":"IF('Communication Facility (Desc)'!Q80=\"\",\"\",'Communication Facility (Desc)'!Q80)","v":""},{"$f":"IF('Communication Facility (Desc)'!R80=\"\",\"\",INDEX([1]FILTER_TYPE!$A$2:$A$100,MATCH('Communication Facility (Desc)'!$R80,[1]!MASTER_FILTER_TYPE_DESC[#Data],0),0))","v":""},{"$f":"IF('Communication Facility (Desc)'!S80=\"\",\"\",INDEX([1]FILTER_SIZE!$A$2:$A$100,MATCH('Communication Facility (Desc)'!$S80,[1]!MASTER_FILTER_SIZE_DESC[#Data],0),0))","v":""},{"$f":"IF('Communication Facility (Desc)'!T80=\"\",\"\",'Communication Facility (Desc)'!T80)","v":""},{"$f":"IF('Communication Facility (Desc)'!U80=\"\",\"\",INDEX([1]YES_NO!$A$2:$A$100,MATCH('Communication Facility (Desc)'!$U80,[1]!MASTER_YES_NO_DESC[#Data],0),0))","v":""},{"$f":"IF('Communication Facility (Desc)'!V80=\"\",\"\",INDEX([1]YES_NO!$A$2:$A$100,MATCH('Communication Facility (Desc)'!$V80,[1]!MASTER_YES_NO_DESC[#Data],0),0))","v":""}]
[{"$f":"IF('Communication Facility (Desc)'!A81=\"\",\"\",'Communication Facility (Desc)'!A81)","v":""},{"$f":"IF('Communication Facility (Desc)'!B81=\"\",\"\",'Communication Facility (Desc)'!B81)","v":""},{"$f":"IF('Communication Facility (Desc)'!C81=\"\",\"\",'Communication Facility (Desc)'!C81)","v":""},{"$f":"IF('Communication Facility (Desc)'!D81=\"\",\"\",INDEX([1]FACILITY_TYPE!$A$2:$A$100,MATCH('Communication Facility (Desc)'!$D81,[1]!MASTER_FACILITY_TYPE_DESC[#Data],0),0))","v":""},{"$f":"IF('Communication Facility (Desc)'!E81=\"\",\"\",INDEX([1]OWNER!$A$2:$A$100,MATCH('Communication Facility (Desc)'!$E81,[1]!MASTER_OWNER_DESC[#Data],0),0))","v":""},{"$f":"IF('Communication Facility (Desc)'!F81=\"\",\"\",IF('Communication Facility (Desc)'!F81=\"\",\"\",INDEX([1]COUNTY!$A$2:$A$80,MATCH('Communication Facility (Desc)'!F81,[1]!MASTER_COUNTY_NAME[#Data],0),0)))","v":""},{"$f":"IF('Communication Facility (Desc)'!G81=\"\",\"\",'Communication Facility (Desc)'!G81)","v":""},{"$f":"IF('Communication Facility (Desc)'!H81=\"\",\"\",'Communication Facility (Desc)'!H81)","v":""},{"$f":"IF('Communication Facility (Desc)'!I81=\"\",\"\",'Communication Facility (Desc)'!I81)","v":""},{"$f":"IF('Communication Facility (Desc)'!J81=\"\",\"\",INDEX([1]CABINET_TYPE!$A$2:$A$100,MATCH('Communication Facility (Desc)'!$J81,[1]!MASTER_CABINET_TYPE_DESC[#Data],0),0))","v":""},{"$f":"IF('Communication Facility (Desc)'!K81=\"\",\"\",INDEX([1]CABINET_MOUNT_TYPE!$A$2:$A$100,MATCH('Communication Facility (Desc)'!K81,[1]!MASTER_CABINET_MOUNT_TYPE_DESC[#Data],0),0))","v":""},{"$f":"IF('Communication Facility (Desc)'!L81=\"\",\"\",INDEX([1]YES_NO!$A$2:$A$100,MATCH('Communication Facility (Desc)'!L81,[1]!MASTER_YES_NO_DESC[#Data],0),0))","v":""},{"$f":"IF('Communication Facility (Desc)'!M81=\"\",\"\",INDEX([1]BUILDING_TYPE!$A$2:$A$100,MATCH('Communication Facility (Desc)'!$M81,[1]!MASTER_BUILDING_TYPE_DESC[#Data],0),0))","v":""},{"$f":"IF('Communication Facility (Desc)'!N81=\"\",\"\",'Communication Facility (Desc)'!N81)","v":""},{"$f":"IF('Communication Facility (Desc)'!O81=\"\",\"\",INDEX([1]BUILDING_MTL!$A$2:$A$100,MATCH('Communication Facility (Desc)'!$O81,[1]!MASTER_BUILDING_MTL_DESC[#Data],0),0))","v":""},{"$f":"IF('Communication Facility (Desc)'!P81=\"\",\"\",INDEX([1]KEY_TYPE!$A$2:$A$100,MATCH('Communication Facility (Desc)'!$P81,[1]!MASTER_KEY_TYPE_DESC[#Data],0),0))","v":""},{"$f":"IF('Communication Facility (Desc)'!Q81=\"\",\"\",'Communication Facility (Desc)'!Q81)","v":""},{"$f":"IF('Communication Facility (Desc)'!R81=\"\",\"\",INDEX([1]FILTER_TYPE!$A$2:$A$100,MATCH('Communication Facility (Desc)'!$R81,[1]!MASTER_FILTER_TYPE_DESC[#Data],0),0))","v":""},{"$f":"IF('Communication Facility (Desc)'!S81=\"\",\"\",INDEX([1]FILTER_SIZE!$A$2:$A$100,MATCH('Communication Facility (Desc)'!$S81,[1]!MASTER_FILTER_SIZE_DESC[#Data],0),0))","v":""},{"$f":"IF('Communication Facility (Desc)'!T81=\"\",\"\",'Communication Facility (Desc)'!T81)","v":""},{"$f":"IF('Communication Facility (Desc)'!U81=\"\",\"\",INDEX([1]YES_NO!$A$2:$A$100,MATCH('Communication Facility (Desc)'!$U81,[1]!MASTER_YES_NO_DESC[#Data],0),0))","v":""},{"$f":"IF('Communication Facility (Desc)'!V81=\"\",\"\",INDEX([1]YES_NO!$A$2:$A$100,MATCH('Communication Facility (Desc)'!$V81,[1]!MASTER_YES_NO_DESC[#Data],0),0))","v":""}]
[{"$f":"IF('Communication Facility (Desc)'!A82=\"\",\"\",'Communication Facility (Desc)'!A82)","v":""},{"$f":"IF('Communication Facility (Desc)'!B82=\"\",\"\",'Communication Facility (Desc)'!B82)","v":""},{"$f":"IF('Communication Facility (Desc)'!C82=\"\",\"\",'Communication Facility (Desc)'!C82)","v":""},{"$f":"IF('Communication Facility (Desc)'!D82=\"\",\"\",INDEX([1]FACILITY_TYPE!$A$2:$A$100,MATCH('Communication Facility (Desc)'!$D82,[1]!MASTER_FACILITY_TYPE_DESC[#Data],0),0))","v":""},{"$f":"IF('Communication Facility (Desc)'!E82=\"\",\"\",INDEX([1]OWNER!$A$2:$A$100,MATCH('Communication Facility (Desc)'!$E82,[1]!MASTER_OWNER_DESC[#Data],0),0))","v":""},{"$f":"IF('Communication Facility (Desc)'!F82=\"\",\"\",IF('Communication Facility (Desc)'!F82=\"\",\"\",INDEX([1]COUNTY!$A$2:$A$80,MATCH('Communication Facility (Desc)'!F82,[1]!MASTER_COUNTY_NAME[#Data],0),0)))","v":""},{"$f":"IF('Communication Facility (Desc)'!G82=\"\",\"\",'Communication Facility (Desc)'!G82)","v":""},{"$f":"IF('Communication Facility (Desc)'!H82=\"\",\"\",'Communication Facility (Desc)'!H82)","v":""},{"$f":"IF('Communication Facility (Desc)'!I82=\"\",\"\",'Communication Facility (Desc)'!I82)","v":""},{"$f":"IF('Communication Facility (Desc)'!J82=\"\",\"\",INDEX([1]CABINET_TYPE!$A$2:$A$100,MATCH('Communication Facility (Desc)'!$J82,[1]!MASTER_CABINET_TYPE_DESC[#Data],0),0))","v":""},{"$f":"IF('Communication Facility (Desc)'!K82=\"\",\"\",INDEX([1]CABINET_MOUNT_TYPE!$A$2:$A$100,MATCH('Communication Facility (Desc)'!K82,[1]!MASTER_CABINET_MOUNT_TYPE_DESC[#Data],0),0))","v":""},{"$f":"IF('Communication Facility (Desc)'!L82=\"\",\"\",INDEX([1]YES_NO!$A$2:$A$100,MATCH('Communication Facility (Desc)'!L82,[1]!MASTER_YES_NO_DESC[#Data],0),0))","v":""},{"$f":"IF('Communication Facility (Desc)'!M82=\"\",\"\",INDEX([1]BUILDING_TYPE!$A$2:$A$100,MATCH('Communication Facility (Desc)'!$M82,[1]!MASTER_BUILDING_TYPE_DESC[#Data],0),0))","v":""},{"$f":"IF('Communication Facility (Desc)'!N82=\"\",\"\",'Communication Facility (Desc)'!N82)","v":""},{"$f":"IF('Communication Facility (Desc)'!O82=\"\",\"\",INDEX([1]BUILDING_MTL!$A$2:$A$100,MATCH('Communication Facility (Desc)'!$O82,[1]!MASTER_BUILDING_MTL_DESC[#Data],0),0))","v":""},{"$f":"IF('Communication Facility (Desc)'!P82=\"\",\"\",INDEX([1]KEY_TYPE!$A$2:$A$100,MATCH('Communication Facility (Desc)'!$P82,[1]!MASTER_KEY_TYPE_DESC[#Data],0),0))","v":""},{"$f":"IF('Communication Facility (Desc)'!Q82=\"\",\"\",'Communication Facility (Desc)'!Q82)","v":""},{"$f":"IF('Communication Facility (Desc)'!R82=\"\",\"\",INDEX([1]FILTER_TYPE!$A$2:$A$100,MATCH('Communication Facility (Desc)'!$R82,[1]!MASTER_FILTER_TYPE_DESC[#Data],0),0))","v":""},{"$f":"IF('Communication Facility (Desc)'!S82=\"\",\"\",INDEX([1]FILTER_SIZE!$A$2:$A$100,MATCH('Communication Facility (Desc)'!$S82,[1]!MASTER_FILTER_SIZE_DESC[#Data],0),0))","v":""},{"$f":"IF('Communication Facility (Desc)'!T82=\"\",\"\",'Communication Facility (Desc)'!T82)","v":""},{"$f":"IF('Communication Facility (Desc)'!U82=\"\",\"\",INDEX([1]YES_NO!$A$2:$A$100,MATCH('Communication Facility (Desc)'!$U82,[1]!MASTER_YES_NO_DESC[#Data],0),0))","v":""},{"$f":"IF('Communication Facility (Desc)'!V82=\"\",\"\",INDEX([1]YES_NO!$A$2:$A$100,MATCH('Communication Facility (Desc)'!$V82,[1]!MASTER_YES_NO_DESC[#Data],0),0))","v":""}]
[{"$f":"IF('Communication Facility (Desc)'!A83=\"\",\"\",'Communication Facility (Desc)'!A83)","v":""},{"$f":"IF('Communication Facility (Desc)'!B83=\"\",\"\",'Communication Facility (Desc)'!B83)","v":""},{"$f":"IF('Communication Facility (Desc)'!C83=\"\",\"\",'Communication Facility (Desc)'!C83)","v":""},{"$f":"IF('Communication Facility (Desc)'!D83=\"\",\"\",INDEX([1]FACILITY_TYPE!$A$2:$A$100,MATCH('Communication Facility (Desc)'!$D83,[1]!MASTER_FACILITY_TYPE_DESC[#Data],0),0))","v":""},{"$f":"IF('Communication Facility (Desc)'!E83=\"\",\"\",INDEX([1]OWNER!$A$2:$A$100,MATCH('Communication Facility (Desc)'!$E83,[1]!MASTER_OWNER_DESC[#Data],0),0))","v":""},{"$f":"IF('Communication Facility (Desc)'!F83=\"\",\"\",IF('Communication Facility (Desc)'!F83=\"\",\"\",INDEX([1]COUNTY!$A$2:$A$80,MATCH('Communication Facility (Desc)'!F83,[1]!MASTER_COUNTY_NAME[#Data],0),0)))","v":""},{"$f":"IF('Communication Facility (Desc)'!G83=\"\",\"\",'Communication Facility (Desc)'!G83)","v":""},{"$f":"IF('Communication Facility (Desc)'!H83=\"\",\"\",'Communication Facility (Desc)'!H83)","v":""},{"$f":"IF('Communication Facility (Desc)'!I83=\"\",\"\",'Communication Facility (Desc)'!I83)","v":""},{"$f":"IF('Communication Facility (Desc)'!J83=\"\",\"\",INDEX([1]CABINET_TYPE!$A$2:$A$100,MATCH('Communication Facility (Desc)'!$J83,[1]!MASTER_CABINET_TYPE_DESC[#Data],0),0))","v":""},{"$f":"IF('Communication Facility (Desc)'!K83=\"\",\"\",INDEX([1]CABINET_MOUNT_TYPE!$A$2:$A$100,MATCH('Communication Facility (Desc)'!K83,[1]!MASTER_CABINET_MOUNT_TYPE_DESC[#Data],0),0))","v":""},{"$f":"IF('Communication Facility (Desc)'!L83=\"\",\"\",INDEX([1]YES_NO!$A$2:$A$100,MATCH('Communication Facility (Desc)'!L83,[1]!MASTER_YES_NO_DESC[#Data],0),0))","v":""},{"$f":"IF('Communication Facility (Desc)'!M83=\"\",\"\",INDEX([1]BUILDING_TYPE!$A$2:$A$100,MATCH('Communication Facility (Desc)'!$M83,[1]!MASTER_BUILDING_TYPE_DESC[#Data],0),0))","v":""},{"$f":"IF('Communication Facility (Desc)'!N83=\"\",\"\",'Communication Facility (Desc)'!N83)","v":""},{"$f":"IF('Communication Facility (Desc)'!O83=\"\",\"\",INDEX([1]BUILDING_MTL!$A$2:$A$100,MATCH('Communication Facility (Desc)'!$O83,[1]!MASTER_BUILDING_MTL_DESC[#Data],0),0))","v":""},{"$f":"IF('Communication Facility (Desc)'!P83=\"\",\"\",INDEX([1]KEY_TYPE!$A$2:$A$100,MATCH('Communication Facility (Desc)'!$P83,[1]!MASTER_KEY_TYPE_DESC[#Data],0),0))","v":""},{"$f":"IF('Communication Facility (Desc)'!Q83=\"\",\"\",'Communication Facility (Desc)'!Q83)","v":""},{"$f":"IF('Communication Facility (Desc)'!R83=\"\",\"\",INDEX([1]FILTER_TYPE!$A$2:$A$100,MATCH('Communication Facility (Desc)'!$R83,[1]!MASTER_FILTER_TYPE_DESC[#Data],0),0))","v":""},{"$f":"IF('Communication Facility (Desc)'!S83=\"\",\"\",INDEX([1]FILTER_SIZE!$A$2:$A$100,MATCH('Communication Facility (Desc)'!$S83,[1]!MASTER_FILTER_SIZE_DESC[#Data],0),0))","v":""},{"$f":"IF('Communication Facility (Desc)'!T83=\"\",\"\",'Communication Facility (Desc)'!T83)","v":""},{"$f":"IF('Communication Facility (Desc)'!U83=\"\",\"\",INDEX([1]YES_NO!$A$2:$A$100,MATCH('Communication Facility (Desc)'!$U83,[1]!MASTER_YES_NO_DESC[#Data],0),0))","v":""},{"$f":"IF('Communication Facility (Desc)'!V83=\"\",\"\",INDEX([1]YES_NO!$A$2:$A$100,MATCH('Communication Facility (Desc)'!$V83,[1]!MASTER_YES_NO_DESC[#Data],0),0))","v":""}]
[{"$f":"IF('Communication Facility (Desc)'!A84=\"\",\"\",'Communication Facility (Desc)'!A84)","v":""},{"$f":"IF('Communication Facility (Desc)'!B84=\"\",\"\",'Communication Facility (Desc)'!B84)","v":""},{"$f":"IF('Communication Facility (Desc)'!C84=\"\",\"\",'Communication Facility (Desc)'!C84)","v":""},{"$f":"IF('Communication Facility (Desc)'!D84=\"\",\"\",INDEX([1]FACILITY_TYPE!$A$2:$A$100,MATCH('Communication Facility (Desc)'!$D84,[1]!MASTER_FACILITY_TYPE_DESC[#Data],0),0))","v":""},{"$f":"IF('Communication Facility (Desc)'!E84=\"\",\"\",INDEX([1]OWNER!$A$2:$A$100,MATCH('Communication Facility (Desc)'!$E84,[1]!MASTER_OWNER_DESC[#Data],0),0))","v":""},{"$f":"IF('Communication Facility (Desc)'!F84=\"\",\"\",IF('Communication Facility (Desc)'!F84=\"\",\"\",INDEX([1]COUNTY!$A$2:$A$80,MATCH('Communication Facility (Desc)'!F84,[1]!MASTER_COUNTY_NAME[#Data],0),0)))","v":""},{"$f":"IF('Communication Facility (Desc)'!G84=\"\",\"\",'Communication Facility (Desc)'!G84)","v":""},{"$f":"IF('Communication Facility (Desc)'!H84=\"\",\"\",'Communication Facility (Desc)'!H84)","v":""},{"$f":"IF('Communication Facility (Desc)'!I84=\"\",\"\",'Communication Facility (Desc)'!I84)","v":""},{"$f":"IF('Communication Facility (Desc)'!J84=\"\",\"\",INDEX([1]CABINET_TYPE!$A$2:$A$100,MATCH('Communication Facility (Desc)'!$J84,[1]!MASTER_CABINET_TYPE_DESC[#Data],0),0))","v":""},{"$f":"IF('Communication Facility (Desc)'!K84=\"\",\"\",INDEX([1]CABINET_MOUNT_TYPE!$A$2:$A$100,MATCH('Communication Facility (Desc)'!K84,[1]!MASTER_CABINET_MOUNT_TYPE_DESC[#Data],0),0))","v":""},{"$f":"IF('Communication Facility (Desc)'!L84=\"\",\"\",INDEX([1]YES_NO!$A$2:$A$100,MATCH('Communication Facility (Desc)'!L84,[1]!MASTER_YES_NO_DESC[#Data],0),0))","v":""},{"$f":"IF('Communication Facility (Desc)'!M84=\"\",\"\",INDEX([1]BUILDING_TYPE!$A$2:$A$100,MATCH('Communication Facility (Desc)'!$M84,[1]!MASTER_BUILDING_TYPE_DESC[#Data],0),0))","v":""},{"$f":"IF('Communication Facility (Desc)'!N84=\"\",\"\",'Communication Facility (Desc)'!N84)","v":""},{"$f":"IF('Communication Facility (Desc)'!O84=\"\",\"\",INDEX([1]BUILDING_MTL!$A$2:$A$100,MATCH('Communication Facility (Desc)'!$O84,[1]!MASTER_BUILDING_MTL_DESC[#Data],0),0))","v":""},{"$f":"IF('Communication Facility (Desc)'!P84=\"\",\"\",INDEX([1]KEY_TYPE!$A$2:$A$100,MATCH('Communication Facility (Desc)'!$P84,[1]!MASTER_KEY_TYPE_DESC[#Data],0),0))","v":""},{"$f":"IF('Communication Facility (Desc)'!Q84=\"\",\"\",'Communication Facility (Desc)'!Q84)","v":""},{"$f":"IF('Communication Facility (Desc)'!R84=\"\",\"\",INDEX([1]FILTER_TYPE!$A$2:$A$100,MATCH('Communication Facility (Desc)'!$R84,[1]!MASTER_FILTER_TYPE_DESC[#Data],0),0))","v":""},{"$f":"IF('Communication Facility (Desc)'!S84=\"\",\"\",INDEX([1]FILTER_SIZE!$A$2:$A$100,MATCH('Communication Facility (Desc)'!$S84,[1]!MASTER_FILTER_SIZE_DESC[#Data],0),0))","v":""},{"$f":"IF('Communication Facility (Desc)'!T84=\"\",\"\",'Communication Facility (Desc)'!T84)","v":""},{"$f":"IF('Communication Facility (Desc)'!U84=\"\",\"\",INDEX([1]YES_NO!$A$2:$A$100,MATCH('Communication Facility (Desc)'!$U84,[1]!MASTER_YES_NO_DESC[#Data],0),0))","v":""},{"$f":"IF('Communication Facility (Desc)'!V84=\"\",\"\",INDEX([1]YES_NO!$A$2:$A$100,MATCH('Communication Facility (Desc)'!$V84,[1]!MASTER_YES_NO_DESC[#Data],0),0))","v":""}]
[{"$f":"IF('Communication Facility (Desc)'!A85=\"\",\"\",'Communication Facility (Desc)'!A85)","v":""},{"$f":"IF('Communication Facility (Desc)'!B85=\"\",\"\",'Communication Facility (Desc)'!B85)","v":""},{"$f":"IF('Communication Facility (Desc)'!C85=\"\",\"\",'Communication Facility (Desc)'!C85)","v":""},{"$f":"IF('Communication Facility (Desc)'!D85=\"\",\"\",INDEX([1]FACILITY_TYPE!$A$2:$A$100,MATCH('Communication Facility (Desc)'!$D85,[1]!MASTER_FACILITY_TYPE_DESC[#Data],0),0))","v":""},{"$f":"IF('Communication Facility (Desc)'!E85=\"\",\"\",INDEX([1]OWNER!$A$2:$A$100,MATCH('Communication Facility (Desc)'!$E85,[1]!MASTER_OWNER_DESC[#Data],0),0))","v":""},{"$f":"IF('Communication Facility (Desc)'!F85=\"\",\"\",IF('Communication Facility (Desc)'!F85=\"\",\"\",INDEX([1]COUNTY!$A$2:$A$80,MATCH('Communication Facility (Desc)'!F85,[1]!MASTER_COUNTY_NAME[#Data],0),0)))","v":""},{"$f":"IF('Communication Facility (Desc)'!G85=\"\",\"\",'Communication Facility (Desc)'!G85)","v":""},{"$f":"IF('Communication Facility (Desc)'!H85=\"\",\"\",'Communication Facility (Desc)'!H85)","v":""},{"$f":"IF('Communication Facility (Desc)'!I85=\"\",\"\",'Communication Facility (Desc)'!I85)","v":""},{"$f":"IF('Communication Facility (Desc)'!J85=\"\",\"\",INDEX([1]CABINET_TYPE!$A$2:$A$100,MATCH('Communication Facility (Desc)'!$J85,[1]!MASTER_CABINET_TYPE_DESC[#Data],0),0))","v":""},{"$f":"IF('Communication Facility (Desc)'!K85=\"\",\"\",INDEX([1]CABINET_MOUNT_TYPE!$A$2:$A$100,MATCH('Communication Facility (Desc)'!K85,[1]!MASTER_CABINET_MOUNT_TYPE_DESC[#Data],0),0))","v":""},{"$f":"IF('Communication Facility (Desc)'!L85=\"\",\"\",INDEX([1]YES_NO!$A$2:$A$100,MATCH('Communication Facility (Desc)'!L85,[1]!MASTER_YES_NO_DESC[#Data],0),0))","v":""},{"$f":"IF('Communication Facility (Desc)'!M85=\"\",\"\",INDEX([1]BUILDING_TYPE!$A$2:$A$100,MATCH('Communication Facility (Desc)'!$M85,[1]!MASTER_BUILDING_TYPE_DESC[#Data],0),0))","v":""},{"$f":"IF('Communication Facility (Desc)'!N85=\"\",\"\",'Communication Facility (Desc)'!N85)","v":""},{"$f":"IF('Communication Facility (Desc)'!O85=\"\",\"\",INDEX([1]BUILDING_MTL!$A$2:$A$100,MATCH('Communication Facility (Desc)'!$O85,[1]!MASTER_BUILDING_MTL_DESC[#Data],0),0))","v":""},{"$f":"IF('Communication Facility (Desc)'!P85=\"\",\"\",INDEX([1]KEY_TYPE!$A$2:$A$100,MATCH('Communication Facility (Desc)'!$P85,[1]!MASTER_KEY_TYPE_DESC[#Data],0),0))","v":""},{"$f":"IF('Communication Facility (Desc)'!Q85=\"\",\"\",'Communication Facility (Desc)'!Q85)","v":""},{"$f":"IF('Communication Facility (Desc)'!R85=\"\",\"\",INDEX([1]FILTER_TYPE!$A$2:$A$100,MATCH('Communication Facility (Desc)'!$R85,[1]!MASTER_FILTER_TYPE_DESC[#Data],0),0))","v":""},{"$f":"IF('Communication Facility (Desc)'!S85=\"\",\"\",INDEX([1]FILTER_SIZE!$A$2:$A$100,MATCH('Communication Facility (Desc)'!$S85,[1]!MASTER_FILTER_SIZE_DESC[#Data],0),0))","v":""},{"$f":"IF('Communication Facility (Desc)'!T85=\"\",\"\",'Communication Facility (Desc)'!T85)","v":""},{"$f":"IF('Communication Facility (Desc)'!U85=\"\",\"\",INDEX([1]YES_NO!$A$2:$A$100,MATCH('Communication Facility (Desc)'!$U85,[1]!MASTER_YES_NO_DESC[#Data],0),0))","v":""},{"$f":"IF('Communication Facility (Desc)'!V85=\"\",\"\",INDEX([1]YES_NO!$A$2:$A$100,MATCH('Communication Facility (Desc)'!$V85,[1]!MASTER_YES_NO_DESC[#Data],0),0))","v":""}]
[{"$f":"IF('Communication Facility (Desc)'!A86=\"\",\"\",'Communication Facility (Desc)'!A86)","v":""},{"$f":"IF('Communication Facility (Desc)'!B86=\"\",\"\",'Communication Facility (Desc)'!B86)","v":""},{"$f":"IF('Communication Facility (Desc)'!C86=\"\",\"\",'Communication Facility (Desc)'!C86)","v":""},{"$f":"IF('Communication Facility (Desc)'!D86=\"\",\"\",INDEX([1]FACILITY_TYPE!$A$2:$A$100,MATCH('Communication Facility (Desc)'!$D86,[1]!MASTER_FACILITY_TYPE_DESC[#Data],0),0))","v":""},{"$f":"IF('Communication Facility (Desc)'!E86=\"\",\"\",INDEX([1]OWNER!$A$2:$A$100,MATCH('Communication Facility (Desc)'!$E86,[1]!MASTER_OWNER_DESC[#Data],0),0))","v":""},{"$f":"IF('Communication Facility (Desc)'!F86=\"\",\"\",IF('Communication Facility (Desc)'!F86=\"\",\"\",INDEX([1]COUNTY!$A$2:$A$80,MATCH('Communication Facility (Desc)'!F86,[1]!MASTER_COUNTY_NAME[#Data],0),0)))","v":""},{"$f":"IF('Communication Facility (Desc)'!G86=\"\",\"\",'Communication Facility (Desc)'!G86)","v":""},{"$f":"IF('Communication Facility (Desc)'!H86=\"\",\"\",'Communication Facility (Desc)'!H86)","v":""},{"$f":"IF('Communication Facility (Desc)'!I86=\"\",\"\",'Communication Facility (Desc)'!I86)","v":""},{"$f":"IF('Communication Facility (Desc)'!J86=\"\",\"\",INDEX([1]CABINET_TYPE!$A$2:$A$100,MATCH('Communication Facility (Desc)'!$J86,[1]!MASTER_CABINET_TYPE_DESC[#Data],0),0))","v":""},{"$f":"IF('Communication Facility (Desc)'!K86=\"\",\"\",INDEX([1]CABINET_MOUNT_TYPE!$A$2:$A$100,MATCH('Communication Facility (Desc)'!K86,[1]!MASTER_CABINET_MOUNT_TYPE_DESC[#Data],0),0))","v":""},{"$f":"IF('Communication Facility (Desc)'!L86=\"\",\"\",INDEX([1]YES_NO!$A$2:$A$100,MATCH('Communication Facility (Desc)'!L86,[1]!MASTER_YES_NO_DESC[#Data],0),0))","v":""},{"$f":"IF('Communication Facility (Desc)'!M86=\"\",\"\",INDEX([1]BUILDING_TYPE!$A$2:$A$100,MATCH('Communication Facility (Desc)'!$M86,[1]!MASTER_BUILDING_TYPE_DESC[#Data],0),0))","v":""},{"$f":"IF('Communication Facility (Desc)'!N86=\"\",\"\",'Communication Facility (Desc)'!N86)","v":""},{"$f":"IF('Communication Facility (Desc)'!O86=\"\",\"\",INDEX([1]BUILDING_MTL!$A$2:$A$100,MATCH('Communication Facility (Desc)'!$O86,[1]!MASTER_BUILDING_MTL_DESC[#Data],0),0))","v":""},{"$f":"IF('Communication Facility (Desc)'!P86=\"\",\"\",INDEX([1]KEY_TYPE!$A$2:$A$100,MATCH('Communication Facility (Desc)'!$P86,[1]!MASTER_KEY_TYPE_DESC[#Data],0),0))","v":""},{"$f":"IF('Communication Facility (Desc)'!Q86=\"\",\"\",'Communication Facility (Desc)'!Q86)","v":""},{"$f":"IF('Communication Facility (Desc)'!R86=\"\",\"\",INDEX([1]FILTER_TYPE!$A$2:$A$100,MATCH('Communication Facility (Desc)'!$R86,[1]!MASTER_FILTER_TYPE_DESC[#Data],0),0))","v":""},{"$f":"IF('Communication Facility (Desc)'!S86=\"\",\"\",INDEX([1]FILTER_SIZE!$A$2:$A$100,MATCH('Communication Facility (Desc)'!$S86,[1]!MASTER_FILTER_SIZE_DESC[#Data],0),0))","v":""},{"$f":"IF('Communication Facility (Desc)'!T86=\"\",\"\",'Communication Facility (Desc)'!T86)","v":""},{"$f":"IF('Communication Facility (Desc)'!U86=\"\",\"\",INDEX([1]YES_NO!$A$2:$A$100,MATCH('Communication Facility (Desc)'!$U86,[1]!MASTER_YES_NO_DESC[#Data],0),0))","v":""},{"$f":"IF('Communication Facility (Desc)'!V86=\"\",\"\",INDEX([1]YES_NO!$A$2:$A$100,MATCH('Communication Facility (Desc)'!$V86,[1]!MASTER_YES_NO_DESC[#Data],0),0))","v":""}]
[{"$f":"IF('Communication Facility (Desc)'!A87=\"\",\"\",'Communication Facility (Desc)'!A87)","v":""},{"$f":"IF('Communication Facility (Desc)'!B87=\"\",\"\",'Communication Facility (Desc)'!B87)","v":""},{"$f":"IF('Communication Facility (Desc)'!C87=\"\",\"\",'Communication Facility (Desc)'!C87)","v":""},{"$f":"IF('Communication Facility (Desc)'!D87=\"\",\"\",INDEX([1]FACILITY_TYPE!$A$2:$A$100,MATCH('Communication Facility (Desc)'!$D87,[1]!MASTER_FACILITY_TYPE_DESC[#Data],0),0))","v":""},{"$f":"IF('Communication Facility (Desc)'!E87=\"\",\"\",INDEX([1]OWNER!$A$2:$A$100,MATCH('Communication Facility (Desc)'!$E87,[1]!MASTER_OWNER_DESC[#Data],0),0))","v":""},{"$f":"IF('Communication Facility (Desc)'!F87=\"\",\"\",IF('Communication Facility (Desc)'!F87=\"\",\"\",INDEX([1]COUNTY!$A$2:$A$80,MATCH('Communication Facility (Desc)'!F87,[1]!MASTER_COUNTY_NAME[#Data],0),0)))","v":""},{"$f":"IF('Communication Facility (Desc)'!G87=\"\",\"\",'Communication Facility (Desc)'!G87)","v":""},{"$f":"IF('Communication Facility (Desc)'!H87=\"\",\"\",'Communication Facility (Desc)'!H87)","v":""},{"$f":"IF('Communication Facility (Desc)'!I87=\"\",\"\",'Communication Facility (Desc)'!I87)","v":""},{"$f":"IF('Communication Facility (Desc)'!J87=\"\",\"\",INDEX([1]CABINET_TYPE!$A$2:$A$100,MATCH('Communication Facility (Desc)'!$J87,[1]!MASTER_CABINET_TYPE_DESC[#Data],0),0))","v":""},{"$f":"IF('Communication Facility (Desc)'!K87=\"\",\"\",INDEX([1]CABINET_MOUNT_TYPE!$A$2:$A$100,MATCH('Communication Facility (Desc)'!K87,[1]!MASTER_CABINET_MOUNT_TYPE_DESC[#Data],0),0))","v":""},{"$f":"IF('Communication Facility (Desc)'!L87=\"\",\"\",INDEX([1]YES_NO!$A$2:$A$100,MATCH('Communication Facility (Desc)'!L87,[1]!MASTER_YES_NO_DESC[#Data],0),0))","v":""},{"$f":"IF('Communication Facility (Desc)'!M87=\"\",\"\",INDEX([1]BUILDING_TYPE!$A$2:$A$100,MATCH('Communication Facility (Desc)'!$M87,[1]!MASTER_BUILDING_TYPE_DESC[#Data],0),0))","v":""},{"$f":"IF('Communication Facility (Desc)'!N87=\"\",\"\",'Communication Facility (Desc)'!N87)","v":""},{"$f":"IF('Communication Facility (Desc)'!O87=\"\",\"\",INDEX([1]BUILDING_MTL!$A$2:$A$100,MATCH('Communication Facility (Desc)'!$O87,[1]!MASTER_BUILDING_MTL_DESC[#Data],0),0))","v":""},{"$f":"IF('Communication Facility (Desc)'!P87=\"\",\"\",INDEX([1]KEY_TYPE!$A$2:$A$100,MATCH('Communication Facility (Desc)'!$P87,[1]!MASTER_KEY_TYPE_DESC[#Data],0),0))","v":""},{"$f":"IF('Communication Facility (Desc)'!Q87=\"\",\"\",'Communication Facility (Desc)'!Q87)","v":""},{"$f":"IF('Communication Facility (Desc)'!R87=\"\",\"\",INDEX([1]FILTER_TYPE!$A$2:$A$100,MATCH('Communication Facility (Desc)'!$R87,[1]!MASTER_FILTER_TYPE_DESC[#Data],0),0))","v":""},{"$f":"IF('Communication Facility (Desc)'!S87=\"\",\"\",INDEX([1]FILTER_SIZE!$A$2:$A$100,MATCH('Communication Facility (Desc)'!$S87,[1]!MASTER_FILTER_SIZE_DESC[#Data],0),0))","v":""},{"$f":"IF('Communication Facility (Desc)'!T87=\"\",\"\",'Communication Facility (Desc)'!T87)","v":""},{"$f":"IF('Communication Facility (Desc)'!U87=\"\",\"\",INDEX([1]YES_NO!$A$2:$A$100,MATCH('Communication Facility (Desc)'!$U87,[1]!MASTER_YES_NO_DESC[#Data],0),0))","v":""},{"$f":"IF('Communication Facility (Desc)'!V87=\"\",\"\",INDEX([1]YES_NO!$A$2:$A$100,MATCH('Communication Facility (Desc)'!$V87,[1]!MASTER_YES_NO_DESC[#Data],0),0))","v":""}]
[{"$f":"IF('Communication Facility (Desc)'!A88=\"\",\"\",'Communication Facility (Desc)'!A88)","v":""},{"$f":"IF('Communication Facility (Desc)'!B88=\"\",\"\",'Communication Facility (Desc)'!B88)","v":""},{"$f":"IF('Communication Facility (Desc)'!C88=\"\",\"\",'Communication Facility (Desc)'!C88)","v":""},{"$f":"IF('Communication Facility (Desc)'!D88=\"\",\"\",INDEX([1]FACILITY_TYPE!$A$2:$A$100,MATCH('Communication Facility (Desc)'!$D88,[1]!MASTER_FACILITY_TYPE_DESC[#Data],0),0))","v":""},{"$f":"IF('Communication Facility (Desc)'!E88=\"\",\"\",INDEX([1]OWNER!$A$2:$A$100,MATCH('Communication Facility (Desc)'!$E88,[1]!MASTER_OWNER_DESC[#Data],0),0))","v":""},{"$f":"IF('Communication Facility (Desc)'!F88=\"\",\"\",IF('Communication Facility (Desc)'!F88=\"\",\"\",INDEX([1]COUNTY!$A$2:$A$80,MATCH('Communication Facility (Desc)'!F88,[1]!MASTER_COUNTY_NAME[#Data],0),0)))","v":""},{"$f":"IF('Communication Facility (Desc)'!G88=\"\",\"\",'Communication Facility (Desc)'!G88)","v":""},{"$f":"IF('Communication Facility (Desc)'!H88=\"\",\"\",'Communication Facility (Desc)'!H88)","v":""},{"$f":"IF('Communication Facility (Desc)'!I88=\"\",\"\",'Communication Facility (Desc)'!I88)","v":""},{"$f":"IF('Communication Facility (Desc)'!J88=\"\",\"\",INDEX([1]CABINET_TYPE!$A$2:$A$100,MATCH('Communication Facility (Desc)'!$J88,[1]!MASTER_CABINET_TYPE_DESC[#Data],0),0))","v":""},{"$f":"IF('Communication Facility (Desc)'!K88=\"\",\"\",INDEX([1]CABINET_MOUNT_TYPE!$A$2:$A$100,MATCH('Communication Facility (Desc)'!K88,[1]!MASTER_CABINET_MOUNT_TYPE_DESC[#Data],0),0))","v":""},{"$f":"IF('Communication Facility (Desc)'!L88=\"\",\"\",INDEX([1]YES_NO!$A$2:$A$100,MATCH('Communication Facility (Desc)'!L88,[1]!MASTER_YES_NO_DESC[#Data],0),0))","v":""},{"$f":"IF('Communication Facility (Desc)'!M88=\"\",\"\",INDEX([1]BUILDING_TYPE!$A$2:$A$100,MATCH('Communication Facility (Desc)'!$M88,[1]!MASTER_BUILDING_TYPE_DESC[#Data],0),0))","v":""},{"$f":"IF('Communication Facility (Desc)'!N88=\"\",\"\",'Communication Facility (Desc)'!N88)","v":""},{"$f":"IF('Communication Facility (Desc)'!O88=\"\",\"\",INDEX([1]BUILDING_MTL!$A$2:$A$100,MATCH('Communication Facility (Desc)'!$O88,[1]!MASTER_BUILDING_MTL_DESC[#Data],0),0))","v":""},{"$f":"IF('Communication Facility (Desc)'!P88=\"\",\"\",INDEX([1]KEY_TYPE!$A$2:$A$100,MATCH('Communication Facility (Desc)'!$P88,[1]!MASTER_KEY_TYPE_DESC[#Data],0),0))","v":""},{"$f":"IF('Communication Facility (Desc)'!Q88=\"\",\"\",'Communication Facility (Desc)'!Q88)","v":""},{"$f":"IF('Communication Facility (Desc)'!R88=\"\",\"\",INDEX([1]FILTER_TYPE!$A$2:$A$100,MATCH('Communication Facility (Desc)'!$R88,[1]!MASTER_FILTER_TYPE_DESC[#Data],0),0))","v":""},{"$f":"IF('Communication Facility (Desc)'!S88=\"\",\"\",INDEX([1]FILTER_SIZE!$A$2:$A$100,MATCH('Communication Facility (Desc)'!$S88,[1]!MASTER_FILTER_SIZE_DESC[#Data],0),0))","v":""},{"$f":"IF('Communication Facility (Desc)'!T88=\"\",\"\",'Communication Facility (Desc)'!T88)","v":""},{"$f":"IF('Communication Facility (Desc)'!U88=\"\",\"\",INDEX([1]YES_NO!$A$2:$A$100,MATCH('Communication Facility (Desc)'!$U88,[1]!MASTER_YES_NO_DESC[#Data],0),0))","v":""},{"$f":"IF('Communication Facility (Desc)'!V88=\"\",\"\",INDEX([1]YES_NO!$A$2:$A$100,MATCH('Communication Facility (Desc)'!$V88,[1]!MASTER_YES_NO_DESC[#Data],0),0))","v":""}]
[{"$f":"IF('Communication Facility (Desc)'!A89=\"\",\"\",'Communication Facility (Desc)'!A89)","v":""},{"$f":"IF('Communication Facility (Desc)'!B89=\"\",\"\",'Communication Facility (Desc)'!B89)","v":""},{"$f":"IF('Communication Facility (Desc)'!C89=\"\",\"\",'Communication Facility (Desc)'!C89)","v":""},{"$f":"IF('Communication Facility (Desc)'!D89=\"\",\"\",INDEX([1]FACILITY_TYPE!$A$2:$A$100,MATCH('Communication Facility (Desc)'!$D89,[1]!MASTER_FACILITY_TYPE_DESC[#Data],0),0))","v":""},{"$f":"IF('Communication Facility (Desc)'!E89=\"\",\"\",INDEX([1]OWNER!$A$2:$A$100,MATCH('Communication Facility (Desc)'!$E89,[1]!MASTER_OWNER_DESC[#Data],0),0))","v":""},{"$f":"IF('Communication Facility (Desc)'!F89=\"\",\"\",IF('Communication Facility (Desc)'!F89=\"\",\"\",INDEX([1]COUNTY!$A$2:$A$80,MATCH('Communication Facility (Desc)'!F89,[1]!MASTER_COUNTY_NAME[#Data],0),0)))","v":""},{"$f":"IF('Communication Facility (Desc)'!G89=\"\",\"\",'Communication Facility (Desc)'!G89)","v":""},{"$f":"IF('Communication Facility (Desc)'!H89=\"\",\"\",'Communication Facility (Desc)'!H89)","v":""},{"$f":"IF('Communication Facility (Desc)'!I89=\"\",\"\",'Communication Facility (Desc)'!I89)","v":""},{"$f":"IF('Communication Facility (Desc)'!J89=\"\",\"\",INDEX([1]CABINET_TYPE!$A$2:$A$100,MATCH('Communication Facility (Desc)'!$J89,[1]!MASTER_CABINET_TYPE_DESC[#Data],0),0))","v":""},{"$f":"IF('Communication Facility (Desc)'!K89=\"\",\"\",INDEX([1]CABINET_MOUNT_TYPE!$A$2:$A$100,MATCH('Communication Facility (Desc)'!K89,[1]!MASTER_CABINET_MOUNT_TYPE_DESC[#Data],0),0))","v":""},{"$f":"IF('Communication Facility (Desc)'!L89=\"\",\"\",INDEX([1]YES_NO!$A$2:$A$100,MATCH('Communication Facility (Desc)'!L89,[1]!MASTER_YES_NO_DESC[#Data],0),0))","v":""},{"$f":"IF('Communication Facility (Desc)'!M89=\"\",\"\",INDEX([1]BUILDING_TYPE!$A$2:$A$100,MATCH('Communication Facility (Desc)'!$M89,[1]!MASTER_BUILDING_TYPE_DESC[#Data],0),0))","v":""},{"$f":"IF('Communication Facility (Desc)'!N89=\"\",\"\",'Communication Facility (Desc)'!N89)","v":""},{"$f":"IF('Communication Facility (Desc)'!O89=\"\",\"\",INDEX([1]BUILDING_MTL!$A$2:$A$100,MATCH('Communication Facility (Desc)'!$O89,[1]!MASTER_BUILDING_MTL_DESC[#Data],0),0))","v":""},{"$f":"IF('Communication Facility (Desc)'!P89=\"\",\"\",INDEX([1]KEY_TYPE!$A$2:$A$100,MATCH('Communication Facility (Desc)'!$P89,[1]!MASTER_KEY_TYPE_DESC[#Data],0),0))","v":""},{"$f":"IF('Communication Facility (Desc)'!Q89=\"\",\"\",'Communication Facility (Desc)'!Q89)","v":""},{"$f":"IF('Communication Facility (Desc)'!R89=\"\",\"\",INDEX([1]FILTER_TYPE!$A$2:$A$100,MATCH('Communication Facility (Desc)'!$R89,[1]!MASTER_FILTER_TYPE_DESC[#Data],0),0))","v":""},{"$f":"IF('Communication Facility (Desc)'!S89=\"\",\"\",INDEX([1]FILTER_SIZE!$A$2:$A$100,MATCH('Communication Facility (Desc)'!$S89,[1]!MASTER_FILTER_SIZE_DESC[#Data],0),0))","v":""},{"$f":"IF('Communication Facility (Desc)'!T89=\"\",\"\",'Communication Facility (Desc)'!T89)","v":""},{"$f":"IF('Communication Facility (Desc)'!U89=\"\",\"\",INDEX([1]YES_NO!$A$2:$A$100,MATCH('Communication Facility (Desc)'!$U89,[1]!MASTER_YES_NO_DESC[#Data],0),0))","v":""},{"$f":"IF('Communication Facility (Desc)'!V89=\"\",\"\",INDEX([1]YES_NO!$A$2:$A$100,MATCH('Communication Facility (Desc)'!$V89,[1]!MASTER_YES_NO_DESC[#Data],0),0))","v":""}]
[{"$f":"IF('Communication Facility (Desc)'!A90=\"\",\"\",'Communication Facility (Desc)'!A90)","v":""},{"$f":"IF('Communication Facility (Desc)'!B90=\"\",\"\",'Communication Facility (Desc)'!B90)","v":""},{"$f":"IF('Communication Facility (Desc)'!C90=\"\",\"\",'Communication Facility (Desc)'!C90)","v":""},{"$f":"IF('Communication Facility (Desc)'!D90=\"\",\"\",INDEX([1]FACILITY_TYPE!$A$2:$A$100,MATCH('Communication Facility (Desc)'!$D90,[1]!MASTER_FACILITY_TYPE_DESC[#Data],0),0))","v":""},{"$f":"IF('Communication Facility (Desc)'!E90=\"\",\"\",INDEX([1]OWNER!$A$2:$A$100,MATCH('Communication Facility (Desc)'!$E90,[1]!MASTER_OWNER_DESC[#Data],0),0))","v":""},{"$f":"IF('Communication Facility (Desc)'!F90=\"\",\"\",IF('Communication Facility (Desc)'!F90=\"\",\"\",INDEX([1]COUNTY!$A$2:$A$80,MATCH('Communication Facility (Desc)'!F90,[1]!MASTER_COUNTY_NAME[#Data],0),0)))","v":""},{"$f":"IF('Communication Facility (Desc)'!G90=\"\",\"\",'Communication Facility (Desc)'!G90)","v":""},{"$f":"IF('Communication Facility (Desc)'!H90=\"\",\"\",'Communication Facility (Desc)'!H90)","v":""},{"$f":"IF('Communication Facility (Desc)'!I90=\"\",\"\",'Communication Facility (Desc)'!I90)","v":""},{"$f":"IF('Communication Facility (Desc)'!J90=\"\",\"\",INDEX([1]CABINET_TYPE!$A$2:$A$100,MATCH('Communication Facility (Desc)'!$J90,[1]!MASTER_CABINET_TYPE_DESC[#Data],0),0))","v":""},{"$f":"IF('Communication Facility (Desc)'!K90=\"\",\"\",INDEX([1]CABINET_MOUNT_TYPE!$A$2:$A$100,MATCH('Communication Facility (Desc)'!K90,[1]!MASTER_CABINET_MOUNT_TYPE_DESC[#Data],0),0))","v":""},{"$f":"IF('Communication Facility (Desc)'!L90=\"\",\"\",INDEX([1]YES_NO!$A$2:$A$100,MATCH('Communication Facility (Desc)'!L90,[1]!MASTER_YES_NO_DESC[#Data],0),0))","v":""},{"$f":"IF('Communication Facility (Desc)'!M90=\"\",\"\",INDEX([1]BUILDING_TYPE!$A$2:$A$100,MATCH('Communication Facility (Desc)'!$M90,[1]!MASTER_BUILDING_TYPE_DESC[#Data],0),0))","v":""},{"$f":"IF('Communication Facility (Desc)'!N90=\"\",\"\",'Communication Facility (Desc)'!N90)","v":""},{"$f":"IF('Communication Facility (Desc)'!O90=\"\",\"\",INDEX([1]BUILDING_MTL!$A$2:$A$100,MATCH('Communication Facility (Desc)'!$O90,[1]!MASTER_BUILDING_MTL_DESC[#Data],0),0))","v":""},{"$f":"IF('Communication Facility (Desc)'!P90=\"\",\"\",INDEX([1]KEY_TYPE!$A$2:$A$100,MATCH('Communication Facility (Desc)'!$P90,[1]!MASTER_KEY_TYPE_DESC[#Data],0),0))","v":""},{"$f":"IF('Communication Facility (Desc)'!Q90=\"\",\"\",'Communication Facility (Desc)'!Q90)","v":""},{"$f":"IF('Communication Facility (Desc)'!R90=\"\",\"\",INDEX([1]FILTER_TYPE!$A$2:$A$100,MATCH('Communication Facility (Desc)'!$R90,[1]!MASTER_FILTER_TYPE_DESC[#Data],0),0))","v":""},{"$f":"IF('Communication Facility (Desc)'!S90=\"\",\"\",INDEX([1]FILTER_SIZE!$A$2:$A$100,MATCH('Communication Facility (Desc)'!$S90,[1]!MASTER_FILTER_SIZE_DESC[#Data],0),0))","v":""},{"$f":"IF('Communication Facility (Desc)'!T90=\"\",\"\",'Communication Facility (Desc)'!T90)","v":""},{"$f":"IF('Communication Facility (Desc)'!U90=\"\",\"\",INDEX([1]YES_NO!$A$2:$A$100,MATCH('Communication Facility (Desc)'!$U90,[1]!MASTER_YES_NO_DESC[#Data],0),0))","v":""},{"$f":"IF('Communication Facility (Desc)'!V90=\"\",\"\",INDEX([1]YES_NO!$A$2:$A$100,MATCH('Communication Facility (Desc)'!$V90,[1]!MASTER_YES_NO_DESC[#Data],0),0))","v":""}]
[{"$f":"IF('Communication Facility (Desc)'!A91=\"\",\"\",'Communication Facility (Desc)'!A91)","v":""},{"$f":"IF('Communication Facility (Desc)'!B91=\"\",\"\",'Communication Facility (Desc)'!B91)","v":""},{"$f":"IF('Communication Facility (Desc)'!C91=\"\",\"\",'Communication Facility (Desc)'!C91)","v":""},{"$f":"IF('Communication Facility (Desc)'!D91=\"\",\"\",INDEX([1]FACILITY_TYPE!$A$2:$A$100,MATCH('Communication Facility (Desc)'!$D91,[1]!MASTER_FACILITY_TYPE_DESC[#Data],0),0))","v":""},{"$f":"IF('Communication Facility (Desc)'!E91=\"\",\"\",INDEX([1]OWNER!$A$2:$A$100,MATCH('Communication Facility (Desc)'!$E91,[1]!MASTER_OWNER_DESC[#Data],0),0))","v":""},{"$f":"IF('Communication Facility (Desc)'!F91=\"\",\"\",IF('Communication Facility (Desc)'!F91=\"\",\"\",INDEX([1]COUNTY!$A$2:$A$80,MATCH('Communication Facility (Desc)'!F91,[1]!MASTER_COUNTY_NAME[#Data],0),0)))","v":""},{"$f":"IF('Communication Facility (Desc)'!G91=\"\",\"\",'Communication Facility (Desc)'!G91)","v":""},{"$f":"IF('Communication Facility (Desc)'!H91=\"\",\"\",'Communication Facility (Desc)'!H91)","v":""},{"$f":"IF('Communication Facility (Desc)'!I91=\"\",\"\",'Communication Facility (Desc)'!I91)","v":""},{"$f":"IF('Communication Facility (Desc)'!J91=\"\",\"\",INDEX([1]CABINET_TYPE!$A$2:$A$100,MATCH('Communication Facility (Desc)'!$J91,[1]!MASTER_CABINET_TYPE_DESC[#Data],0),0))","v":""},{"$f":"IF('Communication Facility (Desc)'!K91=\"\",\"\",INDEX([1]CABINET_MOUNT_TYPE!$A$2:$A$100,MATCH('Communication Facility (Desc)'!K91,[1]!MASTER_CABINET_MOUNT_TYPE_DESC[#Data],0),0))","v":""},{"$f":"IF('Communication Facility (Desc)'!L91=\"\",\"\",INDEX([1]YES_NO!$A$2:$A$100,MATCH('Communication Facility (Desc)'!L91,[1]!MASTER_YES_NO_DESC[#Data],0),0))","v":""},{"$f":"IF('Communication Facility (Desc)'!M91=\"\",\"\",INDEX([1]BUILDING_TYPE!$A$2:$A$100,MATCH('Communication Facility (Desc)'!$M91,[1]!MASTER_BUILDING_TYPE_DESC[#Data],0),0))","v":""},{"$f":"IF('Communication Facility (Desc)'!N91=\"\",\"\",'Communication Facility (Desc)'!N91)","v":""},{"$f":"IF('Communication Facility (Desc)'!O91=\"\",\"\",INDEX([1]BUILDING_MTL!$A$2:$A$100,MATCH('Communication Facility (Desc)'!$O91,[1]!MASTER_BUILDING_MTL_DESC[#Data],0),0))","v":""},{"$f":"IF('Communication Facility (Desc)'!P91=\"\",\"\",INDEX([1]KEY_TYPE!$A$2:$A$100,MATCH('Communication Facility (Desc)'!$P91,[1]!MASTER_KEY_TYPE_DESC[#Data],0),0))","v":""},{"$f":"IF('Communication Facility (Desc)'!Q91=\"\",\"\",'Communication Facility (Desc)'!Q91)","v":""},{"$f":"IF('Communication Facility (Desc)'!R91=\"\",\"\",INDEX([1]FILTER_TYPE!$A$2:$A$100,MATCH('Communication Facility (Desc)'!$R91,[1]!MASTER_FILTER_TYPE_DESC[#Data],0),0))","v":""},{"$f":"IF('Communication Facility (Desc)'!S91=\"\",\"\",INDEX([1]FILTER_SIZE!$A$2:$A$100,MATCH('Communication Facility (Desc)'!$S91,[1]!MASTER_FILTER_SIZE_DESC[#Data],0),0))","v":""},{"$f":"IF('Communication Facility (Desc)'!T91=\"\",\"\",'Communication Facility (Desc)'!T91)","v":""},{"$f":"IF('Communication Facility (Desc)'!U91=\"\",\"\",INDEX([1]YES_NO!$A$2:$A$100,MATCH('Communication Facility (Desc)'!$U91,[1]!MASTER_YES_NO_DESC[#Data],0),0))","v":""},{"$f":"IF('Communication Facility (Desc)'!V91=\"\",\"\",INDEX([1]YES_NO!$A$2:$A$100,MATCH('Communication Facility (Desc)'!$V91,[1]!MASTER_YES_NO_DESC[#Data],0),0))","v":""}]
[{"$f":"IF('Communication Facility (Desc)'!A92=\"\",\"\",'Communication Facility (Desc)'!A92)","v":""},{"$f":"IF('Communication Facility (Desc)'!B92=\"\",\"\",'Communication Facility (Desc)'!B92)","v":""},{"$f":"IF('Communication Facility (Desc)'!C92=\"\",\"\",'Communication Facility (Desc)'!C92)","v":""},{"$f":"IF('Communication Facility (Desc)'!D92=\"\",\"\",INDEX([1]FACILITY_TYPE!$A$2:$A$100,MATCH('Communication Facility (Desc)'!$D92,[1]!MASTER_FACILITY_TYPE_DESC[#Data],0),0))","v":""},{"$f":"IF('Communication Facility (Desc)'!E92=\"\",\"\",INDEX([1]OWNER!$A$2:$A$100,MATCH('Communication Facility (Desc)'!$E92,[1]!MASTER_OWNER_DESC[#Data],0),0))","v":""},{"$f":"IF('Communication Facility (Desc)'!F92=\"\",\"\",IF('Communication Facility (Desc)'!F92=\"\",\"\",INDEX([1]COUNTY!$A$2:$A$80,MATCH('Communication Facility (Desc)'!F92,[1]!MASTER_COUNTY_NAME[#Data],0),0)))","v":""},{"$f":"IF('Communication Facility (Desc)'!G92=\"\",\"\",'Communication Facility (Desc)'!G92)","v":""},{"$f":"IF('Communication Facility (Desc)'!H92=\"\",\"\",'Communication Facility (Desc)'!H92)","v":""},{"$f":"IF('Communication Facility (Desc)'!I92=\"\",\"\",'Communication Facility (Desc)'!I92)","v":""},{"$f":"IF('Communication Facility (Desc)'!J92=\"\",\"\",INDEX([1]CABINET_TYPE!$A$2:$A$100,MATCH('Communication Facility (Desc)'!$J92,[1]!MASTER_CABINET_TYPE_DESC[#Data],0),0))","v":""},{"$f":"IF('Communication Facility (Desc)'!K92=\"\",\"\",INDEX([1]CABINET_MOUNT_TYPE!$A$2:$A$100,MATCH('Communication Facility (Desc)'!K92,[1]!MASTER_CABINET_MOUNT_TYPE_DESC[#Data],0),0))","v":""},{"$f":"IF('Communication Facility (Desc)'!L92=\"\",\"\",INDEX([1]YES_NO!$A$2:$A$100,MATCH('Communication Facility (Desc)'!L92,[1]!MASTER_YES_NO_DESC[#Data],0),0))","v":""},{"$f":"IF('Communication Facility (Desc)'!M92=\"\",\"\",INDEX([1]BUILDING_TYPE!$A$2:$A$100,MATCH('Communication Facility (Desc)'!$M92,[1]!MASTER_BUILDING_TYPE_DESC[#Data],0),0))","v":""},{"$f":"IF('Communication Facility (Desc)'!N92=\"\",\"\",'Communication Facility (Desc)'!N92)","v":""},{"$f":"IF('Communication Facility (Desc)'!O92=\"\",\"\",INDEX([1]BUILDING_MTL!$A$2:$A$100,MATCH('Communication Facility (Desc)'!$O92,[1]!MASTER_BUILDING_MTL_DESC[#Data],0),0))","v":""},{"$f":"IF('Communication Facility (Desc)'!P92=\"\",\"\",INDEX([1]KEY_TYPE!$A$2:$A$100,MATCH('Communication Facility (Desc)'!$P92,[1]!MASTER_KEY_TYPE_DESC[#Data],0),0))","v":""},{"$f":"IF('Communication Facility (Desc)'!Q92=\"\",\"\",'Communication Facility (Desc)'!Q92)","v":""},{"$f":"IF('Communication Facility (Desc)'!R92=\"\",\"\",INDEX([1]FILTER_TYPE!$A$2:$A$100,MATCH('Communication Facility (Desc)'!$R92,[1]!MASTER_FILTER_TYPE_DESC[#Data],0),0))","v":""},{"$f":"IF('Communication Facility (Desc)'!S92=\"\",\"\",INDEX([1]FILTER_SIZE!$A$2:$A$100,MATCH('Communication Facility (Desc)'!$S92,[1]!MASTER_FILTER_SIZE_DESC[#Data],0),0))","v":""},{"$f":"IF('Communication Facility (Desc)'!T92=\"\",\"\",'Communication Facility (Desc)'!T92)","v":""},{"$f":"IF('Communication Facility (Desc)'!U92=\"\",\"\",INDEX([1]YES_NO!$A$2:$A$100,MATCH('Communication Facility (Desc)'!$U92,[1]!MASTER_YES_NO_DESC[#Data],0),0))","v":""},{"$f":"IF('Communication Facility (Desc)'!V92=\"\",\"\",INDEX([1]YES_NO!$A$2:$A$100,MATCH('Communication Facility (Desc)'!$V92,[1]!MASTER_YES_NO_DESC[#Data],0),0))","v":""}]
[{"$f":"IF('Communication Facility (Desc)'!A93=\"\",\"\",'Communication Facility (Desc)'!A93)","v":""},{"$f":"IF('Communication Facility (Desc)'!B93=\"\",\"\",'Communication Facility (Desc)'!B93)","v":""},{"$f":"IF('Communication Facility (Desc)'!C93=\"\",\"\",'Communication Facility (Desc)'!C93)","v":""},{"$f":"IF('Communication Facility (Desc)'!D93=\"\",\"\",INDEX([1]FACILITY_TYPE!$A$2:$A$100,MATCH('Communication Facility (Desc)'!$D93,[1]!MASTER_FACILITY_TYPE_DESC[#Data],0),0))","v":""},{"$f":"IF('Communication Facility (Desc)'!E93=\"\",\"\",INDEX([1]OWNER!$A$2:$A$100,MATCH('Communication Facility (Desc)'!$E93,[1]!MASTER_OWNER_DESC[#Data],0),0))","v":""},{"$f":"IF('Communication Facility (Desc)'!F93=\"\",\"\",IF('Communication Facility (Desc)'!F93=\"\",\"\",INDEX([1]COUNTY!$A$2:$A$80,MATCH('Communication Facility (Desc)'!F93,[1]!MASTER_COUNTY_NAME[#Data],0),0)))","v":""},{"$f":"IF('Communication Facility (Desc)'!G93=\"\",\"\",'Communication Facility (Desc)'!G93)","v":""},{"$f":"IF('Communication Facility (Desc)'!H93=\"\",\"\",'Communication Facility (Desc)'!H93)","v":""},{"$f":"IF('Communication Facility (Desc)'!I93=\"\",\"\",'Communication Facility (Desc)'!I93)","v":""},{"$f":"IF('Communication Facility (Desc)'!J93=\"\",\"\",INDEX([1]CABINET_TYPE!$A$2:$A$100,MATCH('Communication Facility (Desc)'!$J93,[1]!MASTER_CABINET_TYPE_DESC[#Data],0),0))","v":""},{"$f":"IF('Communication Facility (Desc)'!K93=\"\",\"\",INDEX([1]CABINET_MOUNT_TYPE!$A$2:$A$100,MATCH('Communication Facility (Desc)'!K93,[1]!MASTER_CABINET_MOUNT_TYPE_DESC[#Data],0),0))","v":""},{"$f":"IF('Communication Facility (Desc)'!L93=\"\",\"\",INDEX([1]YES_NO!$A$2:$A$100,MATCH('Communication Facility (Desc)'!L93,[1]!MASTER_YES_NO_DESC[#Data],0),0))","v":""},{"$f":"IF('Communication Facility (Desc)'!M93=\"\",\"\",INDEX([1]BUILDING_TYPE!$A$2:$A$100,MATCH('Communication Facility (Desc)'!$M93,[1]!MASTER_BUILDING_TYPE_DESC[#Data],0),0))","v":""},{"$f":"IF('Communication Facility (Desc)'!N93=\"\",\"\",'Communication Facility (Desc)'!N93)","v":""},{"$f":"IF('Communication Facility (Desc)'!O93=\"\",\"\",INDEX([1]BUILDING_MTL!$A$2:$A$100,MATCH('Communication Facility (Desc)'!$O93,[1]!MASTER_BUILDING_MTL_DESC[#Data],0),0))","v":""},{"$f":"IF('Communication Facility (Desc)'!P93=\"\",\"\",INDEX([1]KEY_TYPE!$A$2:$A$100,MATCH('Communication Facility (Desc)'!$P93,[1]!MASTER_KEY_TYPE_DESC[#Data],0),0))","v":""},{"$f":"IF('Communication Facility (Desc)'!Q93=\"\",\"\",'Communication Facility (Desc)'!Q93)","v":""},{"$f":"IF('Communication Facility (Desc)'!R93=\"\",\"\",INDEX([1]FILTER_TYPE!$A$2:$A$100,MATCH('Communication Facility (Desc)'!$R93,[1]!MASTER_FILTER_TYPE_DESC[#Data],0),0))","v":""},{"$f":"IF('Communication Facility (Desc)'!S93=\"\",\"\",INDEX([1]FILTER_SIZE!$A$2:$A$100,MATCH('Communication Facility (Desc)'!$S93,[1]!MASTER_FILTER_SIZE_DESC[#Data],0),0))","v":""},{"$f":"IF('Communication Facility (Desc)'!T93=\"\",\"\",'Communication Facility (Desc)'!T93)","v":""},{"$f":"IF('Communication Facility (Desc)'!U93=\"\",\"\",INDEX([1]YES_NO!$A$2:$A$100,MATCH('Communication Facility (Desc)'!$U93,[1]!MASTER_YES_NO_DESC[#Data],0),0))","v":""},{"$f":"IF('Communication Facility (Desc)'!V93=\"\",\"\",INDEX([1]YES_NO!$A$2:$A$100,MATCH('Communication Facility (Desc)'!$V93,[1]!MASTER_YES_NO_DESC[#Data],0),0))","v":""}]
[{"$f":"IF('Communication Facility (Desc)'!A94=\"\",\"\",'Communication Facility (Desc)'!A94)","v":""},{"$f":"IF('Communication Facility (Desc)'!B94=\"\",\"\",'Communication Facility (Desc)'!B94)","v":""},{"$f":"IF('Communication Facility (Desc)'!C94=\"\",\"\",'Communication Facility (Desc)'!C94)","v":""},{"$f":"IF('Communication Facility (Desc)'!D94=\"\",\"\",INDEX([1]FACILITY_TYPE!$A$2:$A$100,MATCH('Communication Facility (Desc)'!$D94,[1]!MASTER_FACILITY_TYPE_DESC[#Data],0),0))","v":""},{"$f":"IF('Communication Facility (Desc)'!E94=\"\",\"\",INDEX([1]OWNER!$A$2:$A$100,MATCH('Communication Facility (Desc)'!$E94,[1]!MASTER_OWNER_DESC[#Data],0),0))","v":""},{"$f":"IF('Communication Facility (Desc)'!F94=\"\",\"\",IF('Communication Facility (Desc)'!F94=\"\",\"\",INDEX([1]COUNTY!$A$2:$A$80,MATCH('Communication Facility (Desc)'!F94,[1]!MASTER_COUNTY_NAME[#Data],0),0)))","v":""},{"$f":"IF('Communication Facility (Desc)'!G94=\"\",\"\",'Communication Facility (Desc)'!G94)","v":""},{"$f":"IF('Communication Facility (Desc)'!H94=\"\",\"\",'Communication Facility (Desc)'!H94)","v":""},{"$f":"IF('Communication Facility (Desc)'!I94=\"\",\"\",'Communication Facility (Desc)'!I94)","v":""},{"$f":"IF('Communication Facility (Desc)'!J94=\"\",\"\",INDEX([1]CABINET_TYPE!$A$2:$A$100,MATCH('Communication Facility (Desc)'!$J94,[1]!MASTER_CABINET_TYPE_DESC[#Data],0),0))","v":""},{"$f":"IF('Communication Facility (Desc)'!K94=\"\",\"\",INDEX([1]CABINET_MOUNT_TYPE!$A$2:$A$100,MATCH('Communication Facility (Desc)'!K94,[1]!MASTER_CABINET_MOUNT_TYPE_DESC[#Data],0),0))","v":""},{"$f":"IF('Communication Facility (Desc)'!L94=\"\",\"\",INDEX([1]YES_NO!$A$2:$A$100,MATCH('Communication Facility (Desc)'!L94,[1]!MASTER_YES_NO_DESC[#Data],0),0))","v":""},{"$f":"IF('Communication Facility (Desc)'!M94=\"\",\"\",INDEX([1]BUILDING_TYPE!$A$2:$A$100,MATCH('Communication Facility (Desc)'!$M94,[1]!MASTER_BUILDING_TYPE_DESC[#Data],0),0))","v":""},{"$f":"IF('Communication Facility (Desc)'!N94=\"\",\"\",'Communication Facility (Desc)'!N94)","v":""},{"$f":"IF('Communication Facility (Desc)'!O94=\"\",\"\",INDEX([1]BUILDING_MTL!$A$2:$A$100,MATCH('Communication Facility (Desc)'!$O94,[1]!MASTER_BUILDING_MTL_DESC[#Data],0),0))","v":""},{"$f":"IF('Communication Facility (Desc)'!P94=\"\",\"\",INDEX([1]KEY_TYPE!$A$2:$A$100,MATCH('Communication Facility (Desc)'!$P94,[1]!MASTER_KEY_TYPE_DESC[#Data],0),0))","v":""},{"$f":"IF('Communication Facility (Desc)'!Q94=\"\",\"\",'Communication Facility (Desc)'!Q94)","v":""},{"$f":"IF('Communication Facility (Desc)'!R94=\"\",\"\",INDEX([1]FILTER_TYPE!$A$2:$A$100,MATCH('Communication Facility (Desc)'!$R94,[1]!MASTER_FILTER_TYPE_DESC[#Data],0),0))","v":""},{"$f":"IF('Communication Facility (Desc)'!S94=\"\",\"\",INDEX([1]FILTER_SIZE!$A$2:$A$100,MATCH('Communication Facility (Desc)'!$S94,[1]!MASTER_FILTER_SIZE_DESC[#Data],0),0))","v":""},{"$f":"IF('Communication Facility (Desc)'!T94=\"\",\"\",'Communication Facility (Desc)'!T94)","v":""},{"$f":"IF('Communication Facility (Desc)'!U94=\"\",\"\",INDEX([1]YES_NO!$A$2:$A$100,MATCH('Communication Facility (Desc)'!$U94,[1]!MASTER_YES_NO_DESC[#Data],0),0))","v":""},{"$f":"IF('Communication Facility (Desc)'!V94=\"\",\"\",INDEX([1]YES_NO!$A$2:$A$100,MATCH('Communication Facility (Desc)'!$V94,[1]!MASTER_YES_NO_DESC[#Data],0),0))","v":""}]
[{"$f":"IF('Communication Facility (Desc)'!A95=\"\",\"\",'Communication Facility (Desc)'!A95)","v":""},{"$f":"IF('Communication Facility (Desc)'!B95=\"\",\"\",'Communication Facility (Desc)'!B95)","v":""},{"$f":"IF('Communication Facility (Desc)'!C95=\"\",\"\",'Communication Facility (Desc)'!C95)","v":""},{"$f":"IF('Communication Facility (Desc)'!D95=\"\",\"\",INDEX([1]FACILITY_TYPE!$A$2:$A$100,MATCH('Communication Facility (Desc)'!$D95,[1]!MASTER_FACILITY_TYPE_DESC[#Data],0),0))","v":""},{"$f":"IF('Communication Facility (Desc)'!E95=\"\",\"\",INDEX([1]OWNER!$A$2:$A$100,MATCH('Communication Facility (Desc)'!$E95,[1]!MASTER_OWNER_DESC[#Data],0),0))","v":""},{"$f":"IF('Communication Facility (Desc)'!F95=\"\",\"\",IF('Communication Facility (Desc)'!F95=\"\",\"\",INDEX([1]COUNTY!$A$2:$A$80,MATCH('Communication Facility (Desc)'!F95,[1]!MASTER_COUNTY_NAME[#Data],0),0)))","v":""},{"$f":"IF('Communication Facility (Desc)'!G95=\"\",\"\",'Communication Facility (Desc)'!G95)","v":""},{"$f":"IF('Communication Facility (Desc)'!H95=\"\",\"\",'Communication Facility (Desc)'!H95)","v":""},{"$f":"IF('Communication Facility (Desc)'!I95=\"\",\"\",'Communication Facility (Desc)'!I95)","v":""},{"$f":"IF('Communication Facility (Desc)'!J95=\"\",\"\",INDEX([1]CABINET_TYPE!$A$2:$A$100,MATCH('Communication Facility (Desc)'!$J95,[1]!MASTER_CABINET_TYPE_DESC[#Data],0),0))","v":""},{"$f":"IF('Communication Facility (Desc)'!K95=\"\",\"\",INDEX([1]CABINET_MOUNT_TYPE!$A$2:$A$100,MATCH('Communication Facility (Desc)'!K95,[1]!MASTER_CABINET_MOUNT_TYPE_DESC[#Data],0),0))","v":""},{"$f":"IF('Communication Facility (Desc)'!L95=\"\",\"\",INDEX([1]YES_NO!$A$2:$A$100,MATCH('Communication Facility (Desc)'!L95,[1]!MASTER_YES_NO_DESC[#Data],0),0))","v":""},{"$f":"IF('Communication Facility (Desc)'!M95=\"\",\"\",INDEX([1]BUILDING_TYPE!$A$2:$A$100,MATCH('Communication Facility (Desc)'!$M95,[1]!MASTER_BUILDING_TYPE_DESC[#Data],0),0))","v":""},{"$f":"IF('Communication Facility (Desc)'!N95=\"\",\"\",'Communication Facility (Desc)'!N95)","v":""},{"$f":"IF('Communication Facility (Desc)'!O95=\"\",\"\",INDEX([1]BUILDING_MTL!$A$2:$A$100,MATCH('Communication Facility (Desc)'!$O95,[1]!MASTER_BUILDING_MTL_DESC[#Data],0),0))","v":""},{"$f":"IF('Communication Facility (Desc)'!P95=\"\",\"\",INDEX([1]KEY_TYPE!$A$2:$A$100,MATCH('Communication Facility (Desc)'!$P95,[1]!MASTER_KEY_TYPE_DESC[#Data],0),0))","v":""},{"$f":"IF('Communication Facility (Desc)'!Q95=\"\",\"\",'Communication Facility (Desc)'!Q95)","v":""},{"$f":"IF('Communication Facility (Desc)'!R95=\"\",\"\",INDEX([1]FILTER_TYPE!$A$2:$A$100,MATCH('Communication Facility (Desc)'!$R95,[1]!MASTER_FILTER_TYPE_DESC[#Data],0),0))","v":""},{"$f":"IF('Communication Facility (Desc)'!S95=\"\",\"\",INDEX([1]FILTER_SIZE!$A$2:$A$100,MATCH('Communication Facility (Desc)'!$S95,[1]!MASTER_FILTER_SIZE_DESC[#Data],0),0))","v":""},{"$f":"IF('Communication Facility (Desc)'!T95=\"\",\"\",'Communication Facility (Desc)'!T95)","v":""},{"$f":"IF('Communication Facility (Desc)'!U95=\"\",\"\",INDEX([1]YES_NO!$A$2:$A$100,MATCH('Communication Facility (Desc)'!$U95,[1]!MASTER_YES_NO_DESC[#Data],0),0))","v":""},{"$f":"IF('Communication Facility (Desc)'!V95=\"\",\"\",INDEX([1]YES_NO!$A$2:$A$100,MATCH('Communication Facility (Desc)'!$V95,[1]!MASTER_YES_NO_DESC[#Data],0),0))","v":""}]
[{"$f":"IF('Communication Facility (Desc)'!A96=\"\",\"\",'Communication Facility (Desc)'!A96)","v":""},{"$f":"IF('Communication Facility (Desc)'!B96=\"\",\"\",'Communication Facility (Desc)'!B96)","v":""},{"$f":"IF('Communication Facility (Desc)'!C96=\"\",\"\",'Communication Facility (Desc)'!C96)","v":""},{"$f":"IF('Communication Facility (Desc)'!D96=\"\",\"\",INDEX([1]FACILITY_TYPE!$A$2:$A$100,MATCH('Communication Facility (Desc)'!$D96,[1]!MASTER_FACILITY_TYPE_DESC[#Data],0),0))","v":""},{"$f":"IF('Communication Facility (Desc)'!E96=\"\",\"\",INDEX([1]OWNER!$A$2:$A$100,MATCH('Communication Facility (Desc)'!$E96,[1]!MASTER_OWNER_DESC[#Data],0),0))","v":""},{"$f":"IF('Communication Facility (Desc)'!F96=\"\",\"\",IF('Communication Facility (Desc)'!F96=\"\",\"\",INDEX([1]COUNTY!$A$2:$A$80,MATCH('Communication Facility (Desc)'!F96,[1]!MASTER_COUNTY_NAME[#Data],0),0)))","v":""},{"$f":"IF('Communication Facility (Desc)'!G96=\"\",\"\",'Communication Facility (Desc)'!G96)","v":""},{"$f":"IF('Communication Facility (Desc)'!H96=\"\",\"\",'Communication Facility (Desc)'!H96)","v":""},{"$f":"IF('Communication Facility (Desc)'!I96=\"\",\"\",'Communication Facility (Desc)'!I96)","v":""},{"$f":"IF('Communication Facility (Desc)'!J96=\"\",\"\",INDEX([1]CABINET_TYPE!$A$2:$A$100,MATCH('Communication Facility (Desc)'!$J96,[1]!MASTER_CABINET_TYPE_DESC[#Data],0),0))","v":""},{"$f":"IF('Communication Facility (Desc)'!K96=\"\",\"\",INDEX([1]CABINET_MOUNT_TYPE!$A$2:$A$100,MATCH('Communication Facility (Desc)'!K96,[1]!MASTER_CABINET_MOUNT_TYPE_DESC[#Data],0),0))","v":""},{"$f":"IF('Communication Facility (Desc)'!L96=\"\",\"\",INDEX([1]YES_NO!$A$2:$A$100,MATCH('Communication Facility (Desc)'!L96,[1]!MASTER_YES_NO_DESC[#Data],0),0))","v":""},{"$f":"IF('Communication Facility (Desc)'!M96=\"\",\"\",INDEX([1]BUILDING_TYPE!$A$2:$A$100,MATCH('Communication Facility (Desc)'!$M96,[1]!MASTER_BUILDING_TYPE_DESC[#Data],0),0))","v":""},{"$f":"IF('Communication Facility (Desc)'!N96=\"\",\"\",'Communication Facility (Desc)'!N96)","v":""},{"$f":"IF('Communication Facility (Desc)'!O96=\"\",\"\",INDEX([1]BUILDING_MTL!$A$2:$A$100,MATCH('Communication Facility (Desc)'!$O96,[1]!MASTER_BUILDING_MTL_DESC[#Data],0),0))","v":""},{"$f":"IF('Communication Facility (Desc)'!P96=\"\",\"\",INDEX([1]KEY_TYPE!$A$2:$A$100,MATCH('Communication Facility (Desc)'!$P96,[1]!MASTER_KEY_TYPE_DESC[#Data],0),0))","v":""},{"$f":"IF('Communication Facility (Desc)'!Q96=\"\",\"\",'Communication Facility (Desc)'!Q96)","v":""},{"$f":"IF('Communication Facility (Desc)'!R96=\"\",\"\",INDEX([1]FILTER_TYPE!$A$2:$A$100,MATCH('Communication Facility (Desc)'!$R96,[1]!MASTER_FILTER_TYPE_DESC[#Data],0),0))","v":""},{"$f":"IF('Communication Facility (Desc)'!S96=\"\",\"\",INDEX([1]FILTER_SIZE!$A$2:$A$100,MATCH('Communication Facility (Desc)'!$S96,[1]!MASTER_FILTER_SIZE_DESC[#Data],0),0))","v":""},{"$f":"IF('Communication Facility (Desc)'!T96=\"\",\"\",'Communication Facility (Desc)'!T96)","v":""},{"$f":"IF('Communication Facility (Desc)'!U96=\"\",\"\",INDEX([1]YES_NO!$A$2:$A$100,MATCH('Communication Facility (Desc)'!$U96,[1]!MASTER_YES_NO_DESC[#Data],0),0))","v":""},{"$f":"IF('Communication Facility (Desc)'!V96=\"\",\"\",INDEX([1]YES_NO!$A$2:$A$100,MATCH('Communication Facility (Desc)'!$V96,[1]!MASTER_YES_NO_DESC[#Data],0),0))","v":""}]
[{"$f":"IF('Communication Facility (Desc)'!A97=\"\",\"\",'Communication Facility (Desc)'!A97)","v":""},{"$f":"IF('Communication Facility (Desc)'!B97=\"\",\"\",'Communication Facility (Desc)'!B97)","v":""},{"$f":"IF('Communication Facility (Desc)'!C97=\"\",\"\",'Communication Facility (Desc)'!C97)","v":""},{"$f":"IF('Communication Facility (Desc)'!D97=\"\",\"\",INDEX([1]FACILITY_TYPE!$A$2:$A$100,MATCH('Communication Facility (Desc)'!$D97,[1]!MASTER_FACILITY_TYPE_DESC[#Data],0),0))","v":""},{"$f":"IF('Communication Facility (Desc)'!E97=\"\",\"\",INDEX([1]OWNER!$A$2:$A$100,MATCH('Communication Facility (Desc)'!$E97,[1]!MASTER_OWNER_DESC[#Data],0),0))","v":""},{"$f":"IF('Communication Facility (Desc)'!F97=\"\",\"\",IF('Communication Facility (Desc)'!F97=\"\",\"\",INDEX([1]COUNTY!$A$2:$A$80,MATCH('Communication Facility (Desc)'!F97,[1]!MASTER_COUNTY_NAME[#Data],0),0)))","v":""},{"$f":"IF('Communication Facility (Desc)'!G97=\"\",\"\",'Communication Facility (Desc)'!G97)","v":""},{"$f":"IF('Communication Facility (Desc)'!H97=\"\",\"\",'Communication Facility (Desc)'!H97)","v":""},{"$f":"IF('Communication Facility (Desc)'!I97=\"\",\"\",'Communication Facility (Desc)'!I97)","v":""},{"$f":"IF('Communication Facility (Desc)'!J97=\"\",\"\",INDEX([1]CABINET_TYPE!$A$2:$A$100,MATCH('Communication Facility (Desc)'!$J97,[1]!MASTER_CABINET_TYPE_DESC[#Data],0),0))","v":""},{"$f":"IF('Communication Facility (Desc)'!K97=\"\",\"\",INDEX([1]CABINET_MOUNT_TYPE!$A$2:$A$100,MATCH('Communication Facility (Desc)'!K97,[1]!MASTER_CABINET_MOUNT_TYPE_DESC[#Data],0),0))","v":""},{"$f":"IF('Communication Facility (Desc)'!L97=\"\",\"\",INDEX([1]YES_NO!$A$2:$A$100,MATCH('Communication Facility (Desc)'!L97,[1]!MASTER_YES_NO_DESC[#Data],0),0))","v":""},{"$f":"IF('Communication Facility (Desc)'!M97=\"\",\"\",INDEX([1]BUILDING_TYPE!$A$2:$A$100,MATCH('Communication Facility (Desc)'!$M97,[1]!MASTER_BUILDING_TYPE_DESC[#Data],0),0))","v":""},{"$f":"IF('Communication Facility (Desc)'!N97=\"\",\"\",'Communication Facility (Desc)'!N97)","v":""},{"$f":"IF('Communication Facility (Desc)'!O97=\"\",\"\",INDEX([1]BUILDING_MTL!$A$2:$A$100,MATCH('Communication Facility (Desc)'!$O97,[1]!MASTER_BUILDING_MTL_DESC[#Data],0),0))","v":""},{"$f":"IF('Communication Facility (Desc)'!P97=\"\",\"\",INDEX([1]KEY_TYPE!$A$2:$A$100,MATCH('Communication Facility (Desc)'!$P97,[1]!MASTER_KEY_TYPE_DESC[#Data],0),0))","v":""},{"$f":"IF('Communication Facility (Desc)'!Q97=\"\",\"\",'Communication Facility (Desc)'!Q97)","v":""},{"$f":"IF('Communication Facility (Desc)'!R97=\"\",\"\",INDEX([1]FILTER_TYPE!$A$2:$A$100,MATCH('Communication Facility (Desc)'!$R97,[1]!MASTER_FILTER_TYPE_DESC[#Data],0),0))","v":""},{"$f":"IF('Communication Facility (Desc)'!S97=\"\",\"\",INDEX([1]FILTER_SIZE!$A$2:$A$100,MATCH('Communication Facility (Desc)'!$S97,[1]!MASTER_FILTER_SIZE_DESC[#Data],0),0))","v":""},{"$f":"IF('Communication Facility (Desc)'!T97=\"\",\"\",'Communication Facility (Desc)'!T97)","v":""},{"$f":"IF('Communication Facility (Desc)'!U97=\"\",\"\",INDEX([1]YES_NO!$A$2:$A$100,MATCH('Communication Facility (Desc)'!$U97,[1]!MASTER_YES_NO_DESC[#Data],0),0))","v":""},{"$f":"IF('Communication Facility (Desc)'!V97=\"\",\"\",INDEX([1]YES_NO!$A$2:$A$100,MATCH('Communication Facility (Desc)'!$V97,[1]!MASTER_YES_NO_DESC[#Data],0),0))","v":""}]
[{"$f":"IF('Communication Facility (Desc)'!A98=\"\",\"\",'Communication Facility (Desc)'!A98)","v":""},{"$f":"IF('Communication Facility (Desc)'!B98=\"\",\"\",'Communication Facility (Desc)'!B98)","v":""},{"$f":"IF('Communication Facility (Desc)'!C98=\"\",\"\",'Communication Facility (Desc)'!C98)","v":""},{"$f":"IF('Communication Facility (Desc)'!D98=\"\",\"\",INDEX([1]FACILITY_TYPE!$A$2:$A$100,MATCH('Communication Facility (Desc)'!$D98,[1]!MASTER_FACILITY_TYPE_DESC[#Data],0),0))","v":""},{"$f":"IF('Communication Facility (Desc)'!E98=\"\",\"\",INDEX([1]OWNER!$A$2:$A$100,MATCH('Communication Facility (Desc)'!$E98,[1]!MASTER_OWNER_DESC[#Data],0),0))","v":""},{"$f":"IF('Communication Facility (Desc)'!F98=\"\",\"\",IF('Communication Facility (Desc)'!F98=\"\",\"\",INDEX([1]COUNTY!$A$2:$A$80,MATCH('Communication Facility (Desc)'!F98,[1]!MASTER_COUNTY_NAME[#Data],0),0)))","v":""},{"$f":"IF('Communication Facility (Desc)'!G98=\"\",\"\",'Communication Facility (Desc)'!G98)","v":""},{"$f":"IF('Communication Facility (Desc)'!H98=\"\",\"\",'Communication Facility (Desc)'!H98)","v":""},{"$f":"IF('Communication Facility (Desc)'!I98=\"\",\"\",'Communication Facility (Desc)'!I98)","v":""},{"$f":"IF('Communication Facility (Desc)'!J98=\"\",\"\",INDEX([1]CABINET_TYPE!$A$2:$A$100,MATCH('Communication Facility (Desc)'!$J98,[1]!MASTER_CABINET_TYPE_DESC[#Data],0),0))","v":""},{"$f":"IF('Communication Facility (Desc)'!K98=\"\",\"\",INDEX([1]CABINET_MOUNT_TYPE!$A$2:$A$100,MATCH('Communication Facility (Desc)'!K98,[1]!MASTER_CABINET_MOUNT_TYPE_DESC[#Data],0),0))","v":""},{"$f":"IF('Communication Facility (Desc)'!L98=\"\",\"\",INDEX([1]YES_NO!$A$2:$A$100,MATCH('Communication Facility (Desc)'!L98,[1]!MASTER_YES_NO_DESC[#Data],0),0))","v":""},{"$f":"IF('Communication Facility (Desc)'!M98=\"\",\"\",INDEX([1]BUILDING_TYPE!$A$2:$A$100,MATCH('Communication Facility (Desc)'!$M98,[1]!MASTER_BUILDING_TYPE_DESC[#Data],0),0))","v":""},{"$f":"IF('Communication Facility (Desc)'!N98=\"\",\"\",'Communication Facility (Desc)'!N98)","v":""},{"$f":"IF('Communication Facility (Desc)'!O98=\"\",\"\",INDEX([1]BUILDING_MTL!$A$2:$A$100,MATCH('Communication Facility (Desc)'!$O98,[1]!MASTER_BUILDING_MTL_DESC[#Data],0),0))","v":""},{"$f":"IF('Communication Facility (Desc)'!P98=\"\",\"\",INDEX([1]KEY_TYPE!$A$2:$A$100,MATCH('Communication Facility (Desc)'!$P98,[1]!MASTER_KEY_TYPE_DESC[#Data],0),0))","v":""},{"$f":"IF('Communication Facility (Desc)'!Q98=\"\",\"\",'Communication Facility (Desc)'!Q98)","v":""},{"$f":"IF('Communication Facility (Desc)'!R98=\"\",\"\",INDEX([1]FILTER_TYPE!$A$2:$A$100,MATCH('Communication Facility (Desc)'!$R98,[1]!MASTER_FILTER_TYPE_DESC[#Data],0),0))","v":""},{"$f":"IF('Communication Facility (Desc)'!S98=\"\",\"\",INDEX([1]FILTER_SIZE!$A$2:$A$100,MATCH('Communication Facility (Desc)'!$S98,[1]!MASTER_FILTER_SIZE_DESC[#Data],0),0))","v":""},{"$f":"IF('Communication Facility (Desc)'!T98=\"\",\"\",'Communication Facility (Desc)'!T98)","v":""},{"$f":"IF('Communication Facility (Desc)'!U98=\"\",\"\",INDEX([1]YES_NO!$A$2:$A$100,MATCH('Communication Facility (Desc)'!$U98,[1]!MASTER_YES_NO_DESC[#Data],0),0))","v":""},{"$f":"IF('Communication Facility (Desc)'!V98=\"\",\"\",INDEX([1]YES_NO!$A$2:$A$100,MATCH('Communication Facility (Desc)'!$V98,[1]!MASTER_YES_NO_DESC[#Data],0),0))","v":""}]
[{"$f":"IF('Communication Facility (Desc)'!A99=\"\",\"\",'Communication Facility (Desc)'!A99)","v":""},{"$f":"IF('Communication Facility (Desc)'!B99=\"\",\"\",'Communication Facility (Desc)'!B99)","v":""},{"$f":"IF('Communication Facility (Desc)'!C99=\"\",\"\",'Communication Facility (Desc)'!C99)","v":""},{"$f":"IF('Communication Facility (Desc)'!D99=\"\",\"\",INDEX([1]FACILITY_TYPE!$A$2:$A$100,MATCH('Communication Facility (Desc)'!$D99,[1]!MASTER_FACILITY_TYPE_DESC[#Data],0),0))","v":""},{"$f":"IF('Communication Facility (Desc)'!E99=\"\",\"\",INDEX([1]OWNER!$A$2:$A$100,MATCH('Communication Facility (Desc)'!$E99,[1]!MASTER_OWNER_DESC[#Data],0),0))","v":""},{"$f":"IF('Communication Facility (Desc)'!F99=\"\",\"\",IF('Communication Facility (Desc)'!F99=\"\",\"\",INDEX([1]COUNTY!$A$2:$A$80,MATCH('Communication Facility (Desc)'!F99,[1]!MASTER_COUNTY_NAME[#Data],0),0)))","v":""},{"$f":"IF('Communication Facility (Desc)'!G99=\"\",\"\",'Communication Facility (Desc)'!G99)","v":""},{"$f":"IF('Communication Facility (Desc)'!H99=\"\",\"\",'Communication Facility (Desc)'!H99)","v":""},{"$f":"IF('Communication Facility (Desc)'!I99=\"\",\"\",'Communication Facility (Desc)'!I99)","v":""},{"$f":"IF('Communication Facility (Desc)'!J99=\"\",\"\",INDEX([1]CABINET_TYPE!$A$2:$A$100,MATCH('Communication Facility (Desc)'!$J99,[1]!MASTER_CABINET_TYPE_DESC[#Data],0),0))","v":""},{"$f":"IF('Communication Facility (Desc)'!K99=\"\",\"\",INDEX([1]CABINET_MOUNT_TYPE!$A$2:$A$100,MATCH('Communication Facility (Desc)'!K99,[1]!MASTER_CABINET_MOUNT_TYPE_DESC[#Data],0),0))","v":""},{"$f":"IF('Communication Facility (Desc)'!L99=\"\",\"\",INDEX([1]YES_NO!$A$2:$A$100,MATCH('Communication Facility (Desc)'!L99,[1]!MASTER_YES_NO_DESC[#Data],0),0))","v":""},{"$f":"IF('Communication Facility (Desc)'!M99=\"\",\"\",INDEX([1]BUILDING_TYPE!$A$2:$A$100,MATCH('Communication Facility (Desc)'!$M99,[1]!MASTER_BUILDING_TYPE_DESC[#Data],0),0))","v":""},{"$f":"IF('Communication Facility (Desc)'!N99=\"\",\"\",'Communication Facility (Desc)'!N99)","v":""},{"$f":"IF('Communication Facility (Desc)'!O99=\"\",\"\",INDEX([1]BUILDING_MTL!$A$2:$A$100,MATCH('Communication Facility (Desc)'!$O99,[1]!MASTER_BUILDING_MTL_DESC[#Data],0),0))","v":""},{"$f":"IF('Communication Facility (Desc)'!P99=\"\",\"\",INDEX([1]KEY_TYPE!$A$2:$A$100,MATCH('Communication Facility (Desc)'!$P99,[1]!MASTER_KEY_TYPE_DESC[#Data],0),0))","v":""},{"$f":"IF('Communication Facility (Desc)'!Q99=\"\",\"\",'Communication Facility (Desc)'!Q99)","v":""},{"$f":"IF('Communication Facility (Desc)'!R99=\"\",\"\",INDEX([1]FILTER_TYPE!$A$2:$A$100,MATCH('Communication Facility (Desc)'!$R99,[1]!MASTER_FILTER_TYPE_DESC[#Data],0),0))","v":""},{"$f":"IF('Communication Facility (Desc)'!S99=\"\",\"\",INDEX([1]FILTER_SIZE!$A$2:$A$100,MATCH('Communication Facility (Desc)'!$S99,[1]!MASTER_FILTER_SIZE_DESC[#Data],0),0))","v":""},{"$f":"IF('Communication Facility (Desc)'!T99=\"\",\"\",'Communication Facility (Desc)'!T99)","v":""},{"$f":"IF('Communication Facility (Desc)'!U99=\"\",\"\",INDEX([1]YES_NO!$A$2:$A$100,MATCH('Communication Facility (Desc)'!$U99,[1]!MASTER_YES_NO_DESC[#Data],0),0))","v":""},{"$f":"IF('Communication Facility (Desc)'!V99=\"\",\"\",INDEX([1]YES_NO!$A$2:$A$100,MATCH('Communication Facility (Desc)'!$V99,[1]!MASTER_YES_NO_DESC[#Data],0),0))","v":""}]
[{"$f":"IF('Communication Facility (Desc)'!A100=\"\",\"\",'Communication Facility (Desc)'!A100)","v":""},{"$f":"IF('Communication Facility (Desc)'!B100=\"\",\"\",'Communication Facility (Desc)'!B100)","v":""},{"$f":"IF('Communication Facility (Desc)'!C100=\"\",\"\",'Communication Facility (Desc)'!C100)","v":""},{"$f":"IF('Communication Facility (Desc)'!D100=\"\",\"\",INDEX([1]FACILITY_TYPE!$A$2:$A$100,MATCH('Communication Facility (Desc)'!$D100,[1]!MASTER_FACILITY_TYPE_DESC[#Data],0),0))","v":""},{"$f":"IF('Communication Facility (Desc)'!E100=\"\",\"\",INDEX([1]OWNER!$A$2:$A$100,MATCH('Communication Facility (Desc)'!$E100,[1]!MASTER_OWNER_DESC[#Data],0),0))","v":""},{"$f":"IF('Communication Facility (Desc)'!F100=\"\",\"\",IF('Communication Facility (Desc)'!F100=\"\",\"\",INDEX([1]COUNTY!$A$2:$A$80,MATCH('Communication Facility (Desc)'!F100,[1]!MASTER_COUNTY_NAME[#Data],0),0)))","v":""},{"$f":"IF('Communication Facility (Desc)'!G100=\"\",\"\",'Communication Facility (Desc)'!G100)","v":""},{"$f":"IF('Communication Facility (Desc)'!H100=\"\",\"\",'Communication Facility (Desc)'!H100)","v":""},{"$f":"IF('Communication Facility (Desc)'!I100=\"\",\"\",'Communication Facility (Desc)'!I100)","v":""},{"$f":"IF('Communication Facility (Desc)'!J100=\"\",\"\",INDEX([1]CABINET_TYPE!$A$2:$A$100,MATCH('Communication Facility (Desc)'!$J100,[1]!MASTER_CABINET_TYPE_DESC[#Data],0),0))","v":""},{"$f":"IF('Communication Facility (Desc)'!K100=\"\",\"\",INDEX([1]CABINET_MOUNT_TYPE!$A$2:$A$100,MATCH('Communication Facility (Desc)'!K100,[1]!MASTER_CABINET_MOUNT_TYPE_DESC[#Data],0),0))","v":""},{"$f":"IF('Communication Facility (Desc)'!L100=\"\",\"\",INDEX([1]YES_NO!$A$2:$A$100,MATCH('Communication Facility (Desc)'!L100,[1]!MASTER_YES_NO_DESC[#Data],0),0))","v":""},{"$f":"IF('Communication Facility (Desc)'!M100=\"\",\"\",INDEX([1]BUILDING_TYPE!$A$2:$A$100,MATCH('Communication Facility (Desc)'!$M100,[1]!MASTER_BUILDING_TYPE_DESC[#Data],0),0))","v":""},{"$f":"IF('Communication Facility (Desc)'!N100=\"\",\"\",'Communication Facility (Desc)'!N100)","v":""},{"$f":"IF('Communication Facility (Desc)'!O100=\"\",\"\",INDEX([1]BUILDING_MTL!$A$2:$A$100,MATCH('Communication Facility (Desc)'!$O100,[1]!MASTER_BUILDING_MTL_DESC[#Data],0),0))","v":""},{"$f":"IF('Communication Facility (Desc)'!P100=\"\",\"\",INDEX([1]KEY_TYPE!$A$2:$A$100,MATCH('Communication Facility (Desc)'!$P100,[1]!MASTER_KEY_TYPE_DESC[#Data],0),0))","v":""},{"$f":"IF('Communication Facility (Desc)'!Q100=\"\",\"\",'Communication Facility (Desc)'!Q100)","v":""},{"$f":"IF('Communication Facility (Desc)'!R100=\"\",\"\",INDEX([1]FILTER_TYPE!$A$2:$A$100,MATCH('Communication Facility (Desc)'!$R100,[1]!MASTER_FILTER_TYPE_DESC[#Data],0),0))","v":""},{"$f":"IF('Communication Facility (Desc)'!S100=\"\",\"\",INDEX([1]FILTER_SIZE!$A$2:$A$100,MATCH('Communication Facility (Desc)'!$S100,[1]!MASTER_FILTER_SIZE_DESC[#Data],0),0))","v":""},{"$f":"IF('Communication Facility (Desc)'!T100=\"\",\"\",'Communication Facility (Desc)'!T100)","v":""},{"$f":"IF('Communication Facility (Desc)'!U100=\"\",\"\",INDEX([1]YES_NO!$A$2:$A$100,MATCH('Communication Facility (Desc)'!$U100,[1]!MASTER_YES_NO_DESC[#Data],0),0))","v":""},{"$f":"IF('Communication Facility (Desc)'!V100=\"\",\"\",INDEX([1]YES_NO!$A$2:$A$100,MATCH('Communication Facility (Desc)'!$V100,[1]!MASTER_YES_NO_DESC[#Data],0),0))","v":""}]
[{"$f":"IF('Communication Facility (Desc)'!A101=\"\",\"\",'Communication Facility (Desc)'!A101)","v":""},{"$f":"IF('Communication Facility (Desc)'!B101=\"\",\"\",'Communication Facility (Desc)'!B101)","v":""},{"$f":"IF('Communication Facility (Desc)'!C101=\"\",\"\",'Communication Facility (Desc)'!C101)","v":""},{"$f":"IF('Communication Facility (Desc)'!D101=\"\",\"\",INDEX([1]FACILITY_TYPE!$A$2:$A$100,MATCH('Communication Facility (Desc)'!$D101,[1]!MASTER_FACILITY_TYPE_DESC[#Data],0),0))","v":""},{"$f":"IF('Communication Facility (Desc)'!E101=\"\",\"\",INDEX([1]OWNER!$A$2:$A$100,MATCH('Communication Facility (Desc)'!$E101,[1]!MASTER_OWNER_DESC[#Data],0),0))","v":""},{"$f":"IF('Communication Facility (Desc)'!F101=\"\",\"\",IF('Communication Facility (Desc)'!F101=\"\",\"\",INDEX([1]COUNTY!$A$2:$A$80,MATCH('Communication Facility (Desc)'!F101,[1]!MASTER_COUNTY_NAME[#Data],0),0)))","v":""},{"$f":"IF('Communication Facility (Desc)'!G101=\"\",\"\",'Communication Facility (Desc)'!G101)","v":""},{"$f":"IF('Communication Facility (Desc)'!H101=\"\",\"\",'Communication Facility (Desc)'!H101)","v":""},{"$f":"IF('Communication Facility (Desc)'!I101=\"\",\"\",'Communication Facility (Desc)'!I101)","v":""},{"$f":"IF('Communication Facility (Desc)'!J101=\"\",\"\",INDEX([1]CABINET_TYPE!$A$2:$A$100,MATCH('Communication Facility (Desc)'!$J101,[1]!MASTER_CABINET_TYPE_DESC[#Data],0),0))","v":""},{"$f":"IF('Communication Facility (Desc)'!K101=\"\",\"\",INDEX([1]CABINET_MOUNT_TYPE!$A$2:$A$100,MATCH('Communication Facility (Desc)'!K101,[1]!MASTER_CABINET_MOUNT_TYPE_DESC[#Data],0),0))","v":""},{"$f":"IF('Communication Facility (Desc)'!L101=\"\",\"\",INDEX([1]YES_NO!$A$2:$A$100,MATCH('Communication Facility (Desc)'!L101,[1]!MASTER_YES_NO_DESC[#Data],0),0))","v":""},{"$f":"IF('Communication Facility (Desc)'!M101=\"\",\"\",INDEX([1]BUILDING_TYPE!$A$2:$A$100,MATCH('Communication Facility (Desc)'!$M101,[1]!MASTER_BUILDING_TYPE_DESC[#Data],0),0))","v":""},{"$f":"IF('Communication Facility (Desc)'!N101=\"\",\"\",'Communication Facility (Desc)'!N101)","v":""},{"$f":"IF('Communication Facility (Desc)'!O101=\"\",\"\",INDEX([1]BUILDING_MTL!$A$2:$A$100,MATCH('Communication Facility (Desc)'!$O101,[1]!MASTER_BUILDING_MTL_DESC[#Data],0),0))","v":""},{"$f":"IF('Communication Facility (Desc)'!P101=\"\",\"\",INDEX([1]KEY_TYPE!$A$2:$A$100,MATCH('Communication Facility (Desc)'!$P101,[1]!MASTER_KEY_TYPE_DESC[#Data],0),0))","v":""},{"$f":"IF('Communication Facility (Desc)'!Q101=\"\",\"\",'Communication Facility (Desc)'!Q101)","v":""},{"$f":"IF('Communication Facility (Desc)'!R101=\"\",\"\",INDEX([1]FILTER_TYPE!$A$2:$A$100,MATCH('Communication Facility (Desc)'!$R101,[1]!MASTER_FILTER_TYPE_DESC[#Data],0),0))","v":""},{"$f":"IF('Communication Facility (Desc)'!S101=\"\",\"\",INDEX([1]FILTER_SIZE!$A$2:$A$100,MATCH('Communication Facility (Desc)'!$S101,[1]!MASTER_FILTER_SIZE_DESC[#Data],0),0))","v":""},{"$f":"IF('Communication Facility (Desc)'!T101=\"\",\"\",'Communication Facility (Desc)'!T101)","v":""},{"$f":"IF('Communication Facility (Desc)'!U101=\"\",\"\",INDEX([1]YES_NO!$A$2:$A$100,MATCH('Communication Facility (Desc)'!$U101,[1]!MASTER_YES_NO_DESC[#Data],0),0))","v":""},{"$f":"IF('Communication Facility (Desc)'!V101=\"\",\"\",INDEX([1]YES_NO!$A$2:$A$100,MATCH('Communication Facility (Desc)'!$V101,[1]!MASTER_YES_NO_DESC[#Data],0),0))","v":""}]
[{"$f":"IF('Communication Facility (Desc)'!A102=\"\",\"\",'Communication Facility (Desc)'!A102)","v":""},{"$f":"IF('Communication Facility (Desc)'!B102=\"\",\"\",'Communication Facility (Desc)'!B102)","v":""},{"$f":"IF('Communication Facility (Desc)'!C102=\"\",\"\",'Communication Facility (Desc)'!C102)","v":""},{"$f":"IF('Communication Facility (Desc)'!D102=\"\",\"\",INDEX([1]FACILITY_TYPE!$A$2:$A$100,MATCH('Communication Facility (Desc)'!$D102,[1]!MASTER_FACILITY_TYPE_DESC[#Data],0),0))","v":""},{"$f":"IF('Communication Facility (Desc)'!E102=\"\",\"\",INDEX([1]OWNER!$A$2:$A$100,MATCH('Communication Facility (Desc)'!$E102,[1]!MASTER_OWNER_DESC[#Data],0),0))","v":""},{"$f":"IF('Communication Facility (Desc)'!F102=\"\",\"\",IF('Communication Facility (Desc)'!F102=\"\",\"\",INDEX([1]COUNTY!$A$2:$A$80,MATCH('Communication Facility (Desc)'!F102,[1]!MASTER_COUNTY_NAME[#Data],0),0)))","v":""},{"$f":"IF('Communication Facility (Desc)'!G102=\"\",\"\",'Communication Facility (Desc)'!G102)","v":""},{"$f":"IF('Communication Facility (Desc)'!H102=\"\",\"\",'Communication Facility (Desc)'!H102)","v":""},{"$f":"IF('Communication Facility (Desc)'!I102=\"\",\"\",'Communication Facility (Desc)'!I102)","v":""},{"$f":"IF('Communication Facility (Desc)'!J102=\"\",\"\",INDEX([1]CABINET_TYPE!$A$2:$A$100,MATCH('Communication Facility (Desc)'!$J102,[1]!MASTER_CABINET_TYPE_DESC[#Data],0),0))","v":""},{"$f":"IF('Communication Facility (Desc)'!K102=\"\",\"\",INDEX([1]CABINET_MOUNT_TYPE!$A$2:$A$100,MATCH('Communication Facility (Desc)'!K102,[1]!MASTER_CABINET_MOUNT_TYPE_DESC[#Data],0),0))","v":""},{"$f":"IF('Communication Facility (Desc)'!L102=\"\",\"\",INDEX([1]YES_NO!$A$2:$A$100,MATCH('Communication Facility (Desc)'!L102,[1]!MASTER_YES_NO_DESC[#Data],0),0))","v":""},{"$f":"IF('Communication Facility (Desc)'!M102=\"\",\"\",INDEX([1]BUILDING_TYPE!$A$2:$A$100,MATCH('Communication Facility (Desc)'!$M102,[1]!MASTER_BUILDING_TYPE_DESC[#Data],0),0))","v":""},{"$f":"IF('Communication Facility (Desc)'!N102=\"\",\"\",'Communication Facility (Desc)'!N102)","v":""},{"$f":"IF('Communication Facility (Desc)'!O102=\"\",\"\",INDEX([1]BUILDING_MTL!$A$2:$A$100,MATCH('Communication Facility (Desc)'!$O102,[1]!MASTER_BUILDING_MTL_DESC[#Data],0),0))","v":""},{"$f":"IF('Communication Facility (Desc)'!P102=\"\",\"\",INDEX([1]KEY_TYPE!$A$2:$A$100,MATCH('Communication Facility (Desc)'!$P102,[1]!MASTER_KEY_TYPE_DESC[#Data],0),0))","v":""},{"$f":"IF('Communication Facility (Desc)'!Q102=\"\",\"\",'Communication Facility (Desc)'!Q102)","v":""},{"$f":"IF('Communication Facility (Desc)'!R102=\"\",\"\",INDEX([1]FILTER_TYPE!$A$2:$A$100,MATCH('Communication Facility (Desc)'!$R102,[1]!MASTER_FILTER_TYPE_DESC[#Data],0),0))","v":""},{"$f":"IF('Communication Facility (Desc)'!S102=\"\",\"\",INDEX([1]FILTER_SIZE!$A$2:$A$100,MATCH('Communication Facility (Desc)'!$S102,[1]!MASTER_FILTER_SIZE_DESC[#Data],0),0))","v":""},{"$f":"IF('Communication Facility (Desc)'!T102=\"\",\"\",'Communication Facility (Desc)'!T102)","v":""},{"$f":"IF('Communication Facility (Desc)'!U102=\"\",\"\",INDEX([1]YES_NO!$A$2:$A$100,MATCH('Communication Facility (Desc)'!$U102,[1]!MASTER_YES_NO_DESC[#Data],0),0))","v":""},{"$f":"IF('Communication Facility (Desc)'!V102=\"\",\"\",INDEX([1]YES_NO!$A$2:$A$100,MATCH('Communication Facility (Desc)'!$V102,[1]!MASTER_YES_NO_DESC[#Data],0),0))","v":""}]
[{"$f":"IF('Communication Facility (Desc)'!A103=\"\",\"\",'Communication Facility (Desc)'!A103)","v":""},{"$f":"IF('Communication Facility (Desc)'!B103=\"\",\"\",'Communication Facility (Desc)'!B103)","v":""},{"$f":"IF('Communication Facility (Desc)'!C103=\"\",\"\",'Communication Facility (Desc)'!C103)","v":""},{"$f":"IF('Communication Facility (Desc)'!D103=\"\",\"\",INDEX([1]FACILITY_TYPE!$A$2:$A$100,MATCH('Communication Facility (Desc)'!$D103,[1]!MASTER_FACILITY_TYPE_DESC[#Data],0),0))","v":""},{"$f":"IF('Communication Facility (Desc)'!E103=\"\",\"\",INDEX([1]OWNER!$A$2:$A$100,MATCH('Communication Facility (Desc)'!$E103,[1]!MASTER_OWNER_DESC[#Data],0),0))","v":""},{"$f":"IF('Communication Facility (Desc)'!F103=\"\",\"\",IF('Communication Facility (Desc)'!F103=\"\",\"\",INDEX([1]COUNTY!$A$2:$A$80,MATCH('Communication Facility (Desc)'!F103,[1]!MASTER_COUNTY_NAME[#Data],0),0)))","v":""},{"$f":"IF('Communication Facility (Desc)'!G103=\"\",\"\",'Communication Facility (Desc)'!G103)","v":""},{"$f":"IF('Communication Facility (Desc)'!H103=\"\",\"\",'Communication Facility (Desc)'!H103)","v":""},{"$f":"IF('Communication Facility (Desc)'!I103=\"\",\"\",'Communication Facility (Desc)'!I103)","v":""},{"$f":"IF('Communication Facility (Desc)'!J103=\"\",\"\",INDEX([1]CABINET_TYPE!$A$2:$A$100,MATCH('Communication Facility (Desc)'!$J103,[1]!MASTER_CABINET_TYPE_DESC[#Data],0),0))","v":""},{"$f":"IF('Communication Facility (Desc)'!K103=\"\",\"\",INDEX([1]CABINET_MOUNT_TYPE!$A$2:$A$100,MATCH('Communication Facility (Desc)'!K103,[1]!MASTER_CABINET_MOUNT_TYPE_DESC[#Data],0),0))","v":""},{"$f":"IF('Communication Facility (Desc)'!L103=\"\",\"\",INDEX([1]YES_NO!$A$2:$A$100,MATCH('Communication Facility (Desc)'!L103,[1]!MASTER_YES_NO_DESC[#Data],0),0))","v":""},{"$f":"IF('Communication Facility (Desc)'!M103=\"\",\"\",INDEX([1]BUILDING_TYPE!$A$2:$A$100,MATCH('Communication Facility (Desc)'!$M103,[1]!MASTER_BUILDING_TYPE_DESC[#Data],0),0))","v":""},{"$f":"IF('Communication Facility (Desc)'!N103=\"\",\"\",'Communication Facility (Desc)'!N103)","v":""},{"$f":"IF('Communication Facility (Desc)'!O103=\"\",\"\",INDEX([1]BUILDING_MTL!$A$2:$A$100,MATCH('Communication Facility (Desc)'!$O103,[1]!MASTER_BUILDING_MTL_DESC[#Data],0),0))","v":""},{"$f":"IF('Communication Facility (Desc)'!P103=\"\",\"\",INDEX([1]KEY_TYPE!$A$2:$A$100,MATCH('Communication Facility (Desc)'!$P103,[1]!MASTER_KEY_TYPE_DESC[#Data],0),0))","v":""},{"$f":"IF('Communication Facility (Desc)'!Q103=\"\",\"\",'Communication Facility (Desc)'!Q103)","v":""},{"$f":"IF('Communication Facility (Desc)'!R103=\"\",\"\",INDEX([1]FILTER_TYPE!$A$2:$A$100,MATCH('Communication Facility (Desc)'!$R103,[1]!MASTER_FILTER_TYPE_DESC[#Data],0),0))","v":""},{"$f":"IF('Communication Facility (Desc)'!S103=\"\",\"\",INDEX([1]FILTER_SIZE!$A$2:$A$100,MATCH('Communication Facility (Desc)'!$S103,[1]!MASTER_FILTER_SIZE_DESC[#Data],0),0))","v":""},{"$f":"IF('Communication Facility (Desc)'!T103=\"\",\"\",'Communication Facility (Desc)'!T103)","v":""},{"$f":"IF('Communication Facility (Desc)'!U103=\"\",\"\",INDEX([1]YES_NO!$A$2:$A$100,MATCH('Communication Facility (Desc)'!$U103,[1]!MASTER_YES_NO_DESC[#Data],0),0))","v":""},{"$f":"IF('Communication Facility (Desc)'!V103=\"\",\"\",INDEX([1]YES_NO!$A$2:$A$100,MATCH('Communication Facility (Desc)'!$V103,[1]!MASTER_YES_NO_DESC[#Data],0),0))","v":""}]
[{"$f":"IF('Communication Facility (Desc)'!A104=\"\",\"\",'Communication Facility (Desc)'!A104)","v":""},{"$f":"IF('Communication Facility (Desc)'!B104=\"\",\"\",'Communication Facility (Desc)'!B104)","v":""},{"$f":"IF('Communication Facility (Desc)'!C104=\"\",\"\",'Communication Facility (Desc)'!C104)","v":""},{"$f":"IF('Communication Facility (Desc)'!D104=\"\",\"\",INDEX([1]FACILITY_TYPE!$A$2:$A$100,MATCH('Communication Facility (Desc)'!$D104,[1]!MASTER_FACILITY_TYPE_DESC[#Data],0),0))","v":""},{"$f":"IF('Communication Facility (Desc)'!E104=\"\",\"\",INDEX([1]OWNER!$A$2:$A$100,MATCH('Communication Facility (Desc)'!$E104,[1]!MASTER_OWNER_DESC[#Data],0),0))","v":""},{"$f":"IF('Communication Facility (Desc)'!F104=\"\",\"\",IF('Communication Facility (Desc)'!F104=\"\",\"\",INDEX([1]COUNTY!$A$2:$A$80,MATCH('Communication Facility (Desc)'!F104,[1]!MASTER_COUNTY_NAME[#Data],0),0)))","v":""},{"$f":"IF('Communication Facility (Desc)'!G104=\"\",\"\",'Communication Facility (Desc)'!G104)","v":""},{"$f":"IF('Communication Facility (Desc)'!H104=\"\",\"\",'Communication Facility (Desc)'!H104)","v":""},{"$f":"IF('Communication Facility (Desc)'!I104=\"\",\"\",'Communication Facility (Desc)'!I104)","v":""},{"$f":"IF('Communication Facility (Desc)'!J104=\"\",\"\",INDEX([1]CABINET_TYPE!$A$2:$A$100,MATCH('Communication Facility (Desc)'!$J104,[1]!MASTER_CABINET_TYPE_DESC[#Data],0),0))","v":""},{"$f":"IF('Communication Facility (Desc)'!K104=\"\",\"\",INDEX([1]CABINET_MOUNT_TYPE!$A$2:$A$100,MATCH('Communication Facility (Desc)'!K104,[1]!MASTER_CABINET_MOUNT_TYPE_DESC[#Data],0),0))","v":""},{"$f":"IF('Communication Facility (Desc)'!L104=\"\",\"\",INDEX([1]YES_NO!$A$2:$A$100,MATCH('Communication Facility (Desc)'!L104,[1]!MASTER_YES_NO_DESC[#Data],0),0))","v":""},{"$f":"IF('Communication Facility (Desc)'!M104=\"\",\"\",INDEX([1]BUILDING_TYPE!$A$2:$A$100,MATCH('Communication Facility (Desc)'!$M104,[1]!MASTER_BUILDING_TYPE_DESC[#Data],0),0))","v":""},{"$f":"IF('Communication Facility (Desc)'!N104=\"\",\"\",'Communication Facility (Desc)'!N104)","v":""},{"$f":"IF('Communication Facility (Desc)'!O104=\"\",\"\",INDEX([1]BUILDING_MTL!$A$2:$A$100,MATCH('Communication Facility (Desc)'!$O104,[1]!MASTER_BUILDING_MTL_DESC[#Data],0),0))","v":""},{"$f":"IF('Communication Facility (Desc)'!P104=\"\",\"\",INDEX([1]KEY_TYPE!$A$2:$A$100,MATCH('Communication Facility (Desc)'!$P104,[1]!MASTER_KEY_TYPE_DESC[#Data],0),0))","v":""},{"$f":"IF('Communication Facility (Desc)'!Q104=\"\",\"\",'Communication Facility (Desc)'!Q104)","v":""},{"$f":"IF('Communication Facility (Desc)'!R104=\"\",\"\",INDEX([1]FILTER_TYPE!$A$2:$A$100,MATCH('Communication Facility (Desc)'!$R104,[1]!MASTER_FILTER_TYPE_DESC[#Data],0),0))","v":""},{"$f":"IF('Communication Facility (Desc)'!S104=\"\",\"\",INDEX([1]FILTER_SIZE!$A$2:$A$100,MATCH('Communication Facility (Desc)'!$S104,[1]!MASTER_FILTER_SIZE_DESC[#Data],0),0))","v":""},{"$f":"IF('Communication Facility (Desc)'!T104=\"\",\"\",'Communication Facility (Desc)'!T104)","v":""},{"$f":"IF('Communication Facility (Desc)'!U104=\"\",\"\",INDEX([1]YES_NO!$A$2:$A$100,MATCH('Communication Facility (Desc)'!$U104,[1]!MASTER_YES_NO_DESC[#Data],0),0))","v":""},{"$f":"IF('Communication Facility (Desc)'!V104=\"\",\"\",INDEX([1]YES_NO!$A$2:$A$100,MATCH('Communication Facility (Desc)'!$V104,[1]!MASTER_YES_NO_DESC[#Data],0),0))","v":""}]
[{"$f":"IF('Communication Facility (Desc)'!A105=\"\",\"\",'Communication Facility (Desc)'!A105)","v":""},{"$f":"IF('Communication Facility (Desc)'!B105=\"\",\"\",'Communication Facility (Desc)'!B105)","v":""},{"$f":"IF('Communication Facility (Desc)'!C105=\"\",\"\",'Communication Facility (Desc)'!C105)","v":""},{"$f":"IF('Communication Facility (Desc)'!D105=\"\",\"\",INDEX([1]FACILITY_TYPE!$A$2:$A$100,MATCH('Communication Facility (Desc)'!$D105,[1]!MASTER_FACILITY_TYPE_DESC[#Data],0),0))","v":""},{"$f":"IF('Communication Facility (Desc)'!E105=\"\",\"\",INDEX([1]OWNER!$A$2:$A$100,MATCH('Communication Facility (Desc)'!$E105,[1]!MASTER_OWNER_DESC[#Data],0),0))","v":""},{"$f":"IF('Communication Facility (Desc)'!F105=\"\",\"\",IF('Communication Facility (Desc)'!F105=\"\",\"\",INDEX([1]COUNTY!$A$2:$A$80,MATCH('Communication Facility (Desc)'!F105,[1]!MASTER_COUNTY_NAME[#Data],0),0)))","v":""},{"$f":"IF('Communication Facility (Desc)'!G105=\"\",\"\",'Communication Facility (Desc)'!G105)","v":""},{"$f":"IF('Communication Facility (Desc)'!H105=\"\",\"\",'Communication Facility (Desc)'!H105)","v":""},{"$f":"IF('Communication Facility (Desc)'!I105=\"\",\"\",'Communication Facility (Desc)'!I105)","v":""},{"$f":"IF('Communication Facility (Desc)'!J105=\"\",\"\",INDEX([1]CABINET_TYPE!$A$2:$A$100,MATCH('Communication Facility (Desc)'!$J105,[1]!MASTER_CABINET_TYPE_DESC[#Data],0),0))","v":""},{"$f":"IF('Communication Facility (Desc)'!K105=\"\",\"\",INDEX([1]CABINET_MOUNT_TYPE!$A$2:$A$100,MATCH('Communication Facility (Desc)'!K105,[1]!MASTER_CABINET_MOUNT_TYPE_DESC[#Data],0),0))","v":""},{"$f":"IF('Communication Facility (Desc)'!L105=\"\",\"\",INDEX([1]YES_NO!$A$2:$A$100,MATCH('Communication Facility (Desc)'!L105,[1]!MASTER_YES_NO_DESC[#Data],0),0))","v":""},{"$f":"IF('Communication Facility (Desc)'!M105=\"\",\"\",INDEX([1]BUILDING_TYPE!$A$2:$A$100,MATCH('Communication Facility (Desc)'!$M105,[1]!MASTER_BUILDING_TYPE_DESC[#Data],0),0))","v":""},{"$f":"IF('Communication Facility (Desc)'!N105=\"\",\"\",'Communication Facility (Desc)'!N105)","v":""},{"$f":"IF('Communication Facility (Desc)'!O105=\"\",\"\",INDEX([1]BUILDING_MTL!$A$2:$A$100,MATCH('Communication Facility (Desc)'!$O105,[1]!MASTER_BUILDING_MTL_DESC[#Data],0),0))","v":""},{"$f":"IF('Communication Facility (Desc)'!P105=\"\",\"\",INDEX([1]KEY_TYPE!$A$2:$A$100,MATCH('Communication Facility (Desc)'!$P105,[1]!MASTER_KEY_TYPE_DESC[#Data],0),0))","v":""},{"$f":"IF('Communication Facility (Desc)'!Q105=\"\",\"\",'Communication Facility (Desc)'!Q105)","v":""},{"$f":"IF('Communication Facility (Desc)'!R105=\"\",\"\",INDEX([1]FILTER_TYPE!$A$2:$A$100,MATCH('Communication Facility (Desc)'!$R105,[1]!MASTER_FILTER_TYPE_DESC[#Data],0),0))","v":""},{"$f":"IF('Communication Facility (Desc)'!S105=\"\",\"\",INDEX([1]FILTER_SIZE!$A$2:$A$100,MATCH('Communication Facility (Desc)'!$S105,[1]!MASTER_FILTER_SIZE_DESC[#Data],0),0))","v":""},{"$f":"IF('Communication Facility (Desc)'!T105=\"\",\"\",'Communication Facility (Desc)'!T105)","v":""},{"$f":"IF('Communication Facility (Desc)'!U105=\"\",\"\",INDEX([1]YES_NO!$A$2:$A$100,MATCH('Communication Facility (Desc)'!$U105,[1]!MASTER_YES_NO_DESC[#Data],0),0))","v":""},{"$f":"IF('Communication Facility (Desc)'!V105=\"\",\"\",INDEX([1]YES_NO!$A$2:$A$100,MATCH('Communication Facility (Desc)'!$V105,[1]!MASTER_YES_NO_DESC[#Data],0),0))","v":""}]
[{"$f":"IF('Communication Facility (Desc)'!A106=\"\",\"\",'Communication Facility (Desc)'!A106)","v":""},{"$f":"IF('Communication Facility (Desc)'!B106=\"\",\"\",'Communication Facility (Desc)'!B106)","v":""},{"$f":"IF('Communication Facility (Desc)'!C106=\"\",\"\",'Communication Facility (Desc)'!C106)","v":""},{"$f":"IF('Communication Facility (Desc)'!D106=\"\",\"\",INDEX([1]FACILITY_TYPE!$A$2:$A$100,MATCH('Communication Facility (Desc)'!$D106,[1]!MASTER_FACILITY_TYPE_DESC[#Data],0),0))","v":""},{"$f":"IF('Communication Facility (Desc)'!E106=\"\",\"\",INDEX([1]OWNER!$A$2:$A$100,MATCH('Communication Facility (Desc)'!$E106,[1]!MASTER_OWNER_DESC[#Data],0),0))","v":""},{"$f":"IF('Communication Facility (Desc)'!F106=\"\",\"\",IF('Communication Facility (Desc)'!F106=\"\",\"\",INDEX([1]COUNTY!$A$2:$A$80,MATCH('Communication Facility (Desc)'!F106,[1]!MASTER_COUNTY_NAME[#Data],0),0)))","v":""},{"$f":"IF('Communication Facility (Desc)'!G106=\"\",\"\",'Communication Facility (Desc)'!G106)","v":""},{"$f":"IF('Communication Facility (Desc)'!H106=\"\",\"\",'Communication Facility (Desc)'!H106)","v":""},{"$f":"IF('Communication Facility (Desc)'!I106=\"\",\"\",'Communication Facility (Desc)'!I106)","v":""},{"$f":"IF('Communication Facility (Desc)'!J106=\"\",\"\",INDEX([1]CABINET_TYPE!$A$2:$A$100,MATCH('Communication Facility (Desc)'!$J106,[1]!MASTER_CABINET_TYPE_DESC[#Data],0),0))","v":""},{"$f":"IF('Communication Facility (Desc)'!K106=\"\",\"\",INDEX([1]CABINET_MOUNT_TYPE!$A$2:$A$100,MATCH('Communication Facility (Desc)'!K106,[1]!MASTER_CABINET_MOUNT_TYPE_DESC[#Data],0),0))","v":""},{"$f":"IF('Communication Facility (Desc)'!L106=\"\",\"\",INDEX([1]YES_NO!$A$2:$A$100,MATCH('Communication Facility (Desc)'!L106,[1]!MASTER_YES_NO_DESC[#Data],0),0))","v":""},{"$f":"IF('Communication Facility (Desc)'!M106=\"\",\"\",INDEX([1]BUILDING_TYPE!$A$2:$A$100,MATCH('Communication Facility (Desc)'!$M106,[1]!MASTER_BUILDING_TYPE_DESC[#Data],0),0))","v":""},{"$f":"IF('Communication Facility (Desc)'!N106=\"\",\"\",'Communication Facility (Desc)'!N106)","v":""},{"$f":"IF('Communication Facility (Desc)'!O106=\"\",\"\",INDEX([1]BUILDING_MTL!$A$2:$A$100,MATCH('Communication Facility (Desc)'!$O106,[1]!MASTER_BUILDING_MTL_DESC[#Data],0),0))","v":""},{"$f":"IF('Communication Facility (Desc)'!P106=\"\",\"\",INDEX([1]KEY_TYPE!$A$2:$A$100,MATCH('Communication Facility (Desc)'!$P106,[1]!MASTER_KEY_TYPE_DESC[#Data],0),0))","v":""},{"$f":"IF('Communication Facility (Desc)'!Q106=\"\",\"\",'Communication Facility (Desc)'!Q106)","v":""},{"$f":"IF('Communication Facility (Desc)'!R106=\"\",\"\",INDEX([1]FILTER_TYPE!$A$2:$A$100,MATCH('Communication Facility (Desc)'!$R106,[1]!MASTER_FILTER_TYPE_DESC[#Data],0),0))","v":""},{"$f":"IF('Communication Facility (Desc)'!S106=\"\",\"\",INDEX([1]FILTER_SIZE!$A$2:$A$100,MATCH('Communication Facility (Desc)'!$S106,[1]!MASTER_FILTER_SIZE_DESC[#Data],0),0))","v":""},{"$f":"IF('Communication Facility (Desc)'!T106=\"\",\"\",'Communication Facility (Desc)'!T106)","v":""},{"$f":"IF('Communication Facility (Desc)'!U106=\"\",\"\",INDEX([1]YES_NO!$A$2:$A$100,MATCH('Communication Facility (Desc)'!$U106,[1]!MASTER_YES_NO_DESC[#Data],0),0))","v":""},{"$f":"IF('Communication Facility (Desc)'!V106=\"\",\"\",INDEX([1]YES_NO!$A$2:$A$100,MATCH('Communication Facility (Desc)'!$V106,[1]!MASTER_YES_NO_DESC[#Data],0),0))","v":""}]
[{"$f":"IF('Communication Facility (Desc)'!A107=\"\",\"\",'Communication Facility (Desc)'!A107)","v":""},{"$f":"IF('Communication Facility (Desc)'!B107=\"\",\"\",'Communication Facility (Desc)'!B107)","v":""},{"$f":"IF('Communication Facility (Desc)'!C107=\"\",\"\",'Communication Facility (Desc)'!C107)","v":""},{"$f":"IF('Communication Facility (Desc)'!D107=\"\",\"\",INDEX([1]FACILITY_TYPE!$A$2:$A$100,MATCH('Communication Facility (Desc)'!$D107,[1]!MASTER_FACILITY_TYPE_DESC[#Data],0),0))","v":""},{"$f":"IF('Communication Facility (Desc)'!E107=\"\",\"\",INDEX([1]OWNER!$A$2:$A$100,MATCH('Communication Facility (Desc)'!$E107,[1]!MASTER_OWNER_DESC[#Data],0),0))","v":""},{"$f":"IF('Communication Facility (Desc)'!F107=\"\",\"\",IF('Communication Facility (Desc)'!F107=\"\",\"\",INDEX([1]COUNTY!$A$2:$A$80,MATCH('Communication Facility (Desc)'!F107,[1]!MASTER_COUNTY_NAME[#Data],0),0)))","v":""},{"$f":"IF('Communication Facility (Desc)'!G107=\"\",\"\",'Communication Facility (Desc)'!G107)","v":""},{"$f":"IF('Communication Facility (Desc)'!H107=\"\",\"\",'Communication Facility (Desc)'!H107)","v":""},{"$f":"IF('Communication Facility (Desc)'!I107=\"\",\"\",'Communication Facility (Desc)'!I107)","v":""},{"$f":"IF('Communication Facility (Desc)'!J107=\"\",\"\",INDEX([1]CABINET_TYPE!$A$2:$A$100,MATCH('Communication Facility (Desc)'!$J107,[1]!MASTER_CABINET_TYPE_DESC[#Data],0),0))","v":""},{"$f":"IF('Communication Facility (Desc)'!K107=\"\",\"\",INDEX([1]CABINET_MOUNT_TYPE!$A$2:$A$100,MATCH('Communication Facility (Desc)'!K107,[1]!MASTER_CABINET_MOUNT_TYPE_DESC[#Data],0),0))","v":""},{"$f":"IF('Communication Facility (Desc)'!L107=\"\",\"\",INDEX([1]YES_NO!$A$2:$A$100,MATCH('Communication Facility (Desc)'!L107,[1]!MASTER_YES_NO_DESC[#Data],0),0))","v":""},{"$f":"IF('Communication Facility (Desc)'!M107=\"\",\"\",INDEX([1]BUILDING_TYPE!$A$2:$A$100,MATCH('Communication Facility (Desc)'!$M107,[1]!MASTER_BUILDING_TYPE_DESC[#Data],0),0))","v":""},{"$f":"IF('Communication Facility (Desc)'!N107=\"\",\"\",'Communication Facility (Desc)'!N107)","v":""},{"$f":"IF('Communication Facility (Desc)'!O107=\"\",\"\",INDEX([1]BUILDING_MTL!$A$2:$A$100,MATCH('Communication Facility (Desc)'!$O107,[1]!MASTER_BUILDING_MTL_DESC[#Data],0),0))","v":""},{"$f":"IF('Communication Facility (Desc)'!P107=\"\",\"\",INDEX([1]KEY_TYPE!$A$2:$A$100,MATCH('Communication Facility (Desc)'!$P107,[1]!MASTER_KEY_TYPE_DESC[#Data],0),0))","v":""},{"$f":"IF('Communication Facility (Desc)'!Q107=\"\",\"\",'Communication Facility (Desc)'!Q107)","v":""},{"$f":"IF('Communication Facility (Desc)'!R107=\"\",\"\",INDEX([1]FILTER_TYPE!$A$2:$A$100,MATCH('Communication Facility (Desc)'!$R107,[1]!MASTER_FILTER_TYPE_DESC[#Data],0),0))","v":""},{"$f":"IF('Communication Facility (Desc)'!S107=\"\",\"\",INDEX([1]FILTER_SIZE!$A$2:$A$100,MATCH('Communication Facility (Desc)'!$S107,[1]!MASTER_FILTER_SIZE_DESC[#Data],0),0))","v":""},{"$f":"IF('Communication Facility (Desc)'!T107=\"\",\"\",'Communication Facility (Desc)'!T107)","v":""},{"$f":"IF('Communication Facility (Desc)'!U107=\"\",\"\",INDEX([1]YES_NO!$A$2:$A$100,MATCH('Communication Facility (Desc)'!$U107,[1]!MASTER_YES_NO_DESC[#Data],0),0))","v":""},{"$f":"IF('Communication Facility (Desc)'!V107=\"\",\"\",INDEX([1]YES_NO!$A$2:$A$100,MATCH('Communication Facility (Desc)'!$V107,[1]!MASTER_YES_NO_DESC[#Data],0),0))","v":""}]
[{"$f":"IF('Communication Facility (Desc)'!A108=\"\",\"\",'Communication Facility (Desc)'!A108)","v":""},{"$f":"IF('Communication Facility (Desc)'!B108=\"\",\"\",'Communication Facility (Desc)'!B108)","v":""},{"$f":"IF('Communication Facility (Desc)'!C108=\"\",\"\",'Communication Facility (Desc)'!C108)","v":""},{"$f":"IF('Communication Facility (Desc)'!D108=\"\",\"\",INDEX([1]FACILITY_TYPE!$A$2:$A$100,MATCH('Communication Facility (Desc)'!$D108,[1]!MASTER_FACILITY_TYPE_DESC[#Data],0),0))","v":""},{"$f":"IF('Communication Facility (Desc)'!E108=\"\",\"\",INDEX([1]OWNER!$A$2:$A$100,MATCH('Communication Facility (Desc)'!$E108,[1]!MASTER_OWNER_DESC[#Data],0),0))","v":""},{"$f":"IF('Communication Facility (Desc)'!F108=\"\",\"\",IF('Communication Facility (Desc)'!F108=\"\",\"\",INDEX([1]COUNTY!$A$2:$A$80,MATCH('Communication Facility (Desc)'!F108,[1]!MASTER_COUNTY_NAME[#Data],0),0)))","v":""},{"$f":"IF('Communication Facility (Desc)'!G108=\"\",\"\",'Communication Facility (Desc)'!G108)","v":""},{"$f":"IF('Communication Facility (Desc)'!H108=\"\",\"\",'Communication Facility (Desc)'!H108)","v":""},{"$f":"IF('Communication Facility (Desc)'!I108=\"\",\"\",'Communication Facility (Desc)'!I108)","v":""},{"$f":"IF('Communication Facility (Desc)'!J108=\"\",\"\",INDEX([1]CABINET_TYPE!$A$2:$A$100,MATCH('Communication Facility (Desc)'!$J108,[1]!MASTER_CABINET_TYPE_DESC[#Data],0),0))","v":""},{"$f":"IF('Communication Facility (Desc)'!K108=\"\",\"\",INDEX([1]CABINET_MOUNT_TYPE!$A$2:$A$100,MATCH('Communication Facility (Desc)'!K108,[1]!MASTER_CABINET_MOUNT_TYPE_DESC[#Data],0),0))","v":""},{"$f":"IF('Communication Facility (Desc)'!L108=\"\",\"\",INDEX([1]YES_NO!$A$2:$A$100,MATCH('Communication Facility (Desc)'!L108,[1]!MASTER_YES_NO_DESC[#Data],0),0))","v":""},{"$f":"IF('Communication Facility (Desc)'!M108=\"\",\"\",INDEX([1]BUILDING_TYPE!$A$2:$A$100,MATCH('Communication Facility (Desc)'!$M108,[1]!MASTER_BUILDING_TYPE_DESC[#Data],0),0))","v":""},{"$f":"IF('Communication Facility (Desc)'!N108=\"\",\"\",'Communication Facility (Desc)'!N108)","v":""},{"$f":"IF('Communication Facility (Desc)'!O108=\"\",\"\",INDEX([1]BUILDING_MTL!$A$2:$A$100,MATCH('Communication Facility (Desc)'!$O108,[1]!MASTER_BUILDING_MTL_DESC[#Data],0),0))","v":""},{"$f":"IF('Communication Facility (Desc)'!P108=\"\",\"\",INDEX([1]KEY_TYPE!$A$2:$A$100,MATCH('Communication Facility (Desc)'!$P108,[1]!MASTER_KEY_TYPE_DESC[#Data],0),0))","v":""},{"$f":"IF('Communication Facility (Desc)'!Q108=\"\",\"\",'Communication Facility (Desc)'!Q108)","v":""},{"$f":"IF('Communication Facility (Desc)'!R108=\"\",\"\",INDEX([1]FILTER_TYPE!$A$2:$A$100,MATCH('Communication Facility (Desc)'!$R108,[1]!MASTER_FILTER_TYPE_DESC[#Data],0),0))","v":""},{"$f":"IF('Communication Facility (Desc)'!S108=\"\",\"\",INDEX([1]FILTER_SIZE!$A$2:$A$100,MATCH('Communication Facility (Desc)'!$S108,[1]!MASTER_FILTER_SIZE_DESC[#Data],0),0))","v":""},{"$f":"IF('Communication Facility (Desc)'!T108=\"\",\"\",'Communication Facility (Desc)'!T108)","v":""},{"$f":"IF('Communication Facility (Desc)'!U108=\"\",\"\",INDEX([1]YES_NO!$A$2:$A$100,MATCH('Communication Facility (Desc)'!$U108,[1]!MASTER_YES_NO_DESC[#Data],0),0))","v":""},{"$f":"IF('Communication Facility (Desc)'!V108=\"\",\"\",INDEX([1]YES_NO!$A$2:$A$100,MATCH('Communication Facility (Desc)'!$V108,[1]!MASTER_YES_NO_DESC[#Data],0),0))","v":""}]
[{"$f":"IF('Communication Facility (Desc)'!A109=\"\",\"\",'Communication Facility (Desc)'!A109)","v":""},{"$f":"IF('Communication Facility (Desc)'!B109=\"\",\"\",'Communication Facility (Desc)'!B109)","v":""},{"$f":"IF('Communication Facility (Desc)'!C109=\"\",\"\",'Communication Facility (Desc)'!C109)","v":""},{"$f":"IF('Communication Facility (Desc)'!D109=\"\",\"\",INDEX([1]FACILITY_TYPE!$A$2:$A$100,MATCH('Communication Facility (Desc)'!$D109,[1]!MASTER_FACILITY_TYPE_DESC[#Data],0),0))","v":""},{"$f":"IF('Communication Facility (Desc)'!E109=\"\",\"\",INDEX([1]OWNER!$A$2:$A$100,MATCH('Communication Facility (Desc)'!$E109,[1]!MASTER_OWNER_DESC[#Data],0),0))","v":""},{"$f":"IF('Communication Facility (Desc)'!F109=\"\",\"\",IF('Communication Facility (Desc)'!F109=\"\",\"\",INDEX([1]COUNTY!$A$2:$A$80,MATCH('Communication Facility (Desc)'!F109,[1]!MASTER_COUNTY_NAME[#Data],0),0)))","v":""},{"$f":"IF('Communication Facility (Desc)'!G109=\"\",\"\",'Communication Facility (Desc)'!G109)","v":""},{"$f":"IF('Communication Facility (Desc)'!H109=\"\",\"\",'Communication Facility (Desc)'!H109)","v":""},{"$f":"IF('Communication Facility (Desc)'!I109=\"\",\"\",'Communication Facility (Desc)'!I109)","v":""},{"$f":"IF('Communication Facility (Desc)'!J109=\"\",\"\",INDEX([1]CABINET_TYPE!$A$2:$A$100,MATCH('Communication Facility (Desc)'!$J109,[1]!MASTER_CABINET_TYPE_DESC[#Data],0),0))","v":""},{"$f":"IF('Communication Facility (Desc)'!K109=\"\",\"\",INDEX([1]CABINET_MOUNT_TYPE!$A$2:$A$100,MATCH('Communication Facility (Desc)'!K109,[1]!MASTER_CABINET_MOUNT_TYPE_DESC[#Data],0),0))","v":""},{"$f":"IF('Communication Facility (Desc)'!L109=\"\",\"\",INDEX([1]YES_NO!$A$2:$A$100,MATCH('Communication Facility (Desc)'!L109,[1]!MASTER_YES_NO_DESC[#Data],0),0))","v":""},{"$f":"IF('Communication Facility (Desc)'!M109=\"\",\"\",INDEX([1]BUILDING_TYPE!$A$2:$A$100,MATCH('Communication Facility (Desc)'!$M109,[1]!MASTER_BUILDING_TYPE_DESC[#Data],0),0))","v":""},{"$f":"IF('Communication Facility (Desc)'!N109=\"\",\"\",'Communication Facility (Desc)'!N109)","v":""},{"$f":"IF('Communication Facility (Desc)'!O109=\"\",\"\",INDEX([1]BUILDING_MTL!$A$2:$A$100,MATCH('Communication Facility (Desc)'!$O109,[1]!MASTER_BUILDING_MTL_DESC[#Data],0),0))","v":""},{"$f":"IF('Communication Facility (Desc)'!P109=\"\",\"\",INDEX([1]KEY_TYPE!$A$2:$A$100,MATCH('Communication Facility (Desc)'!$P109,[1]!MASTER_KEY_TYPE_DESC[#Data],0),0))","v":""},{"$f":"IF('Communication Facility (Desc)'!Q109=\"\",\"\",'Communication Facility (Desc)'!Q109)","v":""},{"$f":"IF('Communication Facility (Desc)'!R109=\"\",\"\",INDEX([1]FILTER_TYPE!$A$2:$A$100,MATCH('Communication Facility (Desc)'!$R109,[1]!MASTER_FILTER_TYPE_DESC[#Data],0),0))","v":""},{"$f":"IF('Communication Facility (Desc)'!S109=\"\",\"\",INDEX([1]FILTER_SIZE!$A$2:$A$100,MATCH('Communication Facility (Desc)'!$S109,[1]!MASTER_FILTER_SIZE_DESC[#Data],0),0))","v":""},{"$f":"IF('Communication Facility (Desc)'!T109=\"\",\"\",'Communication Facility (Desc)'!T109)","v":""},{"$f":"IF('Communication Facility (Desc)'!U109=\"\",\"\",INDEX([1]YES_NO!$A$2:$A$100,MATCH('Communication Facility (Desc)'!$U109,[1]!MASTER_YES_NO_DESC[#Data],0),0))","v":""},{"$f":"IF('Communication Facility (Desc)'!V109=\"\",\"\",INDEX([1]YES_NO!$A$2:$A$100,MATCH('Communication Facility (Desc)'!$V109,[1]!MASTER_YES_NO_DESC[#Data],0),0))","v":""}]
[{"$f":"IF('Communication Facility (Desc)'!A110=\"\",\"\",'Communication Facility (Desc)'!A110)","v":""},{"$f":"IF('Communication Facility (Desc)'!B110=\"\",\"\",'Communication Facility (Desc)'!B110)","v":""},{"$f":"IF('Communication Facility (Desc)'!C110=\"\",\"\",'Communication Facility (Desc)'!C110)","v":""},{"$f":"IF('Communication Facility (Desc)'!D110=\"\",\"\",INDEX([1]FACILITY_TYPE!$A$2:$A$100,MATCH('Communication Facility (Desc)'!$D110,[1]!MASTER_FACILITY_TYPE_DESC[#Data],0),0))","v":""},{"$f":"IF('Communication Facility (Desc)'!E110=\"\",\"\",INDEX([1]OWNER!$A$2:$A$100,MATCH('Communication Facility (Desc)'!$E110,[1]!MASTER_OWNER_DESC[#Data],0),0))","v":""},{"$f":"IF('Communication Facility (Desc)'!F110=\"\",\"\",IF('Communication Facility (Desc)'!F110=\"\",\"\",INDEX([1]COUNTY!$A$2:$A$80,MATCH('Communication Facility (Desc)'!F110,[1]!MASTER_COUNTY_NAME[#Data],0),0)))","v":""},{"$f":"IF('Communication Facility (Desc)'!G110=\"\",\"\",'Communication Facility (Desc)'!G110)","v":""},{"$f":"IF('Communication Facility (Desc)'!H110=\"\",\"\",'Communication Facility (Desc)'!H110)","v":""},{"$f":"IF('Communication Facility (Desc)'!I110=\"\",\"\",'Communication Facility (Desc)'!I110)","v":""},{"$f":"IF('Communication Facility (Desc)'!J110=\"\",\"\",INDEX([1]CABINET_TYPE!$A$2:$A$100,MATCH('Communication Facility (Desc)'!$J110,[1]!MASTER_CABINET_TYPE_DESC[#Data],0),0))","v":""},{"$f":"IF('Communication Facility (Desc)'!K110=\"\",\"\",INDEX([1]CABINET_MOUNT_TYPE!$A$2:$A$100,MATCH('Communication Facility (Desc)'!K110,[1]!MASTER_CABINET_MOUNT_TYPE_DESC[#Data],0),0))","v":""},{"$f":"IF('Communication Facility (Desc)'!L110=\"\",\"\",INDEX([1]YES_NO!$A$2:$A$100,MATCH('Communication Facility (Desc)'!L110,[1]!MASTER_YES_NO_DESC[#Data],0),0))","v":""},{"$f":"IF('Communication Facility (Desc)'!M110=\"\",\"\",INDEX([1]BUILDING_TYPE!$A$2:$A$100,MATCH('Communication Facility (Desc)'!$M110,[1]!MASTER_BUILDING_TYPE_DESC[#Data],0),0))","v":""},{"$f":"IF('Communication Facility (Desc)'!N110=\"\",\"\",'Communication Facility (Desc)'!N110)","v":""},{"$f":"IF('Communication Facility (Desc)'!O110=\"\",\"\",INDEX([1]BUILDING_MTL!$A$2:$A$100,MATCH('Communication Facility (Desc)'!$O110,[1]!MASTER_BUILDING_MTL_DESC[#Data],0),0))","v":""},{"$f":"IF('Communication Facility (Desc)'!P110=\"\",\"\",INDEX([1]KEY_TYPE!$A$2:$A$100,MATCH('Communication Facility (Desc)'!$P110,[1]!MASTER_KEY_TYPE_DESC[#Data],0),0))","v":""},{"$f":"IF('Communication Facility (Desc)'!Q110=\"\",\"\",'Communication Facility (Desc)'!Q110)","v":""},{"$f":"IF('Communication Facility (Desc)'!R110=\"\",\"\",INDEX([1]FILTER_TYPE!$A$2:$A$100,MATCH('Communication Facility (Desc)'!$R110,[1]!MASTER_FILTER_TYPE_DESC[#Data],0),0))","v":""},{"$f":"IF('Communication Facility (Desc)'!S110=\"\",\"\",INDEX([1]FILTER_SIZE!$A$2:$A$100,MATCH('Communication Facility (Desc)'!$S110,[1]!MASTER_FILTER_SIZE_DESC[#Data],0),0))","v":""},{"$f":"IF('Communication Facility (Desc)'!T110=\"\",\"\",'Communication Facility (Desc)'!T110)","v":""},{"$f":"IF('Communication Facility (Desc)'!U110=\"\",\"\",INDEX([1]YES_NO!$A$2:$A$100,MATCH('Communication Facility (Desc)'!$U110,[1]!MASTER_YES_NO_DESC[#Data],0),0))","v":""},{"$f":"IF('Communication Facility (Desc)'!V110=\"\",\"\",INDEX([1]YES_NO!$A$2:$A$100,MATCH('Communication Facility (Desc)'!$V110,[1]!MASTER_YES_NO_DESC[#Data],0),0))","v":""}]
[{"$f":"IF('Communication Facility (Desc)'!A111=\"\",\"\",'Communication Facility (Desc)'!A111)","v":""},{"$f":"IF('Communication Facility (Desc)'!B111=\"\",\"\",'Communication Facility (Desc)'!B111)","v":""},{"$f":"IF('Communication Facility (Desc)'!C111=\"\",\"\",'Communication Facility (Desc)'!C111)","v":""},{"$f":"IF('Communication Facility (Desc)'!D111=\"\",\"\",INDEX([1]FACILITY_TYPE!$A$2:$A$100,MATCH('Communication Facility (Desc)'!$D111,[1]!MASTER_FACILITY_TYPE_DESC[#Data],0),0))","v":""},{"$f":"IF('Communication Facility (Desc)'!E111=\"\",\"\",INDEX([1]OWNER!$A$2:$A$100,MATCH('Communication Facility (Desc)'!$E111,[1]!MASTER_OWNER_DESC[#Data],0),0))","v":""},{"$f":"IF('Communication Facility (Desc)'!F111=\"\",\"\",IF('Communication Facility (Desc)'!F111=\"\",\"\",INDEX([1]COUNTY!$A$2:$A$80,MATCH('Communication Facility (Desc)'!F111,[1]!MASTER_COUNTY_NAME[#Data],0),0)))","v":""},{"$f":"IF('Communication Facility (Desc)'!G111=\"\",\"\",'Communication Facility (Desc)'!G111)","v":""},{"$f":"IF('Communication Facility (Desc)'!H111=\"\",\"\",'Communication Facility (Desc)'!H111)","v":""},{"$f":"IF('Communication Facility (Desc)'!I111=\"\",\"\",'Communication Facility (Desc)'!I111)","v":""},{"$f":"IF('Communication Facility (Desc)'!J111=\"\",\"\",INDEX([1]CABINET_TYPE!$A$2:$A$100,MATCH('Communication Facility (Desc)'!$J111,[1]!MASTER_CABINET_TYPE_DESC[#Data],0),0))","v":""},{"$f":"IF('Communication Facility (Desc)'!K111=\"\",\"\",INDEX([1]CABINET_MOUNT_TYPE!$A$2:$A$100,MATCH('Communication Facility (Desc)'!K111,[1]!MASTER_CABINET_MOUNT_TYPE_DESC[#Data],0),0))","v":""},{"$f":"IF('Communication Facility (Desc)'!L111=\"\",\"\",INDEX([1]YES_NO!$A$2:$A$100,MATCH('Communication Facility (Desc)'!L111,[1]!MASTER_YES_NO_DESC[#Data],0),0))","v":""},{"$f":"IF('Communication Facility (Desc)'!M111=\"\",\"\",INDEX([1]BUILDING_TYPE!$A$2:$A$100,MATCH('Communication Facility (Desc)'!$M111,[1]!MASTER_BUILDING_TYPE_DESC[#Data],0),0))","v":""},{"$f":"IF('Communication Facility (Desc)'!N111=\"\",\"\",'Communication Facility (Desc)'!N111)","v":""},{"$f":"IF('Communication Facility (Desc)'!O111=\"\",\"\",INDEX([1]BUILDING_MTL!$A$2:$A$100,MATCH('Communication Facility (Desc)'!$O111,[1]!MASTER_BUILDING_MTL_DESC[#Data],0),0))","v":""},{"$f":"IF('Communication Facility (Desc)'!P111=\"\",\"\",INDEX([1]KEY_TYPE!$A$2:$A$100,MATCH('Communication Facility (Desc)'!$P111,[1]!MASTER_KEY_TYPE_DESC[#Data],0),0))","v":""},{"$f":"IF('Communication Facility (Desc)'!Q111=\"\",\"\",'Communication Facility (Desc)'!Q111)","v":""},{"$f":"IF('Communication Facility (Desc)'!R111=\"\",\"\",INDEX([1]FILTER_TYPE!$A$2:$A$100,MATCH('Communication Facility (Desc)'!$R111,[1]!MASTER_FILTER_TYPE_DESC[#Data],0),0))","v":""},{"$f":"IF('Communication Facility (Desc)'!S111=\"\",\"\",INDEX([1]FILTER_SIZE!$A$2:$A$100,MATCH('Communication Facility (Desc)'!$S111,[1]!MASTER_FILTER_SIZE_DESC[#Data],0),0))","v":""},{"$f":"IF('Communication Facility (Desc)'!T111=\"\",\"\",'Communication Facility (Desc)'!T111)","v":""},{"$f":"IF('Communication Facility (Desc)'!U111=\"\",\"\",INDEX([1]YES_NO!$A$2:$A$100,MATCH('Communication Facility (Desc)'!$U111,[1]!MASTER_YES_NO_DESC[#Data],0),0))","v":""},{"$f":"IF('Communication Facility (Desc)'!V111=\"\",\"\",INDEX([1]YES_NO!$A$2:$A$100,MATCH('Communication Facility (Desc)'!$V111,[1]!MASTER_YES_NO_DESC[#Data],0),0))","v":""}]
[{"$f":"IF('Communication Facility (Desc)'!A112=\"\",\"\",'Communication Facility (Desc)'!A112)","v":""},{"$f":"IF('Communication Facility (Desc)'!B112=\"\",\"\",'Communication Facility (Desc)'!B112)","v":""},{"$f":"IF('Communication Facility (Desc)'!C112=\"\",\"\",'Communication Facility (Desc)'!C112)","v":""},{"$f":"IF('Communication Facility (Desc)'!D112=\"\",\"\",INDEX([1]FACILITY_TYPE!$A$2:$A$100,MATCH('Communication Facility (Desc)'!$D112,[1]!MASTER_FACILITY_TYPE_DESC[#Data],0),0))","v":""},{"$f":"IF('Communication Facility (Desc)'!E112=\"\",\"\",INDEX([1]OWNER!$A$2:$A$100,MATCH('Communication Facility (Desc)'!$E112,[1]!MASTER_OWNER_DESC[#Data],0),0))","v":""},{"$f":"IF('Communication Facility (Desc)'!F112=\"\",\"\",IF('Communication Facility (Desc)'!F112=\"\",\"\",INDEX([1]COUNTY!$A$2:$A$80,MATCH('Communication Facility (Desc)'!F112,[1]!MASTER_COUNTY_NAME[#Data],0),0)))","v":""},{"$f":"IF('Communication Facility (Desc)'!G112=\"\",\"\",'Communication Facility (Desc)'!G112)","v":""},{"$f":"IF('Communication Facility (Desc)'!H112=\"\",\"\",'Communication Facility (Desc)'!H112)","v":""},{"$f":"IF('Communication Facility (Desc)'!I112=\"\",\"\",'Communication Facility (Desc)'!I112)","v":""},{"$f":"IF('Communication Facility (Desc)'!J112=\"\",\"\",INDEX([1]CABINET_TYPE!$A$2:$A$100,MATCH('Communication Facility (Desc)'!$J112,[1]!MASTER_CABINET_TYPE_DESC[#Data],0),0))","v":""},{"$f":"IF('Communication Facility (Desc)'!K112=\"\",\"\",INDEX([1]CABINET_MOUNT_TYPE!$A$2:$A$100,MATCH('Communication Facility (Desc)'!K112,[1]!MASTER_CABINET_MOUNT_TYPE_DESC[#Data],0),0))","v":""},{"$f":"IF('Communication Facility (Desc)'!L112=\"\",\"\",INDEX([1]YES_NO!$A$2:$A$100,MATCH('Communication Facility (Desc)'!L112,[1]!MASTER_YES_NO_DESC[#Data],0),0))","v":""},{"$f":"IF('Communication Facility (Desc)'!M112=\"\",\"\",INDEX([1]BUILDING_TYPE!$A$2:$A$100,MATCH('Communication Facility (Desc)'!$M112,[1]!MASTER_BUILDING_TYPE_DESC[#Data],0),0))","v":""},{"$f":"IF('Communication Facility (Desc)'!N112=\"\",\"\",'Communication Facility (Desc)'!N112)","v":""},{"$f":"IF('Communication Facility (Desc)'!O112=\"\",\"\",INDEX([1]BUILDING_MTL!$A$2:$A$100,MATCH('Communication Facility (Desc)'!$O112,[1]!MASTER_BUILDING_MTL_DESC[#Data],0),0))","v":""},{"$f":"IF('Communication Facility (Desc)'!P112=\"\",\"\",INDEX([1]KEY_TYPE!$A$2:$A$100,MATCH('Communication Facility (Desc)'!$P112,[1]!MASTER_KEY_TYPE_DESC[#Data],0),0))","v":""},{"$f":"IF('Communication Facility (Desc)'!Q112=\"\",\"\",'Communication Facility (Desc)'!Q112)","v":""},{"$f":"IF('Communication Facility (Desc)'!R112=\"\",\"\",INDEX([1]FILTER_TYPE!$A$2:$A$100,MATCH('Communication Facility (Desc)'!$R112,[1]!MASTER_FILTER_TYPE_DESC[#Data],0),0))","v":""},{"$f":"IF('Communication Facility (Desc)'!S112=\"\",\"\",INDEX([1]FILTER_SIZE!$A$2:$A$100,MATCH('Communication Facility (Desc)'!$S112,[1]!MASTER_FILTER_SIZE_DESC[#Data],0),0))","v":""},{"$f":"IF('Communication Facility (Desc)'!T112=\"\",\"\",'Communication Facility (Desc)'!T112)","v":""},{"$f":"IF('Communication Facility (Desc)'!U112=\"\",\"\",INDEX([1]YES_NO!$A$2:$A$100,MATCH('Communication Facility (Desc)'!$U112,[1]!MASTER_YES_NO_DESC[#Data],0),0))","v":""},{"$f":"IF('Communication Facility (Desc)'!V112=\"\",\"\",INDEX([1]YES_NO!$A$2:$A$100,MATCH('Communication Facility (Desc)'!$V112,[1]!MASTER_YES_NO_DESC[#Data],0),0))","v":""}]
[{"$f":"IF('Communication Facility (Desc)'!A113=\"\",\"\",'Communication Facility (Desc)'!A113)","v":""},{"$f":"IF('Communication Facility (Desc)'!B113=\"\",\"\",'Communication Facility (Desc)'!B113)","v":""},{"$f":"IF('Communication Facility (Desc)'!C113=\"\",\"\",'Communication Facility (Desc)'!C113)","v":""},{"$f":"IF('Communication Facility (Desc)'!D113=\"\",\"\",INDEX([1]FACILITY_TYPE!$A$2:$A$100,MATCH('Communication Facility (Desc)'!$D113,[1]!MASTER_FACILITY_TYPE_DESC[#Data],0),0))","v":""},{"$f":"IF('Communication Facility (Desc)'!E113=\"\",\"\",INDEX([1]OWNER!$A$2:$A$100,MATCH('Communication Facility (Desc)'!$E113,[1]!MASTER_OWNER_DESC[#Data],0),0))","v":""},{"$f":"IF('Communication Facility (Desc)'!F113=\"\",\"\",IF('Communication Facility (Desc)'!F113=\"\",\"\",INDEX([1]COUNTY!$A$2:$A$80,MATCH('Communication Facility (Desc)'!F113,[1]!MASTER_COUNTY_NAME[#Data],0),0)))","v":""},{"$f":"IF('Communication Facility (Desc)'!G113=\"\",\"\",'Communication Facility (Desc)'!G113)","v":""},{"$f":"IF('Communication Facility (Desc)'!H113=\"\",\"\",'Communication Facility (Desc)'!H113)","v":""},{"$f":"IF('Communication Facility (Desc)'!I113=\"\",\"\",'Communication Facility (Desc)'!I113)","v":""},{"$f":"IF('Communication Facility (Desc)'!J113=\"\",\"\",INDEX([1]CABINET_TYPE!$A$2:$A$100,MATCH('Communication Facility (Desc)'!$J113,[1]!MASTER_CABINET_TYPE_DESC[#Data],0),0))","v":""},{"$f":"IF('Communication Facility (Desc)'!K113=\"\",\"\",INDEX([1]CABINET_MOUNT_TYPE!$A$2:$A$100,MATCH('Communication Facility (Desc)'!K113,[1]!MASTER_CABINET_MOUNT_TYPE_DESC[#Data],0),0))","v":""},{"$f":"IF('Communication Facility (Desc)'!L113=\"\",\"\",INDEX([1]YES_NO!$A$2:$A$100,MATCH('Communication Facility (Desc)'!L113,[1]!MASTER_YES_NO_DESC[#Data],0),0))","v":""},{"$f":"IF('Communication Facility (Desc)'!M113=\"\",\"\",INDEX([1]BUILDING_TYPE!$A$2:$A$100,MATCH('Communication Facility (Desc)'!$M113,[1]!MASTER_BUILDING_TYPE_DESC[#Data],0),0))","v":""},{"$f":"IF('Communication Facility (Desc)'!N113=\"\",\"\",'Communication Facility (Desc)'!N113)","v":""},{"$f":"IF('Communication Facility (Desc)'!O113=\"\",\"\",INDEX([1]BUILDING_MTL!$A$2:$A$100,MATCH('Communication Facility (Desc)'!$O113,[1]!MASTER_BUILDING_MTL_DESC[#Data],0),0))","v":""},{"$f":"IF('Communication Facility (Desc)'!P113=\"\",\"\",INDEX([1]KEY_TYPE!$A$2:$A$100,MATCH('Communication Facility (Desc)'!$P113,[1]!MASTER_KEY_TYPE_DESC[#Data],0),0))","v":""},{"$f":"IF('Communication Facility (Desc)'!Q113=\"\",\"\",'Communication Facility (Desc)'!Q113)","v":""},{"$f":"IF('Communication Facility (Desc)'!R113=\"\",\"\",INDEX([1]FILTER_TYPE!$A$2:$A$100,MATCH('Communication Facility (Desc)'!$R113,[1]!MASTER_FILTER_TYPE_DESC[#Data],0),0))","v":""},{"$f":"IF('Communication Facility (Desc)'!S113=\"\",\"\",INDEX([1]FILTER_SIZE!$A$2:$A$100,MATCH('Communication Facility (Desc)'!$S113,[1]!MASTER_FILTER_SIZE_DESC[#Data],0),0))","v":""},{"$f":"IF('Communication Facility (Desc)'!T113=\"\",\"\",'Communication Facility (Desc)'!T113)","v":""},{"$f":"IF('Communication Facility (Desc)'!U113=\"\",\"\",INDEX([1]YES_NO!$A$2:$A$100,MATCH('Communication Facility (Desc)'!$U113,[1]!MASTER_YES_NO_DESC[#Data],0),0))","v":""},{"$f":"IF('Communication Facility (Desc)'!V113=\"\",\"\",INDEX([1]YES_NO!$A$2:$A$100,MATCH('Communication Facility (Desc)'!$V113,[1]!MASTER_YES_NO_DESC[#Data],0),0))","v":""}]
[{"$f":"IF('Communication Facility (Desc)'!A114=\"\",\"\",'Communication Facility (Desc)'!A114)","v":""},{"$f":"IF('Communication Facility (Desc)'!B114=\"\",\"\",'Communication Facility (Desc)'!B114)","v":""},{"$f":"IF('Communication Facility (Desc)'!C114=\"\",\"\",'Communication Facility (Desc)'!C114)","v":""},{"$f":"IF('Communication Facility (Desc)'!D114=\"\",\"\",INDEX([1]FACILITY_TYPE!$A$2:$A$100,MATCH('Communication Facility (Desc)'!$D114,[1]!MASTER_FACILITY_TYPE_DESC[#Data],0),0))","v":""},{"$f":"IF('Communication Facility (Desc)'!E114=\"\",\"\",INDEX([1]OWNER!$A$2:$A$100,MATCH('Communication Facility (Desc)'!$E114,[1]!MASTER_OWNER_DESC[#Data],0),0))","v":""},{"$f":"IF('Communication Facility (Desc)'!F114=\"\",\"\",IF('Communication Facility (Desc)'!F114=\"\",\"\",INDEX([1]COUNTY!$A$2:$A$80,MATCH('Communication Facility (Desc)'!F114,[1]!MASTER_COUNTY_NAME[#Data],0),0)))","v":""},{"$f":"IF('Communication Facility (Desc)'!G114=\"\",\"\",'Communication Facility (Desc)'!G114)","v":""},{"$f":"IF('Communication Facility (Desc)'!H114=\"\",\"\",'Communication Facility (Desc)'!H114)","v":""},{"$f":"IF('Communication Facility (Desc)'!I114=\"\",\"\",'Communication Facility (Desc)'!I114)","v":""},{"$f":"IF('Communication Facility (Desc)'!J114=\"\",\"\",INDEX([1]CABINET_TYPE!$A$2:$A$100,MATCH('Communication Facility (Desc)'!$J114,[1]!MASTER_CABINET_TYPE_DESC[#Data],0),0))","v":""},{"$f":"IF('Communication Facility (Desc)'!K114=\"\",\"\",INDEX([1]CABINET_MOUNT_TYPE!$A$2:$A$100,MATCH('Communication Facility (Desc)'!K114,[1]!MASTER_CABINET_MOUNT_TYPE_DESC[#Data],0),0))","v":""},{"$f":"IF('Communication Facility (Desc)'!L114=\"\",\"\",INDEX([1]YES_NO!$A$2:$A$100,MATCH('Communication Facility (Desc)'!L114,[1]!MASTER_YES_NO_DESC[#Data],0),0))","v":""},{"$f":"IF('Communication Facility (Desc)'!M114=\"\",\"\",INDEX([1]BUILDING_TYPE!$A$2:$A$100,MATCH('Communication Facility (Desc)'!$M114,[1]!MASTER_BUILDING_TYPE_DESC[#Data],0),0))","v":""},{"$f":"IF('Communication Facility (Desc)'!N114=\"\",\"\",'Communication Facility (Desc)'!N114)","v":""},{"$f":"IF('Communication Facility (Desc)'!O114=\"\",\"\",INDEX([1]BUILDING_MTL!$A$2:$A$100,MATCH('Communication Facility (Desc)'!$O114,[1]!MASTER_BUILDING_MTL_DESC[#Data],0),0))","v":""},{"$f":"IF('Communication Facility (Desc)'!P114=\"\",\"\",INDEX([1]KEY_TYPE!$A$2:$A$100,MATCH('Communication Facility (Desc)'!$P114,[1]!MASTER_KEY_TYPE_DESC[#Data],0),0))","v":""},{"$f":"IF('Communication Facility (Desc)'!Q114=\"\",\"\",'Communication Facility (Desc)'!Q114)","v":""},{"$f":"IF('Communication Facility (Desc)'!R114=\"\",\"\",INDEX([1]FILTER_TYPE!$A$2:$A$100,MATCH('Communication Facility (Desc)'!$R114,[1]!MASTER_FILTER_TYPE_DESC[#Data],0),0))","v":""},{"$f":"IF('Communication Facility (Desc)'!S114=\"\",\"\",INDEX([1]FILTER_SIZE!$A$2:$A$100,MATCH('Communication Facility (Desc)'!$S114,[1]!MASTER_FILTER_SIZE_DESC[#Data],0),0))","v":""},{"$f":"IF('Communication Facility (Desc)'!T114=\"\",\"\",'Communication Facility (Desc)'!T114)","v":""},{"$f":"IF('Communication Facility (Desc)'!U114=\"\",\"\",INDEX([1]YES_NO!$A$2:$A$100,MATCH('Communication Facility (Desc)'!$U114,[1]!MASTER_YES_NO_DESC[#Data],0),0))","v":""},{"$f":"IF('Communication Facility (Desc)'!V114=\"\",\"\",INDEX([1]YES_NO!$A$2:$A$100,MATCH('Communication Facility (Desc)'!$V114,[1]!MASTER_YES_NO_DESC[#Data],0),0))","v":""}]
[{"$f":"IF('Communication Facility (Desc)'!A115=\"\",\"\",'Communication Facility (Desc)'!A115)","v":""},{"$f":"IF('Communication Facility (Desc)'!B115=\"\",\"\",'Communication Facility (Desc)'!B115)","v":""},{"$f":"IF('Communication Facility (Desc)'!C115=\"\",\"\",'Communication Facility (Desc)'!C115)","v":""},{"$f":"IF('Communication Facility (Desc)'!D115=\"\",\"\",INDEX([1]FACILITY_TYPE!$A$2:$A$100,MATCH('Communication Facility (Desc)'!$D115,[1]!MASTER_FACILITY_TYPE_DESC[#Data],0),0))","v":""},{"$f":"IF('Communication Facility (Desc)'!E115=\"\",\"\",INDEX([1]OWNER!$A$2:$A$100,MATCH('Communication Facility (Desc)'!$E115,[1]!MASTER_OWNER_DESC[#Data],0),0))","v":""},{"$f":"IF('Communication Facility (Desc)'!F115=\"\",\"\",IF('Communication Facility (Desc)'!F115=\"\",\"\",INDEX([1]COUNTY!$A$2:$A$80,MATCH('Communication Facility (Desc)'!F115,[1]!MASTER_COUNTY_NAME[#Data],0),0)))","v":""},{"$f":"IF('Communication Facility (Desc)'!G115=\"\",\"\",'Communication Facility (Desc)'!G115)","v":""},{"$f":"IF('Communication Facility (Desc)'!H115=\"\",\"\",'Communication Facility (Desc)'!H115)","v":""},{"$f":"IF('Communication Facility (Desc)'!I115=\"\",\"\",'Communication Facility (Desc)'!I115)","v":""},{"$f":"IF('Communication Facility (Desc)'!J115=\"\",\"\",INDEX([1]CABINET_TYPE!$A$2:$A$100,MATCH('Communication Facility (Desc)'!$J115,[1]!MASTER_CABINET_TYPE_DESC[#Data],0),0))","v":""},{"$f":"IF('Communication Facility (Desc)'!K115=\"\",\"\",INDEX([1]CABINET_MOUNT_TYPE!$A$2:$A$100,MATCH('Communication Facility (Desc)'!K115,[1]!MASTER_CABINET_MOUNT_TYPE_DESC[#Data],0),0))","v":""},{"$f":"IF('Communication Facility (Desc)'!L115=\"\",\"\",INDEX([1]YES_NO!$A$2:$A$100,MATCH('Communication Facility (Desc)'!L115,[1]!MASTER_YES_NO_DESC[#Data],0),0))","v":""},{"$f":"IF('Communication Facility (Desc)'!M115=\"\",\"\",INDEX([1]BUILDING_TYPE!$A$2:$A$100,MATCH('Communication Facility (Desc)'!$M115,[1]!MASTER_BUILDING_TYPE_DESC[#Data],0),0))","v":""},{"$f":"IF('Communication Facility (Desc)'!N115=\"\",\"\",'Communication Facility (Desc)'!N115)","v":""},{"$f":"IF('Communication Facility (Desc)'!O115=\"\",\"\",INDEX([1]BUILDING_MTL!$A$2:$A$100,MATCH('Communication Facility (Desc)'!$O115,[1]!MASTER_BUILDING_MTL_DESC[#Data],0),0))","v":""},{"$f":"IF('Communication Facility (Desc)'!P115=\"\",\"\",INDEX([1]KEY_TYPE!$A$2:$A$100,MATCH('Communication Facility (Desc)'!$P115,[1]!MASTER_KEY_TYPE_DESC[#Data],0),0))","v":""},{"$f":"IF('Communication Facility (Desc)'!Q115=\"\",\"\",'Communication Facility (Desc)'!Q115)","v":""},{"$f":"IF('Communication Facility (Desc)'!R115=\"\",\"\",INDEX([1]FILTER_TYPE!$A$2:$A$100,MATCH('Communication Facility (Desc)'!$R115,[1]!MASTER_FILTER_TYPE_DESC[#Data],0),0))","v":""},{"$f":"IF('Communication Facility (Desc)'!S115=\"\",\"\",INDEX([1]FILTER_SIZE!$A$2:$A$100,MATCH('Communication Facility (Desc)'!$S115,[1]!MASTER_FILTER_SIZE_DESC[#Data],0),0))","v":""},{"$f":"IF('Communication Facility (Desc)'!T115=\"\",\"\",'Communication Facility (Desc)'!T115)","v":""},{"$f":"IF('Communication Facility (Desc)'!U115=\"\",\"\",INDEX([1]YES_NO!$A$2:$A$100,MATCH('Communication Facility (Desc)'!$U115,[1]!MASTER_YES_NO_DESC[#Data],0),0))","v":""},{"$f":"IF('Communication Facility (Desc)'!V115=\"\",\"\",INDEX([1]YES_NO!$A$2:$A$100,MATCH('Communication Facility (Desc)'!$V115,[1]!MASTER_YES_NO_DESC[#Data],0),0))","v":""}]
[{"$f":"IF('Communication Facility (Desc)'!A116=\"\",\"\",'Communication Facility (Desc)'!A116)","v":""},{"$f":"IF('Communication Facility (Desc)'!B116=\"\",\"\",'Communication Facility (Desc)'!B116)","v":""},{"$f":"IF('Communication Facility (Desc)'!C116=\"\",\"\",'Communication Facility (Desc)'!C116)","v":""},{"$f":"IF('Communication Facility (Desc)'!D116=\"\",\"\",INDEX([1]FACILITY_TYPE!$A$2:$A$100,MATCH('Communication Facility (Desc)'!$D116,[1]!MASTER_FACILITY_TYPE_DESC[#Data],0),0))","v":""},{"$f":"IF('Communication Facility (Desc)'!E116=\"\",\"\",INDEX([1]OWNER!$A$2:$A$100,MATCH('Communication Facility (Desc)'!$E116,[1]!MASTER_OWNER_DESC[#Data],0),0))","v":""},{"$f":"IF('Communication Facility (Desc)'!F116=\"\",\"\",IF('Communication Facility (Desc)'!F116=\"\",\"\",INDEX([1]COUNTY!$A$2:$A$80,MATCH('Communication Facility (Desc)'!F116,[1]!MASTER_COUNTY_NAME[#Data],0),0)))","v":""},{"$f":"IF('Communication Facility (Desc)'!G116=\"\",\"\",'Communication Facility (Desc)'!G116)","v":""},{"$f":"IF('Communication Facility (Desc)'!H116=\"\",\"\",'Communication Facility (Desc)'!H116)","v":""},{"$f":"IF('Communication Facility (Desc)'!I116=\"\",\"\",'Communication Facility (Desc)'!I116)","v":""},{"$f":"IF('Communication Facility (Desc)'!J116=\"\",\"\",INDEX([1]CABINET_TYPE!$A$2:$A$100,MATCH('Communication Facility (Desc)'!$J116,[1]!MASTER_CABINET_TYPE_DESC[#Data],0),0))","v":""},{"$f":"IF('Communication Facility (Desc)'!K116=\"\",\"\",INDEX([1]CABINET_MOUNT_TYPE!$A$2:$A$100,MATCH('Communication Facility (Desc)'!K116,[1]!MASTER_CABINET_MOUNT_TYPE_DESC[#Data],0),0))","v":""},{"$f":"IF('Communication Facility (Desc)'!L116=\"\",\"\",INDEX([1]YES_NO!$A$2:$A$100,MATCH('Communication Facility (Desc)'!L116,[1]!MASTER_YES_NO_DESC[#Data],0),0))","v":""},{"$f":"IF('Communication Facility (Desc)'!M116=\"\",\"\",INDEX([1]BUILDING_TYPE!$A$2:$A$100,MATCH('Communication Facility (Desc)'!$M116,[1]!MASTER_BUILDING_TYPE_DESC[#Data],0),0))","v":""},{"$f":"IF('Communication Facility (Desc)'!N116=\"\",\"\",'Communication Facility (Desc)'!N116)","v":""},{"$f":"IF('Communication Facility (Desc)'!O116=\"\",\"\",INDEX([1]BUILDING_MTL!$A$2:$A$100,MATCH('Communication Facility (Desc)'!$O116,[1]!MASTER_BUILDING_MTL_DESC[#Data],0),0))","v":""},{"$f":"IF('Communication Facility (Desc)'!P116=\"\",\"\",INDEX([1]KEY_TYPE!$A$2:$A$100,MATCH('Communication Facility (Desc)'!$P116,[1]!MASTER_KEY_TYPE_DESC[#Data],0),0))","v":""},{"$f":"IF('Communication Facility (Desc)'!Q116=\"\",\"\",'Communication Facility (Desc)'!Q116)","v":""},{"$f":"IF('Communication Facility (Desc)'!R116=\"\",\"\",INDEX([1]FILTER_TYPE!$A$2:$A$100,MATCH('Communication Facility (Desc)'!$R116,[1]!MASTER_FILTER_TYPE_DESC[#Data],0),0))","v":""},{"$f":"IF('Communication Facility (Desc)'!S116=\"\",\"\",INDEX([1]FILTER_SIZE!$A$2:$A$100,MATCH('Communication Facility (Desc)'!$S116,[1]!MASTER_FILTER_SIZE_DESC[#Data],0),0))","v":""},{"$f":"IF('Communication Facility (Desc)'!T116=\"\",\"\",'Communication Facility (Desc)'!T116)","v":""},{"$f":"IF('Communication Facility (Desc)'!U116=\"\",\"\",INDEX([1]YES_NO!$A$2:$A$100,MATCH('Communication Facility (Desc)'!$U116,[1]!MASTER_YES_NO_DESC[#Data],0),0))","v":""},{"$f":"IF('Communication Facility (Desc)'!V116=\"\",\"\",INDEX([1]YES_NO!$A$2:$A$100,MATCH('Communication Facility (Desc)'!$V116,[1]!MASTER_YES_NO_DESC[#Data],0),0))","v":""}]
[{"$f":"IF('Communication Facility (Desc)'!A117=\"\",\"\",'Communication Facility (Desc)'!A117)","v":""},{"$f":"IF('Communication Facility (Desc)'!B117=\"\",\"\",'Communication Facility (Desc)'!B117)","v":""},{"$f":"IF('Communication Facility (Desc)'!C117=\"\",\"\",'Communication Facility (Desc)'!C117)","v":""},{"$f":"IF('Communication Facility (Desc)'!D117=\"\",\"\",INDEX([1]FACILITY_TYPE!$A$2:$A$100,MATCH('Communication Facility (Desc)'!$D117,[1]!MASTER_FACILITY_TYPE_DESC[#Data],0),0))","v":""},{"$f":"IF('Communication Facility (Desc)'!E117=\"\",\"\",INDEX([1]OWNER!$A$2:$A$100,MATCH('Communication Facility (Desc)'!$E117,[1]!MASTER_OWNER_DESC[#Data],0),0))","v":""},{"$f":"IF('Communication Facility (Desc)'!F117=\"\",\"\",IF('Communication Facility (Desc)'!F117=\"\",\"\",INDEX([1]COUNTY!$A$2:$A$80,MATCH('Communication Facility (Desc)'!F117,[1]!MASTER_COUNTY_NAME[#Data],0),0)))","v":""},{"$f":"IF('Communication Facility (Desc)'!G117=\"\",\"\",'Communication Facility (Desc)'!G117)","v":""},{"$f":"IF('Communication Facility (Desc)'!H117=\"\",\"\",'Communication Facility (Desc)'!H117)","v":""},{"$f":"IF('Communication Facility (Desc)'!I117=\"\",\"\",'Communication Facility (Desc)'!I117)","v":""},{"$f":"IF('Communication Facility (Desc)'!J117=\"\",\"\",INDEX([1]CABINET_TYPE!$A$2:$A$100,MATCH('Communication Facility (Desc)'!$J117,[1]!MASTER_CABINET_TYPE_DESC[#Data],0),0))","v":""},{"$f":"IF('Communication Facility (Desc)'!K117=\"\",\"\",INDEX([1]CABINET_MOUNT_TYPE!$A$2:$A$100,MATCH('Communication Facility (Desc)'!K117,[1]!MASTER_CABINET_MOUNT_TYPE_DESC[#Data],0),0))","v":""},{"$f":"IF('Communication Facility (Desc)'!L117=\"\",\"\",INDEX([1]YES_NO!$A$2:$A$100,MATCH('Communication Facility (Desc)'!L117,[1]!MASTER_YES_NO_DESC[#Data],0),0))","v":""},{"$f":"IF('Communication Facility (Desc)'!M117=\"\",\"\",INDEX([1]BUILDING_TYPE!$A$2:$A$100,MATCH('Communication Facility (Desc)'!$M117,[1]!MASTER_BUILDING_TYPE_DESC[#Data],0),0))","v":""},{"$f":"IF('Communication Facility (Desc)'!N117=\"\",\"\",'Communication Facility (Desc)'!N117)","v":""},{"$f":"IF('Communication Facility (Desc)'!O117=\"\",\"\",INDEX([1]BUILDING_MTL!$A$2:$A$100,MATCH('Communication Facility (Desc)'!$O117,[1]!MASTER_BUILDING_MTL_DESC[#Data],0),0))","v":""},{"$f":"IF('Communication Facility (Desc)'!P117=\"\",\"\",INDEX([1]KEY_TYPE!$A$2:$A$100,MATCH('Communication Facility (Desc)'!$P117,[1]!MASTER_KEY_TYPE_DESC[#Data],0),0))","v":""},{"$f":"IF('Communication Facility (Desc)'!Q117=\"\",\"\",'Communication Facility (Desc)'!Q117)","v":""},{"$f":"IF('Communication Facility (Desc)'!R117=\"\",\"\",INDEX([1]FILTER_TYPE!$A$2:$A$100,MATCH('Communication Facility (Desc)'!$R117,[1]!MASTER_FILTER_TYPE_DESC[#Data],0),0))","v":""},{"$f":"IF('Communication Facility (Desc)'!S117=\"\",\"\",INDEX([1]FILTER_SIZE!$A$2:$A$100,MATCH('Communication Facility (Desc)'!$S117,[1]!MASTER_FILTER_SIZE_DESC[#Data],0),0))","v":""},{"$f":"IF('Communication Facility (Desc)'!T117=\"\",\"\",'Communication Facility (Desc)'!T117)","v":""},{"$f":"IF('Communication Facility (Desc)'!U117=\"\",\"\",INDEX([1]YES_NO!$A$2:$A$100,MATCH('Communication Facility (Desc)'!$U117,[1]!MASTER_YES_NO_DESC[#Data],0),0))","v":""},{"$f":"IF('Communication Facility (Desc)'!V117=\"\",\"\",INDEX([1]YES_NO!$A$2:$A$100,MATCH('Communication Facility (Desc)'!$V117,[1]!MASTER_YES_NO_DESC[#Data],0),0))","v":""}]
[{"$f":"IF('Communication Facility (Desc)'!A118=\"\",\"\",'Communication Facility (Desc)'!A118)","v":""},{"$f":"IF('Communication Facility (Desc)'!B118=\"\",\"\",'Communication Facility (Desc)'!B118)","v":""},{"$f":"IF('Communication Facility (Desc)'!C118=\"\",\"\",'Communication Facility (Desc)'!C118)","v":""},{"$f":"IF('Communication Facility (Desc)'!D118=\"\",\"\",INDEX([1]FACILITY_TYPE!$A$2:$A$100,MATCH('Communication Facility (Desc)'!$D118,[1]!MASTER_FACILITY_TYPE_DESC[#Data],0),0))","v":""},{"$f":"IF('Communication Facility (Desc)'!E118=\"\",\"\",INDEX([1]OWNER!$A$2:$A$100,MATCH('Communication Facility (Desc)'!$E118,[1]!MASTER_OWNER_DESC[#Data],0),0))","v":""},{"$f":"IF('Communication Facility (Desc)'!F118=\"\",\"\",IF('Communication Facility (Desc)'!F118=\"\",\"\",INDEX([1]COUNTY!$A$2:$A$80,MATCH('Communication Facility (Desc)'!F118,[1]!MASTER_COUNTY_NAME[#Data],0),0)))","v":""},{"$f":"IF('Communication Facility (Desc)'!G118=\"\",\"\",'Communication Facility (Desc)'!G118)","v":""},{"$f":"IF('Communication Facility (Desc)'!H118=\"\",\"\",'Communication Facility (Desc)'!H118)","v":""},{"$f":"IF('Communication Facility (Desc)'!I118=\"\",\"\",'Communication Facility (Desc)'!I118)","v":""},{"$f":"IF('Communication Facility (Desc)'!J118=\"\",\"\",INDEX([1]CABINET_TYPE!$A$2:$A$100,MATCH('Communication Facility (Desc)'!$J118,[1]!MASTER_CABINET_TYPE_DESC[#Data],0),0))","v":""},{"$f":"IF('Communication Facility (Desc)'!K118=\"\",\"\",INDEX([1]CABINET_MOUNT_TYPE!$A$2:$A$100,MATCH('Communication Facility (Desc)'!K118,[1]!MASTER_CABINET_MOUNT_TYPE_DESC[#Data],0),0))","v":""},{"$f":"IF('Communication Facility (Desc)'!L118=\"\",\"\",INDEX([1]YES_NO!$A$2:$A$100,MATCH('Communication Facility (Desc)'!L118,[1]!MASTER_YES_NO_DESC[#Data],0),0))","v":""},{"$f":"IF('Communication Facility (Desc)'!M118=\"\",\"\",INDEX([1]BUILDING_TYPE!$A$2:$A$100,MATCH('Communication Facility (Desc)'!$M118,[1]!MASTER_BUILDING_TYPE_DESC[#Data],0),0))","v":""},{"$f":"IF('Communication Facility (Desc)'!N118=\"\",\"\",'Communication Facility (Desc)'!N118)","v":""},{"$f":"IF('Communication Facility (Desc)'!O118=\"\",\"\",INDEX([1]BUILDING_MTL!$A$2:$A$100,MATCH('Communication Facility (Desc)'!$O118,[1]!MASTER_BUILDING_MTL_DESC[#Data],0),0))","v":""},{"$f":"IF('Communication Facility (Desc)'!P118=\"\",\"\",INDEX([1]KEY_TYPE!$A$2:$A$100,MATCH('Communication Facility (Desc)'!$P118,[1]!MASTER_KEY_TYPE_DESC[#Data],0),0))","v":""},{"$f":"IF('Communication Facility (Desc)'!Q118=\"\",\"\",'Communication Facility (Desc)'!Q118)","v":""},{"$f":"IF('Communication Facility (Desc)'!R118=\"\",\"\",INDEX([1]FILTER_TYPE!$A$2:$A$100,MATCH('Communication Facility (Desc)'!$R118,[1]!MASTER_FILTER_TYPE_DESC[#Data],0),0))","v":""},{"$f":"IF('Communication Facility (Desc)'!S118=\"\",\"\",INDEX([1]FILTER_SIZE!$A$2:$A$100,MATCH('Communication Facility (Desc)'!$S118,[1]!MASTER_FILTER_SIZE_DESC[#Data],0),0))","v":""},{"$f":"IF('Communication Facility (Desc)'!T118=\"\",\"\",'Communication Facility (Desc)'!T118)","v":""},{"$f":"IF('Communication Facility (Desc)'!U118=\"\",\"\",INDEX([1]YES_NO!$A$2:$A$100,MATCH('Communication Facility (Desc)'!$U118,[1]!MASTER_YES_NO_DESC[#Data],0),0))","v":""},{"$f":"IF('Communication Facility (Desc)'!V118=\"\",\"\",INDEX([1]YES_NO!$A$2:$A$100,MATCH('Communication Facility (Desc)'!$V118,[1]!MASTER_YES_NO_DESC[#Data],0),0))","v":""}]
[{"$f":"IF('Communication Facility (Desc)'!A119=\"\",\"\",'Communication Facility (Desc)'!A119)","v":""},{"$f":"IF('Communication Facility (Desc)'!B119=\"\",\"\",'Communication Facility (Desc)'!B119)","v":""},{"$f":"IF('Communication Facility (Desc)'!C119=\"\",\"\",'Communication Facility (Desc)'!C119)","v":""},{"$f":"IF('Communication Facility (Desc)'!D119=\"\",\"\",INDEX([1]FACILITY_TYPE!$A$2:$A$100,MATCH('Communication Facility (Desc)'!$D119,[1]!MASTER_FACILITY_TYPE_DESC[#Data],0),0))","v":""},{"$f":"IF('Communication Facility (Desc)'!E119=\"\",\"\",INDEX([1]OWNER!$A$2:$A$100,MATCH('Communication Facility (Desc)'!$E119,[1]!MASTER_OWNER_DESC[#Data],0),0))","v":""},{"$f":"IF('Communication Facility (Desc)'!F119=\"\",\"\",IF('Communication Facility (Desc)'!F119=\"\",\"\",INDEX([1]COUNTY!$A$2:$A$80,MATCH('Communication Facility (Desc)'!F119,[1]!MASTER_COUNTY_NAME[#Data],0),0)))","v":""},{"$f":"IF('Communication Facility (Desc)'!G119=\"\",\"\",'Communication Facility (Desc)'!G119)","v":""},{"$f":"IF('Communication Facility (Desc)'!H119=\"\",\"\",'Communication Facility (Desc)'!H119)","v":""},{"$f":"IF('Communication Facility (Desc)'!I119=\"\",\"\",'Communication Facility (Desc)'!I119)","v":""},{"$f":"IF('Communication Facility (Desc)'!J119=\"\",\"\",INDEX([1]CABINET_TYPE!$A$2:$A$100,MATCH('Communication Facility (Desc)'!$J119,[1]!MASTER_CABINET_TYPE_DESC[#Data],0),0))","v":""},{"$f":"IF('Communication Facility (Desc)'!K119=\"\",\"\",INDEX([1]CABINET_MOUNT_TYPE!$A$2:$A$100,MATCH('Communication Facility (Desc)'!K119,[1]!MASTER_CABINET_MOUNT_TYPE_DESC[#Data],0),0))","v":""},{"$f":"IF('Communication Facility (Desc)'!L119=\"\",\"\",INDEX([1]YES_NO!$A$2:$A$100,MATCH('Communication Facility (Desc)'!L119,[1]!MASTER_YES_NO_DESC[#Data],0),0))","v":""},{"$f":"IF('Communication Facility (Desc)'!M119=\"\",\"\",INDEX([1]BUILDING_TYPE!$A$2:$A$100,MATCH('Communication Facility (Desc)'!$M119,[1]!MASTER_BUILDING_TYPE_DESC[#Data],0),0))","v":""},{"$f":"IF('Communication Facility (Desc)'!N119=\"\",\"\",'Communication Facility (Desc)'!N119)","v":""},{"$f":"IF('Communication Facility (Desc)'!O119=\"\",\"\",INDEX([1]BUILDING_MTL!$A$2:$A$100,MATCH('Communication Facility (Desc)'!$O119,[1]!MASTER_BUILDING_MTL_DESC[#Data],0),0))","v":""},{"$f":"IF('Communication Facility (Desc)'!P119=\"\",\"\",INDEX([1]KEY_TYPE!$A$2:$A$100,MATCH('Communication Facility (Desc)'!$P119,[1]!MASTER_KEY_TYPE_DESC[#Data],0),0))","v":""},{"$f":"IF('Communication Facility (Desc)'!Q119=\"\",\"\",'Communication Facility (Desc)'!Q119)","v":""},{"$f":"IF('Communication Facility (Desc)'!R119=\"\",\"\",INDEX([1]FILTER_TYPE!$A$2:$A$100,MATCH('Communication Facility (Desc)'!$R119,[1]!MASTER_FILTER_TYPE_DESC[#Data],0),0))","v":""},{"$f":"IF('Communication Facility (Desc)'!S119=\"\",\"\",INDEX([1]FILTER_SIZE!$A$2:$A$100,MATCH('Communication Facility (Desc)'!$S119,[1]!MASTER_FILTER_SIZE_DESC[#Data],0),0))","v":""},{"$f":"IF('Communication Facility (Desc)'!T119=\"\",\"\",'Communication Facility (Desc)'!T119)","v":""},{"$f":"IF('Communication Facility (Desc)'!U119=\"\",\"\",INDEX([1]YES_NO!$A$2:$A$100,MATCH('Communication Facility (Desc)'!$U119,[1]!MASTER_YES_NO_DESC[#Data],0),0))","v":""},{"$f":"IF('Communication Facility (Desc)'!V119=\"\",\"\",INDEX([1]YES_NO!$A$2:$A$100,MATCH('Communication Facility (Desc)'!$V119,[1]!MASTER_YES_NO_DESC[#Data],0),0))","v":""}]
[{"$f":"IF('Communication Facility (Desc)'!A120=\"\",\"\",'Communication Facility (Desc)'!A120)","v":""},{"$f":"IF('Communication Facility (Desc)'!B120=\"\",\"\",'Communication Facility (Desc)'!B120)","v":""},{"$f":"IF('Communication Facility (Desc)'!C120=\"\",\"\",'Communication Facility (Desc)'!C120)","v":""},{"$f":"IF('Communication Facility (Desc)'!D120=\"\",\"\",INDEX([1]FACILITY_TYPE!$A$2:$A$100,MATCH('Communication Facility (Desc)'!$D120,[1]!MASTER_FACILITY_TYPE_DESC[#Data],0),0))","v":""},{"$f":"IF('Communication Facility (Desc)'!E120=\"\",\"\",INDEX([1]OWNER!$A$2:$A$100,MATCH('Communication Facility (Desc)'!$E120,[1]!MASTER_OWNER_DESC[#Data],0),0))","v":""},{"$f":"IF('Communication Facility (Desc)'!F120=\"\",\"\",IF('Communication Facility (Desc)'!F120=\"\",\"\",INDEX([1]COUNTY!$A$2:$A$80,MATCH('Communication Facility (Desc)'!F120,[1]!MASTER_COUNTY_NAME[#Data],0),0)))","v":""},{"$f":"IF('Communication Facility (Desc)'!G120=\"\",\"\",'Communication Facility (Desc)'!G120)","v":""},{"$f":"IF('Communication Facility (Desc)'!H120=\"\",\"\",'Communication Facility (Desc)'!H120)","v":""},{"$f":"IF('Communication Facility (Desc)'!I120=\"\",\"\",'Communication Facility (Desc)'!I120)","v":""},{"$f":"IF('Communication Facility (Desc)'!J120=\"\",\"\",INDEX([1]CABINET_TYPE!$A$2:$A$100,MATCH('Communication Facility (Desc)'!$J120,[1]!MASTER_CABINET_TYPE_DESC[#Data],0),0))","v":""},{"$f":"IF('Communication Facility (Desc)'!K120=\"\",\"\",INDEX([1]CABINET_MOUNT_TYPE!$A$2:$A$100,MATCH('Communication Facility (Desc)'!K120,[1]!MASTER_CABINET_MOUNT_TYPE_DESC[#Data],0),0))","v":""},{"$f":"IF('Communication Facility (Desc)'!L120=\"\",\"\",INDEX([1]YES_NO!$A$2:$A$100,MATCH('Communication Facility (Desc)'!L120,[1]!MASTER_YES_NO_DESC[#Data],0),0))","v":""},{"$f":"IF('Communication Facility (Desc)'!M120=\"\",\"\",INDEX([1]BUILDING_TYPE!$A$2:$A$100,MATCH('Communication Facility (Desc)'!$M120,[1]!MASTER_BUILDING_TYPE_DESC[#Data],0),0))","v":""},{"$f":"IF('Communication Facility (Desc)'!N120=\"\",\"\",'Communication Facility (Desc)'!N120)","v":""},{"$f":"IF('Communication Facility (Desc)'!O120=\"\",\"\",INDEX([1]BUILDING_MTL!$A$2:$A$100,MATCH('Communication Facility (Desc)'!$O120,[1]!MASTER_BUILDING_MTL_DESC[#Data],0),0))","v":""},{"$f":"IF('Communication Facility (Desc)'!P120=\"\",\"\",INDEX([1]KEY_TYPE!$A$2:$A$100,MATCH('Communication Facility (Desc)'!$P120,[1]!MASTER_KEY_TYPE_DESC[#Data],0),0))","v":""},{"$f":"IF('Communication Facility (Desc)'!Q120=\"\",\"\",'Communication Facility (Desc)'!Q120)","v":""},{"$f":"IF('Communication Facility (Desc)'!R120=\"\",\"\",INDEX([1]FILTER_TYPE!$A$2:$A$100,MATCH('Communication Facility (Desc)'!$R120,[1]!MASTER_FILTER_TYPE_DESC[#Data],0),0))","v":""},{"$f":"IF('Communication Facility (Desc)'!S120=\"\",\"\",INDEX([1]FILTER_SIZE!$A$2:$A$100,MATCH('Communication Facility (Desc)'!$S120,[1]!MASTER_FILTER_SIZE_DESC[#Data],0),0))","v":""},{"$f":"IF('Communication Facility (Desc)'!T120=\"\",\"\",'Communication Facility (Desc)'!T120)","v":""},{"$f":"IF('Communication Facility (Desc)'!U120=\"\",\"\",INDEX([1]YES_NO!$A$2:$A$100,MATCH('Communication Facility (Desc)'!$U120,[1]!MASTER_YES_NO_DESC[#Data],0),0))","v":""},{"$f":"IF('Communication Facility (Desc)'!V120=\"\",\"\",INDEX([1]YES_NO!$A$2:$A$100,MATCH('Communication Facility (Desc)'!$V120,[1]!MASTER_YES_NO_DESC[#Data],0),0))","v":""}]
[{"$f":"IF('Communication Facility (Desc)'!A121=\"\",\"\",'Communication Facility (Desc)'!A121)","v":""},{"$f":"IF('Communication Facility (Desc)'!B121=\"\",\"\",'Communication Facility (Desc)'!B121)","v":""},{"$f":"IF('Communication Facility (Desc)'!C121=\"\",\"\",'Communication Facility (Desc)'!C121)","v":""},{"$f":"IF('Communication Facility (Desc)'!D121=\"\",\"\",INDEX([1]FACILITY_TYPE!$A$2:$A$100,MATCH('Communication Facility (Desc)'!$D121,[1]!MASTER_FACILITY_TYPE_DESC[#Data],0),0))","v":""},{"$f":"IF('Communication Facility (Desc)'!E121=\"\",\"\",INDEX([1]OWNER!$A$2:$A$100,MATCH('Communication Facility (Desc)'!$E121,[1]!MASTER_OWNER_DESC[#Data],0),0))","v":""},{"$f":"IF('Communication Facility (Desc)'!F121=\"\",\"\",IF('Communication Facility (Desc)'!F121=\"\",\"\",INDEX([1]COUNTY!$A$2:$A$80,MATCH('Communication Facility (Desc)'!F121,[1]!MASTER_COUNTY_NAME[#Data],0),0)))","v":""},{"$f":"IF('Communication Facility (Desc)'!G121=\"\",\"\",'Communication Facility (Desc)'!G121)","v":""},{"$f":"IF('Communication Facility (Desc)'!H121=\"\",\"\",'Communication Facility (Desc)'!H121)","v":""},{"$f":"IF('Communication Facility (Desc)'!I121=\"\",\"\",'Communication Facility (Desc)'!I121)","v":""},{"$f":"IF('Communication Facility (Desc)'!J121=\"\",\"\",INDEX([1]CABINET_TYPE!$A$2:$A$100,MATCH('Communication Facility (Desc)'!$J121,[1]!MASTER_CABINET_TYPE_DESC[#Data],0),0))","v":""},{"$f":"IF('Communication Facility (Desc)'!K121=\"\",\"\",INDEX([1]CABINET_MOUNT_TYPE!$A$2:$A$100,MATCH('Communication Facility (Desc)'!K121,[1]!MASTER_CABINET_MOUNT_TYPE_DESC[#Data],0),0))","v":""},{"$f":"IF('Communication Facility (Desc)'!L121=\"\",\"\",INDEX([1]YES_NO!$A$2:$A$100,MATCH('Communication Facility (Desc)'!L121,[1]!MASTER_YES_NO_DESC[#Data],0),0))","v":""},{"$f":"IF('Communication Facility (Desc)'!M121=\"\",\"\",INDEX([1]BUILDING_TYPE!$A$2:$A$100,MATCH('Communication Facility (Desc)'!$M121,[1]!MASTER_BUILDING_TYPE_DESC[#Data],0),0))","v":""},{"$f":"IF('Communication Facility (Desc)'!N121=\"\",\"\",'Communication Facility (Desc)'!N121)","v":""},{"$f":"IF('Communication Facility (Desc)'!O121=\"\",\"\",INDEX([1]BUILDING_MTL!$A$2:$A$100,MATCH('Communication Facility (Desc)'!$O121,[1]!MASTER_BUILDING_MTL_DESC[#Data],0),0))","v":""},{"$f":"IF('Communication Facility (Desc)'!P121=\"\",\"\",INDEX([1]KEY_TYPE!$A$2:$A$100,MATCH('Communication Facility (Desc)'!$P121,[1]!MASTER_KEY_TYPE_DESC[#Data],0),0))","v":""},{"$f":"IF('Communication Facility (Desc)'!Q121=\"\",\"\",'Communication Facility (Desc)'!Q121)","v":""},{"$f":"IF('Communication Facility (Desc)'!R121=\"\",\"\",INDEX([1]FILTER_TYPE!$A$2:$A$100,MATCH('Communication Facility (Desc)'!$R121,[1]!MASTER_FILTER_TYPE_DESC[#Data],0),0))","v":""},{"$f":"IF('Communication Facility (Desc)'!S121=\"\",\"\",INDEX([1]FILTER_SIZE!$A$2:$A$100,MATCH('Communication Facility (Desc)'!$S121,[1]!MASTER_FILTER_SIZE_DESC[#Data],0),0))","v":""},{"$f":"IF('Communication Facility (Desc)'!T121=\"\",\"\",'Communication Facility (Desc)'!T121)","v":""},{"$f":"IF('Communication Facility (Desc)'!U121=\"\",\"\",INDEX([1]YES_NO!$A$2:$A$100,MATCH('Communication Facility (Desc)'!$U121,[1]!MASTER_YES_NO_DESC[#Data],0),0))","v":""},{"$f":"IF('Communication Facility (Desc)'!V121=\"\",\"\",INDEX([1]YES_NO!$A$2:$A$100,MATCH('Communication Facility (Desc)'!$V121,[1]!MASTER_YES_NO_DESC[#Data],0),0))","v":""}]
[{"$f":"IF('Communication Facility (Desc)'!A122=\"\",\"\",'Communication Facility (Desc)'!A122)","v":""},{"$f":"IF('Communication Facility (Desc)'!B122=\"\",\"\",'Communication Facility (Desc)'!B122)","v":""},{"$f":"IF('Communication Facility (Desc)'!C122=\"\",\"\",'Communication Facility (Desc)'!C122)","v":""},{"$f":"IF('Communication Facility (Desc)'!D122=\"\",\"\",INDEX([1]FACILITY_TYPE!$A$2:$A$100,MATCH('Communication Facility (Desc)'!$D122,[1]!MASTER_FACILITY_TYPE_DESC[#Data],0),0))","v":""},{"$f":"IF('Communication Facility (Desc)'!E122=\"\",\"\",INDEX([1]OWNER!$A$2:$A$100,MATCH('Communication Facility (Desc)'!$E122,[1]!MASTER_OWNER_DESC[#Data],0),0))","v":""},{"$f":"IF('Communication Facility (Desc)'!F122=\"\",\"\",IF('Communication Facility (Desc)'!F122=\"\",\"\",INDEX([1]COUNTY!$A$2:$A$80,MATCH('Communication Facility (Desc)'!F122,[1]!MASTER_COUNTY_NAME[#Data],0),0)))","v":""},{"$f":"IF('Communication Facility (Desc)'!G122=\"\",\"\",'Communication Facility (Desc)'!G122)","v":""},{"$f":"IF('Communication Facility (Desc)'!H122=\"\",\"\",'Communication Facility (Desc)'!H122)","v":""},{"$f":"IF('Communication Facility (Desc)'!I122=\"\",\"\",'Communication Facility (Desc)'!I122)","v":""},{"$f":"IF('Communication Facility (Desc)'!J122=\"\",\"\",INDEX([1]CABINET_TYPE!$A$2:$A$100,MATCH('Communication Facility (Desc)'!$J122,[1]!MASTER_CABINET_TYPE_DESC[#Data],0),0))","v":""},{"$f":"IF('Communication Facility (Desc)'!K122=\"\",\"\",INDEX([1]CABINET_MOUNT_TYPE!$A$2:$A$100,MATCH('Communication Facility (Desc)'!K122,[1]!MASTER_CABINET_MOUNT_TYPE_DESC[#Data],0),0))","v":""},{"$f":"IF('Communication Facility (Desc)'!L122=\"\",\"\",INDEX([1]YES_NO!$A$2:$A$100,MATCH('Communication Facility (Desc)'!L122,[1]!MASTER_YES_NO_DESC[#Data],0),0))","v":""},{"$f":"IF('Communication Facility (Desc)'!M122=\"\",\"\",INDEX([1]BUILDING_TYPE!$A$2:$A$100,MATCH('Communication Facility (Desc)'!$M122,[1]!MASTER_BUILDING_TYPE_DESC[#Data],0),0))","v":""},{"$f":"IF('Communication Facility (Desc)'!N122=\"\",\"\",'Communication Facility (Desc)'!N122)","v":""},{"$f":"IF('Communication Facility (Desc)'!O122=\"\",\"\",INDEX([1]BUILDING_MTL!$A$2:$A$100,MATCH('Communication Facility (Desc)'!$O122,[1]!MASTER_BUILDING_MTL_DESC[#Data],0),0))","v":""},{"$f":"IF('Communication Facility (Desc)'!P122=\"\",\"\",INDEX([1]KEY_TYPE!$A$2:$A$100,MATCH('Communication Facility (Desc)'!$P122,[1]!MASTER_KEY_TYPE_DESC[#Data],0),0))","v":""},{"$f":"IF('Communication Facility (Desc)'!Q122=\"\",\"\",'Communication Facility (Desc)'!Q122)","v":""},{"$f":"IF('Communication Facility (Desc)'!R122=\"\",\"\",INDEX([1]FILTER_TYPE!$A$2:$A$100,MATCH('Communication Facility (Desc)'!$R122,[1]!MASTER_FILTER_TYPE_DESC[#Data],0),0))","v":""},{"$f":"IF('Communication Facility (Desc)'!S122=\"\",\"\",INDEX([1]FILTER_SIZE!$A$2:$A$100,MATCH('Communication Facility (Desc)'!$S122,[1]!MASTER_FILTER_SIZE_DESC[#Data],0),0))","v":""},{"$f":"IF('Communication Facility (Desc)'!T122=\"\",\"\",'Communication Facility (Desc)'!T122)","v":""},{"$f":"IF('Communication Facility (Desc)'!U122=\"\",\"\",INDEX([1]YES_NO!$A$2:$A$100,MATCH('Communication Facility (Desc)'!$U122,[1]!MASTER_YES_NO_DESC[#Data],0),0))","v":""},{"$f":"IF('Communication Facility (Desc)'!V122=\"\",\"\",INDEX([1]YES_NO!$A$2:$A$100,MATCH('Communication Facility (Desc)'!$V122,[1]!MASTER_YES_NO_DESC[#Data],0),0))","v":""}]
[{"$f":"IF('Communication Facility (Desc)'!A123=\"\",\"\",'Communication Facility (Desc)'!A123)","v":""},{"$f":"IF('Communication Facility (Desc)'!B123=\"\",\"\",'Communication Facility (Desc)'!B123)","v":""},{"$f":"IF('Communication Facility (Desc)'!C123=\"\",\"\",'Communication Facility (Desc)'!C123)","v":""},{"$f":"IF('Communication Facility (Desc)'!D123=\"\",\"\",INDEX([1]FACILITY_TYPE!$A$2:$A$100,MATCH('Communication Facility (Desc)'!$D123,[1]!MASTER_FACILITY_TYPE_DESC[#Data],0),0))","v":""},{"$f":"IF('Communication Facility (Desc)'!E123=\"\",\"\",INDEX([1]OWNER!$A$2:$A$100,MATCH('Communication Facility (Desc)'!$E123,[1]!MASTER_OWNER_DESC[#Data],0),0))","v":""},{"$f":"IF('Communication Facility (Desc)'!F123=\"\",\"\",IF('Communication Facility (Desc)'!F123=\"\",\"\",INDEX([1]COUNTY!$A$2:$A$80,MATCH('Communication Facility (Desc)'!F123,[1]!MASTER_COUNTY_NAME[#Data],0),0)))","v":""},{"$f":"IF('Communication Facility (Desc)'!G123=\"\",\"\",'Communication Facility (Desc)'!G123)","v":""},{"$f":"IF('Communication Facility (Desc)'!H123=\"\",\"\",'Communication Facility (Desc)'!H123)","v":""},{"$f":"IF('Communication Facility (Desc)'!I123=\"\",\"\",'Communication Facility (Desc)'!I123)","v":""},{"$f":"IF('Communication Facility (Desc)'!J123=\"\",\"\",INDEX([1]CABINET_TYPE!$A$2:$A$100,MATCH('Communication Facility (Desc)'!$J123,[1]!MASTER_CABINET_TYPE_DESC[#Data],0),0))","v":""},{"$f":"IF('Communication Facility (Desc)'!K123=\"\",\"\",INDEX([1]CABINET_MOUNT_TYPE!$A$2:$A$100,MATCH('Communication Facility (Desc)'!K123,[1]!MASTER_CABINET_MOUNT_TYPE_DESC[#Data],0),0))","v":""},{"$f":"IF('Communication Facility (Desc)'!L123=\"\",\"\",INDEX([1]YES_NO!$A$2:$A$100,MATCH('Communication Facility (Desc)'!L123,[1]!MASTER_YES_NO_DESC[#Data],0),0))","v":""},{"$f":"IF('Communication Facility (Desc)'!M123=\"\",\"\",INDEX([1]BUILDING_TYPE!$A$2:$A$100,MATCH('Communication Facility (Desc)'!$M123,[1]!MASTER_BUILDING_TYPE_DESC[#Data],0),0))","v":""},{"$f":"IF('Communication Facility (Desc)'!N123=\"\",\"\",'Communication Facility (Desc)'!N123)","v":""},{"$f":"IF('Communication Facility (Desc)'!O123=\"\",\"\",INDEX([1]BUILDING_MTL!$A$2:$A$100,MATCH('Communication Facility (Desc)'!$O123,[1]!MASTER_BUILDING_MTL_DESC[#Data],0),0))","v":""},{"$f":"IF('Communication Facility (Desc)'!P123=\"\",\"\",INDEX([1]KEY_TYPE!$A$2:$A$100,MATCH('Communication Facility (Desc)'!$P123,[1]!MASTER_KEY_TYPE_DESC[#Data],0),0))","v":""},{"$f":"IF('Communication Facility (Desc)'!Q123=\"\",\"\",'Communication Facility (Desc)'!Q123)","v":""},{"$f":"IF('Communication Facility (Desc)'!R123=\"\",\"\",INDEX([1]FILTER_TYPE!$A$2:$A$100,MATCH('Communication Facility (Desc)'!$R123,[1]!MASTER_FILTER_TYPE_DESC[#Data],0),0))","v":""},{"$f":"IF('Communication Facility (Desc)'!S123=\"\",\"\",INDEX([1]FILTER_SIZE!$A$2:$A$100,MATCH('Communication Facility (Desc)'!$S123,[1]!MASTER_FILTER_SIZE_DESC[#Data],0),0))","v":""},{"$f":"IF('Communication Facility (Desc)'!T123=\"\",\"\",'Communication Facility (Desc)'!T123)","v":""},{"$f":"IF('Communication Facility (Desc)'!U123=\"\",\"\",INDEX([1]YES_NO!$A$2:$A$100,MATCH('Communication Facility (Desc)'!$U123,[1]!MASTER_YES_NO_DESC[#Data],0),0))","v":""},{"$f":"IF('Communication Facility (Desc)'!V123=\"\",\"\",INDEX([1]YES_NO!$A$2:$A$100,MATCH('Communication Facility (Desc)'!$V123,[1]!MASTER_YES_NO_DESC[#Data],0),0))","v":""}]
[{"$f":"IF('Communication Facility (Desc)'!A124=\"\",\"\",'Communication Facility (Desc)'!A124)","v":""},{"$f":"IF('Communication Facility (Desc)'!B124=\"\",\"\",'Communication Facility (Desc)'!B124)","v":""},{"$f":"IF('Communication Facility (Desc)'!C124=\"\",\"\",'Communication Facility (Desc)'!C124)","v":""},{"$f":"IF('Communication Facility (Desc)'!D124=\"\",\"\",INDEX([1]FACILITY_TYPE!$A$2:$A$100,MATCH('Communication Facility (Desc)'!$D124,[1]!MASTER_FACILITY_TYPE_DESC[#Data],0),0))","v":""},{"$f":"IF('Communication Facility (Desc)'!E124=\"\",\"\",INDEX([1]OWNER!$A$2:$A$100,MATCH('Communication Facility (Desc)'!$E124,[1]!MASTER_OWNER_DESC[#Data],0),0))","v":""},{"$f":"IF('Communication Facility (Desc)'!F124=\"\",\"\",IF('Communication Facility (Desc)'!F124=\"\",\"\",INDEX([1]COUNTY!$A$2:$A$80,MATCH('Communication Facility (Desc)'!F124,[1]!MASTER_COUNTY_NAME[#Data],0),0)))","v":""},{"$f":"IF('Communication Facility (Desc)'!G124=\"\",\"\",'Communication Facility (Desc)'!G124)","v":""},{"$f":"IF('Communication Facility (Desc)'!H124=\"\",\"\",'Communication Facility (Desc)'!H124)","v":""},{"$f":"IF('Communication Facility (Desc)'!I124=\"\",\"\",'Communication Facility (Desc)'!I124)","v":""},{"$f":"IF('Communication Facility (Desc)'!J124=\"\",\"\",INDEX([1]CABINET_TYPE!$A$2:$A$100,MATCH('Communication Facility (Desc)'!$J124,[1]!MASTER_CABINET_TYPE_DESC[#Data],0),0))","v":""},{"$f":"IF('Communication Facility (Desc)'!K124=\"\",\"\",INDEX([1]CABINET_MOUNT_TYPE!$A$2:$A$100,MATCH('Communication Facility (Desc)'!K124,[1]!MASTER_CABINET_MOUNT_TYPE_DESC[#Data],0),0))","v":""},{"$f":"IF('Communication Facility (Desc)'!L124=\"\",\"\",INDEX([1]YES_NO!$A$2:$A$100,MATCH('Communication Facility (Desc)'!L124,[1]!MASTER_YES_NO_DESC[#Data],0),0))","v":""},{"$f":"IF('Communication Facility (Desc)'!M124=\"\",\"\",INDEX([1]BUILDING_TYPE!$A$2:$A$100,MATCH('Communication Facility (Desc)'!$M124,[1]!MASTER_BUILDING_TYPE_DESC[#Data],0),0))","v":""},{"$f":"IF('Communication Facility (Desc)'!N124=\"\",\"\",'Communication Facility (Desc)'!N124)","v":""},{"$f":"IF('Communication Facility (Desc)'!O124=\"\",\"\",INDEX([1]BUILDING_MTL!$A$2:$A$100,MATCH('Communication Facility (Desc)'!$O124,[1]!MASTER_BUILDING_MTL_DESC[#Data],0),0))","v":""},{"$f":"IF('Communication Facility (Desc)'!P124=\"\",\"\",INDEX([1]KEY_TYPE!$A$2:$A$100,MATCH('Communication Facility (Desc)'!$P124,[1]!MASTER_KEY_TYPE_DESC[#Data],0),0))","v":""},{"$f":"IF('Communication Facility (Desc)'!Q124=\"\",\"\",'Communication Facility (Desc)'!Q124)","v":""},{"$f":"IF('Communication Facility (Desc)'!R124=\"\",\"\",INDEX([1]FILTER_TYPE!$A$2:$A$100,MATCH('Communication Facility (Desc)'!$R124,[1]!MASTER_FILTER_TYPE_DESC[#Data],0),0))","v":""},{"$f":"IF('Communication Facility (Desc)'!S124=\"\",\"\",INDEX([1]FILTER_SIZE!$A$2:$A$100,MATCH('Communication Facility (Desc)'!$S124,[1]!MASTER_FILTER_SIZE_DESC[#Data],0),0))","v":""},{"$f":"IF('Communication Facility (Desc)'!T124=\"\",\"\",'Communication Facility (Desc)'!T124)","v":""},{"$f":"IF('Communication Facility (Desc)'!U124=\"\",\"\",INDEX([1]YES_NO!$A$2:$A$100,MATCH('Communication Facility (Desc)'!$U124,[1]!MASTER_YES_NO_DESC[#Data],0),0))","v":""},{"$f":"IF('Communication Facility (Desc)'!V124=\"\",\"\",INDEX([1]YES_NO!$A$2:$A$100,MATCH('Communication Facility (Desc)'!$V124,[1]!MASTER_YES_NO_DESC[#Data],0),0))","v":""}]
[{"$f":"IF('Communication Facility (Desc)'!A125=\"\",\"\",'Communication Facility (Desc)'!A125)","v":""},{"$f":"IF('Communication Facility (Desc)'!B125=\"\",\"\",'Communication Facility (Desc)'!B125)","v":""},{"$f":"IF('Communication Facility (Desc)'!C125=\"\",\"\",'Communication Facility (Desc)'!C125)","v":""},{"$f":"IF('Communication Facility (Desc)'!D125=\"\",\"\",INDEX([1]FACILITY_TYPE!$A$2:$A$100,MATCH('Communication Facility (Desc)'!$D125,[1]!MASTER_FACILITY_TYPE_DESC[#Data],0),0))","v":""},{"$f":"IF('Communication Facility (Desc)'!E125=\"\",\"\",INDEX([1]OWNER!$A$2:$A$100,MATCH('Communication Facility (Desc)'!$E125,[1]!MASTER_OWNER_DESC[#Data],0),0))","v":""},{"$f":"IF('Communication Facility (Desc)'!F125=\"\",\"\",IF('Communication Facility (Desc)'!F125=\"\",\"\",INDEX([1]COUNTY!$A$2:$A$80,MATCH('Communication Facility (Desc)'!F125,[1]!MASTER_COUNTY_NAME[#Data],0),0)))","v":""},{"$f":"IF('Communication Facility (Desc)'!G125=\"\",\"\",'Communication Facility (Desc)'!G125)","v":""},{"$f":"IF('Communication Facility (Desc)'!H125=\"\",\"\",'Communication Facility (Desc)'!H125)","v":""},{"$f":"IF('Communication Facility (Desc)'!I125=\"\",\"\",'Communication Facility (Desc)'!I125)","v":""},{"$f":"IF('Communication Facility (Desc)'!J125=\"\",\"\",INDEX([1]CABINET_TYPE!$A$2:$A$100,MATCH('Communication Facility (Desc)'!$J125,[1]!MASTER_CABINET_TYPE_DESC[#Data],0),0))","v":""},{"$f":"IF('Communication Facility (Desc)'!K125=\"\",\"\",INDEX([1]CABINET_MOUNT_TYPE!$A$2:$A$100,MATCH('Communication Facility (Desc)'!K125,[1]!MASTER_CABINET_MOUNT_TYPE_DESC[#Data],0),0))","v":""},{"$f":"IF('Communication Facility (Desc)'!L125=\"\",\"\",INDEX([1]YES_NO!$A$2:$A$100,MATCH('Communication Facility (Desc)'!L125,[1]!MASTER_YES_NO_DESC[#Data],0),0))","v":""},{"$f":"IF('Communication Facility (Desc)'!M125=\"\",\"\",INDEX([1]BUILDING_TYPE!$A$2:$A$100,MATCH('Communication Facility (Desc)'!$M125,[1]!MASTER_BUILDING_TYPE_DESC[#Data],0),0))","v":""},{"$f":"IF('Communication Facility (Desc)'!N125=\"\",\"\",'Communication Facility (Desc)'!N125)","v":""},{"$f":"IF('Communication Facility (Desc)'!O125=\"\",\"\",INDEX([1]BUILDING_MTL!$A$2:$A$100,MATCH('Communication Facility (Desc)'!$O125,[1]!MASTER_BUILDING_MTL_DESC[#Data],0),0))","v":""},{"$f":"IF('Communication Facility (Desc)'!P125=\"\",\"\",INDEX([1]KEY_TYPE!$A$2:$A$100,MATCH('Communication Facility (Desc)'!$P125,[1]!MASTER_KEY_TYPE_DESC[#Data],0),0))","v":""},{"$f":"IF('Communication Facility (Desc)'!Q125=\"\",\"\",'Communication Facility (Desc)'!Q125)","v":""},{"$f":"IF('Communication Facility (Desc)'!R125=\"\",\"\",INDEX([1]FILTER_TYPE!$A$2:$A$100,MATCH('Communication Facility (Desc)'!$R125,[1]!MASTER_FILTER_TYPE_DESC[#Data],0),0))","v":""},{"$f":"IF('Communication Facility (Desc)'!S125=\"\",\"\",INDEX([1]FILTER_SIZE!$A$2:$A$100,MATCH('Communication Facility (Desc)'!$S125,[1]!MASTER_FILTER_SIZE_DESC[#Data],0),0))","v":""},{"$f":"IF('Communication Facility (Desc)'!T125=\"\",\"\",'Communication Facility (Desc)'!T125)","v":""},{"$f":"IF('Communication Facility (Desc)'!U125=\"\",\"\",INDEX([1]YES_NO!$A$2:$A$100,MATCH('Communication Facility (Desc)'!$U125,[1]!MASTER_YES_NO_DESC[#Data],0),0))","v":""},{"$f":"IF('Communication Facility (Desc)'!V125=\"\",\"\",INDEX([1]YES_NO!$A$2:$A$100,MATCH('Communication Facility (Desc)'!$V125,[1]!MASTER_YES_NO_DESC[#Data],0),0))","v":""}]
[{"$f":"IF('Communication Facility (Desc)'!A126=\"\",\"\",'Communication Facility (Desc)'!A126)","v":""},{"$f":"IF('Communication Facility (Desc)'!B126=\"\",\"\",'Communication Facility (Desc)'!B126)","v":""},{"$f":"IF('Communication Facility (Desc)'!C126=\"\",\"\",'Communication Facility (Desc)'!C126)","v":""},{"$f":"IF('Communication Facility (Desc)'!D126=\"\",\"\",INDEX([1]FACILITY_TYPE!$A$2:$A$100,MATCH('Communication Facility (Desc)'!$D126,[1]!MASTER_FACILITY_TYPE_DESC[#Data],0),0))","v":""},{"$f":"IF('Communication Facility (Desc)'!E126=\"\",\"\",INDEX([1]OWNER!$A$2:$A$100,MATCH('Communication Facility (Desc)'!$E126,[1]!MASTER_OWNER_DESC[#Data],0),0))","v":""},{"$f":"IF('Communication Facility (Desc)'!F126=\"\",\"\",IF('Communication Facility (Desc)'!F126=\"\",\"\",INDEX([1]COUNTY!$A$2:$A$80,MATCH('Communication Facility (Desc)'!F126,[1]!MASTER_COUNTY_NAME[#Data],0),0)))","v":""},{"$f":"IF('Communication Facility (Desc)'!G126=\"\",\"\",'Communication Facility (Desc)'!G126)","v":""},{"$f":"IF('Communication Facility (Desc)'!H126=\"\",\"\",'Communication Facility (Desc)'!H126)","v":""},{"$f":"IF('Communication Facility (Desc)'!I126=\"\",\"\",'Communication Facility (Desc)'!I126)","v":""},{"$f":"IF('Communication Facility (Desc)'!J126=\"\",\"\",INDEX([1]CABINET_TYPE!$A$2:$A$100,MATCH('Communication Facility (Desc)'!$J126,[1]!MASTER_CABINET_TYPE_DESC[#Data],0),0))","v":""},{"$f":"IF('Communication Facility (Desc)'!K126=\"\",\"\",INDEX([1]CABINET_MOUNT_TYPE!$A$2:$A$100,MATCH('Communication Facility (Desc)'!K126,[1]!MASTER_CABINET_MOUNT_TYPE_DESC[#Data],0),0))","v":""},{"$f":"IF('Communication Facility (Desc)'!L126=\"\",\"\",INDEX([1]YES_NO!$A$2:$A$100,MATCH('Communication Facility (Desc)'!L126,[1]!MASTER_YES_NO_DESC[#Data],0),0))","v":""},{"$f":"IF('Communication Facility (Desc)'!M126=\"\",\"\",INDEX([1]BUILDING_TYPE!$A$2:$A$100,MATCH('Communication Facility (Desc)'!$M126,[1]!MASTER_BUILDING_TYPE_DESC[#Data],0),0))","v":""},{"$f":"IF('Communication Facility (Desc)'!N126=\"\",\"\",'Communication Facility (Desc)'!N126)","v":""},{"$f":"IF('Communication Facility (Desc)'!O126=\"\",\"\",INDEX([1]BUILDING_MTL!$A$2:$A$100,MATCH('Communication Facility (Desc)'!$O126,[1]!MASTER_BUILDING_MTL_DESC[#Data],0),0))","v":""},{"$f":"IF('Communication Facility (Desc)'!P126=\"\",\"\",INDEX([1]KEY_TYPE!$A$2:$A$100,MATCH('Communication Facility (Desc)'!$P126,[1]!MASTER_KEY_TYPE_DESC[#Data],0),0))","v":""},{"$f":"IF('Communication Facility (Desc)'!Q126=\"\",\"\",'Communication Facility (Desc)'!Q126)","v":""},{"$f":"IF('Communication Facility (Desc)'!R126=\"\",\"\",INDEX([1]FILTER_TYPE!$A$2:$A$100,MATCH('Communication Facility (Desc)'!$R126,[1]!MASTER_FILTER_TYPE_DESC[#Data],0),0))","v":""},{"$f":"IF('Communication Facility (Desc)'!S126=\"\",\"\",INDEX([1]FILTER_SIZE!$A$2:$A$100,MATCH('Communication Facility (Desc)'!$S126,[1]!MASTER_FILTER_SIZE_DESC[#Data],0),0))","v":""},{"$f":"IF('Communication Facility (Desc)'!T126=\"\",\"\",'Communication Facility (Desc)'!T126)","v":""},{"$f":"IF('Communication Facility (Desc)'!U126=\"\",\"\",INDEX([1]YES_NO!$A$2:$A$100,MATCH('Communication Facility (Desc)'!$U126,[1]!MASTER_YES_NO_DESC[#Data],0),0))","v":""},{"$f":"IF('Communication Facility (Desc)'!V126=\"\",\"\",INDEX([1]YES_NO!$A$2:$A$100,MATCH('Communication Facility (Desc)'!$V126,[1]!MASTER_YES_NO_DESC[#Data],0),0))","v":""}]
[{"$f":"IF('Communication Facility (Desc)'!A127=\"\",\"\",'Communication Facility (Desc)'!A127)","v":""},{"$f":"IF('Communication Facility (Desc)'!B127=\"\",\"\",'Communication Facility (Desc)'!B127)","v":""},{"$f":"IF('Communication Facility (Desc)'!C127=\"\",\"\",'Communication Facility (Desc)'!C127)","v":""},{"$f":"IF('Communication Facility (Desc)'!D127=\"\",\"\",INDEX([1]FACILITY_TYPE!$A$2:$A$100,MATCH('Communication Facility (Desc)'!$D127,[1]!MASTER_FACILITY_TYPE_DESC[#Data],0),0))","v":""},{"$f":"IF('Communication Facility (Desc)'!E127=\"\",\"\",INDEX([1]OWNER!$A$2:$A$100,MATCH('Communication Facility (Desc)'!$E127,[1]!MASTER_OWNER_DESC[#Data],0),0))","v":""},{"$f":"IF('Communication Facility (Desc)'!F127=\"\",\"\",IF('Communication Facility (Desc)'!F127=\"\",\"\",INDEX([1]COUNTY!$A$2:$A$80,MATCH('Communication Facility (Desc)'!F127,[1]!MASTER_COUNTY_NAME[#Data],0),0)))","v":""},{"$f":"IF('Communication Facility (Desc)'!G127=\"\",\"\",'Communication Facility (Desc)'!G127)","v":""},{"$f":"IF('Communication Facility (Desc)'!H127=\"\",\"\",'Communication Facility (Desc)'!H127)","v":""},{"$f":"IF('Communication Facility (Desc)'!I127=\"\",\"\",'Communication Facility (Desc)'!I127)","v":""},{"$f":"IF('Communication Facility (Desc)'!J127=\"\",\"\",INDEX([1]CABINET_TYPE!$A$2:$A$100,MATCH('Communication Facility (Desc)'!$J127,[1]!MASTER_CABINET_TYPE_DESC[#Data],0),0))","v":""},{"$f":"IF('Communication Facility (Desc)'!K127=\"\",\"\",INDEX([1]CABINET_MOUNT_TYPE!$A$2:$A$100,MATCH('Communication Facility (Desc)'!K127,[1]!MASTER_CABINET_MOUNT_TYPE_DESC[#Data],0),0))","v":""},{"$f":"IF('Communication Facility (Desc)'!L127=\"\",\"\",INDEX([1]YES_NO!$A$2:$A$100,MATCH('Communication Facility (Desc)'!L127,[1]!MASTER_YES_NO_DESC[#Data],0),0))","v":""},{"$f":"IF('Communication Facility (Desc)'!M127=\"\",\"\",INDEX([1]BUILDING_TYPE!$A$2:$A$100,MATCH('Communication Facility (Desc)'!$M127,[1]!MASTER_BUILDING_TYPE_DESC[#Data],0),0))","v":""},{"$f":"IF('Communication Facility (Desc)'!N127=\"\",\"\",'Communication Facility (Desc)'!N127)","v":""},{"$f":"IF('Communication Facility (Desc)'!O127=\"\",\"\",INDEX([1]BUILDING_MTL!$A$2:$A$100,MATCH('Communication Facility (Desc)'!$O127,[1]!MASTER_BUILDING_MTL_DESC[#Data],0),0))","v":""},{"$f":"IF('Communication Facility (Desc)'!P127=\"\",\"\",INDEX([1]KEY_TYPE!$A$2:$A$100,MATCH('Communication Facility (Desc)'!$P127,[1]!MASTER_KEY_TYPE_DESC[#Data],0),0))","v":""},{"$f":"IF('Communication Facility (Desc)'!Q127=\"\",\"\",'Communication Facility (Desc)'!Q127)","v":""},{"$f":"IF('Communication Facility (Desc)'!R127=\"\",\"\",INDEX([1]FILTER_TYPE!$A$2:$A$100,MATCH('Communication Facility (Desc)'!$R127,[1]!MASTER_FILTER_TYPE_DESC[#Data],0),0))","v":""},{"$f":"IF('Communication Facility (Desc)'!S127=\"\",\"\",INDEX([1]FILTER_SIZE!$A$2:$A$100,MATCH('Communication Facility (Desc)'!$S127,[1]!MASTER_FILTER_SIZE_DESC[#Data],0),0))","v":""},{"$f":"IF('Communication Facility (Desc)'!T127=\"\",\"\",'Communication Facility (Desc)'!T127)","v":""},{"$f":"IF('Communication Facility (Desc)'!U127=\"\",\"\",INDEX([1]YES_NO!$A$2:$A$100,MATCH('Communication Facility (Desc)'!$U127,[1]!MASTER_YES_NO_DESC[#Data],0),0))","v":""},{"$f":"IF('Communication Facility (Desc)'!V127=\"\",\"\",INDEX([1]YES_NO!$A$2:$A$100,MATCH('Communication Facility (Desc)'!$V127,[1]!MASTER_YES_NO_DESC[#Data],0),0))","v":""}]